Workbook

Sheet Chromatograms
A1: ChromSimHPLC_2.0 | O1: Manual: | X1: Author: Bo Svensmark, svensmark@plen.ku.dk, Analytical Chemistry PLEN, 2015 - 2021 | AR1: Linear | AS1: Time | AT1: tM-marker | AU1: 1 | AV1: 2 | AW1: 3 | AX1: 4 | AY1: 5 | AZ1: 6 | BA1: 7 | BB1: 8 | BC1: 9 | BD1: 10 | BE1: 11 | BF1: Signal | BG1: Linear | BH1: Tid | BI1: tM-marker | BJ1: 1 | BK1: 2 | BL1: 3 | BM1: 4 | BN1: 5 | BO1: 6 | BP1: 7 | BQ1: 8 | BR1: 9 | BS1: 10 | BT1: 11 | BU1: Signal | BV1: Ref | BW1: Tid | BX1: tM-marker | BY1: 1 | BZ1: 2 | CA1: 3 | CB1: 4 | CC1: 5 | CD1: 6 | CE1: 7 | CF1: 8 | CG1: 9 | CH1: 10 | CI1: 11 | CJ1: Signal | CK1: Nonlinear | CL1: Tid | CM1: tM-marker | CN1: 1 | CO1: 2 | CP1: 3 | CQ1: 4 | CR1: 5 | CS1: 6 | CT1: 7 | CU1: 8 | CV1: 9 | CW1: 10 | CX1: 11 | CY1: Signal | CZ1: Nonlinear | DA1: Tid | DB1: tM-marker | DC1: 1 | DD1: 2 | DE1: 3 | DF1: 4 | DG1: 5 | DH1: 6 | DI1: 7 | DJ1: 8 | DK1: 9 | DL1: 10 | DM1: 11 | DN1: Signal
A2: Table 1 | O2: Linear Solvent Strengths (LSS) model in Excel: | AR2: Green | AS2: 0 | AT2: =$B$42*NORMDIST($AS2,$B$39,$B$43*$B$39,FALSE) -> 1.398665657e-54 | AU2: =B$4*IF(B$4>0,NORMDIST($AS2,P$17,Q$17/4,FALSE),0) -> 0 | AV2: =B$5*IF(B$5>0,NORMDIST($AS2,P$18,Q$18/4,FALSE),0) -> 0 | AW2: =B$6*IF(B$6>0,NORMDIST($AS2,P$19,Q$19/4,FALSE),0) -> 0 | AX2: =B$7*IF(B$7>0,NORMDIST($AS2,P$20,Q$20/4,FALSE),0) -> 0 | AY2: =B$8*IF(B$8>0,NORMDIST($AS2,P$21,Q$21/4,FALSE),0) -> 0 | AZ2: =B$9*IF(B$9>0,NORMDIST($AS2,P$22,$Q$22/4,FALSE),0) -> 0 | BA2: =$B$10*IF($B$10>0,NORMDIST($AS2,P$23,$Q$23/4,FALSE),0) -> 0 | BB2: =$B$11*IF($B$11>0,NORMDIST($AS2,P$24,$Q$24/4,FALSE),0) -> 0 | BC2: =$B$12*IF($B$12>0,NORMDIST($AS2,$P$25,$Q$25/4,FALSE),0) -> 0 | BD2: =$B$13*IF($B$13>0,NORMDIST($AS2,$P$26,$Q$26/4,FALSE),0) -> 0 | BE2: =$B$14*IF($B$14>0,NORMDIST($AS2,$P$27,$Q$27/4,FALSE),0) -> 0 | BF2: =IF($M$39<>0,SUM(AT2:BE2)*$M$39+$L$39,-1) -> 20 | BG2: Blue | BH2: 0 | BI2: =$B$42*NORMDIST($AS2,$B$39,$B$43*$B$39,FALSE) -> 1.398665657e-54 | BJ2: =IF(B$4>0,B$4*NORMDIST($AS2,P$31,Q$31/4,FALSE),0) -> 0 | BK2: =IF(B$5>0,B$5*NORMDIST($AS2,P$32,Q$32/4,FALSE),0) -> 0 | BL2: =IF(B$6>0,B$6*NORMDIST($AS2,P$33,Q$33/4,FALSE),0) -> 0 | BM2: =IF(B$7>0,B$7*NORMDIST($AS2,P$34,Q$34/4,FALSE),0) -> 0 | BN2: =IF(B$8>0,B$8*NORMDIST($AS2,P$35,Q$35/4,FALSE),0) -> 0 | BO2: =IF(B$9>0,B$9*NORMDIST($AS2,P$36,Q$36/4,FALSE),0) -> 0 | BP2: =IF($B$10>0,$B$10*NORMDIST($AS2,$P$37,$Q$37/4,FALSE),0) -> 0 | BQ2: =IF($B$11>0,$B$11*NORMDIST($AS2,$P$38,$Q$38/4,FALSE),0) -> 0 | BR2: =IF($B$12>0,$B$12*NORMDIST($AS2,$P$39,$Q$39/4,FALSE),0) -> 0 | BS2: =IF($B$13>0,$B$13*NORMDIST($AS2,$P$40,$Q$40/4,FALSE),0) -> 0 | BT2: =IF($B$14>0,$B$14*NORMDIST($AS2,$P$41,$Q$41/4,FALSE),0) -> 0 | BU2: =IF($M$41<>0,SUM(BI2:BT2)*$M$41+$L$41,-1) -> 22 | BW2: 0 | BX2: =$B$42*NORMDIST($AS2,$B$39,$B$43*$B$39,FALSE) -> 1.398665657e-54 | BY2: =IF(B$4>0,B$4*NORMDIST($AS2,X$17,Y$17/4,FALSE),0) -> 0 | BZ2: =IF(B$5>0,B$5*NORMDIST($AS2,X$18,Y$18/4,FALSE),0) -> 0 | CA2: =IF(B$6>0,B$6*NORMDIST($AS2,X$19,Y$19/4,FALSE),0) -> 0 | CB2: =IF(B$7>0,B$7*NORMDIST($AS2,X$20,Y$20/4,FALSE),0) -> 0 | CC2: =IF(B$8>0,B$8*NORMDIST($AS2,X$21,Y$21/4,FALSE),0) -> 0 | CD2: =IF(B$9>0,B$9*NORMDIST($AS2,X$22,Y$22/4,FALSE),0) -> 0 | CE2: =IF($B$10>0,$B$10*NORMDIST($AS2,$X$23,$Y$23/4,FALSE),0) -> 0 | CF2: =IF($B$11>0,$B$11*NORMDIST($AS2,$X$24,$Y$24/4,FALSE),0) -> 0 | CG2: =IF($B$12>0,$B$12*NORMDIST($AS2,$X$25,$Y$25/4,FALSE),0) -> 0 | CH2: =IF($B$13>0,$B$13*NORMDIST($AS2,$X$26,$Y$26/4,FALSE),0) -> 0 | CI2: =IF($B$14>0,$B$14*NORMDIST($AS2,$X$27,$Y$27/4,FALSE),0) -> 0 | CJ2: =IF($M$43<>0,SUM(BX2:CI2)*$M$43+$L$43,-1) -> 19 | CK2: Green | CL2: 0 | CM2: =$B$42*NORMDIST($AS2,$B$39,$B$43*$B$39,FALSE) -> 1.398665657e-54 | CN2: =IF($T$17>0,$B$4*NORMDIST($AS2,$T$17,$U$17/4,FALSE),0) -> 0 | CO2: =IF($T$18>0,$B$5*NORMDIST($AS2,$T$18,$U$18/4,FALSE),0) -> 0 | CP2: =IF($T$19>0,$B$6*NORMDIST($AS2,$T$19,$U$19/4,FALSE),0) -> 0 | CQ2: =IF($T$20>0,$B$7*NORMDIST($AS2,$T$20,$U$20/4,FALSE),0) -> 0 | CR2: =IF($T$21>0,$B$8*NORMDIST($AS2,$T$21,$U$21/4,FALSE),0) -> 0 | CS2: =IF($T$22>0,$B$9*NORMDIST($AS2,$T$22,$U$22/4,FALSE),0) -> 0 | CT2: =IF($T$23>0,$B$10*NORMDIST($AS2,$T$23,$U$23/4,FALSE),0) -> 0 | CU2: =IF($T$24>0,$B$11*NORMDIST($AS2,$T$24,$U$24/4,FALSE),0) -> 0 | CV2: =IF($T$25>0,$B$12*NORMDIST($AS2,$T$25,$U$25/4,FALSE),0) -> 0 | CW2: =IF($T$26>0,$B$13*NORMDIST($AS2,$T$26,$U$26/4,FALSE),0) -> 0 | CX2: =IF($T$27>0,$B$14*NORMDIST($AS2,$T$27,$U$27/4,FALSE),0) -> 0 | CY2: =IF($M$40<>0,SUM(CM2:CX2)*$M$40+$L$40,-1) -> -1 | CZ2: Blue | DA2: 0 | DB2: =$B$42*NORMDIST($AS2,$B$39,$B$43*$B$39,FALSE) -> 1.398665657e-54 | DC2: =IF($T$31>0,$B$4*NORMDIST($AS2,$T$31,$U$31/4,FALSE),0) -> 0 | DD2: =IF($T$32>0,$B$5*NORMDIST($AS2,$T$32,$U$32/4,FALSE),0) -> 0 | DE2: =IF($T$33>0,$B$6*NORMDIST($AS2,$T$33,$U$33/4,FALSE),0) -> 0 | DF2: =IF($T$34>0,$B$7*NORMDIST($AS2,$T$34,$U$34/4,FALSE),0) -> 0 | DG2: =IF($T$35>0,$B$8*NORMDIST($AS2,$T$35,$U$35/4,FALSE),0) -> 0 | DH2: =IF($T$36>0,$B$9*NORMDIST($AS2,$T$36,$U$36/4,FALSE),0) -> 0 | DI2: =IF($T$37>0,$B$10*NORMDIST($AS2,$T$37,$U$37/4,FALSE),0) -> 0 | DJ2: =IF($T$38>0,$B$11*NORMDIST($AS2,$T$38,$U$38/4,FALSE),0) -> 0 | DK2: =IF($T$39>0,$B$12*NORMDIST($AS2,$T$39,$U$39/4,FALSE),0) -> 0 | DL2: =IF($T$40>0,$B$13*NORMDIST($AS2,$T$40,$U$40/4,FALSE),0) -> 0 | DM2: =IF($T$41>0,$B$14*NORMDIST($AS2,$T$41,$U$41/4,FALSE),0) -> 0 | DN2: =IF($M$42<>0,SUM(DB2:DM2)*$M$42+$L$42,-1) -> -1
A3: No | B3: Conc | C3: Name | E3: log(kw) | F3: S | G3: tR(ref) | O3: 1) Enter names, log(kw) and S in the Table t1 | X3: This sheet uses the | AB3: L.R. Snyder&J.W. Dolan: | AS3: =AS2+$B$44 -> 0.015 | AT3: 8.136563967e-48 | AU3: 0 | AV3: 0 | AW3: 0 | AX3: 0 | AY3: 0 | AZ3: 0 | BA3: 0 | BB3: 0 | BC3: 0 | BD3: 0 | BE3: 0 | BF3: 20 | BH3: 1 | BI3: 8.136563967e-48 | BJ3: 0 | BK3: 0 | BL3: 0 | BM3: 0 | BN3: 0 | BO3: 0 | BP3: 0 | BQ3: 0 | BR3: 0 | BS3: 0 | BT3: 0 | BU3: 22 | BW3: 1 | BX3: 8.136563967e-48 | BY3: 0 | BZ3: 0 | CA3: 0 | CB3: 0 | CC3: 0 | CD3: 0 | CE3: 0 | CF3: 0 | CG3: 0 | CH3: 0 | CI3: 0 | CJ3: 19 | CL3: 1 | CM3: 8.136563967e-48 | CN3: 0 | CO3: 0 | CP3: 0 | CQ3: 0 | CR3: 0 | CS3: 0 | CT3: 0 | CU3: 0 | CV3: 0 | CW3: 0 | CX3: 0 | CY3: -1 | DA3: 1 | DB3: 8.136563967e-48 | DC3: 0 | DD3: 0 | DE3: 0 | DF3: 0 | DG3: 0 | DH3: 0 | DI3: 0 | DJ3: 0 | DK3: 0 | DL3: 0 | DM3: 0 | DN3: -1
A4: 1 | B4: 1 | C4: aniline | E4: 0.7758845072 | F4: 2.120517034 | G4: 1.48 | O4: 2) Enter concentrations (Conc, usually 1; 0 for no analyte) | X4: Linear Solvent Strength model, see: | AB4: High-Performance Gradient Elution | AS4: 0.03 | AT4: 1.679524431e-41 | AU4: 0 | AV4: 0 | AW4: 0 | AX4: 0 | AY4: 0 | AZ4: 0 | BA4: 0 | BB4: 0 | BC4: 0 | BD4: 0 | BE4: 0 | BF4: 20 | BH4: 2 | BI4: 1.679524431e-41 | BJ4: 0 | BK4: 0 | BL4: 0 | BM4: 0 | BN4: 0 | BO4: 0 | BP4: 0 | BQ4: 0 | BR4: 0 | BS4: 0 | BT4: 0 | BU4: 22 | BW4: 2 | BX4: 1.679524431e-41 | BY4: 0 | BZ4: 0 | CA4: 0 | CB4: 0 | CC4: 0 | CD4: 0 | CE4: 0 | CF4: 0 | CG4: 0 | CH4: 0 | CI4: 0 | CJ4: 19 | CL4: 2 | CM4: 1.679524431e-41 | CN4: 0 | CO4: 0 | CP4: 0 | CQ4: 0 | CR4: 0 | CS4: 0 | CT4: 0 | CU4: 0 | CV4: 0 | CW4: 0 | CX4: 0 | CY4: -1 | DA4: 2 | DB4: 1.679524431e-41 | DC4: 0 | DD4: 0 | DE4: 0 | DF4: 0 | DG4: 0 | DH4: 0 | DI4: 0 | DJ4: 0 | DK4: 0 | DL4: 0 | DM4: 0 | DN4: -1
A5: 2 | B5: 1 | C5: quinoline | E5: 1.498368184 | F5: 3.453964195 | G5: 3.58 | O5: 3) Enter Run conditions and Gradients for Green LLS and Blue LLS in Table 2 and 3 | AB5: Wiley-Interscience 2007 | AS5: 0.045 | AT5: 1.230126457e-35 | AU5: 0 | AV5: 0 | AW5: 0 | AX5: 0 | AY5: 0 | AZ5: 0 | BA5: 0 | BB5: 0 | BC5: 0 | BD5: 0 | BE5: 0 | BF5: 20 | BH5: 3 | BI5: 1.230126457e-35 | BJ5: 0 | BK5: 0 | BL5: 0 | BM5: 0 | BN5: 0 | BO5: 0 | BP5: 0 | BQ5: 0 | BR5: 0 | BS5: 0 | BT5: 0 | BU5: 22 | BW5: 3 | BX5: 1.230126457e-35 | BY5: 0 | BZ5: 0 | CA5: 0 | CB5: 0 | CC5: 0 | CD5: 0 | CE5: 0 | CF5: 0 | CG5: 0 | CH5: 0 | CI5: 0 | CJ5: 19 | CL5: 3 | CM5: 1.230126457e-35 | CN5: 0 | CO5: 0 | CP5: 0 | CQ5: 0 | CR5: 0 | CS5: 0 | CT5: 0 | CU5: 0 | CV5: 0 | CW5: 0 | CX5: 0 | CY5: -1 | DA5: 3 | DB5: 1.230126457e-35 | DC5: 0 | DD5: 0 | DE5: 0 | DF5: 0 | DG5: 0 | DH5: 0 | DI5: 0 | DJ5: 0 | DK5: 0 | DL5: 0 | DM5: 0 | DN5: -1
A6: 3 | B6: 1 | C6: tolunitrile | E6: 1.705001309 | F6: 2.80821056 | G6: 5.44 | O6: 4) The results are shown in the chromatograms and Table 4 below | AS6: 0.06 | AT6: 3.196916873e-30 | AU6: 0 | AV6: 0 | AW6: 0 | AX6: 0 | AY6: 0 | AZ6: 0 | BA6: 0 | BB6: 0 | BC6: 0 | BD6: 0 | BE6: 0 | BF6: 20 | BH6: 4 | BI6: 3.196916873e-30 | BJ6: 0 | BK6: 0 | BL6: 0 | BM6: 0 | BN6: 0 | BO6: 0 | BP6: 0 | BQ6: 0 | BR6: 0 | BS6: 0 | BT6: 0 | BU6: 22 | BW6: 4 | BX6: 3.196916873e-30 | BY6: 0 | BZ6: 0 | CA6: 0 | CB6: 0 | CC6: 0 | CD6: 0 | CE6: 0 | CF6: 0 | CG6: 0 | CH6: 0 | CI6: 0 | CJ6: 19 | CL6: 4 | CM6: 3.196916873e-30 | CN6: 0 | CO6: 0 | CP6: 0 | CQ6: 0 | CR6: 0 | CS6: 0 | CT6: 0 | CU6: 0 | CV6: 0 | CW6: 0 | CX6: 0 | CY6: -1 | DA6: 4 | DB6: 3.196916873e-30 | DC6: 0 | DD6: 0 | DE6: 0 | DF6: 0 | DG6: 0 | DH6: 0 | DI6: 0 | DJ6: 0 | DK6: 0 | DL6: 0 | DM6: 0 | DN6: -1
A7: 4 | B7: 1 | C7: benzoindole | E7: 2.187714207 | F7: 3.269799302 | G7: 7.68 | X7: Most cells are protected. To unprotect go to Review and click Unprotect sheet | AS7: 0.075 | AT7: 2.948024436e-25 | AU7: 0 | AV7: 0 | AW7: 0 | AX7: 0 | AY7: 0 | AZ7: 0 | BA7: 0 | BB7: 0 | BC7: 0 | BD7: 0 | BE7: 0 | BF7: 20 | BH7: 5 | BI7: 2.948024436e-25 | BJ7: 0 | BK7: 0 | BL7: 0 | BM7: 0 | BN7: 0 | BO7: 0 | BP7: 0 | BQ7: 0 | BR7: 0 | BS7: 0 | BT7: 0 | BU7: 22 | BW7: 5 | BX7: 2.948024436e-25 | BY7: 0 | BZ7: 0 | CA7: 0 | CB7: 0 | CC7: 0 | CD7: 0 | CE7: 0 | CF7: 0 | CG7: 0 | CH7: 0 | CI7: 0 | CJ7: 19 | CL7: 5 | CM7: 2.948024436e-25 | CN7: 0 | CO7: 0 | CP7: 0 | CQ7: 0 | CR7: 0 | CS7: 0 | CT7: 0 | CU7: 0 | CV7: 0 | CW7: 0 | CX7: 0 | CY7: -1 | DA7: 5 | DB7: 2.948024436e-25 | DC7: 0 | DD7: 0 | DE7: 0 | DF7: 0 | DG7: 0 | DH7: 0 | DI7: 0 | DJ7: 0 | DK7: 0 | DL7: 0 | DM7: 0 | DN7: -1
A8: 5 | B8: 1 | C8: 1,4-dimethylindole | E8: 2.545339893 | F8: 3.260976071 | G8: 9.63 | O8: Simulation of polynomial Solvent Strength model: (in addition to the Excel part) | AS8: 0.09 | AT8: 9.64603793e-21 | AU8: 0 | AV8: 0 | AW8: 0 | AX8: 0 | AY8: 0 | AZ8: 0 | BA8: 0 | BB8: 0 | BC8: 0 | BD8: 0 | BE8: 0 | BF8: 20 | BH8: 6 | BI8: 9.64603793e-21 | BJ8: 0 | BK8: 0 | BL8: 0 | BM8: 0 | BN8: 0 | BO8: 0 | BP8: 0 | BQ8: 0 | BR8: 0 | BS8: 0 | BT8: 0 | BU8: 22 | BW8: 6 | BX8: 9.64603793e-21 | BY8: 0 | BZ8: 0 | CA8: 0 | CB8: 0 | CC8: 0 | CD8: 0 | CE8: 0 | CF8: 0 | CG8: 0 | CH8: 0 | CI8: 0 | CJ8: 19 | CL8: 6 | CM8: 9.64603793e-21 | CN8: 0 | CO8: 0 | CP8: 0 | CQ8: 0 | CR8: 0 | CS8: 0 | CT8: 0 | CU8: 0 | CV8: 0 | CW8: 0 | CX8: 0 | CY8: -1 | DA8: 6 | DB8: 9.64603793e-21 | DC8: 0 | DD8: 0 | DE8: 0 | DF8: 0 | DG8: 0 | DH8: 0 | DI8: 0 | DJ8: 0 | DK8: 0 | DL8: 0 | DM8: 0 | DN8: -1
A9: 6 | B9: 1 | C9: benz[c]acridine | E9: 2.657872039 | F9: 2.933607354 | G9: 10.97 | O9: 1) Make the polynomial models in the sheet Models | AS9: 0.105 | AT9: 1.119914847e-16 | AU9: 0 | AV9: 0 | AW9: 0 | AX9: 0 | AY9: 0 | AZ9: 0 | BA9: 0 | BB9: 0 | BC9: 0 | BD9: 0 | BE9: 0 | BF9: 20 | BH9: 7 | BI9: 1.119914847e-16 | BJ9: 0 | BK9: 0 | BL9: 0 | BM9: 0 | BN9: 0 | BO9: 0 | BP9: 0 | BQ9: 0 | BR9: 0 | BS9: 0 | BT9: 0 | BU9: 22 | BW9: 7 | BX9: 1.119914847e-16 | BY9: 0 | BZ9: 0 | CA9: 0 | CB9: 0 | CC9: 0 | CD9: 0 | CE9: 0 | CF9: 0 | CG9: 0 | CH9: 0 | CI9: 0 | CJ9: 19 | CL9: 7 | CM9: 1.119914847e-16 | CN9: 0 | CO9: 0 | CP9: 0 | CQ9: 0 | CR9: 0 | CS9: 0 | CT9: 0 | CU9: 0 | CV9: 0 | CW9: 0 | CX9: 0 | CY9: -1 | DA9: 7 | DB9: 1.119914847e-16 | DC9: 0 | DD9: 0 | DE9: 0 | DF9: 0 | DG9: 0 | DH9: 0 | DI9: 0 | DJ9: 0 | DK9: 0 | DL9: 0 | DM9: 0 | DN9: -1
A10: 7 | B10: 1 | C10: 7,9-dimethylbenz[c]acridine | E10: 2.988869306 | F10: 3.015335343 | G10: 12.66 | O10: 2) Click the Get analyte Names... button and then enter the concentrations in B4:B14 | AS10: 0.12 | AT10: 4.613592053e-13 | AU10: 0 | AV10: 0 | AW10: 0 | AX10: 0 | AY10: 0 | AZ10: 0 | BA10: 0 | BB10: 0 | BC10: 0 | BD10: 0 | BE10: 0 | BF10: 20 | BH10: 8 | BI10: 4.613592053e-13 | BJ10: 0 | BK10: 0 | BL10: 0 | BM10: 0 | BN10: 0 | BO10: 0 | BP10: 0 | BQ10: 0 | BR10: 0 | BS10: 0 | BT10: 0 | BU10: 22 | BW10: 8 | BX10: 4.613592053e-13 | BY10: 0 | BZ10: 0 | CA10: 0 | CB10: 0 | CC10: 0 | CD10: 0 | CE10: 0 | CF10: 0 | CG10: 0 | CH10: 0 | CI10: 0 | CJ10: 19 | CL10: 8 | CM10: 4.613592053e-13 | CN10: 0 | CO10: 0 | CP10: 0 | CQ10: 0 | CR10: 0 | CS10: 0 | CT10: 0 | CU10: 0 | CV10: 0 | CW10: 0 | CX10: 0 | CY10: -1 | DA10: 8 | DB10: 4.613592053e-13 | DC10: 0 | DD10: 0 | DE10: 0 | DF10: 0 | DG10: 0 | DH10: 0 | DI10: 0 | DJ10: 0 | DK10: 0 | DL10: 0 | DM10: 0 | DN10: -1
A11: 8 | B11: 0 | O11: 3) Enter the order of the polynomial to use in the white cell K40 or K42 | AS11: 0.135 | AT11: 6.743906325e-10 | AU11: 0 | AV11: 0 | AW11: 0 | AX11: 0 | AY11: 0 | AZ11: 0 | BA11: 0 | BB11: 0 | BC11: 0 | BD11: 0 | BE11: 0 | BF11: 20 | BH11: 9 | BI11: 6.743906325e-10 | BJ11: 0 | BK11: 0 | BL11: 0 | BM11: 0 | BN11: 0 | BO11: 0 | BP11: 0 | BQ11: 0 | BR11: 0 | BS11: 0 | BT11: 0 | BU11: 22 | BW11: 9 | BX11: 6.743906325e-10 | BY11: 0 | BZ11: 0 | CA11: 0 | CB11: 0 | CC11: 0 | CD11: 0 | CE11: 0 | CF11: 0 | CG11: 0 | CH11: 0 | CI11: 0 | CJ11: 19 | CL11: 9 | CM11: 6.743906325e-10 | CN11: 0 | CO11: 0 | CP11: 0 | CQ11: 0 | CR11: 0 | CS11: 0 | CT11: 0 | CU11: 0 | CV11: 0 | CW11: 0 | CX11: 0 | CY11: -1 | DA11: 9 | DB11: 6.743906325e-10 | DC11: 0 | DD11: 0 | DE11: 0 | DF11: 0 | DG11: 0 | DH11: 0 | DI11: 0 | DJ11: 0 | DK11: 0 | DL11: 0 | DM11: 0 | DN11: -1
A12: 9 | B12: 0 | O12: 4) Run the VBA Macro by clicking the Update buttons in row 45 | AS12: 0.15 | AT12: 3.497856745e-07 | AU12: 0 | AV12: 0 | AW12: 0 | AX12: 0 | AY12: 0 | AZ12: 0 | BA12: 0 | BB12: 0 | BC12: 0 | BD12: 0 | BE12: 0 | BF12: 20.00000035 | BH12: 10 | BI12: 3.497856745e-07 | BJ12: 0 | BK12: 0 | BL12: 0 | BM12: 0 | BN12: 0 | BO12: 0 | BP12: 0 | BQ12: 0 | BR12: 0 | BS12: 0 | BT12: 0 | BU12: 22.00000035 | BW12: 10 | BX12: 3.497856745e-07 | BY12: 0 | BZ12: 0 | CA12: 0 | CB12: 0 | CC12: 0 | CD12: 0 | CE12: 0 | CF12: 0 | CG12: 0 | CH12: 0 | CI12: 0 | CJ12: 18.99999965 | CL12: 10 | CM12: 3.497856745e-07 | CN12: 0 | CO12: 0 | CP12: 0 | CQ12: 0 | CR12: 0 | CS12: 0 | CT12: 0 | CU12: 0 | CV12: 0 | CW12: 0 | CX12: 0 | CY12: -1 | DA12: 10 | DB12: 3.497856745e-07 | DC12: 0 | DD12: 0 | DE12: 0 | DF12: 0 | DG12: 0 | DH12: 0 | DI12: 0 | DJ12: 0 | DK12: 0 | DL12: 0 | DM12: 0 | DN12: -1
A13: 10 | B13: 0 | O13: 5) The results are shown in the chromatograms and Table 5 below | AS13: 0.165 | AT13: 6.437402428e-05 | AU13: 0 | AV13: 0 | AW13: 0 | AX13: 0 | AY13: 0 | AZ13: 0 | BA13: 0 | BB13: 0 | BC13: 0 | BD13: 0 | BE13: 0 | BF13: 20.00006437 | BH13: 11 | BI13: 6.437402428e-05 | BJ13: 0 | BK13: 0 | BL13: 0 | BM13: 0 | BN13: 0 | BO13: 0 | BP13: 0 | BQ13: 0 | BR13: 0 | BS13: 0 | BT13: 0 | BU13: 22.00006437 | BW13: 11 | BX13: 6.437402428e-05 | BY13: 0 | BZ13: 0 | CA13: 0 | CB13: 0 | CC13: 0 | CD13: 0 | CE13: 0 | CF13: 0 | CG13: 0 | CH13: 0 | CI13: 0 | CJ13: 18.99993563 | CL13: 11 | CM13: 6.437402428e-05 | CN13: 0 | CO13: 0 | CP13: 0 | CQ13: 0 | CR13: 0 | CS13: 0 | CT13: 0 | CU13: 0 | CV13: 0 | CW13: 0 | CX13: 0 | CY13: -1 | DA13: 11 | DB13: 6.437402428e-05 | DC13: 0 | DD13: 0 | DE13: 0 | DF13: 0 | DG13: 0 | DH13: 0 | DI13: 0 | DJ13: 0 | DK13: 0 | DL13: 0 | DM13: 0 | DN13: -1
A14: 11 | B14: 0 | O14: Table 4 | T14: Table 5 | X14: Table 6 | AS14: 0.18 | AT14: 0.004203755523 | AU14: 0 | AV14: 0 | AW14: 0 | AX14: 0 | AY14: 0 | AZ14: 0 | BA14: 0 | BB14: 0 | BC14: 0 | BD14: 0 | BE14: 0 | BF14: 20.00420376 | BH14: 12 | BI14: 0.004203755523 | BJ14: 0 | BK14: 0 | BL14: 0 | BM14: 0 | BN14: 0 | BO14: 0 | BP14: 0 | BQ14: 0 | BR14: 0 | BS14: 0 | BT14: 0 | BU14: 22.00420376 | BW14: 12 | BX14: 0.004203755523 | BY14: 0 | BZ14: 0 | CA14: 0 | CB14: 0 | CC14: 0 | CD14: 0 | CE14: 0 | CF14: 0 | CG14: 0 | CH14: 0 | CI14: 0 | CJ14: 18.99579624 | CL14: 12 | CM14: 0.004203755523 | CN14: 0 | CO14: 0 | CP14: 0 | CQ14: 0 | CR14: 0 | CS14: 0 | CT14: 0 | CU14: 0 | CV14: 0 | CW14: 0 | CX14: 0 | CY14: -1 | DA14: 12 | DB14: 0.004203755523 | DC14: 0 | DD14: 0 | DE14: 0 | DF14: 0 | DG14: 0 | DH14: 0 | DI14: 0 | DJ14: 0 | DK14: 0 | DL14: 0 | DM14: 0 | DN14: -1
O15: Results | Q15: Green LLS | U15: Green Polynomial | X15: Reference | AA15: tR | AB15: Retention time, min | AS15: 0.195 | AT15: 0.09740525626 | AU15: 0 | AV15: 0 | AW15: 0 | AX15: 0 | AY15: 0 | AZ15: 0 | BA15: 0 | BB15: 0 | BC15: 0 | BD15: 0 | BE15: 0 | BF15: 20.09740526 | BH15: 13 | BI15: 0.09740525626 | BJ15: 0 | BK15: 0 | BL15: 0 | BM15: 0 | BN15: 0 | BO15: 0 | BP15: 0 | BQ15: 0 | BR15: 0 | BS15: 0 | BT15: 0 | BU15: 22.09740526 | BW15: 13 | BX15: 0.09740525626 | BY15: 0 | BZ15: 0 | CA15: 0 | CB15: 0 | CC15: 0 | CD15: 0 | CE15: 0 | CF15: 0 | CG15: 0 | CH15: 0 | CI15: 0 | CJ15: 18.90259474 | CL15: 13 | CM15: 0.09740525626 | CN15: 0 | CO15: 0 | CP15: 0 | CQ15: 0 | CR15: 0 | CS15: 0 | CT15: 0 | CU15: 0 | CV15: 0 | CW15: 0 | CX15: 0 | CY15: -1 | DA15: 13 | DB15: 0.09740525626 | DC15: 0 | DD15: 0 | DE15: 0 | DF15: 0 | DG15: 0 | DH15: 0 | DI15: 0 | DJ15: 0 | DK15: 0 | DL15: 0 | DM15: 0 | DN15: -1
O16: Linear | P16: tR | Q16: w | R16: a | S16: RS | T16: tR | U16: w | V16: a | W16: RS | X16: tR | Y16: w | AA16: w | AB16: Peak width at baseline, w(B), min | AS16: 0.21 | AT16: 0.8008395013 | AU16: 0 | AV16: 0 | AW16: 0 | AX16: 0 | AY16: 0 | AZ16: 0 | BA16: 0 | BB16: 0 | BC16: 0 | BD16: 0 | BE16: 0 | BF16: 20.8008395 | BH16: 14 | BI16: 0.8008395013 | BJ16: 0 | BK16: 0 | BL16: 0 | BM16: 0 | BN16: 0 | BO16: 0 | BP16: 0 | BQ16: 0 | BR16: 0 | BS16: 0 | BT16: 0 | BU16: 22.8008395 | BW16: 14 | BX16: 0.8008395013 | BY16: 0 | BZ16: 0 | CA16: 0 | CB16: 0 | CC16: 0 | CD16: 0 | CE16: 0 | CF16: 0 | CG16: 0 | CH16: 0 | CI16: 0 | CJ16: 18.1991605 | CL16: 14 | CM16: 0.8008395013 | CN16: 0 | CO16: 0 | CP16: 0 | CQ16: 0 | CR16: 0 | CS16: 0 | CT16: 0 | CU16: 0 | CV16: 0 | CW16: 0 | CX16: 0 | CY16: -1 | DA16: 14 | DB16: 0.8008395013 | DC16: 0 | DD16: 0 | DE16: 0 | DF16: 0 | DG16: 0 | DH16: 0 | DI16: 0 | DJ16: 0 | DK16: 0 | DL16: 0 | DM16: 0 | DN16: -1
O17: 1 | P17: =IF(B4>0,IF(AM31*AG31=0,AL31,$I$39+$H$39+AN31),"") -> 1.28861065 | Q17: =IF(B4>0,IF(OR(AG31=0,P17<$H$39,AI31/2>AH31,AI31<0),$B$43*$B$39*(1+AH31),$B$43*(SQRT(($B$39*(1+AI31/2))^2+AN31^2))),"") -> 0.04914845262 | R17: =IF(AND($B5>0,P18>P17),(P18-$B$39)/(P17-$B$39),"") -> 2.918435972 | S17: =IF(R17<>"",2*ABS(P18-P17)/(Q18+Q17),"") -> 26.61034482 | T17: 1.284762 | U17: 0.06803003787 | V17: =IF(AND($B5>0,T18>T17),(T18-$B$39)/(T17-$B$39),"") -> 2.924678777 | W17: =IF(V17<>"",2*ABS(T18-T17)/(U18+U17),"") -> 21.71386136 | X17: =IF(G4<>"",G4,"") -> 1.48 | Y17: =IF(X17<>"",Q17,"") -> 0.04914845262 | AA17: a | AB17: Relative retention | AS17: 0.225 | AT17: 2.336289895 | AU17: 0 | AV17: 0 | AW17: 0 | AX17: 0 | AY17: 0 | AZ17: 0 | BA17: 0 | BB17: 0 | BC17: 0 | BD17: 0 | BE17: 0 | BF17: 22.3362899 | BH17: 15 | BI17: 2.336289895 | BJ17: 1.013321273e-305 | BK17: 0 | BL17: 0 | BM17: 0 | BN17: 0 | BO17: 0 | BP17: 0 | BQ17: 0 | BR17: 0 | BS17: 0 | BT17: 0 | BU17: 24.3362899 | BW17: 15 | BX17: 2.336289895 | BY17: 0 | BZ17: 0 | CA17: 0 | CB17: 0 | CC17: 0 | CD17: 0 | CE17: 0 | CF17: 0 | CG17: 0 | CH17: 0 | CI17: 0 | CJ17: 16.6637101 | CL17: 15 | CM17: 2.336289895 | CN17: 0 | CO17: 0 | CP17: 0 | CQ17: 0 | CR17: 0 | CS17: 0 | CT17: 0 | CU17: 0 | CV17: 0 | CW17: 0 | CX17: 0 | CY17: -1 | DA17: 15 | DB17: 2.336289895 | DC17: 0 | DD17: 0 | DE17: 0 | DF17: 0 | DG17: 0 | DH17: 0 | DI17: 0 | DJ17: 0 | DK17: 0 | DL17: 0 | DM17: 0 | DN17: -1
O18: 2 | P18: 3.313732092 | Q18: 0.1030571243 | R18: =IF(AND($B6>0,P19>P18),(P19-$B$39)/(P18-$B$39),"") -> 1.458417844 | S18: =IF(R18<>"",2*ABS(P19-P18)/(Q19+Q18),"") -> 11.75570545 | T18: 3.309066 | U18: 0.1184226585 | V18: =IF(AND($B6>0,T19>T18),(T19-$B$39)/(T18-$B$39),"") -> 1.458718376 | W18: =IF(V18<>"",2*ABS(T19-T18)/(U19+U18),"") -> 10.32826866 | X18: 3.58 | Y18: =IF(X18<>"",Q18,"") -> 0.1030571243 | AA18: RS | AB18: Resolution | AS18: 0.24 | AT18: 2.418388815 | AU18: 0 | AV18: 0 | AW18: 0 | AX18: 0 | AY18: 0 | AZ18: 0 | BA18: 0 | BB18: 0 | BC18: 0 | BD18: 0 | BE18: 0 | BF18: 22.41838881 | BH18: 16 | BI18: 2.418388815 | BJ18: 1.975878379e-278 | BK18: 0 | BL18: 0 | BM18: 0 | BN18: 0 | BO18: 0 | BP18: 0 | BQ18: 0 | BR18: 0 | BS18: 0 | BT18: 0 | BU18: 24.41838881 | BW18: 16 | BX18: 2.418388815 | BY18: 0 | BZ18: 0 | CA18: 0 | CB18: 0 | CC18: 0 | CD18: 0 | CE18: 0 | CF18: 0 | CG18: 0 | CH18: 0 | CI18: 0 | CJ18: 16.58161119 | CL18: 16 | CM18: 2.418388815 | CN18: 0 | CO18: 0 | CP18: 0 | CQ18: 0 | CR18: 0 | CS18: 0 | CT18: 0 | CU18: 0 | CV18: 0 | CW18: 0 | CX18: 0 | CY18: -1 | DA18: 16 | DB18: 2.418388815 | DC18: 0 | DD18: 0 | DE18: 0 | DF18: 0 | DG18: 0 | DH18: 0 | DI18: 0 | DJ18: 0 | DK18: 0 | DL18: 0 | DM18: 0 | DN18: -1
O19: 3 | P19: 4.725994656 | Q19: 0.1372113258 | R19: 1.485738343 | S19: 14.78002643 | T19: 4.720114 | U19: 0.154817329 | V19: 1.486551044 | W19: 13.97548453 | X19: 5.44 | Y19: 0.1372113258 | AS19: 0.255 | AT19: 0.8882672934 | AU19: 0 | AV19: 0 | AW19: 0 | AX19: 0 | AY19: 0 | AZ19: 0 | BA19: 0 | BB19: 0 | BC19: 0 | BD19: 0 | BE19: 0 | BF19: 20.88826729 | BH19: 17 | BI19: 0.8882672934 | BJ19: 2.061672829e-252 | BK19: 0 | BL19: 0 | BM19: 0 | BN19: 0 | BO19: 0 | BP19: 0 | BQ19: 0 | BR19: 0 | BS19: 0 | BT19: 0 | BU19: 22.88826729 | BW19: 17 | BX19: 0.8882672934 | BY19: 0 | BZ19: 0 | CA19: 0 | CB19: 0 | CC19: 0 | CD19: 0 | CE19: 0 | CF19: 0 | CG19: 0 | CH19: 0 | CI19: 0 | CJ19: 18.11173271 | CL19: 17 | CM19: 0.8882672934 | CN19: 0 | CO19: 0 | CP19: 0 | CQ19: 0 | CR19: 0 | CS19: 0 | CT19: 0 | CU19: 0 | CV19: 0 | CW19: 0 | CX19: 0 | CY19: -1 | DA19: 17 | DB19: 0.8882672934 | DC19: 0 | DD19: 0 | DE19: 0 | DF19: 0 | DG19: 0 | DH19: 0 | DI19: 0 | DJ19: 0 | DK19: 0 | DL19: 0 | DM19: 0 | DN19: -1
O20: 4 | P20: 6.908414434 | Q20: 0.1581088198 | R20: 1.312305916 | S20: 12.65544542 | T20: 6.903324 | U20: 0.157616919 | V20: 1.312561129 | W20: 12.92900114 | X20: 7.68 | Y20: 0.1581088198 | AA20: OBS: If a is absent, the order of tR do not | AQ20: Gradient profile plot | AS20: 0.27 | AT20: 0.1157655576 | AU20: 0 | AV20: 0 | AW20: 0 | AX20: 0 | AY20: 0 | AZ20: 0 | BA20: 0 | BB20: 0 | BC20: 0 | BD20: 0 | BE20: 0 | BF20: 20.11576556 | BH20: 18 | BI20: 0.1157655576 | BJ20: 1.151133719e-227 | BK20: 0 | BL20: 0 | BM20: 0 | BN20: 0 | BO20: 0 | BP20: 0 | BQ20: 0 | BR20: 0 | BS20: 0 | BT20: 0 | BU20: 22.11576556 | BW20: 18 | BX20: 0.1157655576 | BY20: 0 | BZ20: 0 | CA20: 0 | CB20: 0 | CC20: 0 | CD20: 0 | CE20: 0 | CF20: 0 | CG20: 0 | CH20: 0 | CI20: 0 | CJ20: 18.88423444 | CL20: 18 | CM20: 0.1157655576 | CN20: 0 | CO20: 0 | CP20: 0 | CQ20: 0 | CR20: 0 | CS20: 0 | CT20: 0 | CU20: 0 | CV20: 0 | CW20: 0 | CX20: 0 | CY20: -1 | DA20: 18 | DB20: 0.1157655576 | DC20: 0 | DD20: 0 | DE20: 0 | DF20: 0 | DG20: 0 | DH20: 0 | DI20: 0 | DJ20: 0 | DK20: 0 | DL20: 0 | DM20: 0 | DN20: -1
O21: 5 | P21: 8.993185857 | Q21: 0.1713574856 | R21: 1.167386878 | S21: 8.099483748 | T21: 8.988208 | U21: 0.1648958531 | V21: 1.167394081 | W21: 8.402801043 | X21: 9.63 | Y21: 0.1713574856 | AA21: match the order of compounds in the input. | AG21: Linear Solvent Strength calculations: | AP21: Time | AQ21: Green | AR21: Blue | AS21: 0.285 | AT21: 0.005353443404 | AU21: 0 | AV21: 0 | AW21: 0 | AX21: 0 | AY21: 0 | AZ21: 0 | BA21: 0 | BB21: 0 | BC21: 0 | BD21: 0 | BE21: 0 | BF21: 20.00535344 | BH21: 19 | BI21: 0.005353443404 | BJ21: 3.439365201e-204 | BK21: 0 | BL21: 0 | BM21: 0 | BN21: 0 | BO21: 0 | BP21: 0 | BQ21: 0 | BR21: 0 | BS21: 0 | BT21: 0 | BU21: 22.00535344 | BW21: 19 | BX21: 0.005353443404 | BY21: 0 | BZ21: 0 | CA21: 0 | CB21: 0 | CC21: 0 | CD21: 0 | CE21: 0 | CF21: 0 | CG21: 0 | CH21: 0 | CI21: 0 | CJ21: 18.99464656 | CL21: 19 | CM21: 0.005353443404 | CN21: 0 | CO21: 0 | CP21: 0 | CQ21: 0 | CR21: 0 | CS21: 0 | CT21: 0 | CU21: 0 | CV21: 0 | CW21: 0 | CX21: 0 | CY21: -1 | DA21: 19 | DB21: 0.005353443404 | DC21: 0 | DD21: 0 | DE21: 0 | DF21: 0 | DG21: 0 | DH21: 0 | DI21: 0 | DJ21: 0 | DK21: 0 | DL21: 0 | DM21: 0 | DN21: -1
O22: 6 | P22: 10.45952602 | Q22: 0.1907248906 | R22: 1.189296629 | S22: 10.12257052 | T22: 10.453778 | U22: 0.1839330654 | V22: 1.189440569 | W22: 10.59130134 | X22: 10.97 | Y22: 0.1907248906 | AA22: To fix it: Sort input: | AP22: 0 | AQ22: =IF($J$39>0,IF($AP22<$H$39,$F$39,IF($AP22<$H$39+$I$39,$F$39+((G$39-F$39)*($AP22-H$39)/I$39),$G$39)),$F$39) -> 0.05 | AR22: =IF($J$41>0,IF($AP22<$H$41,$F$41,IF($AP22<$H$41+$I$41,$F$41+((G$41-F$41)*($AP22-H$41)/I$41),$G$41)),$F$41) -> 0.3 | AS22: 0.3 | AT22: 8.784260657e-05 | AU22: 0 | AV22: 0 | AW22: 0 | AX22: 0 | AY22: 0 | AZ22: 0 | BA22: 0 | BB22: 0 | BC22: 0 | BD22: 0 | BE22: 0 | BF22: 20.00008784 | BH22: 20 | BI22: 8.784260657e-05 | BJ22: 5.498918711e-182 | BK22: 0 | BL22: 0 | BM22: 0 | BN22: 0 | BO22: 0 | BP22: 0 | BQ22: 0 | BR22: 0 | BS22: 0 | BT22: 0 | BU22: 22.00008784 | BW22: 20 | BX22: 8.784260657e-05 | BY22: 0 | BZ22: 0 | CA22: 0 | CB22: 0 | CC22: 0 | CD22: 0 | CE22: 0 | CF22: 0 | CG22: 0 | CH22: 0 | CI22: 0 | CJ22: 18.99991216 | CL22: 20 | CM22: 8.784260657e-05 | CN22: 0 | CO22: 0 | CP22: 0 | CQ22: 0 | CR22: 0 | CS22: 0 | CT22: 0 | CU22: 0 | CV22: 0 | CW22: 0 | CX22: 0 | CY22: -1 | DA22: 20 | DB22: 8.784260657e-05 | DC22: 0 | DD22: 0 | DE22: 0 | DF22: 0 | DG22: 0 | DH22: 0 | DI22: 0 | DJ22: 0 | DK22: 0 | DL22: 0 | DM22: 0 | DN22: -1
O23: 7 | P23: 12.39537292 | Q23: 0.1917563961 | T23: 12.390008 | U23: 0.1816933933 | X23: 12.66 | Y23: 0.1917563961 | AP23: =AP22+$B$41/100 -> 0.15 | AQ23: 0.05 | AR23: 0.3 | AS23: 0.315 | AT23: 5.114407915e-07 | AU23: 0 | AV23: 0 | AW23: 0 | AX23: 0 | AY23: 0 | AZ23: 0 | BA23: 0 | BB23: 0 | BC23: 0 | BD23: 0 | BE23: 0 | BF23: 20.00000051 | BH23: 21 | BI23: 5.114407915e-07 | BJ23: 4.704600995e-161 | BK23: 0 | BL23: 0 | BM23: 0 | BN23: 0 | BO23: 0 | BP23: 0 | BQ23: 0 | BR23: 0 | BS23: 0 | BT23: 0 | BU23: 22.00000051 | BW23: 21 | BX23: 5.114407915e-07 | BY23: 0 | BZ23: 0 | CA23: 0 | CB23: 0 | CC23: 0 | CD23: 0 | CE23: 0 | CF23: 0 | CG23: 0 | CH23: 0 | CI23: 0 | CJ23: 18.99999949 | CL23: 21 | CM23: 5.114407915e-07 | CN23: 0 | CO23: 0 | CP23: 0 | CQ23: 0 | CR23: 0 | CS23: 0 | CT23: 0 | CU23: 0 | CV23: 0 | CW23: 0 | CX23: 0 | CY23: -1 | DA23: 21 | DB23: 5.114407915e-07 | DC23: 0 | DD23: 0 | DE23: 0 | DF23: 0 | DG23: 0 | DH23: 0 | DI23: 0 | DJ23: 0 | DK23: 0 | DL23: 0 | DM23: 0 | DN23: -1
O24: 8 | AG24: b | AH24: gradient steepness | AL24: ke | AM24: k' at end of gradient | AP24: 0.3 | AQ24: 0.05 | AR24: 0.3 | AS24: 0.33 | AT24: 1.05658311e-09 | AU24: 0 | AV24: 0 | AW24: 0 | AX24: 0 | AY24: 0 | AZ24: 0 | BA24: 0 | BB24: 0 | BC24: 0 | BD24: 0 | BE24: 0 | BF24: 20 | BH24: 22 | BI24: 1.05658311e-09 | BJ24: 2.153846664e-141 | BK24: 0 | BL24: 0 | BM24: 0 | BN24: 0 | BO24: 0 | BP24: 0 | BQ24: 0 | BR24: 0 | BS24: 0 | BT24: 0 | BU24: 22 | BW24: 22 | BX24: 1.05658311e-09 | BY24: 0 | BZ24: 0 | CA24: 0 | CB24: 0 | CC24: 0 | CD24: 0 | CE24: 0 | CF24: 0 | CG24: 0 | CH24: 0 | CI24: 0 | CJ24: 19 | CL24: 22 | CM24: 1.05658311e-09 | CN24: 0 | CO24: 0 | CP24: 0 | CQ24: 0 | CR24: 0 | CS24: 0 | CT24: 0 | CU24: 0 | CV24: 0 | CW24: 0 | CX24: 0 | CY24: -1 | DA24: 22 | DB24: 1.05658311e-09 | DC24: 0 | DD24: 0 | DE24: 0 | DF24: 0 | DG24: 0 | DH24: 0 | DI24: 0 | DJ24: 0 | DK24: 0 | DL24: 0 | DM24: 0 | DN24: -1
O25: 9 | AG25: ko | AH25: k' at start of gradient | AL25: tRuncorr | AM25: tR for an unlimited gradient | AP25: 0.45 | AQ25: 0.05 | AR25: 0.3 | AS25: 0.345 | AT25: 7.745155025e-13 | AU25: 0 | AV25: 0 | AW25: 0 | AX25: 0 | AY25: 0 | AZ25: 0 | BA25: 0 | BB25: 0 | BC25: 0 | BD25: 0 | BE25: 0 | BF25: 20 | BH25: 23 | BI25: 7.745155025e-13 | BJ25: 5.276588873e-123 | BK25: 0 | BL25: 0 | BM25: 0 | BN25: 0 | BO25: 0 | BP25: 0 | BQ25: 0 | BR25: 0 | BS25: 0 | BT25: 0 | BU25: 22 | BW25: 23 | BX25: 7.745155025e-13 | BY25: 0 | BZ25: 0 | CA25: 0 | CB25: 0 | CC25: 0 | CD25: 0 | CE25: 0 | CF25: 0 | CG25: 0 | CH25: 0 | CI25: 0 | CJ25: 19 | CL25: 23 | CM25: 7.745155025e-13 | CN25: 0 | CO25: 0 | CP25: 0 | CQ25: 0 | CR25: 0 | CS25: 0 | CT25: 0 | CU25: 0 | CV25: 0 | CW25: 0 | CX25: 0 | CY25: -1 | DA25: 23 | DB25: 7.745155025e-13 | DC25: 0 | DD25: 0 | DE25: 0 | DF25: 0 | DG25: 0 | DH25: 0 | DI25: 0 | DJ25: 0 | DK25: 0 | DL25: 0 | DM25: 0 | DN25: -1
O26: 10 | AG26: k* | AH26: k' at the center of the column for gradients | AL26: tR-tD-tG | AM26: time after gradient hold | AP26: 0.6 | AQ26: 0.053 | AR26: 0.3 | AS26: 0.36 | AT26: 2.014534535e-16 | AU26: 0 | AV26: 0 | AW26: 0 | AX26: 0 | AY26: 0 | AZ26: 0 | BA26: 0 | BB26: 0 | BC26: 0 | BD26: 0 | BE26: 0 | BF26: 20 | BH26: 24 | BI26: 2.014534535e-16 | BJ26: 6.917325659e-106 | BK26: 0 | BL26: 0 | BM26: 0 | BN26: 0 | BO26: 0 | BP26: 0 | BQ26: 0 | BR26: 0 | BS26: 0 | BT26: 0 | BU26: 22 | BW26: 24 | BX26: 2.014534535e-16 | BY26: 0 | BZ26: 0 | CA26: 0 | CB26: 0 | CC26: 0 | CD26: 0 | CE26: 0 | CF26: 0 | CG26: 0 | CH26: 0 | CI26: 0 | CJ26: 19 | CL26: 24 | CM26: 2.014534535e-16 | CN26: 0 | CO26: 0 | CP26: 0 | CQ26: 0 | CR26: 0 | CS26: 0 | CT26: 0 | CU26: 0 | CV26: 0 | CW26: 0 | CX26: 0 | CY26: -1 | DA26: 24 | DB26: 2.014534535e-16 | DC26: 0 | DD26: 0 | DE26: 0 | DF26: 0 | DG26: 0 | DH26: 0 | DI26: 0 | DJ26: 0 | DK26: 0 | DL26: 0 | DM26: 0 | DN26: -1
O27: 11 | AG27: k**: | AH27: k* without correction for ko | AL27: tadd | AM27: time to add to gradient end | AP27: 0.75 | AQ27: 0.0605 | AR27: 0.3 | AS27: 0.375 | AT27: 1.859248628e-20 | AU27: 0 | AV27: 0 | AW27: 0 | AX27: 0 | AY27: 0 | AZ27: 0 | BA27: 0 | BB27: 0 | BC27: 0 | BD27: 0 | BE27: 0 | BF27: 20 | BH27: 25 | BI27: 1.859248628e-20 | BJ27: 4.852546174e-90 | BK27: 9.633424436e-299 | BL27: 0 | BM27: 0 | BN27: 0 | BO27: 0 | BP27: 0 | BQ27: 0 | BR27: 0 | BS27: 0 | BT27: 0 | BU27: 22 | BW27: 25 | BX27: 1.859248628e-20 | BY27: 0 | BZ27: 0 | CA27: 0 | CB27: 0 | CC27: 0 | CD27: 0 | CE27: 0 | CF27: 0 | CG27: 0 | CH27: 0 | CI27: 0 | CJ27: 19 | CL27: 25 | CM27: 1.859248628e-20 | CN27: 0 | CO27: 0 | CP27: 0 | CQ27: 0 | CR27: 0 | CS27: 0 | CT27: 0 | CU27: 0 | CV27: 0 | CW27: 0 | CX27: 0 | CY27: -1 | DA27: 25 | DB27: 1.859248628e-20 | DC27: 0 | DD27: 0 | DE27: 0 | DF27: 0 | DG27: 0 | DH27: 0 | DI27: 0 | DJ27: 0 | DK27: 0 | DL27: 0 | DM27: 0 | DN27: -1
R28: Min: | S28: =MIN(S17:S27) -> 8.099483748 | V28: Min: | W28: =MIN(W17:W27) -> 8.402801043 | AG28: Table 8 | AP28: 0.9 | AQ28: 0.068 | AR28: 0.3 | AS28: 0.39 | AT28: 6.08861304e-25 | AU28: 0 | AV28: 0 | AW28: 0 | AX28: 0 | AY28: 0 | AZ28: 0 | BA28: 0 | BB28: 0 | BC28: 0 | BD28: 0 | BE28: 0 | BF28: 20 | BH28: 26 | BI28: 6.08861304e-25 | BJ28: 1.821577362e-75 | BK28: 3.89697388e-282 | BL28: 0 | BM28: 0 | BN28: 0 | BO28: 0 | BP28: 0 | BQ28: 0 | BR28: 0 | BS28: 0 | BT28: 0 | BU28: 22 | BW28: 26 | BX28: 6.08861304e-25 | BY28: 0 | BZ28: 0 | CA28: 0 | CB28: 0 | CC28: 0 | CD28: 0 | CE28: 0 | CF28: 0 | CG28: 0 | CH28: 0 | CI28: 0 | CJ28: 19 | CL28: 26 | CM28: 6.08861304e-25 | CN28: 0 | CO28: 0 | CP28: 0 | CQ28: 0 | CR28: 0 | CS28: 0 | CT28: 0 | CU28: 0 | CV28: 0 | CW28: 0 | CX28: 0 | CY28: -1 | DA28: 26 | DB28: 6.08861304e-25 | DC28: 0 | DD28: 0 | DE28: 0 | DF28: 0 | DG28: 0 | DH28: 0 | DI28: 0 | DJ28: 0 | DK28: 0 | DL28: 0 | DM28: 0 | DN28: -1
O29: Results | Q29: Blue LLS | U29: Blue Polynomial | Y29: Table 7 | AI29: =Q15 -> Green LLS | AP29: 1.05 | AQ29: 0.0755 | AR29: 0.3 | AS29: 0.405 | AT29: 7.074853122e-30 | AU29: 0 | AV29: 0 | AW29: 0 | AX29: 0 | AY29: 0 | AZ29: 0 | BA29: 0 | BB29: 0 | BC29: 0 | BD29: 0 | BE29: 0 | BF29: 20 | BH29: 27 | BI29: 7.074853122e-30 | BJ29: 3.659081255e-62 | BK29: 5.296212426e-266 | BL29: 0 | BM29: 0 | BN29: 0 | BO29: 0 | BP29: 0 | BQ29: 0 | BR29: 0 | BS29: 0 | BT29: 0 | BU29: 22 | BW29: 27 | BX29: 7.074853122e-30 | BY29: 0 | BZ29: 0 | CA29: 0 | CB29: 0 | CC29: 0 | CD29: 0 | CE29: 0 | CF29: 0 | CG29: 0 | CH29: 0 | CI29: 0 | CJ29: 19 | CL29: 27 | CM29: 7.074853122e-30 | CN29: 0 | CO29: 0 | CP29: 0 | CQ29: 0 | CR29: 0 | CS29: 0 | CT29: 0 | CU29: 0 | CV29: 0 | CW29: 0 | CX29: 0 | CY29: -1 | DA29: 27 | DB29: 7.074853122e-30 | DC29: 0 | DD29: 0 | DE29: 0 | DF29: 0 | DG29: 0 | DH29: 0 | DI29: 0 | DJ29: 0 | DK29: 0 | DL29: 0 | DM29: 0 | DN29: -1
O30: Linear | P30: tR | Q30: w | R30: a | S30: RS | T30: tR | U30: w | V30: a | W30: RS | Y30: Average difference | AA30: D = tR-tR(ref), s | AG30: b | AH30: ko | AI30: =IF(AG31=0,"k'","k*") -> k* | AJ30: =IF(AG31=0,"","k**") -> k** | AK30: ke | AL30: tRuncorr | AM30: tR-tD-tG | AN30: tadd | AP30: 1.2 | AQ30: 0.083 | AR30: 0.3 | AS30: 0.42 | AT30: 2.91698794e-35 | AU30: 0 | AV30: 0 | AW30: 0 | AX30: 0 | AY30: 0 | AZ30: 0 | BA30: 0 | BB30: 0 | BC30: 0 | BD30: 0 | BE30: 0 | BF30: 20 | BH30: 28 | BI30: 2.91698794e-35 | BJ30: 3.933172342e-50 | BK30: 2.418212146e-250 | BL30: 0 | BM30: 0 | BN30: 0 | BO30: 0 | BP30: 0 | BQ30: 0 | BR30: 0 | BS30: 0 | BT30: 0 | BU30: 22 | BW30: 28 | BX30: 2.91698794e-35 | BY30: 0 | BZ30: 0 | CA30: 0 | CB30: 0 | CC30: 0 | CD30: 0 | CE30: 0 | CF30: 0 | CG30: 0 | CH30: 0 | CI30: 0 | CJ30: 19 | CL30: 28 | CM30: 2.91698794e-35 | CN30: 0 | CO30: 0 | CP30: 0 | CQ30: 0 | CR30: 0 | CS30: 0 | CT30: 0 | CU30: 0 | CV30: 0 | CW30: 0 | CX30: 0 | CY30: -1 | DA30: 28 | DB30: 2.91698794e-35 | DC30: 0 | DD30: 0 | DE30: 0 | DF30: 0 | DG30: 0 | DH30: 0 | DI30: 0 | DJ30: 0 | DK30: 0 | DL30: 0 | DM30: 0 | DN30: -1
O31: 1 | P31: =IF(B4>0,IF(AG45*AM45<=0,AL45,$I$41+$H$41+AN45),"") -> 0.5544291932 | Q31: =IF(B4>0,IF(OR(AG45=0,P31<$H$41,AI45/2>AH45,AI45<0),$B$43*$B$39*(1+AH45),$B$43*(SQRT(($B$39*(1+AI45/2))^2+AN45^2))),"") -> 0.03506518104 | R31: =IF(AND(B5>0,P32>P31),(P32-$B$39)/(P31-$B$39),"") -> 2.101113575 | S31: =IF(R31<>"",2*ABS(P32-P31)/(Q32+Q31),"") -> 7.651312094 | T31: 1.284762 | U31: 0.06803003787 | V31: =IF(AND(B4>0,T32>T31),(T32-$B$39)/(T31-$B$39),"") -> 2.924678777 | W31: =IF(V31<>"",2*ABS(T32-T31)/(U32+U31),"") -> 21.71386136 | AA31: Mean | AB31: Abs(mean) | AG31: =IF(B4>0,IF($J$39>0,$B$39*$J$39*F4/$I$39,0),"") -> 0.02470402344 | AH31: =IF(B4>0,10^(E4-F4*$F$39),"") -> 4.675829381 | AI31: =IF(B4>0,IF($AI$30="k'",AH31,AH31/(LN(10)*AG31*(AH31/2-$H$39/$B$39)+1)),"") -> 4.670431491 | AJ31: =IF(AND(B4>0,AG31>0),1/(1.15*AG31),"") -> 35.19933583 | AK31: =IF(B4>0,10^(E4-F4*$G$39),"") -> 0.05772890573 | AL31: =IF(B4>0,IF(AG31>0,IF($H$39<$B$39*AH31,($B$39/AG31)*LOG(LN(10)*AH31*AG31*(1-$H$39/($B$39*AH31))+1)+$B$39+$H$39,$B$39*(1+AH31)),$B$39*(1+AI31)),"") -> 1.28861065 | AM31: =IF(B4>0,IF(AL31>$I$39+$H$39,AL31-$I$39-$H$39,0),"") -> 0 | AN31: =IF(AND(B4>0,AG31>0),(1+AK31)*MIN(AM31*AG31/(LOG(LN(10)*AK31*AG31+1)+AG31),$B$39),"") -> 0 | AP31: 1.35 | AQ31: 0.0905 | AR31: 0.3 | AS31: 0.435 | AT31: 4.267465217e-41 | AU31: 0 | AV31: 0 | AW31: 0 | AX31: 0 | AY31: 0 | AZ31: 0 | BA31: 0 | BB31: 0 | BC31: 0 | BD31: 0 | BE31: 0 | BF31: 20 | BH31: 29 | BI31: 4.267465217e-41 | BJ31: 2.2623531e-39 | BK31: 3.709492538e-235 | BL31: 0 | BM31: 0 | BN31: 0 | BO31: 0 | BP31: 0 | BQ31: 0 | BR31: 0 | BS31: 0 | BT31: 0 | BU31: 22 | BW31: 29 | BX31: 4.267465217e-41 | BY31: 0 | BZ31: 0 | CA31: 0 | CB31: 0 | CC31: 0 | CD31: 0 | CE31: 0 | CF31: 0 | CG31: 0 | CH31: 0 | CI31: 0 | CJ31: 19 | CL31: 29 | CM31: 4.267465217e-41 | CN31: 0 | CO31: 0 | CP31: 0 | CQ31: 0 | CR31: 0 | CS31: 0 | CT31: 0 | CU31: 0 | CV31: 0 | CW31: 0 | CX31: 0 | CY31: -1 | DA31: 29 | DB31: 4.267465217e-41 | DC31: 0 | DD31: 0 | DE31: 0 | DF31: 0 | DG31: 0 | DH31: 0 | DI31: 0 | DJ31: 0 | DK31: 0 | DL31: 0 | DM31: 0 | DN31: -1
O32: 2 | P32: 0.9083592411 | Q32: 0.05744968271 | R32: 2.513964932 | S32: 11.38823463 | T32: 3.309066 | U32: 0.1184226585 | V32: 1.458718376 | W32: =IF(V32<>"",2*ABS(T33-T32)/(U33+U32),"") -> 10.32826866 | Y32: Green LLS | AA32: =SUM(IF(P17:P27<>"",P17:P27-$X17:$X27)*60)/COUNT(P17:P27) -> -28.75854322 | AB32: =AVERAGE(IF(P17:P27<>"",ABS(P17:P27-X17:X27)*60)) -> 28.75854322 | AG32: 0.04023868287 | AH32: 21.16751979 | AI32: 11.98692026 | AJ32: 21.61018093 | AK32: 0.01648550286 | AL32: 3.313732092 | AM32: 0 | AN32: 0 | AP32: 1.5 | AQ32: 0.098 | AR32: 0.3 | AS32: 0.45 | AT32: 2.215253836e-47 | AU32: 0 | AV32: 0 | AW32: 0 | AX32: 0 | AY32: 0 | AZ32: 0 | BA32: 0 | BB32: 0 | BC32: 0 | BD32: 0 | BE32: 0 | BF32: 20 | BH32: 30 | BI32: 2.215253836e-47 | BJ32: 6.963447261e-30 | BK32: 1.911726264e-220 | BL32: 0 | BM32: 0 | BN32: 0 | BO32: 0 | BP32: 0 | BQ32: 0 | BR32: 0 | BS32: 0 | BT32: 0 | BU32: 22 | BW32: 30 | BX32: 2.215253836e-47 | BY32: 0 | BZ32: 0 | CA32: 0 | CB32: 0 | CC32: 0 | CD32: 0 | CE32: 0 | CF32: 0 | CG32: 0 | CH32: 0 | CI32: 0 | CJ32: 19 | CL32: 30 | CM32: 2.215253836e-47 | CN32: 0 | CO32: 0 | CP32: 0 | CQ32: 0 | CR32: 0 | CS32: 0 | CT32: 0 | CU32: 0 | CV32: 0 | CW32: 0 | CX32: 0 | CY32: -1 | DA32: 30 | DB32: 2.215253836e-47 | DC32: 0 | DD32: 0 | DE32: 0 | DF32: 0 | DG32: 0 | DH32: 0 | DI32: 0 | DJ32: 0 | DK32: 0 | DL32: 0 | DM32: 0 | DN32: -1
O33: 3 | P33: 1.930829449 | Q33: 0.1221163766 | R33: 2.209206309 | S33: 10.97647387 | T33: 4.720114 | U33: 0.154817329 | V33: 1.486551044 | W33: 13.97548453 | Y33: Green Poly | AA33: =SUM(IF(T17:T27<>"",T17:T27-$X17:$X27)*60)/COUNT(T17:T27) -> -29.06348571 | AB33: =AVERAGE(IF(T17:T27<>"",ABS(T17:T27-X17:X27)*60)) -> 29.06348571 | AG33: 0.03271565303 | AH33: 36.69363877 | AI33: 16.62233092 | AJ33: 26.57948526 | AK33: 0.1089434883 | AL33: 4.725994656 | AM33: 0 | AN33: 0 | AP33: 1.65 | AQ33: 0.1055 | AR33: 0.3 | AS33: 0.465 | AT33: 4.080328749e-54 | AU33: 0 | AV33: 0 | AW33: 0 | AX33: 0 | AY33: 0 | AZ33: 0 | BA33: 0 | BB33: 0 | BC33: 0 | BD33: 0 | BE33: 0 | BF33: 20 | BH33: 31 | BI33: 4.080328749e-54 | BJ33: 1.146924109e-21 | BK33: 3.310000144e-206 | BL33: 0 | BM33: 0 | BN33: 0 | BO33: 0 | BP33: 0 | BQ33: 0 | BR33: 0 | BS33: 0 | BT33: 0 | BU33: 22 | BW33: 31 | BX33: 4.080328749e-54 | BY33: 0 | BZ33: 0 | CA33: 0 | CB33: 0 | CC33: 0 | CD33: 0 | CE33: 0 | CF33: 0 | CG33: 0 | CH33: 0 | CI33: 0 | CJ33: 19 | CL33: 31 | CM33: 4.080328749e-54 | CN33: 0 | CO33: 0 | CP33: 0 | CQ33: 0 | CR33: 0 | CS33: 0 | CT33: 0 | CU33: 0 | CV33: 0 | CW33: 0 | CX33: 0 | CY33: -1 | DA33: 31 | DB33: 4.080328749e-54 | DC33: 0 | DD33: 0 | DE33: 0 | DF33: 0 | DG33: 0 | DH33: 0 | DI33: 0 | DJ33: 0 | DK33: 0 | DL33: 0 | DM33: 0 | DN33: -1
O34: 4 | P34: 3.98385553 | Q34: 0.2519611469 | R34: 2.29230634 | S34: 11.96129971 | T34: 6.903324 | U34: 0.157616919 | V34: 1.312561129 | W34: 12.92900114 | Y34: Blue LLS | AA34: =SUM(IF(P31:P41<>"",P31:P41-$X17:$X27)*60)/COUNT(P31:P41) -> 64.22067375 | AB34: =AVERAGE(IF(P31:P41<>"",ABS(P31:P41-X17:X27)*60)) -> 263.1021025 | AG34: 0.03809316187 | AH34: 105.7363322 | AI34: 19.45854029 | AJ34: 22.82733107 | AK34: 0.1206159855 | AL34: 6.908414434 | AM34: 0 | AN34: 0 | AP34: 1.8 | AQ34: 0.113 | AR34: 0.3 | AS34: 0.48 | AT34: 2.666766337e-61 | AU34: 0 | AV34: 0 | AW34: 0 | AX34: 0 | AY34: 0 | AZ34: 0 | BA34: 0 | BB34: 0 | BC34: 0 | BD34: 0 | BE34: 0 | BF34: 20 | BH34: 32 | BI34: 2.666766337e-61 | BJ34: 1.010861283e-14 | BK34: 1.925402007e-192 | BL34: 0 | BM34: 0 | BN34: 0 | BO34: 0 | BP34: 0 | BQ34: 0 | BR34: 0 | BS34: 0 | BT34: 0 | BU34: 22 | BW34: 32 | BX34: 2.666766337e-61 | BY34: 0 | BZ34: 0 | CA34: 0 | CB34: 0 | CC34: 0 | CD34: 0 | CE34: 0 | CF34: 0 | CG34: 0 | CH34: 0 | CI34: 0 | CJ34: 19 | CL34: 32 | CM34: 2.666766337e-61 | CN34: 0 | CO34: 0 | CP34: 0 | CQ34: 0 | CR34: 0 | CS34: 0 | CT34: 0 | CU34: 0 | CV34: 0 | CW34: 0 | CX34: 0 | CY34: -1 | DA34: 32 | DB34: 2.666766337e-61 | DC34: 0 | DD34: 0 | DE34: 0 | DF34: 0 | DG34: 0 | DH34: 0 | DI34: 0 | DJ34: 0 | DK34: 0 | DL34: 0 | DM34: 0 | DN34: -1
O35: 5 | P35: 8.831109913 | Q35: 0.5585284318 | R35: 1.624586207 | S35: 7.373177114 | T35: 8.988208 | U35: 0.1648958531 | V35: 1.167394081 | W35: 8.402801043 | Y35: Blue Poly | AA35: =SUM(IF(T31:T41<>"",T31:T41-$X17:$X27)*60)/COUNT(T31:T41) -> -29.06348571 | AB35: =AVERAGE(IF(T31:T41<>"",ABS(T31:T41-X17:X27)*60)) -> 29.06348571 | AG35: 0.03799037123 | AH35: 241.1521228 | AI35: 21.25665016 | AJ35: 22.88909503 | AK35: 0.280164191 | AL35: 8.993185857 | AM35: 0 | AN35: 0 | AP35: 1.95 | AQ35: 0.1205 | AR35: 0.3 | AS35: 0.495 | AT35: 6.184333822e-69 | AU35: 0 | AV35: 0 | AW35: 0 | AX35: 0 | AY35: 0 | AZ35: 0 | BA35: 0 | BB35: 0 | BC35: 0 | BD35: 0 | BE35: 0 | BF35: 20 | BH35: 33 | BI35: 6.184333822e-69 | BJ35: 4.767546451e-09 | BK35: 3.762754889e-179 | BL35: 0 | BM35: 0 | BN35: 0 | BO35: 0 | BP35: 0 | BQ35: 0 | BR35: 0 | BS35: 0 | BT35: 0 | BU35: 22 | BW35: 33 | BX35: 6.184333822e-69 | BY35: 0 | BZ35: 0 | CA35: 0 | CB35: 0 | CC35: 0 | CD35: 0 | CE35: 0 | CF35: 0 | CG35: 0 | CH35: 0 | CI35: 0 | CJ35: 19 | CL35: 33 | CM35: 6.184333822e-69 | CN35: 0 | CO35: 0 | CP35: 0 | CQ35: 0 | CR35: 0 | CS35: 0 | CT35: 0 | CU35: 0 | CV35: 0 | CW35: 0 | CX35: 0 | CY35: -1 | DA35: 33 | DB35: 6.184333822e-69 | DC35: 0 | DD35: 0 | DE35: 0 | DF35: 0 | DG35: 0 | DH35: 0 | DI35: 0 | DJ35: 0 | DK35: 0 | DL35: 0 | DM35: 0 | DN35: -1
O36: 6 | P36: 14.20137077 | Q36: 0.8981735507 | R36: 2.025251069 | S36: 10.59999892 | T36: 10.453778 | U36: 0.1839330654 | V36: 1.189440569 | W36: 10.59130134 | AG36: 0.03417652567 | AH36: 324.4827931 | AI36: 23.88519574 | AJ36: 25.44334745 | AK36: 0.7429251376 | AL36: 10.45952602 | AM36: 0 | AN36: 0 | AP36: 2.1 | AQ36: 0.128 | AR36: 0.3 | AS36: 0.51 | AT36: 5.088842796e-77 | AU36: 0 | AV36: 0 | AW36: 0 | AX36: 0 | AY36: 0 | AZ36: 0 | BA36: 0 | BB36: 0 | BC36: 0 | BD36: 0 | BE36: 0 | BF36: 20 | BH36: 34 | BI36: 5.088842796e-77 | BJ36: 0.000120321931 | BK36: 2.470481117e-166 | BL36: 0 | BM36: 0 | BN36: 0 | BO36: 0 | BP36: 0 | BQ36: 0 | BR36: 0 | BS36: 0 | BT36: 0 | BU36: 22.00012032 | BW36: 34 | BX36: 5.088842796e-77 | BY36: 0 | BZ36: 0 | CA36: 0 | CB36: 0 | CC36: 0 | CD36: 0 | CE36: 0 | CF36: 0 | CG36: 0 | CH36: 0 | CI36: 0 | CJ36: 19 | CL36: 34 | CM36: 5.088842796e-77 | CN36: 0 | CO36: 0 | CP36: 0 | CQ36: 0 | CR36: 0 | CS36: 0 | CT36: 0 | CU36: 0 | CV36: 0 | CW36: 0 | CX36: 0 | CY36: -1 | DA36: 34 | DB36: 5.088842796e-77 | DC36: 0 | DD36: 0 | DE36: 0 | DF36: 0 | DG36: 0 | DH36: 0 | DI36: 0 | DJ36: 0 | DK36: 0 | DL36: 0 | DM36: 0 | DN36: -1
A37: Table 2 | D37: Table 3 | O37: 7 | P37: 28.52245784 | Q37: 1.803918625 | T37: 12.390008 | U37: 0.1816933933 | AG37: 0.03512865674 | AH37: 688.8149097 | AI37: 24.02519175 | AJ37: 24.7537281 | AK37: 1.33137602 | AL37: 12.39537292 | AM37: 0 | AN37: 0 | AP37: 2.25 | AQ37: 0.1355 | AR37: 0.3 | AS37: 0.525 | AT37: 1.485810067e-85 | AU37: 0 | AV37: 0 | AW37: 0 | AX37: 0 | AY37: 0 | AZ37: 0 | BA37: 0 | BB37: 0 | BC37: 0 | BD37: 0 | BE37: 0 | BF37: 20 | BH37: 35 | BI37: 1.485810067e-85 | BJ37: 0.1624954266 | BK37: 5.44939451e-154 | BL37: 0 | BM37: 0 | BN37: 0 | BO37: 0 | BP37: 0 | BQ37: 0 | BR37: 0 | BS37: 0 | BT37: 0 | BU37: 22.16249543 | BW37: 35 | BX37: 1.485810067e-85 | BY37: 0 | BZ37: 0 | CA37: 0 | CB37: 0 | CC37: 0 | CD37: 0 | CE37: 0 | CF37: 0 | CG37: 0 | CH37: 0 | CI37: 0 | CJ37: 19 | CL37: 35 | CM37: 1.485810067e-85 | CN37: 0 | CO37: 0 | CP37: 0 | CQ37: 0 | CR37: 0 | CS37: 0 | CT37: 0 | CU37: 0 | CV37: 0 | CW37: 0 | CX37: 0 | CY37: -1 | DA37: 35 | DB37: 1.485810067e-85 | DC37: 0 | DD37: 0 | DE37: 0 | DF37: 0 | DG37: 0 | DH37: 0 | DI37: 0 | DJ37: 0 | DK37: 0 | DL37: 0 | DM37: 0 | DN37: -1
A38: HPLC Settings | D38: Gradients | F38: φ start | G38: φ end | H38: tD | I38: tG, min | J38: Dφ | K38: Degree | L38: Offset | M38: Intensity | O38: 8 | Y38: Runtime Green Poly: | AA38: 8.6875 | AB38: s Loops: | AC38: 112665000 | AP38: 2.4 | AQ38: 0.143 | AR38: 0.3 | AS38: 0.54 | AT38: 1.539308647e-94 | AU38: 0 | AV38: 0 | AW38: 0 | AX38: 0 | AY38: 0 | AZ38: 0 | BA38: 0 | BB38: 0 | BC38: 0 | BD38: 0 | BE38: 0 | BF38: 20 | BH38: 36 | BI38: 1.539308647e-94 | BJ38: 11.74313304 | BK38: 4.038369585e-142 | BL38: 0 | BM38: 0 | BN38: 0 | BO38: 0 | BP38: 0 | BQ38: 0 | BR38: 0 | BS38: 0 | BT38: 0 | BU38: 33.74313304 | BW38: 36 | BX38: 1.539308647e-94 | BY38: 0 | BZ38: 0 | CA38: 0 | CB38: 0 | CC38: 0 | CD38: 0 | CE38: 0 | CF38: 0 | CG38: 0 | CH38: 0 | CI38: 0 | CJ38: 19 | CL38: 36 | CM38: 1.539308647e-94 | CN38: 0 | CO38: 0 | CP38: 0 | CQ38: 0 | CR38: 0 | CS38: 0 | CT38: 0 | CU38: 0 | CV38: 0 | CW38: 0 | CX38: 0 | CY38: -1 | DA38: 36 | DB38: 1.539308647e-94 | DC38: 0 | DD38: 0 | DE38: 0 | DF38: 0 | DG38: 0 | DH38: 0 | DI38: 0 | DJ38: 0 | DK38: 0 | DL38: 0 | DM38: 0 | DN38: -1
A39: tM, min | B39: 0.233 | D39: Green LLS | F39: 0.05 | G39: 0.95 | H39: 0.54 | I39: 18 | J39: =IF(G39>F39,G39-F39,0) -> 0.9 | K39: 1 | L39: 20 | M39: 1 | O39: 9 | Y39: Runtime Blue Poly: | AA39: 8.984375 | AB39: s Loops: | AC39: 112665000 | AP39: 2.55 | AQ39: 0.1505 | AR39: 0.3 | AS39: 0.555 | AT39: 5.658564524e-104 | AU39: 0 | AV39: 0 | AW39: 0 | AX39: 0 | AY39: 0 | AZ39: 0 | BA39: 0 | BB39: 0 | BC39: 0 | BD39: 0 | BE39: 0 | BF39: 20 | BH39: 37 | BI39: 5.658564524e-104 | BJ39: 45.41228025 | BK39: 1.005437262e-130 | BL39: 0 | BM39: 0 | BN39: 0 | BO39: 0 | BP39: 0 | BQ39: 0 | BR39: 0 | BS39: 0 | BT39: 0 | BU39: 67.41228025 | BW39: 37 | BX39: 5.658564524e-104 | BY39: 0 | BZ39: 0 | CA39: 0 | CB39: 0 | CC39: 0 | CD39: 0 | CE39: 0 | CF39: 0 | CG39: 0 | CH39: 0 | CI39: 0 | CJ39: 19 | CL39: 37 | CM39: 5.658564524e-104 | CN39: 0 | CO39: 0 | CP39: 0 | CQ39: 0 | CR39: 0 | CS39: 0 | CT39: 0 | CU39: 0 | CV39: 0 | CW39: 0 | CX39: 0 | CY39: -1 | DA39: 37 | DB39: 5.658564524e-104 | DC39: 0 | DD39: 0 | DE39: 0 | DF39: 0 | DG39: 0 | DH39: 0 | DI39: 0 | DJ39: 0 | DK39: 0 | DL39: 0 | DM39: 0 | DN39: -1
A40: N | B40: 4000 | D40: Green Polynomial | K40: 1 | L40: 25 | M40: 0 | O40: 10 | AP40: 2.7 | AQ40: 0.158 | AR40: 0.3 | AS40: 0.57 | AT40: 7.380826333e-114 | AU40: 0 | AV40: 0 | AW40: 0 | AX40: 0 | AY40: 0 | AZ40: 0 | BA40: 0 | BB40: 0 | BC40: 0 | BD40: 0 | BE40: 0 | BF40: 20 | BH40: 38 | BI40: 7.380826333e-114 | BJ40: 9.397430598 | BK40: 8.409980546e-120 | BL40: 0 | BM40: 0 | BN40: 0 | BO40: 0 | BP40: 0 | BQ40: 0 | BR40: 0 | BS40: 0 | BT40: 0 | BU40: 31.3974306 | BW40: 38 | BX40: 7.380826333e-114 | BY40: 0 | BZ40: 0 | CA40: 0 | CB40: 0 | CC40: 0 | CD40: 0 | CE40: 0 | CF40: 0 | CG40: 0 | CH40: 0 | CI40: 0 | CJ40: 19 | CL40: 38 | CM40: 7.380826333e-114 | CN40: 0 | CO40: 0 | CP40: 0 | CQ40: 0 | CR40: 0 | CS40: 0 | CT40: 0 | CU40: 0 | CV40: 0 | CW40: 0 | CX40: 0 | CY40: -1 | DA40: 38 | DB40: 7.380826333e-114 | DC40: 0 | DD40: 0 | DE40: 0 | DF40: 0 | DG40: 0 | DH40: 0 | DI40: 0 | DJ40: 0 | DK40: 0 | DL40: 0 | DM40: 0 | DN40: -1
A41: tmax, min | B41: 15 | D41: Blue LLS | F41: 0.3 | G41: 0.3 | H41: 0.54 | I41: 18 | J41: =IF(G41>F41,G41-F41,0) -> 0 | K41: 1 | L41: 22 | M41: 1 | O41: 11 | AP41: 2.85 | AQ41: 0.1655 | AR41: 0.3 | AS41: 0.585 | AT41: 3.416031383e-124 | AU41: 0 | AV41: 0 | AW41: 0 | AX41: 0 | AY41: 0 | AZ41: 0 | BA41: 0 | BB41: 0 | BC41: 0 | BD41: 0 | BE41: 0 | BF41: 20 | BH41: 39 | BI41: 3.416031383e-124 | BJ41: 0.1040618241 | BK41: 2.363339466e-109 | BL41: 0 | BM41: 0 | BN41: 0 | BO41: 0 | BP41: 0 | BQ41: 0 | BR41: 0 | BS41: 0 | BT41: 0 | BU41: 22.10406182 | BW41: 39 | BX41: 3.416031383e-124 | BY41: 0 | BZ41: 0 | CA41: 0 | CB41: 0 | CC41: 0 | CD41: 0 | CE41: 0 | CF41: 0 | CG41: 0 | CH41: 0 | CI41: 0 | CJ41: 19 | CL41: 39 | CM41: 3.416031383e-124 | CN41: 0 | CO41: 0 | CP41: 0 | CQ41: 0 | CR41: 0 | CS41: 0 | CT41: 0 | CU41: 0 | CV41: 0 | CW41: 0 | CX41: 0 | CY41: -1 | DA41: 39 | DB41: 3.416031383e-124 | DC41: 0 | DD41: 0 | DE41: 0 | DF41: 0 | DG41: 0 | DH41: 0 | DI41: 0 | DJ41: 0 | DK41: 0 | DL41: 0 | DM41: 0 | DN41: -1
A42: tM intensity | B42: 0.1 | D42: Blue Polynomial | K42: 1 | L42: 30 | M42: 0 | R42: Min: | S42: =MIN(S31:S41) -> 7.373177114 | V42: Min: | W42: =MIN(W31:W41) -> 8.402801043 | AG42: Table 8 | AP42: 3 | AQ42: 0.173 | AR42: 0.3 | AS42: 0.6 | AT42: 5.609922581e-135 | AU42: 0 | AV42: 0 | AW42: 0 | AX42: 0 | AY42: 0 | AZ42: 0 | BA42: 0 | BB42: 0 | BC42: 0 | BD42: 0 | BE42: 0 | BF42: 20 | BH42: 40 | BI42: 5.609922581e-135 | BJ42: 6.166237258e-05 | BK42: 2.231250471e-99 | BL42: 0 | BM42: 0 | BN42: 0 | BO42: 0 | BP42: 0 | BQ42: 0 | BR42: 0 | BS42: 0 | BT42: 0 | BU42: 22.00006166 | BW42: 40 | BX42: 5.609922581e-135 | BY42: 0 | BZ42: 0 | CA42: 0 | CB42: 0 | CC42: 0 | CD42: 0 | CE42: 0 | CF42: 0 | CG42: 0 | CH42: 0 | CI42: 0 | CJ42: 19 | CL42: 40 | CM42: 5.609922581e-135 | CN42: 0 | CO42: 0 | CP42: 0 | CQ42: 0 | CR42: 0 | CS42: 0 | CT42: 0 | CU42: 0 | CV42: 0 | CW42: 0 | CX42: 0 | CY42: -1 | DA42: 40 | DB42: 5.609922581e-135 | DC42: 0 | DD42: 0 | DE42: 0 | DF42: 0 | DG42: 0 | DH42: 0 | DI42: 0 | DJ42: 0 | DK42: 0 | DL42: 0 | DM42: 0 | DN42: -1
A43: 4/sqrt(N) | B43: =4/SQRT(B40) -> 0.0632455532 | D43: Reference | L43: 19 | M43: -1 | AI43: =Q29 -> Blue LLS | AP43: 3.15 | AQ43: 0.1805 | AR43: 0.3 | AS43: 0.615 | AT43: 3.268963224e-146 | AU43: 0 | AV43: 0 | AW43: 0 | AX43: 0 | AY43: 0 | AZ43: 0 | BA43: 0 | BB43: 0 | BC43: 0 | BD43: 0 | BE43: 0 | BF43: 20 | BH43: 41 | BI43: 3.268963224e-146 | BJ43: 1.955219488e-09 | BK43: 7.077202854e-90 | BL43: 0 | BM43: 0 | BN43: 0 | BO43: 0 | BP43: 0 | BQ43: 0 | BR43: 0 | BS43: 0 | BT43: 0 | BU43: 22 | BW43: 41 | BX43: 3.268963224e-146 | BY43: 0 | BZ43: 0 | CA43: 0 | CB43: 0 | CC43: 0 | CD43: 0 | CE43: 0 | CF43: 0 | CG43: 0 | CH43: 0 | CI43: 0 | CJ43: 19 | CL43: 41 | CM43: 3.268963224e-146 | CN43: 0 | CO43: 0 | CP43: 0 | CQ43: 0 | CR43: 0 | CS43: 0 | CT43: 0 | CU43: 0 | CV43: 0 | CW43: 0 | CX43: 0 | CY43: -1 | DA43: 41 | DB43: 3.268963224e-146 | DC43: 0 | DD43: 0 | DE43: 0 | DF43: 0 | DG43: 0 | DH43: 0 | DI43: 0 | DJ43: 0 | DK43: 0 | DL43: 0 | DM43: 0 | DN43: -1
A44: dt | B44: =B41/1000 -> 0.015 | AG44: b | AH44: ko | AI44: =IF(AG45=0,"k'","k*") -> k' | AJ44: k** | AK44: ke | AL44: tRuncorr | AM44: tR-tD-tG | AN44: tadd | AP44: 3.3 | AQ44: 0.188 | AR44: 0.3 | AS44: 0.63 | AT44: 6.758982975e-158 | AU44: 0 | AV44: 0 | AW44: 0 | AX44: 0 | AY44: 0 | AZ44: 0 | BA44: 0 | BB44: 0 | BC44: 0 | BD44: 0 | BE44: 0 | BF44: 20 | BH44: 42 | BI44: 6.758982975e-158 | BJ44: 3.317548595e-15 | BK44: 7.541644629e-81 | BL44: 0 | BM44: 0 | BN44: 0 | BO44: 0 | BP44: 0 | BQ44: 0 | BR44: 0 | BS44: 0 | BT44: 0 | BU44: 22 | BW44: 42 | BX44: 6.758982975e-158 | BY44: 0 | BZ44: 0 | CA44: 0 | CB44: 0 | CC44: 0 | CD44: 0 | CE44: 0 | CF44: 0 | CG44: 0 | CH44: 0 | CI44: 0 | CJ44: 19 | CL44: 42 | CM44: 6.758982975e-158 | CN44: 0 | CO44: 0 | CP44: 0 | CQ44: 0 | CR44: 0 | CS44: 0 | CT44: 0 | CU44: 0 | CV44: 0 | CW44: 0 | CX44: 0 | CY44: -1 | DA44: 42 | DB44: 6.758982975e-158 | DC44: 0 | DD44: 0 | DE44: 0 | DF44: 0 | DG44: 0 | DH44: 0 | DI44: 0 | DJ44: 0 | DK44: 0 | DL44: 0 | DM44: 0 | DN44: -1
F45: =IF('Fortran input'!D22=0,"","Please Update Green") ->  | J45: =IF('Fortran input'!O22=0,"","Please Update Blue") -> Please Update Blue | AG45: =IF(B4>0,IF($J$41>0,$B$39*$J$41*F4/$I$41,0),"") -> 0 | AH45: =IF(B4>0,10^(E4-F4*$F$41),"") -> 1.379524434 | AI45: =IF(B4>0,IF($AI$44="k'",AH45,AH45/(LN(10)*AG45*(AH45/2-$H$41/$B$39)+1)),"") -> 1.379524434 | AJ45: =IF(AND(B4>0,AG45>0),1/(1.15*AG45),"") ->  | AK45: =IF(B4>0,10^(E4-F4*$G$41),"") -> 1.379524434 | AL45: =IF(B4>0,IF(AG45>0,IF($H$41<$B$39*AH45,($B$39/AG45)*LOG(LN(10)*AH45*AG45*(1-$H$41/($B$39*AH45))+1)+$B$39+$H$41,$B$39*(1+AH45)),$B$39*(1+AI45)),"") -> 0.5544291932 | AM45: =IF(B4>0,IF(AL45>$I$41+$H$41,AL45-$I$41-$H$41,0),"") -> 0 | AN45: =IF(AND(B4>0,AG45>0),(1+AK45)*MIN(AM45*AG45/(LOG(LN(10)*AK45*AG45+1)+AG45),$B$39),"") ->  | AP45: 3.45 | AQ45: 0.1955 | AR45: 0.3 | AS45: 0.645 | AT45: 4.958734102e-170 | AU45: 0 | AV45: 0 | AW45: 0 | AX45: 0 | AY45: 0 | AZ45: 0 | BA45: 0 | BB45: 0 | BC45: 0 | BD45: 0 | BE45: 0 | BF45: 20 | BH45: 43 | BI45: 4.958734102e-170 | BJ45: 3.012212166e-22 | BK45: 2.699986455e-72 | BL45: 0 | BM45: 0 | BN45: 0 | BO45: 0 | BP45: 0 | BQ45: 0 | BR45: 0 | BS45: 0 | BT45: 0 | BU45: 22 | BW45: 43 | BX45: 4.958734102e-170 | BY45: 0 | BZ45: 0 | CA45: 0 | CB45: 0 | CC45: 0 | CD45: 0 | CE45: 0 | CF45: 0 | CG45: 0 | CH45: 0 | CI45: 0 | CJ45: 19 | CL45: 43 | CM45: 4.958734102e-170 | CN45: 1.281243867e-306 | CO45: 0 | CP45: 0 | CQ45: 0 | CR45: 0 | CS45: 0 | CT45: 0 | CU45: 0 | CV45: 0 | CW45: 0 | CX45: 0 | CY45: -1 | DA45: 43 | DB45: 4.958734102e-170 | DC45: 1.281243867e-306 | DD45: 0 | DE45: 0 | DF45: 0 | DG45: 0 | DH45: 0 | DI45: 0 | DJ45: 0 | DK45: 0 | DL45: 0 | DM45: 0 | DN45: -1
F46: =IF('Fortran input'!D22=0,"Green OK","") -> Green OK | J46: =IF('Fortran input'!O22=0,"Blue OK","") ->  | AG46: 0 | AH46: 2.898537516 | AI46: 2.898537516 | AK46: 2.898537516 | AL46: 0.9083592411 | AM46: 0 | AP46: 3.6 | AQ46: 0.203 | AR46: 0.3 | AS46: 0.66 | AT46: 1.290857911e-182 | AU46: 0 | AV46: 0 | AW46: 0 | AX46: 0 | AY46: 0 | AZ46: 0 | BA46: 0 | BB46: 0 | BC46: 0 | BD46: 0 | BE46: 0 | BF46: 20 | BH46: 44 | BI46: 1.290857911e-182 | BJ46: 1.463525564e-30 | BK46: 3.247492885e-64 | BL46: 0 | BM46: 0 | BN46: 0 | BO46: 0 | BP46: 0 | BQ46: 0 | BR46: 0 | BS46: 0 | BT46: 0 | BU46: 22 | BW46: 44 | BX46: 1.290857911e-182 | BY46: 0 | BZ46: 0 | CA46: 0 | CB46: 0 | CC46: 0 | CD46: 0 | CE46: 0 | CF46: 0 | CG46: 0 | CH46: 0 | CI46: 0 | CJ46: 19 | CL46: 44 | CM46: 1.290857911e-182 | CN46: 2.223391841e-292 | CO46: 0 | CP46: 0 | CQ46: 0 | CR46: 0 | CS46: 0 | CT46: 0 | CU46: 0 | CV46: 0 | CW46: 0 | CX46: 0 | CY46: -1 | DA46: 44 | DB46: 1.290857911e-182 | DC46: 2.223391841e-292 | DD46: 0 | DE46: 0 | DF46: 0 | DG46: 0 | DH46: 0 | DI46: 0 | DJ46: 0 | DK46: 0 | DL46: 0 | DM46: 0 | DN46: -1
AG47: 0 | AH47: 7.28682167 | AI47: 7.28682167 | AK47: 7.28682167 | AL47: 1.930829449 | AM47: 0 | AP47: 3.75 | AQ47: 0.2105 | AR47: 0.3 | AS47: 0.675 | AT47: 1.192351249e-195 | AU47: 0 | AV47: 0 | AW47: 0 | AX47: 0 | AY47: 0 | AZ47: 0 | BA47: 0 | BB47: 0 | BC47: 0 | BD47: 0 | BE47: 0 | BF47: 20 | BH47: 45 | BI47: 1.192351249e-195 | BJ47: 3.805060419e-40 | BK47: 1.312278254e-56 | BL47: 0 | BM47: 0 | BN47: 0 | BO47: 0 | BP47: 0 | BQ47: 0 | BR47: 0 | BS47: 0 | BT47: 0 | BU47: 22 | BW47: 45 | BX47: 1.192351249e-195 | BY47: 0 | BZ47: 0 | CA47: 0 | CB47: 0 | CC47: 0 | CD47: 0 | CE47: 0 | CF47: 0 | CG47: 0 | CH47: 0 | CI47: 0 | CJ47: 19 | CL47: 45 | CM47: 1.192351249e-195 | CN47: 1.772475305e-278 | CO47: 0 | CP47: 0 | CQ47: 0 | CR47: 0 | CS47: 0 | CT47: 0 | CU47: 0 | CV47: 0 | CW47: 0 | CX47: 0 | CY47: -1 | DA47: 45 | DB47: 1.192351249e-195 | DC47: 1.772475305e-278 | DD47: 0 | DE47: 0 | DF47: 0 | DG47: 0 | DH47: 0 | DI47: 0 | DJ47: 0 | DK47: 0 | DL47: 0 | DM47: 0 | DN47: -1
AG48: 0 | AH48: 16.0980924 | AI48: 16.0980924 | AK48: 16.0980924 | AL48: 3.98385553 | AM48: 0 | AP48: 3.9 | AQ48: 0.218 | AR48: 0.3 | AS48: 0.69 | AT48: 3.907942206e-209 | AU48: 0 | AV48: 0 | AW48: 0 | AX48: 0 | AY48: 0 | AZ48: 0 | BA48: 0 | BB48: 0 | BC48: 0 | BD48: 0 | BE48: 0 | BF48: 20 | BH48: 46 | BI48: 3.907942206e-209 | BJ48: 5.293821469e-51 | BK48: 1.781536635e-49 | BL48: 0 | BM48: 0 | BN48: 0 | BO48: 0 | BP48: 0 | BQ48: 0 | BR48: 0 | BS48: 0 | BT48: 0 | BU48: 22 | BW48: 46 | BX48: 3.907942206e-209 | BY48: 0 | BZ48: 0 | CA48: 0 | CB48: 0 | CC48: 0 | CD48: 0 | CE48: 0 | CF48: 0 | CG48: 0 | CH48: 0 | CI48: 0 | CJ48: 19 | CL48: 46 | CM48: 3.907942206e-209 | CN48: 6.491190518e-265 | CO48: 0 | CP48: 0 | CQ48: 0 | CR48: 0 | CS48: 0 | CT48: 0 | CU48: 0 | CV48: 0 | CW48: 0 | CX48: 0 | CY48: -1 | DA48: 46 | DB48: 3.907942206e-209 | DC48: 6.491190518e-265 | DD48: 0 | DE48: 0 | DF48: 0 | DG48: 0 | DH48: 0 | DI48: 0 | DJ48: 0 | DK48: 0 | DL48: 0 | DM48: 0 | DN48: -1
AG49: 0 | AH49: 36.90175928 | AI49: 36.90175928 | AK49: 36.90175928 | AL49: 8.831109913 | AM49: 0 | AP49: 4.05 | AQ49: 0.2255 | AR49: 0.3 | AS49: 0.705 | AT49: 4.544752157e-223 | AU49: 0 | AV49: 0 | AW49: 0 | AX49: 0 | AY49: 0 | AZ49: 0 | BA49: 0 | BB49: 0 | BC49: 0 | BD49: 0 | BE49: 0 | BF49: 20 | BH49: 47 | BI49: 4.544752157e-223 | BJ49: 3.941154988e-63 | BK49: 8.125585865e-43 | BL49: 0 | BM49: 0 | BN49: 0 | BO49: 0 | BP49: 0 | BQ49: 0 | BR49: 0 | BS49: 0 | BT49: 0 | BU49: 22 | BW49: 47 | BX49: 4.544752157e-223 | BY49: 0 | BZ49: 0 | CA49: 0 | CB49: 0 | CC49: 0 | CD49: 0 | CE49: 0 | CF49: 0 | CG49: 0 | CH49: 0 | CI49: 0 | CJ49: 19 | CL49: 47 | CM49: 4.544752157e-223 | CN49: 1.09206502e-251 | CO49: 0 | CP49: 0 | CQ49: 0 | CR49: 0 | CS49: 0 | CT49: 0 | CU49: 0 | CV49: 0 | CW49: 0 | CX49: 0 | CY49: -1 | DA49: 47 | DB49: 4.544752157e-223 | DC49: 1.09206502e-251 | DD49: 0 | DE49: 0 | DF49: 0 | DG49: 0 | DH49: 0 | DI49: 0 | DJ49: 0 | DK49: 0 | DL49: 0 | DM49: 0 | DN49: -1
AG50: 0 | AH50: 59.95008915 | AI50: 59.95008915 | AK50: 59.95008915 | AL50: 14.20137077 | AM50: 0 | AP50: 4.2 | AQ50: 0.233 | AR50: 0.3 | AS50: 0.72 | AT50: 1.875384954e-237 | AU50: 0 | AV50: 0 | AW50: 0 | AX50: 0 | AY50: 0 | AZ50: 0 | BA50: 0 | BB50: 0 | BC50: 0 | BD50: 0 | BE50: 0 | BF50: 20 | BH50: 48 | BI50: 1.875384954e-237 | BJ50: 1.57008884e-76 | BK50: 1.245104239e-36 | BL50: 0 | BM50: 0 | BN50: 0 | BO50: 0 | BP50: 0 | BQ50: 0 | BR50: 0 | BS50: 0 | BT50: 0 | BU50: 22 | BW50: 48 | BX50: 1.875384954e-237 | BY50: 0 | BZ50: 0 | CA50: 0 | CB50: 0 | CC50: 0 | CD50: 0 | CE50: 0 | CF50: 0 | CG50: 0 | CH50: 0 | CI50: 0 | CJ50: 19 | CL50: 48 | CM50: 1.875384954e-237 | CN50: 8.440197592e-239 | CO50: 0 | CP50: 0 | CQ50: 0 | CR50: 0 | CS50: 0 | CT50: 0 | CU50: 0 | CV50: 0 | CW50: 0 | CX50: 0 | CY50: -1 | DA50: 48 | DB50: 1.875384954e-237 | DC50: 8.440197592e-239 | DD50: 0 | DE50: 0 | DF50: 0 | DG50: 0 | DH50: 0 | DI50: 0 | DJ50: 0 | DK50: 0 | DL50: 0 | DM50: 0 | DN50: -1
AG51: 0 | AH51: 121.4139821 | AI51: 121.4139821 | AK51: 121.4139821 | AL51: 28.52245784 | AM51: 9.982457839 | AP51: 4.35 | AQ51: 0.2405 | AR51: 0.3 | AS51: 0.735 | AT51: 2.745925824e-252 | AU51: 0 | AV51: 0 | AW51: 0 | AX51: 0 | AY51: 0 | AZ51: 0 | BA51: 0 | BB51: 0 | BC51: 0 | BD51: 0 | BE51: 0 | BF51: 20 | BH51: 49 | BI51: 2.745925824e-252 | BJ51: 3.347121126e-91 | BK51: 6.409849621e-31 | BL51: 0 | BM51: 0 | BN51: 0 | BO51: 0 | BP51: 0 | BQ51: 0 | BR51: 0 | BS51: 0 | BT51: 0 | BU51: 22 | BW51: 49 | BX51: 2.745925824e-252 | BY51: 0 | BZ51: 0 | CA51: 0 | CB51: 0 | CC51: 0 | CD51: 0 | CE51: 0 | CF51: 0 | CG51: 0 | CH51: 0 | CI51: 0 | CJ51: 19 | CL51: 49 | CM51: 2.745925824e-252 | CN51: 2.996654743e-226 | CO51: 0 | CP51: 0 | CQ51: 0 | CR51: 0 | CS51: 0 | CT51: 0 | CU51: 0 | CV51: 0 | CW51: 0 | CX51: 0 | CY51: -1 | DA51: 49 | DB51: 2.745925824e-252 | DC51: 2.996654743e-226 | DD51: 0 | DE51: 0 | DF51: 0 | DG51: 0 | DH51: 0 | DI51: 0 | DJ51: 0 | DK51: 0 | DL51: 0 | DM51: 0 | DN51: -1
AP52: 4.5 | AQ52: 0.248 | AR52: 0.3 | AS52: 0.75 | AT52: 1.426610204e-267 | AU52: 0 | AV52: 0 | AW52: 0 | AX52: 0 | AY52: 0 | AZ52: 0 | BA52: 0 | BB52: 0 | BC52: 0 | BD52: 0 | BE52: 0 | BF52: 20 | BH52: 50 | BI52: 1.426610204e-267 | BJ52: 3.818256683e-107 | BK52: 1.108615819e-25 | BL52: 0 | BM52: 0 | BN52: 0 | BO52: 0 | BP52: 0 | BQ52: 0 | BR52: 0 | BS52: 0 | BT52: 0 | BU52: 22 | BW52: 50 | BX52: 1.426610204e-267 | BY52: 0 | BZ52: 0 | CA52: 0 | CB52: 0 | CC52: 0 | CD52: 0 | CE52: 0 | CF52: 0 | CG52: 0 | CH52: 0 | CI52: 0 | CJ52: 19 | CL52: 50 | CM52: 1.426610204e-267 | CN52: 4.887657682e-214 | CO52: 0 | CP52: 0 | CQ52: 0 | CR52: 0 | CS52: 0 | CT52: 0 | CU52: 0 | CV52: 0 | CW52: 0 | CX52: 0 | CY52: -1 | DA52: 50 | DB52: 1.426610204e-267 | DC52: 4.887657682e-214 | DD52: 0 | DE52: 0 | DF52: 0 | DG52: 0 | DH52: 0 | DI52: 0 | DJ52: 0 | DK52: 0 | DL52: 0 | DM52: 0 | DN52: -1
AP53: 4.65 | AQ53: 0.2555 | AR53: 0.3 | AS53: 0.765 | AT53: 2.629904643e-283 | AU53: 0 | AV53: 0 | AW53: 0 | AX53: 0 | AY53: 0 | AZ53: 0 | BA53: 0 | BB53: 0 | BC53: 0 | BD53: 0 | BE53: 0 | BF53: 20 | BH53: 51 | BI53: 2.629904643e-283 | BJ53: 2.330801569e-124 | BK53: 6.441772792e-21 | BL53: 0 | BM53: 0 | BN53: 0 | BO53: 0 | BP53: 0 | BQ53: 0 | BR53: 0 | BS53: 0 | BT53: 0 | BU53: 22 | BW53: 51 | BX53: 2.629904643e-283 | BY53: 0 | BZ53: 0 | CA53: 0 | CB53: 0 | CC53: 0 | CD53: 0 | CE53: 0 | CF53: 0 | CG53: 0 | CH53: 0 | CI53: 0 | CJ53: 19 | CL53: 51 | CM53: 2.629904643e-283 | CN53: 3.662223385e-202 | CO53: 0 | CP53: 0 | CQ53: 0 | CR53: 0 | CS53: 0 | CT53: 0 | CU53: 0 | CV53: 0 | CW53: 0 | CX53: 0 | CY53: -1 | DA53: 51 | DB53: 2.629904643e-283 | DC53: 3.662223385e-202 | DD53: 0 | DE53: 0 | DF53: 0 | DG53: 0 | DH53: 0 | DI53: 0 | DJ53: 0 | DK53: 0 | DL53: 0 | DM53: 0 | DN53: -1
AP54: 4.8 | AQ54: =IF($J$39>0,IF($AP54<$H$39,$F$39,IF($AP54<$H$39+$I$39,$F$39+((G$39-F$39)*($AP54-H$39)/I$39),$G$39)),$F$39) -> 0.263 | AR54: =IF($J$41>0,IF($AP54<$H$41,$F$41,IF($AP54<$H$41+$I$41,$F$41+((G$41-F$41)*($AP54-H$41)/I$41),$G$41)),$F$41) -> 0.3 | AS54: 0.78 | AT54: 1.720254998e-299 | AU54: 0 | AV54: 0 | AW54: 0 | AX54: 0 | AY54: 0 | AZ54: 0 | BA54: 0 | BB54: 0 | BC54: 0 | BD54: 0 | BE54: 0 | BF54: 20 | BH54: 52 | BI54: 1.720254998e-299 | BJ54: 7.613633591e-143 | BK54: 1.257537184e-16 | BL54: 3.547753984e-308 | BM54: 0 | BN54: 0 | BO54: 0 | BP54: 0 | BQ54: 0 | BR54: 0 | BS54: 0 | BT54: 0 | BU54: 22 | BW54: 52 | BX54: 1.720254998e-299 | BY54: 0 | BZ54: 0 | CA54: 0 | CB54: 0 | CC54: 0 | CD54: 0 | CE54: 0 | CF54: 0 | CG54: 0 | CH54: 0 | CI54: 0 | CJ54: 19 | CL54: 52 | CM54: 1.720254998e-299 | CN54: 1.26057549e-190 | CO54: 0 | CP54: 0 | CQ54: 0 | CR54: 0 | CS54: 0 | CT54: 0 | CU54: 0 | CV54: 0 | CW54: 0 | CX54: 0 | CY54: -1 | DA54: 52 | DB54: 1.720254998e-299 | DC54: 1.26057549e-190 | DD54: 0 | DE54: 0 | DF54: 0 | DG54: 0 | DH54: 0 | DI54: 0 | DJ54: 0 | DK54: 0 | DL54: 0 | DM54: 0 | DN54: -1
AP55: =AP54+$B$41/100 -> 4.95 | AQ55: 0.2705 | AR55: 0.3 | AS55: 0.795 | AT55: 0 | AU55: 0 | AV55: 0 | AW55: 0 | AX55: 0 | AY55: 0 | AZ55: 0 | BA55: 0 | BB55: 0 | BC55: 0 | BD55: 0 | BE55: 0 | BF55: 20 | BH55: 53 | BI55: 0 | BJ55: 1.330837815e-162 | BK55: 8.247595819e-13 | BL55: 3.477639575e-300 | BM55: 0 | BN55: 0 | BO55: 0 | BP55: 0 | BQ55: 0 | BR55: 0 | BS55: 0 | BT55: 0 | BU55: 22 | BW55: 53 | BX55: 0 | BY55: 0 | BZ55: 0 | CA55: 0 | CB55: 0 | CC55: 0 | CD55: 0 | CE55: 0 | CF55: 0 | CG55: 0 | CH55: 0 | CI55: 0 | CJ55: 19 | CL55: 53 | CM55: 0 | CN55: 1.993300903e-179 | CO55: 0 | CP55: 0 | CQ55: 0 | CR55: 0 | CS55: 0 | CT55: 0 | CU55: 0 | CV55: 0 | CW55: 0 | CX55: 0 | CY55: -1 | DA55: 53 | DB55: 0 | DC55: 1.993300903e-179 | DD55: 0 | DE55: 0 | DF55: 0 | DG55: 0 | DH55: 0 | DI55: 0 | DJ55: 0 | DK55: 0 | DL55: 0 | DM55: 0 | DN55: -1
AP56: 5.1 | AQ56: 0.278 | AR56: 0.3 | AS56: 0.81 | AT56: 0 | AU56: 0 | AV56: 0 | AW56: 0 | AX56: 0 | AY56: 0 | AZ56: 0 | BA56: 0 | BB56: 0 | BC56: 0 | BD56: 0 | BE56: 0 | BF56: 20 | BH56: 54 | BI56: 0 | BJ56: 1.244814912e-183 | BK56: 1.817293216e-09 | BL56: 2.677766785e-292 | BM56: 0 | BN56: 0 | BO56: 0 | BP56: 0 | BQ56: 0 | BR56: 0 | BS56: 0 | BT56: 0 | BU56: 22 | BW56: 54 | BX56: 0 | BY56: 0 | BZ56: 0 | CA56: 0 | CB56: 0 | CC56: 0 | CD56: 0 | CE56: 0 | CF56: 0 | CG56: 0 | CH56: 0 | CI56: 0 | CJ56: 19 | CL56: 54 | CM56: 0 | CN56: 1.447960937e-168 | CO56: 0 | CP56: 0 | CQ56: 0 | CR56: 0 | CS56: 0 | CT56: 0 | CU56: 0 | CV56: 0 | CW56: 0 | CX56: 0 | CY56: -1 | DA56: 54 | DB56: 0 | DC56: 1.447960937e-168 | DD56: 0 | DE56: 0 | DF56: 0 | DG56: 0 | DH56: 0 | DI56: 0 | DJ56: 0 | DK56: 0 | DL56: 0 | DM56: 0 | DN56: -1
AP57: 5.25 | AQ57: 0.2855 | AR57: 0.3 | AS57: 0.825 | AT57: 0 | AU57: 2.328325043e-308 | AV57: 0 | AW57: 0 | AX57: 0 | AY57: 0 | AZ57: 0 | BA57: 0 | BB57: 0 | BC57: 0 | BD57: 0 | BE57: 0 | BF57: 20 | BH57: 55 | BI57: 0 | BJ57: 6.230615072e-206 | BK57: 1.345283272e-06 | BL57: 1.619638303e-284 | BM57: 0 | BN57: 0 | BO57: 0 | BP57: 0 | BQ57: 0 | BR57: 0 | BS57: 0 | BT57: 0 | BU57: 22.00000135 | BW57: 55 | BX57: 0 | BY57: 0 | BZ57: 0 | CA57: 0 | CB57: 0 | CC57: 0 | CD57: 0 | CE57: 0 | CF57: 0 | CG57: 0 | CH57: 0 | CI57: 0 | CJ57: 19 | CL57: 55 | CM57: 0 | CN57: 4.831931905e-158 | CO57: 0 | CP57: 0 | CQ57: 0 | CR57: 0 | CS57: 0 | CT57: 0 | CU57: 0 | CV57: 0 | CW57: 0 | CX57: 0 | CY57: -1 | DA57: 55 | DB57: 0 | DC57: 4.831931905e-158 | DD57: 0 | DE57: 0 | DF57: 0 | DG57: 0 | DH57: 0 | DI57: 0 | DJ57: 0 | DK57: 0 | DL57: 0 | DM57: 0 | DN57: -1
AP58: 5.4 | AQ58: 0.293 | AR58: 0.3 | AS58: 0.84 | AT58: 0 | AU58: 1.1168479e-288 | AV58: 0 | AW58: 0 | AX58: 0 | AY58: 0 | AZ58: 0 | BA58: 0 | BB58: 0 | BC58: 0 | BD58: 0 | BE58: 0 | BF58: 20 | BH58: 56 | BI58: 0 | BJ58: 1.668797152e-229 | BK58: 0.0003345750719 | BL58: 7.695209283e-277 | BM58: 0 | BN58: 0 | BO58: 0 | BP58: 0 | BQ58: 0 | BR58: 0 | BS58: 0 | BT58: 0 | BU58: 22.00033458 | BW58: 56 | BX58: 0 | BY58: 0 | BZ58: 0 | CA58: 0 | CB58: 0 | CC58: 0 | CD58: 0 | CE58: 0 | CF58: 0 | CG58: 0 | CH58: 0 | CI58: 0 | CJ58: 19 | CL58: 56 | CM58: 0 | CN58: 7.407382007e-148 | CO58: 0 | CP58: 0 | CQ58: 0 | CR58: 0 | CS58: 0 | CT58: 0 | CU58: 0 | CV58: 0 | CW58: 0 | CX58: 0 | CY58: -1 | DA58: 56 | DB58: 0 | DC58: 7.407382007e-148 | DD58: 0 | DE58: 0 | DF58: 0 | DG58: 0 | DH58: 0 | DI58: 0 | DJ58: 0 | DK58: 0 | DL58: 0 | DM58: 0 | DN58: -1
AP59: 5.55 | AQ59: 0.3005 | AR59: 0.3 | AS59: 0.855 | AT59: 0 | AU59: 1.206984866e-269 | AV59: 0 | AW59: 0 | AX59: 0 | AY59: 0 | AZ59: 0 | BA59: 0 | BB59: 0 | BC59: 0 | BD59: 0 | BE59: 0 | BF59: 20 | BH59: 57 | BI59: 0 | BJ59: 2.39178792e-254 | BK59: 0.0279553233 | BL59: 2.871970272e-269 | BM59: 0 | BN59: 0 | BO59: 0 | BP59: 0 | BQ59: 0 | BR59: 0 | BS59: 0 | BT59: 0 | BU59: 22.02795532 | BW59: 57 | BX59: 0 | BY59: 0 | BZ59: 0 | CA59: 0 | CB59: 0 | CC59: 0 | CD59: 0 | CE59: 0 | CF59: 0 | CG59: 0 | CH59: 0 | CI59: 0 | CJ59: 19 | CL59: 57 | CM59: 0 | CN59: 5.216613449e-138 | CO59: 0 | CP59: 0 | CQ59: 0 | CR59: 0 | CS59: 0 | CT59: 0 | CU59: 0 | CV59: 0 | CW59: 0 | CX59: 0 | CY59: -1 | DA59: 57 | DB59: 0 | DC59: 5.216613449e-138 | DD59: 0 | DE59: 0 | DF59: 0 | DG59: 0 | DH59: 0 | DI59: 0 | DJ59: 0 | DK59: 0 | DL59: 0 | DM59: 0 | DN59: -1
AP60: 5.7 | AQ60: 0.308 | AR60: 0.3 | AS60: 0.87 | AT60: 0 | AU60: 2.938779403e-251 | AV60: 0 | AW60: 0 | AX60: 0 | AY60: 0 | AZ60: 0 | BA60: 0 | BB60: 0 | BC60: 0 | BD60: 0 | BE60: 0 | BF60: 20 | BH60: 58 | BI60: 0 | BJ60: 1.834375645e-280 | BK60: 0.7847413906 | BL60: 8.419698738e-262 | BM60: 0 | BN60: 0 | BO60: 0 | BP60: 0 | BQ60: 0 | BR60: 0 | BS60: 0 | BT60: 0 | BU60: 22.78474139 | BW60: 58 | BX60: 0 | BY60: 0 | BZ60: 0 | CA60: 0 | CB60: 0 | CC60: 0 | CD60: 0 | CE60: 0 | CF60: 0 | CG60: 0 | CH60: 0 | CI60: 0 | CJ60: 19 | CL60: 58 | CM60: 0 | CN60: 1.6876895e-128 | CO60: 0 | CP60: 0 | CQ60: 0 | CR60: 0 | CS60: 0 | CT60: 0 | CU60: 0 | CV60: 0 | CW60: 0 | CX60: 0 | CY60: -1 | DA60: 58 | DB60: 0 | DC60: 1.6876895e-128 | DD60: 0 | DE60: 0 | DF60: 0 | DG60: 0 | DH60: 0 | DI60: 0 | DJ60: 0 | DK60: 0 | DL60: 0 | DM60: 0 | DN60: -1
AP61: 5.85 | AQ61: 0.3155 | AR61: 0.3 | AS61: 0.885 | AT61: 0 | AU61: 1.612090878e-233 | AV61: 0 | AW61: 0 | AX61: 0 | AY61: 0 | AZ61: 0 | BA61: 0 | BB61: 0 | BC61: 0 | BD61: 0 | BE61: 0 | BF61: 20 | BH61: 59 | BI61: 0 | BJ61: 7.5283599e-308 | BK61: 7.400817614 | BL61: 1.938966352e-254 | BM61: 0 | BN61: 0 | BO61: 0 | BP61: 0 | BQ61: 0 | BR61: 0 | BS61: 0 | BT61: 0 | BU61: 29.40081761 | BW61: 59 | BX61: 0 | BY61: 0 | BZ61: 0 | CA61: 0 | CB61: 0 | CC61: 0 | CD61: 0 | CE61: 0 | CF61: 0 | CG61: 0 | CH61: 0 | CI61: 0 | CJ61: 19 | CL61: 59 | CM61: 0 | CN61: 2.508282325e-119 | CO61: 0 | CP61: 0 | CQ61: 0 | CR61: 0 | CS61: 0 | CT61: 0 | CU61: 0 | CV61: 0 | CW61: 0 | CX61: 0 | CY61: -1 | DA61: 59 | DB61: 0 | DC61: 2.508282325e-119 | DD61: 0 | DE61: 0 | DF61: 0 | DG61: 0 | DH61: 0 | DI61: 0 | DJ61: 0 | DK61: 0 | DL61: 0 | DM61: 0 | DN61: -1
AP62: 6 | AQ62: 0.323 | AR62: 0.3 | AS62: 0.9 | AT62: 0 | AU62: 1.992367384e-216 | AV62: 0 | AW62: 0 | AX62: 0 | AY62: 0 | AZ62: 0 | BA62: 0 | BB62: 0 | BC62: 0 | BD62: 0 | BE62: 0 | BF62: 20 | BH62: 60 | BI62: 0 | BJ62: 0 | BK62: 23.44897938 | BL62: 3.50752763e-247 | BM62: 0 | BN62: 0 | BO62: 0 | BP62: 0 | BQ62: 0 | BR62: 0 | BS62: 0 | BT62: 0 | BU62: 45.44897938 | BW62: 60 | BX62: 0 | BY62: 0 | BZ62: 0 | CA62: 0 | CB62: 0 | CC62: 0 | CD62: 0 | CE62: 0 | CF62: 0 | CG62: 0 | CH62: 0 | CI62: 0 | CJ62: 19 | CL62: 60 | CM62: 0 | CN62: 1.712538187e-110 | CO62: 0 | CP62: 0 | CQ62: 0 | CR62: 0 | CS62: 0 | CT62: 0 | CU62: 0 | CV62: 0 | CW62: 0 | CX62: 0 | CY62: -1 | DA62: 60 | DB62: 0 | DC62: 1.712538187e-110 | DD62: 0 | DE62: 0 | DF62: 0 | DG62: 0 | DH62: 0 | DI62: 0 | DJ62: 0 | DK62: 0 | DL62: 0 | DM62: 0 | DN62: -1
AP63: 6.15 | AQ63: 0.3305 | AR63: 0.3 | AS63: 0.915 | AT63: 0 | AU63: 5.547619894e-200 | AV63: 0 | AW63: 0 | AX63: 0 | AY63: 0 | AZ63: 0 | BA63: 0 | BB63: 0 | BC63: 0 | BD63: 0 | BE63: 0 | BF63: 20 | BH63: 61 | BI63: 0 | BJ63: 0 | BK63: 24.96084532 | BL63: 4.984126273e-240 | BM63: 0 | BN63: 0 | BO63: 0 | BP63: 0 | BQ63: 0 | BR63: 0 | BS63: 0 | BT63: 0 | BU63: 46.96084532 | BW63: 61 | BX63: 0 | BY63: 0 | BZ63: 0 | CA63: 0 | CB63: 0 | CC63: 0 | CD63: 0 | CE63: 0 | CF63: 0 | CG63: 0 | CH63: 0 | CI63: 0 | CJ63: 19 | CL63: 61 | CM63: 0 | CN63: 5.37135787e-102 | CO63: 0 | CP63: 0 | CQ63: 0 | CR63: 0 | CS63: 0 | CT63: 0 | CU63: 0 | CV63: 0 | CW63: 0 | CX63: 0 | CY63: -1 | DA63: 61 | DB63: 0 | DC63: 5.37135787e-102 | DD63: 0 | DE63: 0 | DF63: 0 | DG63: 0 | DH63: 0 | DI63: 0 | DJ63: 0 | DK63: 0 | DL63: 0 | DM63: 0 | DN63: -1
AP64: 6.3 | AQ64: 0.338 | AR64: 0.3 | AS64: 0.93 | AT64: 0 | AU64: 3.480177063e-184 | AV64: 0 | AW64: 0 | AX64: 0 | AY64: 0 | AZ64: 0 | BA64: 0 | BB64: 0 | BC64: 0 | BD64: 0 | BE64: 0 | BF64: 20 | BH64: 62 | BI64: 0 | BJ64: 0 | BK64: 8.926593015 | BL64: 5.563320505e-233 | BM64: 0 | BN64: 0 | BO64: 0 | BP64: 0 | BQ64: 0 | BR64: 0 | BS64: 0 | BT64: 0 | BU64: 30.92659302 | BW64: 62 | BX64: 0 | BY64: 0 | BZ64: 0 | CA64: 0 | CB64: 0 | CC64: 0 | CD64: 0 | CE64: 0 | CF64: 0 | CG64: 0 | CH64: 0 | CI64: 0 | CJ64: 19 | CL64: 62 | CM64: 0 | CN64: 7.739410636e-94 | CO64: 0 | CP64: 0 | CQ64: 0 | CR64: 0 | CS64: 0 | CT64: 0 | CU64: 0 | CV64: 0 | CW64: 0 | CX64: 0 | CY64: -1 | DA64: 62 | DB64: 0 | DC64: 7.739410636e-94 | DD64: 0 | DE64: 0 | DF64: 0 | DG64: 0 | DH64: 0 | DI64: 0 | DJ64: 0 | DK64: 0 | DL64: 0 | DM64: 0 | DN64: -1
AP65: 6.45 | AQ65: 0.3455 | AR65: 0.3 | AS65: 0.945 | AT65: 0 | AU65: 4.918734193e-169 | AV65: 0 | AW65: 0 | AX65: 0 | AY65: 0 | AZ65: 0 | BA65: 0 | BB65: 0 | BC65: 0 | BD65: 0 | BE65: 0 | BF65: 20 | BH65: 63 | BI65: 0 | BJ65: 0 | BK65: 1.07251477 | BL65: 4.877937508e-226 | BM65: 0 | BN65: 0 | BO65: 0 | BP65: 0 | BQ65: 0 | BR65: 0 | BS65: 0 | BT65: 0 | BU65: 23.07251477 | BW65: 63 | BX65: 0 | BY65: 0 | BZ65: 0 | CA65: 0 | CB65: 0 | CC65: 0 | CD65: 0 | CE65: 0 | CF65: 0 | CG65: 0 | CH65: 0 | CI65: 0 | CJ65: 19 | CL65: 63 | CM65: 0 | CN65: 5.122850344e-86 | CO65: 0 | CP65: 0 | CQ65: 0 | CR65: 0 | CS65: 0 | CT65: 0 | CU65: 0 | CV65: 0 | CW65: 0 | CX65: 0 | CY65: -1 | DA65: 63 | DB65: 0 | DC65: 5.122850344e-86 | DD65: 0 | DE65: 0 | DF65: 0 | DG65: 0 | DH65: 0 | DI65: 0 | DJ65: 0 | DK65: 0 | DL65: 0 | DM65: 0 | DN65: -1
AP66: 6.6 | AQ66: 0.353 | AR66: 0.3 | AS66: 0.96 | AT66: =$B$42*NORMDIST($AS66,$B$39,$B$43*$B$39,FALSE) -> 0 | AU66: =B$4*IF(B$4>0,NORMDIST($AS66,P$17,Q$17/4,FALSE),0) -> 1.566255964e-154 | AV66: =B$5*IF(B$5>0,NORMDIST($AS66,P$18,Q$18/4,FALSE),0) -> 0 | AW66: =B$6*IF(B$6>0,NORMDIST($AS66,P$19,Q$19/4,FALSE),0) -> 0 | AX66: =B$7*IF(B$7>0,NORMDIST($AS66,P$20,Q$20/4,FALSE),0) -> 0 | AY66: =B$8*IF(B$8>0,NORMDIST($AS66,P$21,Q$21/4,FALSE),0) -> 0 | AZ66: =B$9*IF(B$9>0,NORMDIST($AS66,P$22,$Q$22/4,FALSE),0) -> 0 | BA66: =$B$10*IF($B$10>0,NORMDIST($AS66,P$23,$Q$23/4,FALSE),0) -> 0 | BB66: =$B$11*IF($B$11>0,NORMDIST($AS66,P$24,$Q$24/4,FALSE),0) -> 0 | BC66: =$B$12*IF($B$12>0,NORMDIST($AS66,$P$25,$Q$25/4,FALSE),0) -> 0 | BD66: =$B$13*IF($B$13>0,NORMDIST($AS66,$P$26,$Q$26/4,FALSE),0) -> 0 | BE66: =$B$14*IF($B$14>0,NORMDIST($AS66,$P$27,$Q$27/4,FALSE),0) -> 0 | BF66: =IF($M$39<>0,SUM(AT66:BE66)*$M$39+$L$39,-1) -> 20 | BH66: 64 | BI66: =$B$42*NORMDIST($AS66,$B$39,$B$43*$B$39,FALSE) -> 0 | BJ66: =IF(B$4>0,B$4*NORMDIST($AS66,P$31,Q$31/4,FALSE),0) -> 0 | BK66: =IF(B$5>0,B$5*NORMDIST($AS66,P$32,Q$32/4,FALSE),0) -> 0.04329242665 | BL66: =IF(B$6>0,B$6*NORMDIST($AS66,P$33,Q$33/4,FALSE),0) -> 3.359661261e-219 | BM66: =IF(B$7>0,B$7*NORMDIST($AS66,P$34,Q$34/4,FALSE),0) -> 0 | BN66: =IF(B$8>0,B$8*NORMDIST($AS66,P$35,Q$35/4,FALSE),0) -> 0 | BO66: =IF(B$9>0,B$9*NORMDIST($AS66,P$36,Q$36/4,FALSE),0) -> 0 | BP66: =IF($B$10>0,$B$10*NORMDIST($AS66,$P$37,$Q$37/4,FALSE),0) -> 0 | BQ66: =IF($B$11>0,$B$11*NORMDIST($AS66,$P$38,$Q$38/4,FALSE),0) -> 0 | BR66: =IF($B$12>0,$B$12*NORMDIST($AS66,$P$39,$Q$39/4,FALSE),0) -> 0 | BS66: =IF($B$13>0,$B$13*NORMDIST($AS66,$P$40,$Q$40/4,FALSE),0) -> 0 | BT66: =IF($B$14>0,$B$14*NORMDIST($AS66,$P$41,$Q$41/4,FALSE),0) -> 0 | BU66: =IF($M$41<>0,SUM(BI66:BT66)*$M$41+$L$41,-1) -> 22.04329243 | BW66: 64 | BX66: =$B$42*NORMDIST($AS66,$B$39,$B$43*$B$39,FALSE) -> 0 | BY66: =IF(B$4>0,B$4*NORMDIST($AS66,X$17,Y$17/4,FALSE),0) -> 0 | BZ66: =IF(B$5>0,B$5*NORMDIST($AS66,X$18,Y$18/4,FALSE),0) -> 0 | CA66: =IF(B$6>0,B$6*NORMDIST($AS66,X$19,Y$19/4,FALSE),0) -> 0 | CB66: =IF(B$7>0,B$7*NORMDIST($AS66,X$20,Y$20/4,FALSE),0) -> 0 | CC66: =IF(B$8>0,B$8*NORMDIST($AS66,X$21,Y$21/4,FALSE),0) -> 0 | CD66: =IF(B$9>0,B$9*NORMDIST($AS66,X$22,Y$22/4,FALSE),0) -> 0 | CE66: =IF($B$10>0,$B$10*NORMDIST($AS66,$X$23,$Y$23/4,FALSE),0) -> 0 | CF66: =IF($B$11>0,$B$11*NORMDIST($AS66,$X$24,$Y$24/4,FALSE),0) -> 0 | CG66: =IF($B$12>0,$B$12*NORMDIST($AS66,$X$25,$Y$25/4,FALSE),0) -> 0 | CH66: =IF($B$13>0,$B$13*NORMDIST($AS66,$X$26,$Y$26/4,FALSE),0) -> 0 | CI66: =IF($B$14>0,$B$14*NORMDIST($AS66,$X$27,$Y$27/4,FALSE),0) -> 0 | CJ66: =IF($M$43<>0,SUM(BX66:CI66)*$M$43+$L$43,-1) -> 19 | CL66: 64 | CM66: =$B$42*NORMDIST($AS66,$B$39,$B$43*$B$39,FALSE) -> 0 | CN66: =IF($T$17>0,$B$4*NORMDIST($AS66,$T$17,$U$17/4,FALSE),0) -> 1.557741626e-78 | CO66: =IF($T$18>0,$B$5*NORMDIST($AS66,$T$18,$U$18/4,FALSE),0) -> 0 | CP66: =IF($T$19>0,$B$6*NORMDIST($AS66,$T$19,$U$19/4,FALSE),0) -> 0 | CQ66: =IF($T$20>0,$B$7*NORMDIST($AS66,$T$20,$U$20/4,FALSE),0) -> 0 | CR66: =IF($T$21>0,$B$8*NORMDIST($AS66,$T$21,$U$21/4,FALSE),0) -> 0 | CS66: =IF($T$22>0,$B$9*NORMDIST($AS66,$T$22,$U$22/4,FALSE),0) -> 0 | CT66: =IF($T$23>0,$B$10*NORMDIST($AS66,$T$23,$U$23/4,FALSE),0) -> 0 | CU66: =IF($T$24>0,$B$11*NORMDIST($AS66,$T$24,$U$24/4,FALSE),0) -> 0 | CV66: =IF($T$25>0,$B$12*NORMDIST($AS66,$T$25,$U$25/4,FALSE),0) -> 0 | CW66: =IF($T$26>0,$B$13*NORMDIST($AS66,$T$26,$U$26/4,FALSE),0) -> 0 | CX66: =IF($T$27>0,$B$14*NORMDIST($AS66,$T$27,$U$27/4,FALSE),0) -> 0 | CY66: =IF($M$40<>0,SUM(CM66:CX66)*$M$40+$L$40,-1) -> -1 | DA66: 64 | DB66: =$B$42*NORMDIST($AS66,$B$39,$B$43*$B$39,FALSE) -> 0 | DC66: =IF($T$31>0,$B$4*NORMDIST($AS66,$T$31,$U$31/4,FALSE),0) -> 1.557741626e-78 | DD66: =IF($T$32>0,$B$5*NORMDIST($AS66,$T$32,$U$32/4,FALSE),0) -> 0 | DE66: =IF($T$33>0,$B$6*NORMDIST($AS66,$T$33,$U$33/4,FALSE),0) -> 0 | DF66: =IF($T$34>0,$B$7*NORMDIST($AS66,$T$34,$U$34/4,FALSE),0) -> 0 | DG66: =IF($T$35>0,$B$8*NORMDIST($AS66,$T$35,$U$35/4,FALSE),0) -> 0 | DH66: =IF($T$36>0,$B$9*NORMDIST($AS66,$T$36,$U$36/4,FALSE),0) -> 0 | DI66: =IF($T$37>0,$B$10*NORMDIST($AS66,$T$37,$U$37/4,FALSE),0) -> 0 | DJ66: =IF($T$38>0,$B$11*NORMDIST($AS66,$T$38,$U$38/4,FALSE),0) -> 0 | DK66: =IF($T$39>0,$B$12*NORMDIST($AS66,$T$39,$U$39/4,FALSE),0) -> 0 | DL66: =IF($T$40>0,$B$13*NORMDIST($AS66,$T$40,$U$40/4,FALSE),0) -> 0 | DM66: =IF($T$41>0,$B$14*NORMDIST($AS66,$T$41,$U$41/4,FALSE),0) -> 0 | DN66: =IF($M$42<>0,SUM(DB66:DM66)*$M$42+$L$42,-1) -> -1
AP67: 6.75 | AQ67: 0.3605 | AR67: 0.3 | AS67: =AS66+$B$44 -> 0.975 | AT67: 0 | AU67: 1.123645953e-140 | AV67: 0 | AW67: 0 | AX67: 0 | AY67: 0 | AZ67: 0 | BA67: 0 | BB67: 0 | BC67: 0 | BD67: 0 | BE67: 0 | BF67: 20 | BH67: 65 | BI67: 0 | BJ67: 0 | BK67: 0.0005870994578 | BL67: 1.81765669e-212 | BM67: 0 | BN67: 0 | BO67: 0 | BP67: 0 | BQ67: 0 | BR67: 0 | BS67: 0 | BT67: 0 | BU67: 22.0005871 | BW67: 65 | BX67: 0 | BY67: 0 | BZ67: 0 | CA67: 0 | CB67: 0 | CC67: 0 | CD67: 0 | CE67: 0 | CF67: 0 | CG67: 0 | CH67: 0 | CI67: 0 | CJ67: 19 | CL67: 65 | CM67: 0 | CN67: 2.176001342e-71 | CO67: 0 | CP67: 0 | CQ67: 0 | CR67: 0 | CS67: 0 | CT67: 0 | CU67: 0 | CV67: 0 | CW67: 0 | CX67: 0 | CY67: -1 | DA67: 65 | DB67: 0 | DC67: 2.176001342e-71 | DD67: 0 | DE67: 0 | DF67: 0 | DG67: 0 | DH67: 0 | DI67: 0 | DJ67: 0 | DK67: 0 | DL67: 0 | DM67: 0 | DN67: -1
AP68: 6.9 | AQ68: 0.368 | AR68: 0.3 | AS68: 0.99 | AT68: 0 | AU68: 1.816157949e-127 | AV68: 0 | AW68: 0 | AX68: 0 | AY68: 0 | AZ68: 0 | BA68: 0 | BB68: 0 | BC68: 0 | BD68: 0 | BE68: 0 | BF68: 20 | BH68: 66 | BI68: 0 | BJ68: 0 | BK68: 2.674869077e-06 | BL68: 7.724766033e-206 | BM68: 0 | BN68: 0 | BO68: 0 | BP68: 0 | BQ68: 0 | BR68: 0 | BS68: 0 | BT68: 0 | BU68: 22.00000267 | BW68: 66 | BX68: 0 | BY68: 0 | BZ68: 0 | CA68: 0 | CB68: 0 | CC68: 0 | CD68: 0 | CE68: 0 | CF68: 0 | CG68: 0 | CH68: 0 | CI68: 0 | CJ68: 19 | CL68: 66 | CM68: 0 | CN68: 1.396377589e-64 | CO68: 0 | CP68: 0 | CQ68: 0 | CR68: 0 | CS68: 0 | CT68: 0 | CU68: 0 | CV68: 0 | CW68: 0 | CX68: 0 | CY68: -1 | DA68: 66 | DB68: 0 | DC68: 1.396377589e-64 | DD68: 0 | DE68: 0 | DF68: 0 | DG68: 0 | DH68: 0 | DI68: 0 | DJ68: 0 | DK68: 0 | DL68: 0 | DM68: 0 | DN68: -1
AP69: 7.05 | AQ69: 0.3755 | AR69: 0.3 | AS69: 1.005 | AT69: 0 | AU69: 6.613557142e-115 | AV69: 0 | AW69: 0 | AX69: 0 | AY69: 0 | AZ69: 0 | BA69: 0 | BB69: 0 | BC69: 0 | BD69: 0 | BE69: 0 | BF69: 20 | BH69: 67 | BI69: 0 | BJ69: 0 | BK69: 4.094345447e-09 | BL69: 2.578789645e-199 | BM69: 0 | BN69: 0 | BO69: 0 | BP69: 0 | BQ69: 0 | BR69: 0 | BS69: 0 | BT69: 0 | BU69: 22 | BW69: 67 | BX69: 0 | BY69: 0 | BZ69: 0 | CA69: 0 | CB69: 0 | CC69: 0 | CD69: 0 | CE69: 0 | CF69: 0 | CG69: 0 | CH69: 0 | CI69: 0 | CJ69: 19 | CL69: 67 | CM69: 0 | CN69: 4.116485202e-58 | CO69: 0 | CP69: 0 | CQ69: 0 | CR69: 0 | CS69: 0 | CT69: 0 | CU69: 0 | CV69: 0 | CW69: 0 | CX69: 0 | CY69: -1 | DA69: 67 | DB69: 0 | DC69: 4.116485202e-58 | DD69: 0 | DE69: 0 | DF69: 0 | DG69: 0 | DH69: 0 | DI69: 0 | DJ69: 0 | DK69: 0 | DL69: 0 | DM69: 0 | DN69: -1
D70: tD (H39) | E70: tR(2) | F70: tR(3) | G70: tR(7) | AP70: 7.2 | AQ70: 0.383 | AR70: 0.3 | AS70: 1.02 | AT70: 0 | AU70: 5.425927353e-103 | AV70: 0 | AW70: 0 | AX70: 0 | AY70: 0 | AZ70: 0 | BA70: 0 | BB70: 0 | BC70: 0 | BD70: 0 | BE70: 0 | BF70: 20 | BH70: 68 | BI70: 0 | BJ70: 0 | BK70: 2.1055111e-12 | BL70: 6.762442862e-193 | BM70: 0 | BN70: 0 | BO70: 0 | BP70: 0 | BQ70: 0 | BR70: 0 | BS70: 0 | BT70: 0 | BU70: 22 | BW70: 68 | BX70: 0 | BY70: 1.457446053e-303 | BZ70: 0 | CA70: 0 | CB70: 0 | CC70: 0 | CD70: 0 | CE70: 0 | CF70: 0 | CG70: 0 | CH70: 0 | CI70: 0 | CJ70: 19 | CL70: 68 | CM70: 0 | CN70: 5.574811978e-52 | CO70: 0 | CP70: 0 | CQ70: 0 | CR70: 0 | CS70: 0 | CT70: 0 | CU70: 0 | CV70: 0 | CW70: 0 | CX70: 0 | CY70: -1 | DA70: 68 | DB70: 0 | DC70: 5.574811978e-52 | DD70: 0 | DE70: 0 | DF70: 0 | DG70: 0 | DH70: 0 | DI70: 0 | DJ70: 0 | DK70: 0 | DL70: 0 | DM70: 0 | DN70: -1
AP71: 7.35 | AQ71: 0.3905 | AR71: 0.3 | AS71: 1.035 | AT71: 0 | AU71: 1.002929046e-91 | AV71: 0 | AW71: 0 | AX71: 0 | AY71: 0 | AZ71: 0 | BA71: 0 | BB71: 0 | BC71: 0 | BD71: 0 | BE71: 0 | BF71: 20 | BH71: 69 | BI71: 0 | BJ71: 0 | BK71: 3.637656527e-16 | BL71: 1.392991311e-186 | BM71: 0 | BN71: 0 | BO71: 0 | BP71: 0 | BQ71: 0 | BR71: 0 | BS71: 0 | BT71: 0 | BU71: 22 | BW71: 69 | BX71: 0 | BY71: 4.883657015e-284 | BZ71: 0 | CA71: 0 | CB71: 0 | CC71: 0 | CD71: 0 | CE71: 0 | CF71: 0 | CG71: 0 | CH71: 0 | CI71: 0 | CJ71: 19 | CL71: 69 | CM71: 0 | CN71: 3.468277735e-46 | CO71: 0 | CP71: 0 | CQ71: 0 | CR71: 0 | CS71: 0 | CT71: 0 | CU71: 0 | CV71: 0 | CW71: 0 | CX71: 0 | CY71: -1 | DA71: 69 | DB71: 0 | DC71: 3.468277735e-46 | DD71: 0 | DE71: 0 | DF71: 0 | DG71: 0 | DH71: 0 | DI71: 0 | DJ71: 0 | DK71: 0 | DL71: 0 | DM71: 0 | DN71: -1
E72: =P17 -> 1.28861065 | F72: =P18 -> 3.313732092 | G72: =P22 -> 10.45952602 | AP72: 7.5 | AQ72: 0.398 | AR72: 0.3 | AS72: 1.05 | AT72: 0 | AU72: 4.176608944e-81 | AV72: 0 | AW72: 0 | AX72: 0 | AY72: 0 | AZ72: 0 | BA72: 0 | BB72: 0 | BC72: 0 | BD72: 0 | BE72: 0 | BF72: 20 | BH72: 70 | BI72: 0 | BJ72: 0 | BK72: 2.111431254e-20 | BL72: 2.253981329e-180 | BM72: 0 | BN72: 0 | BO72: 0 | BP72: 0 | BQ72: 0 | BR72: 0 | BS72: 0 | BT72: 0 | BU72: 22 | BW72: 70 | BX72: 0 | BY72: 3.686847654e-265 | BZ72: 0 | CA72: 0 | CB72: 0 | CC72: 0 | CD72: 0 | CE72: 0 | CF72: 0 | CG72: 0 | CH72: 0 | CI72: 0 | CJ72: 19 | CL72: 70 | CM72: 0 | CN72: 9.912369636e-41 | CO72: 0 | CP72: 0 | CQ72: 0 | CR72: 0 | CS72: 0 | CT72: 0 | CU72: 0 | CV72: 0 | CW72: 0 | CX72: 0 | CY72: -1 | DA72: 70 | DB72: 0 | DC72: 9.912369636e-41 | DD72: 0 | DE72: 0 | DF72: 0 | DG72: 0 | DH72: 0 | DI72: 0 | DJ72: 0 | DK72: 0 | DL72: 0 | DM72: 0 | DN72: -1
D73: 0 | E73: 1.199041618 | F73: 2.963038325 | G73: 9.939946784 | AP73: 7.65 | AQ73: 0.4055 | AR73: 0.3 | AS73: 1.065 | AT73: 0 | AU73: 3.918634783e-71 | AV73: 0 | AW73: 0 | AX73: 0 | AY73: 0 | AZ73: 0 | BA73: 0 | BB73: 0 | BC73: 0 | BD73: 0 | BE73: 0 | BF73: 20 | BH73: 71 | BI73: 0 | BJ73: 0 | BK73: 4.117402301e-25 | BL73: 2.864899086e-174 | BM73: 0 | BN73: 0 | BO73: 0 | BP73: 0 | BQ73: 0 | BR73: 0 | BS73: 0 | BT73: 0 | BU73: 22 | BW73: 71 | BX73: 0 | BY73: 6.270794942e-247 | BZ73: 0 | CA73: 0 | CB73: 0 | CC73: 0 | CD73: 0 | CE73: 0 | CF73: 0 | CG73: 0 | CH73: 0 | CI73: 0 | CJ73: 19 | CL73: 71 | CM73: 0 | CN73: 1.301430819e-35 | CO73: 0 | CP73: 0 | CQ73: 0 | CR73: 0 | CS73: 0 | CT73: 0 | CU73: 0 | CV73: 0 | CW73: 0 | CX73: 0 | CY73: -1 | DA73: 71 | DB73: 0 | DC73: 1.301430819e-35 | DD73: 0 | DE73: 0 | DF73: 0 | DG73: 0 | DH73: 0 | DI73: 0 | DJ73: 0 | DK73: 0 | DL73: 0 | DM73: 0 | DN73: -1
D74: 1 | E74: 1.321505153 | F74: 3.600408233 | G74: 10.90201877 | AP74: 7.8 | AQ74: 0.413 | AR74: 0.3 | AS74: 1.08 | AT74: 0 | AU74: 8.283295107e-62 | AV74: 0 | AW74: 0 | AX74: 0 | AY74: 0 | AZ74: 0 | BA74: 0 | BB74: 0 | BC74: 0 | BD74: 0 | BE74: 0 | BF74: 20 | BH74: 72 | BI74: 0 | BJ74: 0 | BK74: 2.697495701e-30 | BL74: 2.860391319e-168 | BM74: 0 | BN74: 0 | BO74: 0 | BP74: 0 | BQ74: 0 | BR74: 0 | BS74: 0 | BT74: 0 | BU74: 22 | BW74: 72 | BX74: 0 | BY74: 2.402964621e-229 | BZ74: 0 | CA74: 0 | CB74: 0 | CC74: 0 | CD74: 0 | CE74: 0 | CF74: 0 | CG74: 0 | CH74: 0 | CI74: 0 | CJ74: 19 | CL74: 72 | CM74: 0 | CN74: 7.849548235e-31 | CO74: 0 | CP74: 0 | CQ74: 0 | CR74: 0 | CS74: 0 | CT74: 0 | CU74: 0 | CV74: 0 | CW74: 0 | CX74: 0 | CY74: -1 | DA74: 72 | DB74: 0 | DC74: 7.849548235e-31 | DD74: 0 | DE74: 0 | DF74: 0 | DG74: 0 | DH74: 0 | DI74: 0 | DJ74: 0 | DK74: 0 | DL74: 0 | DM74: 0 | DN74: -1
D75: 2 | E75: 1.322468246 | F75: 4.176530817 | G75: 11.86359858 | AP75: 7.95 | AQ75: 0.4205 | AR75: 0.3 | AS75: 1.095 | AT75: 0 | AU75: 3.944835061e-53 | AV75: 0 | AW75: 0 | AX75: 0 | AY75: 0 | AZ75: 0 | BA75: 0 | BB75: 0 | BC75: 0 | BD75: 0 | BE75: 0 | BF75: 20 | BH75: 73 | BI75: 0 | BJ75: 0 | BK75: 5.937304476e-36 | BL75: 2.243358501e-162 | BM75: 0 | BN75: 0 | BO75: 0 | BP75: 0 | BQ75: 0 | BR75: 0 | BS75: 0 | BT75: 0 | BU75: 22 | BW75: 73 | BX75: 0 | BY75: 2.074576834e-212 | BZ75: 0 | CA75: 0 | CB75: 0 | CC75: 0 | CD75: 0 | CE75: 0 | CF75: 0 | CG75: 0 | CH75: 0 | CI75: 0 | CJ75: 19 | CL75: 73 | CM75: 0 | CN75: 2.174944682e-26 | CO75: 0 | CP75: 0 | CQ75: 0 | CR75: 0 | CS75: 0 | CT75: 0 | CU75: 0 | CV75: 0 | CW75: 0 | CX75: 0 | CY75: -1 | DA75: 73 | DB75: 0 | DC75: 2.174944682e-26 | DD75: 0 | DE75: 0 | DF75: 0 | DG75: 0 | DH75: 0 | DI75: 0 | DJ75: 0 | DK75: 0 | DL75: 0 | DM75: 0 | DN75: -1
D76: 3 | E76: 1.322468246 | F76: 4.666427206 | G76: 12.82467328 | AP76: 8.1 | AQ76: 0.428 | AR76: 0.3 | AS76: 1.11 | AT76: 0 | AU76: 4.232645877e-45 | AV76: 0 | AW76: 0 | AX76: 0 | AY76: 0 | AZ76: 0 | BA76: 0 | BB76: 0 | BC76: 0 | BD76: 0 | BE76: 0 | BF76: 20 | BH76: 74 | BI76: 0 | BJ76: 0 | BK76: 4.390449457e-42 | BL76: 1.382066754e-156 | BM76: 0 | BN76: 0 | BO76: 0 | BP76: 0 | BQ76: 0 | BR76: 0 | BS76: 0 | BT76: 0 | BU76: 22 | BW76: 74 | BX76: 0 | BY76: 4.03523695e-196 | BZ76: 0 | CA76: 0 | CB76: 0 | CC76: 0 | CD76: 0 | CE76: 0 | CF76: 0 | CG76: 0 | CH76: 0 | CI76: 0 | CJ76: 19 | CL76: 74 | CM76: 0 | CN76: 2.768418521e-22 | CO76: 0 | CP76: 0 | CQ76: 0 | CR76: 0 | CS76: 0 | CT76: 0 | CU76: 0 | CV76: 0 | CW76: 0 | CX76: 0 | CY76: -1 | DA76: 74 | DB76: 0 | DC76: 2.768418521e-22 | DD76: 0 | DE76: 0 | DF76: 0 | DG76: 0 | DH76: 0 | DI76: 0 | DJ76: 0 | DK76: 0 | DL76: 0 | DM76: 0 | DN76: -1
D77: 4 | E77: 1.322468246 | F77: 5.025819828 | G77: 13.78522942 | AP77: 8.25 | AQ77: 0.4355 | AR77: 0.3 | AS77: 1.125 | AT77: 0 | AU77: 1.02318082e-37 | AV77: 0 | AW77: 0 | AX77: 0 | AY77: 0 | AZ77: 0 | BA77: 0 | BB77: 0 | BC77: 0 | BD77: 0 | BE77: 0 | BF77: 20 | BH77: 75 | BI77: 0 | BJ77: 0 | BK77: 1.090736243e-48 | BL77: 6.688311106e-151 | BM77: 0 | BN77: 0 | BO77: 0 | BP77: 0 | BQ77: 0 | BR77: 0 | BS77: 0 | BT77: 0 | BU77: 22 | BW77: 75 | BX77: 0 | BY77: 1.768340646e-180 | BZ77: 0 | CA77: 0 | CB77: 0 | CC77: 0 | CD77: 0 | CE77: 0 | CF77: 0 | CG77: 0 | CH77: 0 | CI77: 0 | CJ77: 19 | CL77: 75 | CM77: 0 | CN77: 1.618807671e-18 | CO77: 0 | CP77: 0 | CQ77: 0 | CR77: 0 | CS77: 0 | CT77: 0 | CU77: 0 | CV77: 0 | CW77: 0 | CX77: 0 | CY77: -1 | DA77: 75 | DB77: 0 | DC77: 1.618807671e-18 | DD77: 0 | DE77: 0 | DF77: 0 | DG77: 0 | DH77: 0 | DI77: 0 | DJ77: 0 | DK77: 0 | DL77: 0 | DM77: 0 | DN77: -1
D78: 5 | E78: 1.322468246 | F78: 5.165032111 | G78: 14.74525299 | AP78: 8.4 | AQ78: 0.443 | AR78: 0.3 | AS78: 1.14 | AT78: 0 | AU78: 5.572501784e-31 | AV78: 0 | AW78: 0 | AX78: 0 | AY78: 0 | AZ78: 0 | BA78: 0 | BB78: 0 | BC78: 0 | BD78: 0 | BE78: 0 | BF78: 20 | BH78: 76 | BI78: 0 | BJ78: 0 | BK78: 9.103776929e-56 | BL78: 2.542500342e-145 | BM78: 0 | BN78: 0 | BO78: 0 | BP78: 0 | BQ78: 0 | BR78: 0 | BS78: 0 | BT78: 0 | BU78: 22 | BW78: 76 | BX78: 0 | BY78: 1.745903306e-165 | BZ78: 0 | CA78: 0 | CB78: 0 | CC78: 0 | CD78: 0 | CE78: 0 | CF78: 0 | CG78: 0 | CH78: 0 | CI78: 0 | CJ78: 19 | CL78: 76 | CM78: 0 | CN78: 4.348492638e-15 | CO78: 0 | CP78: 0 | CQ78: 0 | CR78: 0 | CS78: 0 | CT78: 0 | CU78: 0 | CV78: 0 | CW78: 0 | CX78: 0 | CY78: -1 | DA78: 76 | DB78: 0 | DC78: 4.348492638e-15 | DD78: 0 | DE78: 0 | DF78: 0 | DG78: 0 | DH78: 0 | DI78: 0 | DJ78: 0 | DK78: 0 | DL78: 0 | DM78: 0 | DN78: -1
D79: 6 | E79: 1.322468246 | F79: 5.165032111 | G79: 15.7047294 | AP79: 8.55 | AQ79: 0.4505 | AR79: 0.3 | AS79: 1.155 | AT79: 0 | AU79: 6.837627098e-25 | AV79: 0 | AW79: 0 | AX79: 0 | AY79: 0 | AZ79: 0 | BA79: 0 | BB79: 0 | BC79: 0 | BD79: 0 | BE79: 0 | BF79: 20 | BH79: 77 | BI79: 0 | BJ79: 0 | BK79: 2.552786958e-63 | BL79: 7.592113321e-140 | BM79: 0 | BN79: 0 | BO79: 0 | BP79: 0 | BQ79: 0 | BR79: 0 | BS79: 0 | BT79: 0 | BU79: 22 | BW79: 77 | BX79: 0 | BY79: 3.883576062e-151 | BZ79: 0 | CA79: 0 | CB79: 0 | CC79: 0 | CD79: 0 | CE79: 0 | CF79: 0 | CG79: 0 | CH79: 0 | CI79: 0 | CJ79: 19 | CL79: 77 | CM79: 0 | CN79: 5.366142505e-12 | CO79: 0 | CP79: 0 | CQ79: 0 | CR79: 0 | CS79: 0 | CT79: 0 | CU79: 0 | CV79: 0 | CW79: 0 | CX79: 0 | CY79: -1 | DA79: 77 | DB79: 0 | DC79: 5.366142505e-12 | DD79: 0 | DE79: 0 | DF79: 0 | DG79: 0 | DH79: 0 | DI79: 0 | DJ79: 0 | DK79: 0 | DL79: 0 | DM79: 0 | DN79: -1
D80: 10 | E80: 1.322468246 | F80: 5.165032111 | G80: 19.53685002 | AP80: 8.7 | AQ80: 0.458 | AR80: 0.3 | AS80: 1.17 | AT80: 0 | AU80: 1.890244479e-19 | AV80: 0 | AW80: 0 | AX80: 0 | AY80: 0 | AZ80: 0 | BA80: 0 | BB80: 0 | BC80: 0 | BD80: 0 | BE80: 0 | BF80: 20 | BH80: 78 | BI80: 0 | BJ80: 0 | BK80: 2.404908949e-71 | BL80: 1.780825851e-134 | BM80: 0 | BN80: 0 | BO80: 0 | BP80: 0 | BQ80: 0 | BR80: 0 | BS80: 0 | BT80: 0 | BU80: 22 | BW80: 78 | BX80: 0 | BY80: 1.946259806e-137 | BZ80: 0 | CA80: 0 | CB80: 0 | CC80: 0 | CD80: 0 | CE80: 0 | CF80: 0 | CG80: 0 | CH80: 0 | CI80: 0 | CJ80: 19 | CL80: 78 | CM80: 0 | CN80: 3.042045054e-09 | CO80: 0 | CP80: 0 | CQ80: 0 | CR80: 0 | CS80: 0 | CT80: 0 | CU80: 0 | CV80: 0 | CW80: 0 | CX80: 0 | CY80: -1 | DA80: 78 | DB80: 0 | DC80: 3.042045054e-09 | DD80: 0 | DE80: 0 | DF80: 0 | DG80: 0 | DH80: 0 | DI80: 0 | DJ80: 0 | DK80: 0 | DL80: 0 | DM80: 0 | DN80: -1
AP81: 8.85 | AQ81: 0.4655 | AR81: 0.3 | AS81: 1.185 | AT81: 0 | AU81: 1.177302088e-14 | AV81: 0 | AW81: 0 | AX81: 0 | AY81: 0 | AZ81: 0 | BA81: 0 | BB81: 0 | BC81: 0 | BD81: 0 | BE81: 0 | BF81: 20 | BH81: 79 | BI81: 0 | BJ81: 0 | BK81: 7.611562289e-80 | BL81: 3.281234952e-129 | BM81: 0 | BN81: 0 | BO81: 0 | BP81: 0 | BQ81: 0 | BR81: 0 | BS81: 0 | BT81: 0 | BU81: 22 | BW81: 79 | BX81: 0 | BY81: 2.19749139e-124 | BZ81: 0 | CA81: 0 | CB81: 0 | CC81: 0 | CD81: 0 | CE81: 0 | CF81: 0 | CG81: 0 | CH81: 0 | CI81: 0 | CJ81: 19 | CL81: 79 | CM81: 0 | CN81: 7.922259417e-07 | CO81: 0 | CP81: 0 | CQ81: 0 | CR81: 0 | CS81: 0 | CT81: 0 | CU81: 0 | CV81: 0 | CW81: 0 | CX81: 0 | CY81: -1 | DA81: 79 | DB81: 0 | DC81: 7.922259417e-07 | DD81: 0 | DE81: 0 | DF81: 0 | DG81: 0 | DH81: 0 | DI81: 0 | DJ81: 0 | DK81: 0 | DL81: 0 | DM81: 0 | DN81: -1
A82: What-If Analysis: | F82: Cells: | AP82: 9 | AQ82: 0.473 | AR82: 0.3 | AS82: 1.2 | AT82: 0 | AU82: 1.652019696e-10 | AV82: 0 | AW82: 0 | AX82: 0 | AY82: 0 | AZ82: 0 | BA82: 0 | BB82: 0 | BC82: 0 | BD82: 0 | BE82: 0 | BF82: 20 | BH82: 80 | BI82: 0 | BJ82: 0 | BK82: 8.093569015e-89 | BL82: 4.749089065e-124 | BM82: 0 | BN82: 0 | BO82: 0 | BP82: 0 | BQ82: 0 | BR82: 0 | BS82: 0 | BT82: 0 | BU82: 22 | BW82: 80 | BX82: 0 | BY82: 5.58998858e-112 | BZ82: 0 | CA82: 0 | CB82: 0 | CC82: 0 | CD82: 0 | CE82: 0 | CF82: 0 | CG82: 0 | CH82: 0 | CI82: 0 | CJ82: 19 | CL82: 80 | CM82: 0 | CN82: 9.477907248e-05 | CO82: 0 | CP82: 0 | CQ82: 0 | CR82: 0 | CS82: 0 | CT82: 0 | CU82: 0 | CV82: 0 | CW82: 0 | CX82: 0 | CY82: -1 | DA82: 80 | DB82: 0 | DC82: 9.477907248e-05 | DD82: 0 | DE82: 0 | DF82: 0 | DG82: 0 | DH82: 0 | DI82: 0 | DJ82: 0 | DK82: 0 | DL82: 0 | DM82: 0 | DN82: -1
A83: 0) If the table exists, just correct the input as wanted | AP83: 9.15 | AQ83: 0.4805 | AR83: 0.3 | AS83: 1.215 | AT83: 0 | AU83: 5.222757933e-07 | AV83: 0 | AW83: 0 | AX83: 0 | AY83: 0 | AZ83: 0 | BA83: 0 | BB83: 0 | BC83: 0 | BD83: 0 | BE83: 0 | BF83: 20.00000052 | BH83: 81 | BI83: 0 | BJ83: 0 | BK83: 2.891328548e-98 | BL83: 5.399336664e-119 | BM83: 0 | BN83: 0 | BO83: 0 | BP83: 0 | BQ83: 0 | BR83: 0 | BS83: 0 | BT83: 0 | BU83: 22 | BW83: 81 | BX83: 0 | BY83: 3.203701388e-100 | BZ83: 0 | CA83: 0 | CB83: 0 | CC83: 0 | CD83: 0 | CE83: 0 | CF83: 0 | CG83: 0 | CH83: 0 | CI83: 0 | CJ83: 19 | CL83: 81 | CM83: 0 | CN83: 0.005209017622 | CO83: 0 | CP83: 0 | CQ83: 0 | CR83: 0 | CS83: 0 | CT83: 0 | CU83: 0 | CV83: 0 | CW83: 0 | CX83: 0 | CY83: -1 | DA83: 81 | DB83: 0 | DC83: 0.005209017622 | DD83: 0 | DE83: 0 | DF83: 0 | DG83: 0 | DH83: 0 | DI83: 0 | DJ83: 0 | DK83: 0 | DL83: 0 | DM83: 0 | DN83: -1
A84: 1) Type the input values in the left column | F84: D73:D80 | AP84: 9.3 | AQ84: 0.488 | AR84: 0.3 | AS84: 1.23 | AT84: 0 | AU84: 0.0003719991471 | AV84: 0 | AW84: 0 | AX84: 0 | AY84: 0 | AZ84: 0 | BA84: 0 | BB84: 0 | BC84: 0 | BD84: 0 | BE84: 0 | BF84: 20.000372 | BH84: 82 | BI84: 0 | BJ84: 0 | BK84: 3.470131362e-108 | BL84: 4.822004473e-114 | BM84: 0 | BN84: 0 | BO84: 0 | BP84: 0 | BQ84: 0 | BR84: 0 | BS84: 0 | BT84: 0 | BU84: 22 | BW84: 82 | BX84: 0 | BY84: 4.13666649e-89 | BZ84: 0 | CA84: 0 | CB84: 0 | CC84: 0 | CD84: 0 | CE84: 0 | CF84: 0 | CG84: 0 | CH84: 0 | CI84: 0 | CJ84: 19 | CL84: 82 | CM84: 0 | CN84: 0.1315161771 | CO84: 0 | CP84: 0 | CQ84: 0 | CR84: 0 | CS84: 0 | CT84: 0 | CU84: 0 | CV84: 0 | CW84: 0 | CX84: 0 | CY84: -1 | DA84: 82 | DB84: 0 | DC84: 0.1315161771 | DD84: 0 | DE84: 0 | DF84: 0 | DG84: 0 | DH84: 0 | DI84: 0 | DJ84: 0 | DK84: 0 | DL84: 0 | DM84: 0 | DN84: -1
A85: 2) Type 3 formula in the top row | F85: E72:G72 | AP85: 9.45 | AQ85: 0.4955 | AR85: 0.3 | AS85: 1.245 | AT85: 0 | AU85: 0.05969546796 | AV85: 0 | AW85: 0 | AX85: 0 | AY85: 0 | AZ85: 0 | BA85: 0 | BB85: 0 | BC85: 0 | BD85: 0 | BE85: 0 | BF85: 20.05969547 | BH85: 83 | BI85: 0 | BJ85: 0 | BK85: 1.399218336e-118 | BL85: 3.382765697e-109 | BM85: 0 | BN85: 0 | BO85: 0 | BP85: 0 | BQ85: 0 | BR85: 0 | BS85: 0 | BT85: 0 | BU85: 22 | BW85: 83 | BX85: 0 | BY85: 1.203389887e-78 | BZ85: 0 | CA85: 0 | CB85: 0 | CC85: 0 | CD85: 0 | CE85: 0 | CF85: 0 | CG85: 0 | CH85: 0 | CI85: 0 | CJ85: 19 | CL85: 83 | CM85: 0 | CN85: 1.52539565 | CO85: 0 | CP85: 0 | CQ85: 0 | CR85: 0 | CS85: 0 | CT85: 0 | CU85: 0 | CV85: 0 | CW85: 0 | CX85: 0 | CY85: -1 | DA85: 83 | DB85: 0 | DC85: 1.52539565 | DD85: 0 | DE85: 0 | DF85: 0 | DG85: 0 | DH85: 0 | DI85: 0 | DJ85: 0 | DK85: 0 | DL85: 0 | DM85: 0 | DN85: -1
A86: 3) Write the cell names for your own information | F86: D70:G70 | AP86: 9.6 | AQ86: =IF($J$39>0,IF($AP86<$H$39,$F$39,IF($AP86<$H$39+$I$39,$F$39+((G$39-F$39)*($AP86-H$39)/I$39),$G$39)),$F$39) -> 0.503 | AR86: =IF($J$41>0,IF($AP86<$H$41,$F$41,IF($AP86<$H$41+$I$41,$F$41+((G$41-F$41)*($AP86-H$41)/I$41),$G$41)),$F$41) -> 0.3 | AS86: 1.26 | AT86: 0 | AU86: 2.158232102 | AV86: 0 | AW86: 0 | AX86: 0 | AY86: 0 | AZ86: 0 | BA86: 0 | BB86: 0 | BC86: 0 | BD86: 0 | BE86: 0 | BF86: 22.1582321 | BH86: 84 | BI86: 0 | BJ86: 0 | BK86: 1.895466711e-129 | BL86: 1.86411772e-104 | BM86: 0 | BN86: 0 | BO86: 0 | BP86: 0 | BQ86: 0 | BR86: 0 | BS86: 0 | BT86: 0 | BU86: 22 | BW86: 84 | BX86: 0 | BY86: 7.887140485e-69 | BZ86: 0 | CA86: 0 | CB86: 0 | CC86: 0 | CD86: 0 | CE86: 0 | CF86: 0 | CG86: 0 | CH86: 0 | CI86: 0 | CJ86: 19 | CL86: 84 | CM86: 0 | CN86: 8.127665248 | CO86: 0 | CP86: 0 | CQ86: 0 | CR86: 0 | CS86: 0 | CT86: 0 | CU86: 0 | CV86: 0 | CW86: 0 | CX86: 0 | CY86: -1 | DA86: 84 | DB86: 0 | DC86: 8.127665248 | DD86: 0 | DE86: 0 | DF86: 0 | DG86: 0 | DH86: 0 | DI86: 0 | DJ86: 0 | DK86: 0 | DL86: 0 | DM86: 0 | DN86: -1
A87: 4) Select the whole rectangle | F87: D72:G80 | AP87: =AP86+$B$41/100 -> 9.75 | AQ87: 0.5105 | AR87: 0.3 | AS87: 1.275 | AT87: 0 | AU87: 17.57973423 | AV87: 0 | AW87: 0 | AX87: 0 | AY87: 0 | AZ87: 0 | BA87: 0 | BB87: 0 | BC87: 0 | BD87: 0 | BE87: 0 | BF87: 37.57973423 | BH87: 85 | BI87: 0 | BJ87: 0 | BK87: 8.626565744e-141 | BL87: 8.069225636e-100 | BM87: 0 | BN87: 0 | BO87: 0 | BP87: 0 | BQ87: 0 | BR87: 0 | BS87: 0 | BT87: 0 | BU87: 22 | BW87: 85 | BX87: 0 | BY87: 1.164635881e-59 | BZ87: 0 | CA87: 0 | CB87: 0 | CC87: 0 | CD87: 0 | CE87: 0 | CF87: 0 | CG87: 0 | CH87: 0 | CI87: 0 | CJ87: 19 | CL87: 85 | CM87: 0 | CN87: 19.89431958 | CO87: 0 | CP87: 0 | CQ87: 0 | CR87: 0 | CS87: 0 | CT87: 0 | CU87: 0 | CV87: 0 | CW87: 0 | CX87: 0 | CY87: -1 | DA87: 85 | DB87: 0 | DC87: 19.89431958 | DD87: 0 | DE87: 0 | DF87: 0 | DG87: 0 | DH87: 0 | DI87: 0 | DJ87: 0 | DK87: 0 | DL87: 0 | DM87: 0 | DN87: -1
A88: 5) Klik on Data->What-If-Analysis->Data Table | AP88: 9.9 | AQ88: 0.518 | AR88: 0.3 | AS88: 1.29 | AT88: 0 | AU88: 32.26144626 | AV88: 0 | AW88: 0 | AX88: 0 | AY88: 0 | AZ88: 0 | BA88: 0 | BB88: 0 | BC88: 0 | BD88: 0 | BE88: 0 | BF88: 52.26144626 | BH88: 86 | BI88: 0 | BJ88: 0 | BK88: 1.319018275e-152 | BL88: 2.743768667e-95 | BM88: 0 | BN88: 0 | BO88: 0 | BP88: 0 | BQ88: 0 | BR88: 0 | BS88: 0 | BT88: 0 | BU88: 22 | BW88: 86 | BX88: 0 | BY88: 3.874521949e-51 | BZ88: 0 | CA88: 0 | CB88: 0 | CC88: 0 | CD88: 0 | CE88: 0 | CF88: 0 | CG88: 0 | CH88: 0 | CI88: 0 | CJ88: 19 | CL88: 86 | CM88: 0 | CN88: 22.37032788 | CO88: 0 | CP88: 0 | CQ88: 0 | CR88: 0 | CS88: 0 | CT88: 0 | CU88: 0 | CV88: 0 | CW88: 0 | CX88: 0 | CY88: -1 | DA88: 86 | DB88: 0 | DC88: 22.37032788 | DD88: 0 | DE88: 0 | DF88: 0 | DG88: 0 | DH88: 0 | DI88: 0 | DJ88: 0 | DK88: 0 | DL88: 0 | DM88: 0 | DN88: -1
A89: 6) Set the Column Cell to the target cell for the input values | AP89: 10.05 | AQ89: 0.5255 | AR89: 0.3 | AS89: 1.305 | AT89: 0 | AU89: 13.3386762 | AV89: 0 | AW89: 0 | AX89: 0 | AY89: 0 | AZ89: 0 | BA89: 0 | BB89: 0 | BC89: 0 | BD89: 0 | BE89: 0 | BF89: 33.3386762 | BH89: 87 | BI89: 0 | BJ89: 0 | BK89: 6.775709693e-165 | BL89: 7.328586745e-91 | BM89: 0 | BN89: 0 | BO89: 0 | BP89: 0 | BQ89: 0 | BR89: 0 | BS89: 0 | BT89: 0 | BU89: 22 | BW89: 87 | BX89: 0 | BY89: 2.904045758e-43 | BZ89: 0 | CA89: 0 | CB89: 0 | CC89: 0 | CD89: 0 | CE89: 0 | CF89: 0 | CG89: 0 | CH89: 0 | CI89: 0 | CJ89: 19 | CL89: 87 | CM89: 0 | CN89: 11.55568212 | CO89: 0 | CP89: 0 | CQ89: 0 | CR89: 0 | CS89: 0 | CT89: 0 | CU89: 0 | CV89: 0 | CW89: 0 | CX89: 0 | CY89: -1 | DA89: 87 | DB89: 0 | DC89: 11.55568212 | DD89: 0 | DE89: 0 | DF89: 0 | DG89: 0 | DH89: 0 | DI89: 0 | DJ89: 0 | DK89: 0 | DL89: 0 | DM89: 0 | DN89: -1
A90: 7) If the numbers in D73:D80 changes, the results changes accordingly | AP90: 10.2 | AQ90: 0.533 | AR90: 0.3 | AS90: 1.32 | AT90: 0 | AU90: 1.24250744 | AV90: 0 | AW90: 0 | AX90: 0 | AY90: 0 | AZ90: 0 | BA90: 0 | BB90: 0 | BC90: 0 | BD90: 0 | BE90: 0 | BF90: 21.24250744 | BH90: 88 | BI90: 0 | BJ90: 0 | BK90: 1.169364403e-177 | BL90: 1.537623759e-86 | BM90: 0 | BN90: 0 | BO90: 0 | BP90: 0 | BQ90: 0 | BR90: 0 | BS90: 0 | BT90: 0 | BU90: 22 | BW90: 88 | BX90: 0 | BY90: 4.903951372e-36 | BZ90: 0 | CA90: 0 | CB90: 0 | CC90: 0 | CD90: 0 | CE90: 0 | CF90: 0 | CG90: 0 | CH90: 0 | CI90: 0 | CJ90: 19 | CL90: 88 | CM90: 0 | CN90: 2.742197942 | CO90: 0 | CP90: 0 | CQ90: 0 | CR90: 0 | CS90: 0 | CT90: 0 | CU90: 0 | CV90: 0 | CW90: 0 | CX90: 0 | CY90: -1 | DA90: 88 | DB90: 0 | DC90: 2.742197942 | DD90: 0 | DE90: 0 | DF90: 0 | DG90: 0 | DH90: 0 | DI90: 0 | DJ90: 0 | DK90: 0 | DL90: 0 | DM90: 0 | DN90: -1
AP91: 10.35 | AQ91: 0.5405 | AR91: 0.3 | AS91: 1.335 | AT91: 0 | AU91: 0.02607609987 | AV91: 0 | AW91: 0 | AX91: 0 | AY91: 0 | AZ91: 0 | BA91: 0 | BB91: 0 | BC91: 0 | BD91: 0 | BE91: 0 | BF91: 20.0260761 | BH91: 89 | BI91: 0 | BJ91: 0 | BK91: 6.780099216e-191 | BL91: 2.534177539e-82 | BM91: 0 | BN91: 0 | BO91: 0 | BP91: 0 | BQ91: 0 | BR91: 0 | BS91: 0 | BT91: 0 | BU91: 22 | BW91: 89 | BX91: 0 | BY91: 1.86571896e-29 | BZ91: 0 | CA91: 0 | CB91: 0 | CC91: 0 | CD91: 0 | CE91: 0 | CF91: 0 | CG91: 0 | CH91: 0 | CI91: 0 | CJ91: 19 | CL91: 89 | CM91: 0 | CN91: 0.2989385972 | CO91: 0 | CP91: 0 | CQ91: 0 | CR91: 0 | CS91: 0 | CT91: 0 | CU91: 0 | CV91: 0 | CW91: 0 | CX91: 0 | CY91: -1 | DA91: 89 | DB91: 0 | DC91: 0.2989385972 | DD91: 0 | DE91: 0 | DF91: 0 | DG91: 0 | DH91: 0 | DI91: 0 | DJ91: 0 | DK91: 0 | DL91: 0 | DM91: 0 | DN91: -1
AP92: 10.5 | AQ92: 0.548 | AR92: 0.3 | AS92: 1.35 | AT92: 0 | AU92: 0.000123294483 | AV92: 0 | AW92: 0 | AX92: 0 | AY92: 0 | AZ92: 0 | BA92: 0 | BB92: 0 | BC92: 0 | BD92: 0 | BE92: 0 | BF92: 20.00012329 | BH92: 90 | BI92: 0 | BJ92: 0 | BK92: 1.320727834e-204 | BL92: 3.280810162e-78 | BM92: 0 | BN92: 0 | BO92: 0 | BP92: 0 | BQ92: 0 | BR92: 0 | BS92: 0 | BT92: 0 | BU92: 22 | BW92: 90 | BX92: 0 | BY92: 1.599203256e-23 | BZ92: 0 | CA92: 0 | CB92: 0 | CC92: 0 | CD92: 0 | CE92: 0 | CF92: 0 | CG92: 0 | CH92: 0 | CI92: 0 | CJ92: 19 | CL92: 90 | CM92: 0 | CN92: 0.01497080527 | CO92: 0 | CP92: 0 | CQ92: 0 | CR92: 0 | CS92: 0 | CT92: 0 | CU92: 0 | CV92: 0 | CW92: 0 | CX92: 0 | CY92: -1 | DA92: 90 | DB92: 0 | DC92: 0.01497080527 | DD92: 0 | DE92: 0 | DF92: 0 | DG92: 0 | DH92: 0 | DI92: 0 | DJ92: 0 | DK92: 0 | DL92: 0 | DM92: 0 | DN92: -1
AP93: 10.65 | AQ93: 0.5555 | AR93: 0.3 | AS93: 1.365 | AT93: 0 | AU93: 1.313415151e-07 | AV93: 0 | AW93: 0 | AX93: 0 | AY93: 0 | AZ93: 0 | BA93: 0 | BB93: 0 | BC93: 0 | BD93: 0 | BE93: 0 | BF93: 20.00000013 | BH93: 91 | BI93: 0 | BJ93: 0 | BK93: 8.64334231e-219 | BL93: 3.336431965e-74 | BM93: 0 | BN93: 0 | BO93: 0 | BP93: 0 | BQ93: 0 | BR93: 0 | BS93: 0 | BT93: 0 | BU93: 22 | BW93: 91 | BX93: 0 | BY93: 3.088292847e-18 | BZ93: 0 | CA93: 0 | CB93: 0 | CC93: 0 | CD93: 0 | CE93: 0 | CF93: 0 | CG93: 0 | CH93: 0 | CI93: 0 | CJ93: 19 | CL93: 91 | CM93: 0 | CN93: 0.0003444199567 | CO93: 0 | CP93: 0 | CQ93: 0 | CR93: 0 | CS93: 0 | CT93: 0 | CU93: 0 | CV93: 0 | CW93: 0 | CX93: 0 | CY93: -1 | DA93: 91 | DB93: 0 | DC93: 0.0003444199567 | DD93: 0 | DE93: 0 | DF93: 0 | DG93: 0 | DH93: 0 | DI93: 0 | DJ93: 0 | DK93: 0 | DL93: 0 | DM93: 0 | DN93: -1
AP94: 10.8 | AQ94: 0.563 | AR94: 0.3 | AS94: 1.38 | AT94: 0 | AU94: 3.152229073e-11 | AV94: 0 | AW94: 0 | AX94: 0 | AY94: 0 | AZ94: 0 | BA94: 0 | BB94: 0 | BC94: 0 | BD94: 0 | BE94: 0 | BF94: 20 | BH94: 92 | BI94: 0 | BJ94: 0 | BK94: 1.900383264e-233 | BL94: 2.665265964e-70 | BM94: 0 | BN94: 0 | BO94: 0 | BP94: 0 | BQ94: 0 | BR94: 0 | BS94: 0 | BT94: 0 | BU94: 22 | BW94: 92 | BX94: 0 | BY94: 1.343663921e-13 | BZ94: 0 | CA94: 0 | CB94: 0 | CC94: 0 | CD94: 0 | CE94: 0 | CF94: 0 | CG94: 0 | CH94: 0 | CI94: 0 | CJ94: 19 | CL94: 92 | CM94: 0 | CN94: 3.640084218e-06 | CO94: 0 | CP94: 0 | CQ94: 0 | CR94: 0 | CS94: 0 | CT94: 0 | CU94: 0 | CV94: 0 | CW94: 0 | CX94: 0 | CY94: -1 | DA94: 92 | DB94: 0 | DC94: 3.640084218e-06 | DD94: 0 | DE94: 0 | DF94: 0 | DG94: 0 | DH94: 0 | DI94: 0 | DJ94: 0 | DK94: 0 | DL94: 0 | DM94: 0 | DN94: -1
AP95: 10.95 | AQ95: 0.5705 | AR95: 0.3 | AS95: 1.395 | AT95: 0 | AU95: 1.704475993e-15 | AV95: 0 | AW95: 0 | AX95: 0 | AY95: 0 | AZ95: 0 | BA95: 0 | BB95: 0 | BC95: 0 | BD95: 0 | BE95: 0 | BF95: 20 | BH95: 93 | BI95: 0 | BJ95: 0 | BK95: 1.403756506e-248 | BL95: 1.672460775e-66 | BM95: 0 | BN95: 0 | BO95: 0 | BP95: 0 | BQ95: 0 | BR95: 0 | BS95: 0 | BT95: 0 | BU95: 22 | BW95: 93 | BX95: 0 | BY95: 1.317104419e-09 | BZ95: 0 | CA95: 0 | CB95: 0 | CC95: 0 | CD95: 0 | CE95: 0 | CF95: 0 | CG95: 0 | CH95: 0 | CI95: 0 | CJ95: 19 | CL95: 93 | CM95: 0 | CN95: 1.767317317e-08 | CO95: 0 | CP95: 0 | CQ95: 0 | CR95: 0 | CS95: 0 | CT95: 0 | CU95: 0 | CV95: 0 | CW95: 0 | CX95: 0 | CY95: -1 | DA95: 93 | DB95: 0 | DC95: 1.767317317e-08 | DD95: 0 | DE95: 0 | DF95: 0 | DG95: 0 | DH95: 0 | DI95: 0 | DJ95: 0 | DK95: 0 | DL95: 0 | DM95: 0 | DN95: -1
AP96: 11.1 | AQ96: 0.578 | AR96: 0.3 | AS96: 1.41 | AT96: 0 | AU96: 2.076449519e-20 | AV96: 0 | AW96: 0 | AX96: 0 | AY96: 0 | AZ96: 0 | BA96: 0 | BB96: 0 | BC96: 0 | BD96: 0 | BE96: 0 | BF96: 20 | BH96: 94 | BI96: 0 | BJ96: 0 | BK96: 3.483641605e-264 | BL96: 8.243818783e-63 | BM96: 0 | BN96: 0 | BO96: 0 | BP96: 0 | BQ96: 0 | BR96: 0 | BS96: 0 | BT96: 0 | BU96: 22 | BW96: 94 | BX96: 0 | BY96: 2.908754898e-06 | BZ96: 0 | CA96: 0 | CB96: 0 | CC96: 0 | CD96: 0 | CE96: 0 | CF96: 0 | CG96: 0 | CH96: 0 | CI96: 0 | CJ96: 18.99999709 | CL96: 94 | CM96: 0 | CN96: 3.94182747e-11 | CO96: 0 | CP96: 0 | CQ96: 0 | CR96: 0 | CS96: 0 | CT96: 0 | CU96: 0 | CV96: 0 | CW96: 0 | CX96: 0 | CY96: -1 | DA96: 94 | DB96: 0 | DC96: 3.94182747e-11 | DD96: 0 | DE96: 0 | DF96: 0 | DG96: 0 | DH96: 0 | DI96: 0 | DJ96: 0 | DK96: 0 | DL96: 0 | DM96: 0 | DN96: -1
AP97: 11.25 | AQ97: 0.5855 | AR97: 0.3 | AS97: 1.425 | AT97: 0 | AU97: 5.699138827e-26 | AV97: 0 | AW97: 0 | AX97: 0 | AY97: 0 | AZ97: 0 | BA97: 0 | BB97: 0 | BC97: 0 | BD97: 0 | BE97: 0 | BF97: 20 | BH97: 95 | BI97: 0 | BJ97: 0 | BK97: 2.904465729e-280 | BL97: 3.191964407e-59 | BM97: 0 | BN97: 0 | BO97: 0 | BP97: 0 | BQ97: 0 | BR97: 0 | BS97: 0 | BT97: 0 | BU97: 22 | BW97: 95 | BX97: 0 | BY97: 0.001447276194 | BZ97: 0 | CA97: 0 | CB97: 0 | CC97: 0 | CD97: 0 | CE97: 0 | CF97: 0 | CG97: 0 | CH97: 0 | CI97: 0 | CJ97: 18.99855272 | CL97: 95 | CM97: 0 | CN97: 4.038877376e-14 | CO97: 0 | CP97: 0 | CQ97: 0 | CR97: 0 | CS97: 0 | CT97: 0 | CU97: 0 | CV97: 0 | CW97: 0 | CX97: 0 | CY97: -1 | DA97: 95 | DB97: 0 | DC97: 4.038877376e-14 | DD97: 0 | DE97: 0 | DF97: 0 | DG97: 0 | DH97: 0 | DI97: 0 | DJ97: 0 | DK97: 0 | DL97: 0 | DM97: 0 | DN97: -1
AP98: 11.4 | AQ98: 0.593 | AR98: 0.3 | AS98: 1.44 | AT98: 0 | AU98: 3.524150649e-32 | AV98: 0 | AW98: 0 | AX98: 0 | AY98: 0 | AZ98: 0 | BA98: 0 | BB98: 0 | BC98: 0 | BD98: 0 | BE98: 0 | BF98: 20 | BH98: 96 | BI98: 0 | BJ98: 0 | BK98: 8.135610448e-297 | BL98: 9.708334941e-56 | BM98: 0 | BN98: 0 | BO98: 0 | BP98: 0 | BQ98: 0 | BR98: 0 | BS98: 0 | BT98: 0 | BU98: 22 | BW98: 96 | BX98: 0 | BY98: 0.1622381852 | BZ98: 0 | CA98: 0 | CB98: 0 | CC98: 0 | CD98: 0 | CE98: 0 | CF98: 0 | CG98: 0 | CH98: 0 | CI98: 0 | CJ98: 18.83776181 | CL98: 96 | CM98: 0 | CN98: 1.901094482e-17 | CO98: 0 | CP98: 0 | CQ98: 0 | CR98: 0 | CS98: 0 | CT98: 0 | CU98: 0 | CV98: 0 | CW98: 0 | CX98: 0 | CY98: -1 | DA98: 96 | DB98: 0 | DC98: 1.901094482e-17 | DD98: 0 | DE98: 0 | DF98: 0 | DG98: 0 | DH98: 0 | DI98: 0 | DJ98: 0 | DK98: 0 | DL98: 0 | DM98: 0 | DN98: -1
AP99: 11.55 | AQ99: 0.6005 | AR99: 0.3 | AS99: 1.455 | AT99: 0 | AU99: 4.909723835e-39 | AV99: 0 | AW99: 0 | AX99: 0 | AY99: 0 | AZ99: 0 | BA99: 0 | BB99: 0 | BC99: 0 | BD99: 0 | BE99: 0 | BF99: 20 | BH99: 97 | BI99: 0 | BJ99: 0 | BK99: 0 | BL99: 2.319468989e-52 | BM99: 0 | BN99: 0 | BO99: 0 | BP99: 0 | BQ99: 0 | BR99: 0 | BS99: 0 | BT99: 0 | BU99: 22 | BW99: 97 | BX99: 0 | BY99: 4.09743536 | BZ99: 0 | CA99: 0 | CB99: 0 | CC99: 0 | CD99: 0 | CE99: 0 | CF99: 0 | CG99: 0 | CH99: 0 | CI99: 0 | CJ99: 14.90256464 | CL99: 97 | CM99: 0 | CN99: 4.11080345e-21 | CO99: 0 | CP99: 0 | CQ99: 0 | CR99: 0 | CS99: 0 | CT99: 0 | CU99: 0 | CV99: 0 | CW99: 0 | CX99: 0 | CY99: -1 | DA99: 97 | DB99: 0 | DC99: 4.11080345e-21 | DD99: 0 | DE99: 0 | DF99: 0 | DG99: 0 | DH99: 0 | DI99: 0 | DJ99: 0 | DK99: 0 | DL99: 0 | DM99: 0 | DN99: -1
AP100: 11.7 | AQ100: 0.608 | AR100: 0.3 | AS100: 1.47 | AT100: 0 | AU100: 1.541051078e-46 | AV100: 0 | AW100: 0 | AX100: 0 | AY100: 0 | AZ100: 0 | BA100: 0 | BB100: 0 | BC100: 0 | BD100: 0 | BE100: 0 | BF100: 20 | BH100: 98 | BI100: 0 | BJ100: 0 | BK100: 0 | BL100: 4.353008322e-49 | BM100: 0 | BN100: 0 | BO100: 0 | BP100: 0 | BQ100: 0 | BR100: 0 | BS100: 0 | BT100: 0 | BU100: 22 | BW100: 98 | BX100: 0 | BY100: 23.31462919 | BZ100: 0 | CA100: 0 | CB100: 0 | CC100: 0 | CD100: 0 | CE100: 0 | CF100: 0 | CG100: 0 | CH100: 0 | CI100: 0 | CJ100: -4.314629187 | CL100: 98 | CM100: 0 | CN100: 4.083473116e-25 | CO100: 0 | CP100: 0 | CQ100: 0 | CR100: 0 | CS100: 0 | CT100: 0 | CU100: 0 | CV100: 0 | CW100: 0 | CX100: 0 | CY100: -1 | DA100: 98 | DB100: 0 | DC100: 4.083473116e-25 | DD100: 0 | DE100: 0 | DF100: 0 | DG100: 0 | DH100: 0 | DI100: 0 | DJ100: 0 | DK100: 0 | DL100: 0 | DM100: 0 | DN100: -1
AP101: 11.85 | AQ101: 0.6155 | AR101: 0.3 | AS101: 1.485 | AT101: 0 | AU101: 1.089768808e-54 | AV101: 0 | AW101: 0 | AX101: 0 | AY101: 0 | AZ101: 0 | BA101: 0 | BB101: 0 | BC101: 0 | BD101: 0 | BE101: 0 | BF101: 20 | BH101: 99 | BI101: 0 | BJ101: 0 | BK101: 0 | BL101: 6.417228925e-46 | BM101: 0 | BN101: 0 | BO101: 0 | BP101: 0 | BQ101: 0 | BR101: 0 | BS101: 0 | BT101: 0 | BU101: 22 | BW101: 99 | BX101: 0 | BY101: 29.88837367 | BZ101: 0 | CA101: 0 | CB101: 0 | CC101: 0 | CD101: 0 | CE101: 0 | CF101: 0 | CG101: 0 | CH101: 0 | CI101: 0 | CJ101: -10.88837367 | CL101: 99 | CM101: 0 | CN101: 1.863428213e-29 | CO101: 0 | CP101: 0 | CQ101: 0 | CR101: 0 | CS101: 0 | CT101: 0 | CU101: 0 | CV101: 0 | CW101: 0 | CX101: 0 | CY101: -1 | DA101: 99 | DB101: 0 | DC101: 1.863428213e-29 | DD101: 0 | DE101: 0 | DF101: 0 | DG101: 0 | DH101: 0 | DI101: 0 | DJ101: 0 | DK101: 0 | DL101: 0 | DM101: 0 | DN101: -1
AP102: 12 | AQ102: 0.623 | AR102: 0.3 | AS102: 1.5 | AT102: 0 | AU102: 1.736237303e-63 | AV102: 0 | AW102: 0 | AX102: 0 | AY102: 0 | AZ102: 0 | BA102: 0 | BB102: 0 | BC102: 0 | BD102: 0 | BE102: 0 | BF102: 20 | BH102: 100 | BI102: 0 | BJ102: 0 | BK102: 0 | BL102: 7.431263743e-43 | BM102: 0 | BN102: 0 | BO102: 0 | BP102: 0 | BQ102: 0 | BR102: 0 | BS102: 0 | BT102: 0 | BU102: 22 | BW102: 100 | BX102: 0 | BY102: 8.632437167 | BZ102: 0 | CA102: 0 | CB102: 0 | CC102: 0 | CD102: 0 | CE102: 0 | CF102: 0 | CG102: 0 | CH102: 0 | CI102: 0 | CJ102: 10.36756283 | CL102: 100 | CM102: 0 | CN102: 3.906390091e-34 | CO102: 0 | CP102: 0 | CQ102: 0 | CR102: 0 | CS102: 0 | CT102: 0 | CU102: 0 | CV102: 0 | CW102: 0 | CX102: 0 | CY102: -1 | DA102: 100 | DB102: 0 | DC102: 3.906390091e-34 | DD102: 0 | DE102: 0 | DF102: 0 | DG102: 0 | DH102: 0 | DI102: 0 | DJ102: 0 | DK102: 0 | DL102: 0 | DM102: 0 | DN102: -1
AP103: 12.15 | AQ103: 0.6305 | AR103: 0.3 | AS103: 1.515 | AT103: 0 | AU103: 6.232196851e-73 | AV103: 0 | AW103: 0 | AX103: 0 | AY103: 0 | AZ103: 0 | BA103: 0 | BB103: 0 | BC103: 0 | BD103: 0 | BE103: 0 | BF103: 20 | BH103: 101 | BI103: 0 | BJ103: 0 | BK103: 0 | BL103: 6.759816794e-40 | BM103: 0 | BN103: 0 | BO103: 0 | BP103: 0 | BQ103: 0 | BR103: 0 | BS103: 0 | BT103: 0 | BU103: 22 | BW103: 101 | BX103: 0 | BY103: 0.5617226524 | BZ103: 0 | CA103: 0 | CB103: 0 | CC103: 0 | CD103: 0 | CE103: 0 | CF103: 0 | CG103: 0 | CH103: 0 | CI103: 0 | CJ103: 18.43827735 | CL103: 101 | CM103: 0 | CN103: 3.76199774e-39 | CO103: 0 | CP103: 0 | CQ103: 0 | CR103: 0 | CS103: 0 | CT103: 0 | CU103: 0 | CV103: 0 | CW103: 0 | CX103: 0 | CY103: -1 | DA103: 101 | DB103: 0 | DC103: 3.76199774e-39 | DD103: 0 | DE103: 0 | DF103: 0 | DG103: 0 | DH103: 0 | DI103: 0 | DJ103: 0 | DK103: 0 | DL103: 0 | DM103: 0 | DN103: -1
AP104: 12.3 | AQ104: 0.638 | AR104: 0.3 | AS104: 1.53 | AT104: 0 | AU104: 5.040000883e-83 | AV104: 0 | AW104: 0 | AX104: 0 | AY104: 0 | AZ104: 0 | BA104: 0 | BB104: 0 | BC104: 0 | BD104: 0 | BE104: 0 | BF104: 20 | BH104: 102 | BI104: 0 | BJ104: 0 | BK104: 0 | BL104: 4.830190776e-37 | BM104: 0 | BN104: 0 | BO104: 0 | BP104: 0 | BQ104: 0 | BR104: 0 | BS104: 0 | BT104: 0 | BU104: 22 | BW104: 102 | BX104: 0 | BY104: 0.008235079953 | BZ104: 0 | CA104: 0 | CB104: 0 | CC104: 0 | CD104: 0 | CE104: 0 | CF104: 0 | CG104: 0 | CH104: 0 | CI104: 0 | CJ104: 18.99176492 | CL104: 102 | CM104: 0 | CN104: 1.664337614e-44 | CO104: 0 | CP104: 0 | CQ104: 0 | CR104: 0 | CS104: 0 | CT104: 0 | CU104: 0 | CV104: 0 | CW104: 0 | CX104: 0 | CY104: -1 | DA104: 102 | DB104: 0 | DC104: 1.664337614e-44 | DD104: 0 | DE104: 0 | DF104: 0 | DG104: 0 | DH104: 0 | DI104: 0 | DJ104: 0 | DK104: 0 | DL104: 0 | DM104: 0 | DN104: -1
AP105: 12.45 | AQ105: 0.6455 | AR105: 0.3 | AS105: 1.545 | AT105: 0 | AU105: 9.182848782e-94 | AV105: 0 | AW105: 0 | AX105: 0 | AY105: 0 | AZ105: 0 | BA105: 0 | BB105: 0 | BC105: 0 | BD105: 0 | BE105: 0 | BF105: 20 | BH105: 103 | BI105: 0 | BJ105: 0 | BK105: 0 | BL105: 2.711132546e-34 | BM105: 0 | BN105: 0 | BO105: 0 | BP105: 0 | BQ105: 0 | BR105: 0 | BS105: 0 | BT105: 0 | BU105: 22 | BW105: 103 | BX105: 0 | BY105: 2.72001358e-05 | BZ105: 0 | CA105: 0 | CB105: 0 | CC105: 0 | CD105: 0 | CE105: 0 | CF105: 0 | CG105: 0 | CH105: 0 | CI105: 0 | CJ105: 18.9999728 | CL105: 103 | CM105: 0 | CN105: 3.382550614e-50 | CO105: 0 | CP105: 0 | CQ105: 0 | CR105: 0 | CS105: 0 | CT105: 0 | CU105: 0 | CV105: 0 | CW105: 0 | CX105: 0 | CY105: -1 | DA105: 103 | DB105: 0 | DC105: 3.382550614e-50 | DD105: 0 | DE105: 0 | DF105: 0 | DG105: 0 | DH105: 0 | DI105: 0 | DJ105: 0 | DK105: 0 | DL105: 0 | DM105: 0 | DN105: -1
AP106: 12.6 | AQ106: 0.653 | AR106: 0.3 | AS106: 1.56 | AT106: 0 | AU106: 3.769481559e-105 | AV106: 0 | AW106: 0 | AX106: 0 | AY106: 0 | AZ106: 0 | BA106: 0 | BB106: 0 | BC106: 0 | BD106: 0 | BE106: 0 | BF106: 20 | BH106: 104 | BI106: 0 | BJ106: 0 | BK106: 0 | BL106: 1.195347905e-31 | BM106: 0 | BN106: 0 | BO106: 0 | BP106: 0 | BQ106: 0 | BR106: 0 | BS106: 0 | BT106: 0 | BU106: 22 | BW106: 104 | BX106: 0 | BY106: 2.024098741e-08 | BZ106: 0 | CA106: 0 | CB106: 0 | CC106: 0 | CD106: 0 | CE106: 0 | CF106: 0 | CG106: 0 | CH106: 0 | CI106: 0 | CJ106: 18.99999998 | CL106: 104 | CM106: 0 | CN106: 3.1581093e-56 | CO106: 0 | CP106: 0 | CQ106: 0 | CR106: 0 | CS106: 0 | CT106: 0 | CU106: 0 | CV106: 0 | CW106: 0 | CX106: 0 | CY106: -1 | DA106: 104 | DB106: 0 | DC106: 3.1581093e-56 | DD106: 0 | DE106: 0 | DF106: 0 | DG106: 0 | DH106: 0 | DI106: 0 | DJ106: 0 | DK106: 0 | DL106: 0 | DM106: 0 | DN106: -1
AP107: 12.75 | AQ107: 0.6605 | AR107: 0.3 | AS107: 1.575 | AT107: 0 | AU107: 3.486126831e-117 | AV107: 0 | AW107: 0 | AX107: 0 | AY107: 0 | AZ107: 0 | BA107: 0 | BB107: 0 | BC107: 0 | BD107: 0 | BE107: 0 | BF107: 20 | BH107: 105 | BI107: 0 | BJ107: 0 | BK107: 0 | BL107: 4.139949151e-29 | BM107: 0 | BN107: 0 | BO107: 0 | BP107: 0 | BQ107: 0 | BR107: 0 | BS107: 0 | BT107: 0 | BU107: 22 | BW107: 105 | BX107: 0 | BY107: 3.393514329e-12 | BZ107: 0 | CA107: 0 | CB107: 0 | CC107: 0 | CD107: 0 | CE107: 0 | CF107: 0 | CG107: 0 | CH107: 0 | CI107: 0 | CJ107: 19 | CL107: 105 | CM107: 0 | CN107: 1.354534238e-62 | CO107: 0 | CP107: 0 | CQ107: 0 | CR107: 0 | CS107: 0 | CT107: 0 | CU107: 0 | CV107: 0 | CW107: 0 | CX107: 0 | CY107: -1 | DA107: 105 | DB107: 0 | DC107: 1.354534238e-62 | DD107: 0 | DE107: 0 | DF107: 0 | DG107: 0 | DH107: 0 | DI107: 0 | DJ107: 0 | DK107: 0 | DL107: 0 | DM107: 0 | DN107: -1
AP108: 12.9 | AQ108: 0.668 | AR108: 0.3 | AS108: 1.59 | AT108: 0 | AU108: 7.263770498e-130 | AV108: 0 | AW108: 0 | AX108: 0 | AY108: 0 | AZ108: 0 | BA108: 0 | BB108: 0 | BC108: 0 | BD108: 0 | BE108: 0 | BF108: 20 | BH108: 106 | BI108: 0 | BJ108: 0 | BK108: 0 | BL108: 1.126296662e-26 | BM108: 0 | BN108: 0 | BO108: 0 | BP108: 0 | BQ108: 0 | BR108: 0 | BS108: 0 | BT108: 0 | BU108: 22 | BW108: 106 | BX108: 0 | BY108: 1.281814117e-16 | BZ108: 0 | CA108: 0 | CB108: 0 | CC108: 0 | CD108: 0 | CE108: 0 | CF108: 0 | CG108: 0 | CH108: 0 | CI108: 0 | CJ108: 19 | CL108: 106 | CM108: 0 | CN108: 2.668903029e-69 | CO108: 0 | CP108: 0 | CQ108: 0 | CR108: 0 | CS108: 0 | CT108: 0 | CU108: 0 | CV108: 0 | CW108: 0 | CX108: 0 | CY108: -1 | DA108: 106 | DB108: 0 | DC108: 2.668903029e-69 | DD108: 0 | DE108: 0 | DF108: 0 | DG108: 0 | DH108: 0 | DI108: 0 | DJ108: 0 | DK108: 0 | DL108: 0 | DM108: 0 | DN108: -1
AP109: 13.05 | AQ109: 0.6755 | AR109: 0.3 | AS109: 1.605 | AT109: 0 | AU109: 3.409874654e-143 | AV109: 0 | AW109: 0 | AX109: 0 | AY109: 0 | AZ109: 0 | BA109: 0 | BB109: 0 | BC109: 0 | BD109: 0 | BE109: 0 | BF109: 20 | BH109: 107 | BI109: 0 | BJ109: 0 | BK109: 0 | BL109: 2.40695347e-24 | BM109: 0 | BN109: 0 | BO109: 0 | BP109: 0 | BQ109: 0 | BR109: 0 | BS109: 0 | BT109: 0 | BU109: 22 | BW109: 107 | BX109: 0 | BY109: 1.090831783e-21 | BZ109: 0 | CA109: 0 | CB109: 0 | CC109: 0 | CD109: 0 | CE109: 0 | CF109: 0 | CG109: 0 | CH109: 0 | CI109: 0 | CJ109: 19 | CL109: 107 | CM109: 0 | CN109: 2.415769977e-76 | CO109: 0 | CP109: 0 | CQ109: 0 | CR109: 0 | CS109: 0 | CT109: 0 | CU109: 0 | CV109: 0 | CW109: 0 | CX109: 0 | CY109: -1 | DA109: 107 | DB109: 0 | DC109: 2.415769977e-76 | DD109: 0 | DE109: 0 | DF109: 0 | DG109: 0 | DH109: 0 | DI109: 0 | DJ109: 0 | DK109: 0 | DL109: 0 | DM109: 0 | DN109: -1
AH110: =AI30 -> k* | AI110: f | AJ110: =AI44 -> k' | AK110: f | AP110: 13.2 | AQ110: 0.683 | AR110: 0.3 | AS110: 1.62 | AT110: 0 | AU110: 3.606384981e-157 | AV110: 0 | AW110: 0 | AX110: 0 | AY110: 0 | AZ110: 0 | BA110: 0 | BB110: 0 | BC110: 0 | BD110: 0 | BE110: 0 | BF110: 20 | BH110: 108 | BI110: 0 | BJ110: 0 | BK110: 0 | BL110: 4.040542698e-22 | BM110: 9.8519233e-306 | BN110: 0 | BO110: 0 | BP110: 0 | BQ110: 0 | BR110: 0 | BS110: 0 | BT110: 0 | BU110: 22 | BW110: 108 | BX110: 0 | BY110: 2.091451925e-27 | BZ110: 0 | CA110: 0 | CB110: 0 | CC110: 0 | CD110: 0 | CE110: 0 | CF110: 0 | CG110: 0 | CH110: 0 | CI110: 0 | CJ110: 19 | CL110: 108 | CM110: 0 | CN110: 1.004519431e-83 | CO110: 0 | CP110: 0 | CQ110: 0 | CR110: 0 | CS110: 0 | CT110: 0 | CU110: 0 | CV110: 0 | CW110: 0 | CX110: 0 | CY110: -1 | DA110: 108 | DB110: 0 | DC110: 1.004519431e-83 | DD110: 0 | DE110: 0 | DF110: 0 | DG110: 0 | DH110: 0 | DI110: 0 | DJ110: 0 | DK110: 0 | DL110: 0 | DM110: 0 | DN110: -1
AG111: 1 | AH111: =IF(AG31<>"",AI31,2) -> 4.670431491 | AI111: =IF(AG31<>"",-(LOG(AH111)-E4)/F4,2) -> 0.05023656946 | AJ111: =IF(AG45<>"",AI45,2) -> 1.379524434 | AK111: =IF(AG45<>"",-(LOG(AJ111)-E4)/F4,2) -> 0.3 | AP111: 13.35 | AQ111: 0.6905 | AR111: 0.3 | AS111: 1.635 | AT111: 0 | AU111: 8.59336239e-172 | AV111: 0 | AW111: 0 | AX111: 0 | AY111: 0 | AZ111: 0 | BA111: 0 | BB111: 0 | BC111: 0 | BD111: 0 | BE111: 0 | BF111: 20 | BH111: 109 | BI111: 0 | BJ111: 0 | BK111: 0 | BL111: 5.328056408e-20 | BM111: 7.282124836e-302 | BN111: 0 | BO111: 0 | BP111: 0 | BQ111: 0 | BR111: 0 | BS111: 0 | BT111: 0 | BU111: 22 | BW111: 109 | BX111: 0 | BY111: 9.034317712e-34 | BZ111: 0 | CA111: 0 | CB111: 0 | CC111: 0 | CD111: 0 | CE111: 0 | CF111: 0 | CG111: 0 | CH111: 0 | CI111: 0 | CJ111: 19 | CL111: 109 | CM111: 0 | CN111: 1.918850246e-91 | CO111: 0 | CP111: 0 | CQ111: 0 | CR111: 0 | CS111: 0 | CT111: 0 | CU111: 0 | CV111: 0 | CW111: 0 | CX111: 0 | CY111: -1 | DA111: 109 | DB111: 0 | DC111: 1.918850246e-91 | DD111: 0 | DE111: 0 | DF111: 0 | DG111: 0 | DH111: 0 | DI111: 0 | DJ111: 0 | DK111: 0 | DL111: 0 | DM111: 0 | DN111: -1
AG112: 2 | AH112: 11.98692026 | AI112: 0.1215011345 | AJ112: 2.898537516 | AK112: 0.3 | AP112: 13.5 | AQ112: 0.698 | AR112: 0.3 | AS112: 1.65 | AT112: 0 | AU112: 4.613298307e-187 | AV112: 0 | AW112: 0 | AX112: 0 | AY112: 0 | AZ112: 0 | BA112: 0 | BB112: 0 | BC112: 0 | BD112: 0 | BE112: 0 | BF112: 20 | BH112: 110 | BI112: 0 | BJ112: 0 | BK112: 0 | BL112: 5.518931904e-18 | BM112: 5.08589928e-298 | BN112: 0 | BO112: 0 | BP112: 0 | BQ112: 0 | BR112: 0 | BS112: 0 | BT112: 0 | BU112: 22 | BW112: 110 | BX112: 0 | BY112: 8.792253532e-41 | BZ112: 0 | CA112: 0 | CB112: 0 | CC112: 0 | CD112: 0 | CE112: 0 | CF112: 0 | CG112: 0 | CH112: 0 | CI112: 0 | CJ112: 19 | CL112: 110 | CM112: 0 | CN112: 1.683851544e-99 | CO112: 0 | CP112: 0 | CQ112: 0 | CR112: 0 | CS112: 0 | CT112: 0 | CU112: 0 | CV112: 0 | CW112: 0 | CX112: 0 | CY112: -1 | DA112: 110 | DB112: 0 | DC112: 1.683851544e-99 | DD112: 0 | DE112: 0 | DF112: 0 | DG112: 0 | DH112: 0 | DI112: 0 | DJ112: 0 | DK112: 0 | DL112: 0 | DM112: 0 | DN112: -1
AG113: 3 | AH113: 16.62233092 | AI113: 0.1724619201 | AJ113: 7.28682167 | AK113: 0.3 | AP113: 13.65 | AQ113: 0.7055 | AR113: 0.3 | AS113: 1.665 | AT113: 0 | AU113: 5.579783129e-203 | AV113: 0 | AW113: 0 | AX113: 0 | AY113: 0 | AZ113: 0 | BA113: 0 | BB113: 0 | BC113: 0 | BD113: 0 | BE113: 0 | BF113: 20 | BH113: 111 | BI113: 0 | BJ113: 0 | BK113: 0 | BL113: 4.490537886e-16 | BM113: 3.356216195e-294 | BN113: 0 | BO113: 0 | BP113: 0 | BQ113: 0 | BR113: 0 | BS113: 0 | BT113: 0 | BU113: 22 | BW113: 111 | BX113: 0 | BY113: 1.927801955e-48 | BZ113: 0 | CA113: 0 | CB113: 0 | CC113: 0 | CD113: 0 | CE113: 0 | CF113: 0 | CG113: 0 | CH113: 0 | CI113: 0 | CJ113: 19 | CL113: 111 | CM113: 0 | CN113: 6.788072844e-108 | CO113: 0 | CP113: 0 | CQ113: 0 | CR113: 0 | CS113: 0 | CT113: 0 | CU113: 0 | CV113: 0 | CW113: 0 | CX113: 0 | CY113: -1 | DA113: 111 | DB113: 0 | DC113: 6.788072844e-108 | DD113: 0 | DE113: 0 | DF113: 0 | DG113: 0 | DH113: 0 | DI113: 0 | DJ113: 0 | DK113: 0 | DL113: 0 | DM113: 0 | DN113: -1
AG114: 4 | AH114: 19.45854029 | AI114: 0.2748192979 | AJ114: 16.0980924 | AK114: 0.3 | AP114: 13.8 | AQ114: 0.713 | AR114: 0.3 | AS114: 1.68 | AT114: 0 | AU114: 1.520479157e-219 | AV114: 0 | AW114: 0 | AX114: 0 | AY114: 0 | AZ114: 0 | BA114: 0 | BB114: 0 | BC114: 0 | BD114: 0 | BE114: 0 | BF114: 20 | BH114: 112 | BI114: 0 | BJ114: 0 | BK114: 0 | BL114: 2.870111719e-14 | BM114: 2.092688752e-290 | BN114: 0 | BO114: 0 | BP114: 0 | BQ114: 0 | BR114: 0 | BS114: 0 | BT114: 0 | BU114: 22 | BW114: 112 | BX114: 0 | BY114: 9.523180155e-57 | BZ114: 0 | CA114: 0 | CB114: 0 | CC114: 0 | CD114: 0 | CE114: 0 | CF114: 0 | CG114: 0 | CH114: 0 | CI114: 0 | CJ114: 19 | CL114: 112 | CM114: 0 | CN114: 1.257098089e-116 | CO114: 0 | CP114: 0 | CQ114: 0 | CR114: 0 | CS114: 0 | CT114: 0 | CU114: 0 | CV114: 0 | CW114: 0 | CX114: 0 | CY114: -1 | DA114: 112 | DB114: 0 | DC114: 1.257098089e-116 | DD114: 0 | DE114: 0 | DF114: 0 | DG114: 0 | DH114: 0 | DI114: 0 | DJ114: 0 | DK114: 0 | DL114: 0 | DM114: 0 | DN114: -1
AG115: 5 | AH115: 21.25665016 | AI115: 0.3734602896 | AJ115: 36.90175928 | AK115: 0.3 | AP115: 13.95 | AQ115: 0.7205 | AR115: 0.3 | AS115: 1.695 | AT115: 0 | AU115: 9.334713491e-237 | AV115: 0 | AW115: 0 | AX115: 0 | AY115: 0 | AZ115: 0 | BA115: 0 | BB115: 0 | BC115: 0 | BD115: 0 | BE115: 0 | BF115: 20 | BH115: 113 | BI115: 0 | BJ115: 0 | BK115: 0 | BL115: 1.440974671e-12 | BM115: 1.23291146e-286 | BN115: 0 | BO115: 0 | BP115: 0 | BQ115: 0 | BR115: 0 | BS115: 0 | BT115: 0 | BU115: 22 | BW115: 113 | BX115: 0 | BY115: 1.059885508e-65 | BZ115: 0 | CA115: 0 | CB115: 0 | CC115: 0 | CD115: 0 | CE115: 0 | CF115: 0 | CG115: 0 | CH115: 0 | CI115: 0 | CJ115: 19 | CL115: 113 | CM115: 0 | CN115: 1.069477903e-125 | CO115: 0 | CP115: 0 | CQ115: 0 | CR115: 0 | CS115: 0 | CT115: 0 | CU115: 0 | CV115: 0 | CW115: 0 | CX115: 0 | CY115: -1 | DA115: 113 | DB115: 0 | DC115: 1.069477903e-125 | DD115: 0 | DE115: 0 | DF115: 0 | DG115: 0 | DH115: 0 | DI115: 0 | DJ115: 0 | DK115: 0 | DL115: 0 | DM115: 0 | DN115: -1
AG116: 6 | AH116: 23.88519574 | AI116: 0.4362353513 | AJ116: 59.95008915 | AK116: 0.3 | AP116: 14.1 | AQ116: 0.728 | AR116: 0.3 | AS116: 1.71 | AT116: 0 | AU116: 1.291156496e-254 | AV116: 0 | AW116: 0 | AX116: 0 | AY116: 0 | AZ116: 0 | BA116: 0 | BB116: 0 | BC116: 0 | BD116: 0 | BE116: 0 | BF116: 20 | BH116: 114 | BI116: 0 | BJ116: 0 | BK116: 0 | BL116: 5.682912902e-11 | BM116: 6.86327936e-283 | BN116: 0 | BO116: 0 | BP116: 0 | BQ116: 0 | BR116: 0 | BS116: 0 | BT116: 0 | BU116: 22 | BW116: 114 | BX116: 0 | BY116: 2.657622416e-75 | BZ116: 0 | CA116: 0 | CB116: 0 | CC116: 0 | CD116: 0 | CE116: 0 | CF116: 0 | CG116: 0 | CH116: 0 | CI116: 0 | CJ116: 19 | CL116: 114 | CM116: 0 | CN116: 4.17978981e-135 | CO116: 0 | CP116: 0 | CQ116: 0 | CR116: 0 | CS116: 0 | CT116: 0 | CU116: 0 | CV116: 0 | CW116: 0 | CX116: 0 | CY116: -1 | DA116: 114 | DB116: 0 | DC116: 4.17978981e-135 | DD116: 0 | DE116: 0 | DF116: 0 | DG116: 0 | DH116: 0 | DI116: 0 | DJ116: 0 | DK116: 0 | DL116: 0 | DM116: 0 | DN116: -1
AG117: 7 | AH117: 24.02519175 | AI117: 0.5333411581 | AJ117: 121.4139821 | AK117: 0.3 | AP117: 14.25 | AQ117: 0.7355 | AR117: 0.3 | AS117: 1.725 | AT117: 0 | AU117: 4.023593952e-273 | AV117: 0 | AW117: 0 | AX117: 0 | AY117: 0 | AZ117: 0 | BA117: 0 | BB117: 0 | BC117: 0 | BD117: 0 | BE117: 0 | BF117: 20 | BH117: 115 | BI117: 0 | BJ117: 0 | BK117: 0 | BL117: 1.760527287e-09 | BM117: 3.609973399e-279 | BN117: 0 | BO117: 0 | BP117: 0 | BQ117: 0 | BR117: 0 | BS117: 0 | BT117: 0 | BU117: 22 | BW117: 115 | BX117: 0 | BY117: 1.501360454e-85 | BZ117: 0 | CA117: 0 | CB117: 0 | CC117: 0 | CD117: 0 | CE117: 0 | CF117: 0 | CG117: 0 | CH117: 0 | CI117: 0 | CJ117: 19 | CL117: 115 | CM117: 0 | CN117: 7.504418532e-145 | CO117: 0 | CP117: 0 | CQ117: 0 | CR117: 0 | CS117: 0 | CT117: 0 | CU117: 0 | CV117: 0 | CW117: 0 | CX117: 0 | CY117: -1 | DA117: 115 | DB117: 0 | DC117: 7.504418532e-145 | DD117: 0 | DE117: 0 | DF117: 0 | DG117: 0 | DH117: 0 | DI117: 0 | DJ117: 0 | DK117: 0 | DL117: 0 | DM117: 0 | DN117: -1
AG118: 8 | AH118: 2 | AI118: 2 | AJ118: 2 | AK118: 2 | AP118: 14.4 | AQ118: 0.743 | AR118: 0.3 | AS118: 1.74 | AT118: 0 | AU118: 2.824924069e-292 | AV118: 0 | AW118: 0 | AX118: 0 | AY118: 0 | AZ118: 0 | BA118: 0 | BB118: 0 | BC118: 0 | BD118: 0 | BE118: 0 | BF118: 20 | BH118: 116 | BI118: 0 | BJ118: 0 | BK118: 0 | BL118: 4.284218669e-08 | BM118: 1.794109165e-275 | BN118: 0 | BO118: 0 | BP118: 0 | BQ118: 0 | BR118: 0 | BS118: 0 | BT118: 0 | BU118: 22.00000004 | BW118: 116 | BX118: 0 | BY118: 1.910882736e-96 | BZ118: 0 | CA118: 0 | CB118: 0 | CC118: 0 | CD118: 0 | CE118: 0 | CF118: 0 | CG118: 0 | CH118: 0 | CI118: 0 | CJ118: 19 | CL118: 116 | CM118: 0 | CN118: 6.189557889e-155 | CO118: 0 | CP118: 0 | CQ118: 0 | CR118: 0 | CS118: 0 | CT118: 0 | CU118: 0 | CV118: 0 | CW118: 0 | CX118: 0 | CY118: -1 | DA118: 116 | DB118: 0 | DC118: 6.189557889e-155 | DD118: 0 | DE118: 0 | DF118: 0 | DG118: 0 | DH118: 0 | DI118: 0 | DJ118: 0 | DK118: 0 | DL118: 0 | DM118: 0 | DN118: -1
AG119: 9 | AH119: 2 | AI119: 2 | AJ119: 2 | AK119: 2 | AP119: 14.55 | AQ119: 0.7505 | AR119: 0.3 | AS119: 1.755 | AT119: 0 | AU119: 0 | AV119: 0 | AW119: 0 | AX119: 0 | AY119: 0 | AZ119: 0 | BA119: 0 | BB119: 0 | BC119: 0 | BD119: 0 | BE119: 0 | BF119: 20 | BH119: 117 | BI119: 0 | BJ119: 0 | BK119: 0 | BL119: 8.189504123e-07 | BM119: 8.424929314e-272 | BN119: 0 | BO119: 0 | BP119: 0 | BQ119: 0 | BR119: 0 | BS119: 0 | BT119: 0 | BU119: 22.00000082 | BW119: 117 | BX119: 0 | BY119: 5.479494197e-108 | BZ119: 0 | CA119: 0 | CB119: 0 | CC119: 0 | CD119: 0 | CE119: 0 | CF119: 0 | CG119: 0 | CH119: 0 | CI119: 0 | CJ119: 19 | CL119: 117 | CM119: 0 | CN119: 2.345212435e-165 | CO119: 0 | CP119: 0 | CQ119: 0 | CR119: 0 | CS119: 0 | CT119: 0 | CU119: 0 | CV119: 0 | CW119: 0 | CX119: 0 | CY119: -1 | DA119: 117 | DB119: 0 | DC119: 2.345212435e-165 | DD119: 0 | DE119: 0 | DF119: 0 | DG119: 0 | DH119: 0 | DI119: 0 | DJ119: 0 | DK119: 0 | DL119: 0 | DM119: 0 | DN119: -1
AG120: 10 | AH120: 2 | AI120: 2 | AJ120: 2 | AK120: 2 | AP120: 14.7 | AQ120: 0.758 | AR120: 0.3 | AS120: 1.77 | AT120: 0 | AU120: 0 | AV120: 0 | AW120: 0 | AX120: 0 | AY120: 0 | AZ120: 0 | BA120: 0 | BB120: 0 | BC120: 0 | BD120: 0 | BE120: 0 | BF120: 20 | BH120: 118 | BI120: 0 | BJ120: 0 | BK120: 0 | BL120: 1.229704296e-05 | BM120: 3.738145528e-268 | BN120: 0 | BO120: 0 | BP120: 0 | BQ120: 0 | BR120: 0 | BS120: 0 | BT120: 0 | BU120: 22.0000123 | BW120: 118 | BX120: 0 | BY120: 3.540008265e-120 | BZ120: 0 | CA120: 0 | CB120: 0 | CC120: 0 | CD120: 0 | CE120: 0 | CF120: 0 | CG120: 0 | CH120: 0 | CI120: 0 | CJ120: 19 | CL120: 118 | CM120: 0 | CN120: 4.082110203e-176 | CO120: 0 | CP120: 0 | CQ120: 0 | CR120: 0 | CS120: 0 | CT120: 0 | CU120: 0 | CV120: 0 | CW120: 0 | CX120: 0 | CY120: -1 | DA120: 118 | DB120: 0 | DC120: 4.082110203e-176 | DD120: 0 | DE120: 0 | DF120: 0 | DG120: 0 | DH120: 0 | DI120: 0 | DJ120: 0 | DK120: 0 | DL120: 0 | DM120: 0 | DN120: -1
AG121: 11 | AH121: 2 | AI121: 2 | AJ121: 2 | AK121: 2 | AL121: (the value = 2 are used for no compound) | AP121: 14.85 | AQ121: 0.7655 | AR121: 0.3 | AS121: 1.785 | AT121: 0 | AU121: 0 | AV121: 0 | AW121: 0 | AX121: 0 | AY121: 0 | AZ121: 0 | BA121: 0 | BB121: 0 | BC121: 0 | BD121: 0 | BE121: 0 | BF121: 20 | BH121: 119 | BI121: 0 | BJ121: 0 | BK121: 0 | BL121: 0.0001450443722 | BM121: 1.567179281e-264 | BN121: 0 | BO121: 0 | BP121: 0 | BQ121: 0 | BR121: 0 | BS121: 0 | BT121: 0 | BU121: 22.00014504 | BW121: 119 | BX121: 0 | BY121: 5.152588394e-133 | BZ121: 0 | CA121: 0 | CB121: 0 | CC121: 0 | CD121: 0 | CE121: 0 | CF121: 0 | CG121: 0 | CH121: 0 | CI121: 0 | CJ121: 19 | CL121: 119 | CM121: 0 | CN121: 3.264128437e-187 | CO121: 0 | CP121: 0 | CQ121: 0 | CR121: 0 | CS121: 0 | CT121: 0 | CU121: 0 | CV121: 0 | CW121: 0 | CX121: 0 | CY121: -1 | DA121: 119 | DB121: 0 | DC121: 3.264128437e-187 | DD121: 0 | DE121: 0 | DF121: 0 | DG121: 0 | DH121: 0 | DI121: 0 | DJ121: 0 | DK121: 0 | DL121: 0 | DM121: 0 | DN121: -1
AP122: 15 | AQ122: 0.773 | AR122: 0.3 | AS122: 1.8 | AT122: 0 | AU122: 0 | AV122: 0 | AW122: 0 | AX122: 0 | AY122: 0 | AZ122: 0 | BA122: 0 | BB122: 0 | BC122: 0 | BD122: 0 | BE122: 0 | BF122: 20 | BH122: 120 | BI122: 0 | BJ122: 0 | BK122: 0 | BL122: 0.001343872858 | BM122: 6.208028417e-261 | BN122: 0 | BO122: 0 | BP122: 0 | BQ122: 0 | BR122: 0 | BS122: 0 | BT122: 0 | BU122: 22.00134387 | BW122: 120 | BX122: 0 | BY122: 1.689678181e-146 | BZ122: 0 | CA122: 0 | CB122: 0 | CC122: 0 | CD122: 0 | CE122: 0 | CF122: 0 | CG122: 0 | CH122: 0 | CI122: 0 | CJ122: 19 | CL122: 120 | CM122: 0 | CN122: 1.19902912e-198 | CO122: 0 | CP122: 0 | CQ122: 0 | CR122: 0 | CS122: 0 | CT122: 0 | CU122: 0 | CV122: 0 | CW122: 0 | CX122: 0 | CY122: -1 | DA122: 120 | DB122: 0 | DC122: 1.19902912e-198 | DD122: 0 | DE122: 0 | DF122: 0 | DG122: 0 | DH122: 0 | DI122: 0 | DJ122: 0 | DK122: 0 | DL122: 0 | DM122: 0 | DN122: -1
AG123: k vs phi | AS123: 1.815 | AT123: 0 | AU123: 0 | AV123: 0 | AW123: 0 | AX123: 0 | AY123: 0 | AZ123: 0 | BA123: 0 | BB123: 0 | BC123: 0 | BD123: 0 | BE123: 0 | BF123: 20 | BH123: 121 | BI123: 0 | BJ123: 0 | BK123: 0 | BL123: 0.009780759736 | BM123: 2.323599364e-257 | BN123: 0 | BO123: 0 | BP123: 0 | BQ123: 0 | BR123: 0 | BS123: 0 | BT123: 0 | BU123: 22.00978076 | BW123: 121 | BX123: 0 | BY123: 1.248360191e-160 | BZ123: 0 | CA123: 0 | CB123: 0 | CC123: 0 | CD123: 0 | CE123: 0 | CF123: 0 | CG123: 0 | CH123: 0 | CI123: 0 | CJ123: 19 | CL123: 121 | CM123: 0 | CN123: 2.023355524e-210 | CO123: 0 | CP123: 0 | CQ123: 0 | CR123: 0 | CS123: 0 | CT123: 0 | CU123: 0 | CV123: 0 | CW123: 0 | CX123: 0 | CY123: -1 | DA123: 121 | DB123: 0 | DC123: 2.023355524e-210 | DD123: 0 | DE123: 0 | DF123: 0 | DG123: 0 | DH123: 0 | DI123: 0 | DJ123: 0 | DK123: 0 | DL123: 0 | DM123: 0 | DN123: -1
AG124: f | AH124: 0 | AI124: 0.1 | AJ124: 0.2 | AK124: 0.3 | AL124: 0.4 | AM124: 0.5 | AN124: 0.6 | AO124: 0.7 | AP124: 0.8 | AQ124: 0.9 | AR124: 1 | AS124: 1.83 | AT124: 0 | AU124: 0 | AV124: 0 | AW124: 0 | AX124: 0 | AY124: 0 | AZ124: 0 | BA124: 0 | BB124: 0 | BC124: 0 | BD124: 0 | BE124: 0 | BF124: 20 | BH124: 122 | BI124: 0 | BJ124: 0 | BK124: 0 | BL124: 0.05591703134 | BM124: 8.21753078e-254 | BN124: 0 | BO124: 0 | BP124: 0 | BQ124: 0 | BR124: 0 | BS124: 0 | BT124: 0 | BU124: 22.05591703 | BW124: 122 | BX124: 0 | BY124: 2.077940925e-175 | BZ124: 0 | CA124: 0 | CB124: 0 | CC124: 0 | CD124: 0 | CE124: 0 | CF124: 0 | CG124: 0 | CH124: 0 | CI124: 0 | CJ124: 19 | CL124: 122 | CM124: 0 | CN124: 1.568536559e-222 | CO124: 0 | CP124: 0 | CQ124: 0 | CR124: 0 | CS124: 0 | CT124: 0 | CU124: 0 | CV124: 0 | CW124: 0 | CX124: 0 | CY124: -1 | DA124: 122 | DB124: 0 | DC124: 1.568536559e-222 | DD124: 0 | DE124: 0 | DF124: 0 | DG124: 0 | DH124: 0 | DI124: 0 | DJ124: 0 | DK124: 0 | DL124: 0 | DM124: 0 | DN124: -1
AG125: 1 | AH125: =IF($B4>0,10^($E4-$F4*AH$124),"") -> 5.968765369 | AI125: 3.662965294 | AJ125: 2.24792129 | AK125: 1.379524434 | AL125: 0.8465988882 | AM125: 0.5195483746 | AN125: 0.3188410914 | AO125: 0.1956692515 | AP125: 0.1200800556 | AQ125: 0.07369180209 | AR125: 0.04522384393 | AS125: 1.845 | AT125: 0 | AU125: 0 | AV125: 0 | AW125: 0 | AX125: 0 | AY125: 0 | AZ125: 0 | BA125: 0 | BB125: 0 | BC125: 0 | BD125: 0 | BE125: 0 | BF125: 20 | BH125: 123 | BI125: 0 | BJ125: 0 | BK125: 0 | BL125: 0.2511150432 | BM125: 2.745958491e-250 | BN125: 0 | BO125: 0 | BP125: 0 | BQ125: 0 | BR125: 0 | BS125: 0 | BT125: 0 | BU125: 22.25111504 | BW125: 123 | BX125: 0 | BY125: 7.792626338e-191 | BZ125: 0 | CA125: 0 | CB125: 0 | CC125: 0 | CD125: 0 | CE125: 0 | CF125: 0 | CG125: 0 | CH125: 0 | CI125: 0 | CJ125: 19 | CL125: 123 | CM125: 0 | CN125: 5.585950326e-235 | CO125: 0 | CP125: 0 | CQ125: 0 | CR125: 0 | CS125: 0 | CT125: 0 | CU125: 0 | CV125: 0 | CW125: 0 | CX125: 0 | CY125: -1 | DA125: 123 | DB125: 0 | DC125: 5.585950326e-235 | DD125: 0 | DE125: 0 | DF125: 0 | DG125: 0 | DH125: 0 | DI125: 0 | DJ125: 0 | DK125: 0 | DL125: 0 | DM125: 0 | DN125: -1
AG126: 2 | AH126: =IF($B5>0,10^($E5-$F5*AH$124),"") -> 31.5041803 | AI126: 14.22236319 | AJ126: 6.420596021 | AK126: 2.898537516 | AL126: 1.308526452 | AM126: 0.5907260009 | AN126: 0.2666795216 | AO126: 0.1203907854 | AP126: 0.0543496596 | AQ126: 0.02453581051 | AR126: 0.01107653666 | AS126: 1.86 | AT126: 0 | AU126: 0 | AV126: 0 | AW126: 0 | AX126: 0 | AY126: 0 | AZ126: 0 | BA126: 0 | BB126: 0 | BC126: 0 | BD126: 0 | BE126: 0 | BF126: 20 | BH126: 124 | BI126: 0 | BJ126: 0 | BK126: 0 | BL126: 0.8858464759 | BM126: 8.670000736e-247 | BN126: 0 | BO126: 0 | BP126: 0 | BQ126: 0 | BR126: 0 | BS126: 0 | BT126: 0 | BU126: 22.88584648 | BW126: 124 | BX126: 0 | BY126: 6.584031162e-207 | BZ126: 0 | CA126: 0 | CB126: 0 | CC126: 0 | CD126: 0 | CE126: 0 | CF126: 0 | CG126: 0 | CH126: 0 | CI126: 0 | CJ126: 19 | CL126: 124 | CM126: 0 | CN126: 9.138595833e-248 | CO126: 0 | CP126: 0 | CQ126: 0 | CR126: 0 | CS126: 0 | CT126: 0 | CU126: 0 | CV126: 0 | CW126: 0 | CX126: 0 | CY126: -1 | DA126: 124 | DB126: 0 | DC126: 9.138595833e-248 | DD126: 0 | DE126: 0 | DF126: 0 | DG126: 0 | DH126: 0 | DI126: 0 | DJ126: 0 | DK126: 0 | DL126: 0 | DM126: 0 | DN126: -1
AG127: 3 | AH127: =IF($B6>0,10^($E6-$F6*AH$124),"") -> 50.69922367 | AI127: 26.5570758 | AJ127: 13.91102712 | AK127: 7.28682167 | AL127: 3.816955398 | AM127: 1.999383156 | AN127: 1.047309331 | AO127: 0.5485976173 | AP127: 0.2873643313 | AQ127: 0.1505260984 | AR127: 0.07884801218 | AS127: 1.875 | AT127: 0 | AU127: 0 | AV127: 0 | AW127: 0 | AX127: 0 | AY127: 0 | AZ127: 0 | BA127: 0 | BB127: 0 | BC127: 0 | BD127: 0 | BE127: 0 | BF127: 20 | BH127: 125 | BI127: 0 | BJ127: 0 | BK127: 0 | BL127: 2.45471627 | BM127: 2.586525943e-243 | BN127: 0 | BO127: 0 | BP127: 0 | BQ127: 0 | BR127: 0 | BS127: 0 | BT127: 0 | BU127: 24.45471627 | BW127: 125 | BX127: 0 | BY127: 1.253306447e-223 | BZ127: 0 | CA127: 0 | CB127: 0 | CC127: 0 | CD127: 0 | CE127: 0 | CF127: 0 | CG127: 0 | CH127: 0 | CI127: 0 | CJ127: 19 | CL127: 125 | CM127: 0 | CN127: 6.868182854e-261 | CO127: 0 | CP127: 0 | CQ127: 0 | CR127: 0 | CS127: 0 | CT127: 0 | CU127: 0 | CV127: 0 | CW127: 0 | CX127: 0 | CY127: -1 | DA127: 125 | DB127: 0 | DC127: 6.868182854e-261 | DD127: 0 | DE127: 0 | DF127: 0 | DG127: 0 | DH127: 0 | DI127: 0 | DJ127: 0 | DK127: 0 | DL127: 0 | DM127: 0 | DN127: -1
AG128: 4 | AH128: =IF($B7>0,10^($E7-$F7*AH$124),"") -> 154.068625 | AI128: 72.56618244 | AJ128: 34.17860603 | AK128: 16.0980924 | AL128: 7.582186903 | AM128: 3.571203146 | AN128: 1.682033439 | AO128: 0.7922362222 | AP128: 0.3731425412 | AQ128: 0.175749798 | AR128: 0.08277799528 | AS128: 1.89 | AT128: 0 | AU128: 0 | AV128: 0 | AW128: 0 | AX128: 0 | AY128: 0 | AZ128: 0 | BA128: 0 | BB128: 0 | BC128: 0 | BD128: 0 | BE128: 0 | BF128: 20 | BH128: 126 | BI128: 0 | BJ128: 0 | BK128: 0 | BL128: 5.343197762 | BM128: 7.29099971e-240 | BN128: 0 | BO128: 0 | BP128: 0 | BQ128: 0 | BR128: 0 | BS128: 0 | BT128: 0 | BU128: 27.34319776 | BW128: 126 | BX128: 0 | BY128: 5.375019443e-241 | BZ128: 0 | CA128: 0 | CB128: 0 | CC128: 0 | CD128: 0 | CE128: 0 | CF128: 0 | CG128: 0 | CH128: 0 | CI128: 0 | CJ128: 19 | CL128: 126 | CM128: 0 | CN128: 2.371287462e-274 | CO128: 0 | CP128: 0 | CQ128: 0 | CR128: 0 | CS128: 0 | CT128: 0 | CU128: 0 | CV128: 0 | CW128: 0 | CX128: 0 | CY128: -1 | DA128: 126 | DB128: 0 | DC128: 2.371287462e-274 | DD128: 0 | DE128: 0 | DF128: 0 | DG128: 0 | DH128: 0 | DI128: 0 | DJ128: 0 | DK128: 0 | DL128: 0 | DM128: 0 | DN128: -1
AG129: 5 | AH129: =IF($B8>0,10^($E8-$F8*AH$124),"") -> 351.0264911 | AI129: 165.6693948 | AJ129: 78.18882354 | AK129: 36.90175928 | AL129: 17.41604204 | AM129: 8.219622217 | AN129: 3.879307895 | AO129: 1.830866352 | AP129: 0.8640901133 | AQ129: 0.407813341 | AR129: 0.1924703437 | AS129: 1.905 | AT129: 0 | AU129: 0 | AV129: 0 | AW129: 0 | AX129: 0 | AY129: 0 | AZ129: 0 | BA129: 0 | BB129: 0 | BC129: 0 | BD129: 0 | BE129: 0 | BF129: 20 | BH129: 127 | BI129: 0 | BJ129: 0 | BK129: 0 | BL129: 9.13604655 | BM129: 1.941913411e-236 | BN129: 0 | BO129: 0 | BP129: 0 | BQ129: 0 | BR129: 0 | BS129: 0 | BT129: 0 | BU129: 31.13604655 | BW129: 127 | BX129: 0 | BY129: 5.193500476e-259 | BZ129: 0 | CA129: 0 | CB129: 0 | CC129: 0 | CD129: 0 | CE129: 0 | CF129: 0 | CG129: 0 | CH129: 0 | CI129: 0 | CJ129: 19 | CL129: 127 | CM129: 0 | CN129: 3.761027755e-288 | CO129: 0 | CP129: 0 | CQ129: 0 | CR129: 0 | CS129: 0 | CT129: 0 | CU129: 0 | CV129: 0 | CW129: 0 | CX129: 0 | CY129: -1 | DA129: 127 | DB129: 0 | DC129: 3.761027755e-288 | DD129: 0 | DE129: 0 | DF129: 0 | DG129: 0 | DH129: 0 | DI129: 0 | DJ129: 0 | DK129: 0 | DL129: 0 | DM129: 0 | DN129: -1
AG130: 6 | AH130: =IF($B9>0,10^($E9-$F9*AH$124),"") -> 454.8540221 | AI130: 231.4788436 | AJ130: 117.8014317 | AK130: 59.95008915 | AL130: 30.50907903 | AM130: 15.52631391 | AN130: 7.901465118 | AO130: 4.021118686 | AP130: 2.046379405 | AQ130: 1.041418818 | AR130: 0.5299863517 | AS130: 1.92 | AT130: =$B$42*NORMDIST($AS130,$B$39,$B$43*$B$39,FALSE) -> 0 | AU130: =B$4*IF(B$4>0,NORMDIST($AS130,P$17,Q$17/4,FALSE),0) -> 0 | AV130: =B$5*IF(B$5>0,NORMDIST($AS130,P$18,Q$18/4,FALSE),0) -> 0 | AW130: =B$6*IF(B$6>0,NORMDIST($AS130,P$19,Q$19/4,FALSE),0) -> 0 | AX130: =B$7*IF(B$7>0,NORMDIST($AS130,P$20,Q$20/4,FALSE),0) -> 0 | AY130: =B$8*IF(B$8>0,NORMDIST($AS130,P$21,Q$21/4,FALSE),0) -> 0 | AZ130: =B$9*IF(B$9>0,NORMDIST($AS130,P$22,$Q$22/4,FALSE),0) -> 0 | BA130: =$B$10*IF($B$10>0,NORMDIST($AS130,P$23,$Q$23/4,FALSE),0) -> 0 | BB130: =$B$11*IF($B$11>0,NORMDIST($AS130,P$24,$Q$24/4,FALSE),0) -> 0 | BC130: =$B$12*IF($B$12>0,NORMDIST($AS130,$P$25,$Q$25/4,FALSE),0) -> 0 | BD130: =$B$13*IF($B$13>0,NORMDIST($AS130,$P$26,$Q$26/4,FALSE),0) -> 0 | BE130: =$B$14*IF($B$14>0,NORMDIST($AS130,$P$27,$Q$27/4,FALSE),0) -> 0 | BF130: =IF($M$39<>0,SUM(AT130:BE130)*$M$39+$L$39,-1) -> 20 | BH130: 128 | BI130: =$B$42*NORMDIST($AS130,$B$39,$B$43*$B$39,FALSE) -> 0 | BJ130: =IF(B$4>0,B$4*NORMDIST($AS130,P$31,Q$31/4,FALSE),0) -> 0 | BK130: =IF(B$5>0,B$5*NORMDIST($AS130,P$32,Q$32/4,FALSE),0) -> 0 | BL130: =IF(B$6>0,B$6*NORMDIST($AS130,P$33,Q$33/4,FALSE),0) -> 12.27078839 | BM130: =IF(B$7>0,B$7*NORMDIST($AS130,P$34,Q$34/4,FALSE),0) -> 4.88703196e-233 | BN130: =IF(B$8>0,B$8*NORMDIST($AS130,P$35,Q$35/4,FALSE),0) -> 0 | BO130: =IF(B$9>0,B$9*NORMDIST($AS130,P$36,Q$36/4,FALSE),0) -> 0 | BP130: =IF($B$10>0,$B$10*NORMDIST($AS130,$P$37,$Q$37/4,FALSE),0) -> 0 | BQ130: =IF($B$11>0,$B$11*NORMDIST($AS130,$P$38,$Q$38/4,FALSE),0) -> 0 | BR130: =IF($B$12>0,$B$12*NORMDIST($AS130,$P$39,$Q$39/4,FALSE),0) -> 0 | BS130: =IF($B$13>0,$B$13*NORMDIST($AS130,$P$40,$Q$40/4,FALSE),0) -> 0 | BT130: =IF($B$14>0,$B$14*NORMDIST($AS130,$P$41,$Q$41/4,FALSE),0) -> 0 | BU130: =IF($M$41<>0,SUM(BI130:BT130)*$M$41+$L$41,-1) -> 34.27078839 | BW130: 128 | BX130: =$B$42*NORMDIST($AS130,$B$39,$B$43*$B$39,FALSE) -> 0 | BY130: =IF(B$4>0,B$4*NORMDIST($AS130,X$17,Y$17/4,FALSE),0) -> 1.130570586e-277 | BZ130: =IF(B$5>0,B$5*NORMDIST($AS130,X$18,Y$18/4,FALSE),0) -> 0 | CA130: =IF(B$6>0,B$6*NORMDIST($AS130,X$19,Y$19/4,FALSE),0) -> 0 | CB130: =IF(B$7>0,B$7*NORMDIST($AS130,X$20,Y$20/4,FALSE),0) -> 0 | CC130: =IF(B$8>0,B$8*NORMDIST($AS130,X$21,Y$21/4,FALSE),0) -> 0 | CD130: =IF(B$9>0,B$9*NORMDIST($AS130,X$22,Y$22/4,FALSE),0) -> 0 | CE130: =IF($B$10>0,$B$10*NORMDIST($AS130,$X$23,$Y$23/4,FALSE),0) -> 0 | CF130: =IF($B$11>0,$B$11*NORMDIST($AS130,$X$24,$Y$24/4,FALSE),0) -> 0 | CG130: =IF($B$12>0,$B$12*NORMDIST($AS130,$X$25,$Y$25/4,FALSE),0) -> 0 | CH130: =IF($B$13>0,$B$13*NORMDIST($AS130,$X$26,$Y$26/4,FALSE),0) -> 0 | CI130: =IF($B$14>0,$B$14*NORMDIST($AS130,$X$27,$Y$27/4,FALSE),0) -> 0 | CJ130: =IF($M$43<>0,SUM(BX130:CI130)*$M$43+$L$43,-1) -> 19 | CL130: 128 | CM130: =$B$42*NORMDIST($AS130,$B$39,$B$43*$B$39,FALSE) -> 0 | CN130: =IF($T$17>0,$B$4*NORMDIST($AS130,$T$17,$U$17/4,FALSE),0) -> 2.740367758e-302 | CO130: =IF($T$18>0,$B$5*NORMDIST($AS130,$T$18,$U$18/4,FALSE),0) -> 0 | CP130: =IF($T$19>0,$B$6*NORMDIST($AS130,$T$19,$U$19/4,FALSE),0) -> 0 | CQ130: =IF($T$20>0,$B$7*NORMDIST($AS130,$T$20,$U$20/4,FALSE),0) -> 0 | CR130: =IF($T$21>0,$B$8*NORMDIST($AS130,$T$21,$U$21/4,FALSE),0) -> 0 | CS130: =IF($T$22>0,$B$9*NORMDIST($AS130,$T$22,$U$22/4,FALSE),0) -> 0 | CT130: =IF($T$23>0,$B$10*NORMDIST($AS130,$T$23,$U$23/4,FALSE),0) -> 0 | CU130: =IF($T$24>0,$B$11*NORMDIST($AS130,$T$24,$U$24/4,FALSE),0) -> 0 | CV130: =IF($T$25>0,$B$12*NORMDIST($AS130,$T$25,$U$25/4,FALSE),0) -> 0 | CW130: =IF($T$26>0,$B$13*NORMDIST($AS130,$T$26,$U$26/4,FALSE),0) -> 0 | CX130: =IF($T$27>0,$B$14*NORMDIST($AS130,$T$27,$U$27/4,FALSE),0) -> 0 | CY130: =IF($M$40<>0,SUM(CM130:CX130)*$M$40+$L$40,-1) -> -1 | DA130: 128 | DB130: =$B$42*NORMDIST($AS130,$B$39,$B$43*$B$39,FALSE) -> 0 | DC130: =IF($T$31>0,$B$4*NORMDIST($AS130,$T$31,$U$31/4,FALSE),0) -> 2.740367758e-302 | DD130: =IF($T$32>0,$B$5*NORMDIST($AS130,$T$32,$U$32/4,FALSE),0) -> 0 | DE130: =IF($T$33>0,$B$6*NORMDIST($AS130,$T$33,$U$33/4,FALSE),0) -> 0 | DF130: =IF($T$34>0,$B$7*NORMDIST($AS130,$T$34,$U$34/4,FALSE),0) -> 0 | DG130: =IF($T$35>0,$B$8*NORMDIST($AS130,$T$35,$U$35/4,FALSE),0) -> 0 | DH130: =IF($T$36>0,$B$9*NORMDIST($AS130,$T$36,$U$36/4,FALSE),0) -> 0 | DI130: =IF($T$37>0,$B$10*NORMDIST($AS130,$T$37,$U$37/4,FALSE),0) -> 0 | DJ130: =IF($T$38>0,$B$11*NORMDIST($AS130,$T$38,$U$38/4,FALSE),0) -> 0 | DK130: =IF($T$39>0,$B$12*NORMDIST($AS130,$T$39,$U$39/4,FALSE),0) -> 0 | DL130: =IF($T$40>0,$B$13*NORMDIST($AS130,$T$40,$U$40/4,FALSE),0) -> 0 | DM130: =IF($T$41>0,$B$14*NORMDIST($AS130,$T$41,$U$41/4,FALSE),0) -> 0 | DN130: =IF($M$42<>0,SUM(DB130:DM130)*$M$42+$L$42,-1) -> -1
AG131: 7 | AH131: =IF($B10>0,10^($E10-$F10*AH$124),"") -> 974.6962747 | AI131: 486.7834136 | AJ131: 243.1096721 | AK131: 121.4139821 | AL131: 60.63664572 | AM131: 30.28319094 | AN131: 15.12404986 | AO131: 7.553262294 | AP131: 3.772254905 | AQ131: 1.883941867 | AR131: 0.9408794073 | AS131: =AS130+$B$44 -> 1.935 | AT131: 0 | AU131: 0 | AV131: 0 | AW131: 0 | AX131: 0 | AY131: 0 | AZ131: 0 | BA131: 0 | BB131: 0 | BC131: 0 | BD131: 0 | BE131: 0 | BF131: 20 | BH131: 129 | BI131: 0 | BJ131: 0 | BK131: 0 | BL131: 12.9462425 | BM131: 1.162071995e-229 | BN131: 0 | BO131: 0 | BP131: 0 | BQ131: 0 | BR131: 0 | BS131: 0 | BT131: 0 | BU131: 34.9462425 | BW131: 129 | BX131: 0 | BY131: 5.544885194e-297 | BZ131: 0 | CA131: 0 | CB131: 0 | CC131: 0 | CD131: 0 | CE131: 0 | CF131: 0 | CG131: 0 | CH131: 0 | CI131: 0 | CJ131: 19 | CL131: 129 | CM131: 0 | CN131: 0 | CO131: 0 | CP131: 0 | CQ131: 0 | CR131: 0 | CS131: 0 | CT131: 0 | CU131: 0 | CV131: 0 | CW131: 0 | CX131: 0 | CY131: -1 | DA131: 129 | DB131: 0 | DC131: 0 | DD131: 0 | DE131: 0 | DF131: 0 | DG131: 0 | DH131: 0 | DI131: 0 | DJ131: 0 | DK131: 0 | DL131: 0 | DM131: 0 | DN131: -1
AG132: 8 | AH132: =IF($B11>0,10^($E11-$F11*AH$124),"") ->  | AS132: 1.95 | AT132: 0 | AU132: 0 | AV132: 0 | AW132: 0 | AX132: 0 | AY132: 0 | AZ132: 0 | BA132: 0 | BB132: 0 | BC132: 0 | BD132: 0 | BE132: 0 | BF132: 20 | BH132: 130 | BI132: 0 | BJ132: 0 | BK132: 0 | BL132: 10.72931798 | BM132: 2.610919183e-226 | BN132: 0 | BO132: 0 | BP132: 0 | BQ132: 0 | BR132: 0 | BS132: 0 | BT132: 0 | BU132: 32.72931798 | BW132: 130 | BX132: 0 | BY132: 0 | BZ132: 0 | CA132: 0 | CB132: 0 | CC132: 0 | CD132: 0 | CE132: 0 | CF132: 0 | CG132: 0 | CH132: 0 | CI132: 0 | CJ132: 19 | CL132: 130 | CM132: 0 | CN132: 0 | CO132: 0 | CP132: 0 | CQ132: 0 | CR132: 0 | CS132: 0 | CT132: 0 | CU132: 0 | CV132: 0 | CW132: 0 | CX132: 0 | CY132: -1 | DA132: 130 | DB132: 0 | DC132: 0 | DD132: 0 | DE132: 0 | DF132: 0 | DG132: 0 | DH132: 0 | DI132: 0 | DJ132: 0 | DK132: 0 | DL132: 0 | DM132: 0 | DN132: -1
AG133: 9 | AH133: =IF($B12>0,10^($E12-$F12*AH$124),"") ->  | AS133: 1.965 | AT133: 0 | AU133: 0 | AV133: 0 | AW133: 0 | AX133: 0 | AY133: 0 | AZ133: 0 | BA133: 0 | BB133: 0 | BC133: 0 | BD133: 0 | BE133: 0 | BF133: 20 | BH133: 131 | BI133: 0 | BJ133: 0 | BK133: 0 | BL133: 6.984858349 | BM133: 5.542763661e-223 | BN133: 0 | BO133: 0 | BP133: 0 | BQ133: 0 | BR133: 0 | BS133: 0 | BT133: 0 | BU133: 28.98485835 | BW133: 131 | BX133: 0 | BY133: 0 | BZ133: 0 | CA133: 0 | CB133: 0 | CC133: 0 | CD133: 0 | CE133: 0 | CF133: 0 | CG133: 0 | CH133: 0 | CI133: 0 | CJ133: 19 | CL133: 131 | CM133: 0 | CN133: 0 | CO133: 0 | CP133: 0 | CQ133: 0 | CR133: 0 | CS133: 0 | CT133: 0 | CU133: 0 | CV133: 0 | CW133: 0 | CX133: 0 | CY133: -1 | DA133: 131 | DB133: 0 | DC133: 0 | DD133: 0 | DE133: 0 | DF133: 0 | DG133: 0 | DH133: 0 | DI133: 0 | DJ133: 0 | DK133: 0 | DL133: 0 | DM133: 0 | DN133: -1
AG134: 10 | AH134: =IF($B13>0,10^($E13-$F13*AH$124),"") ->  | AS134: 1.98 | AT134: 0 | AU134: 0 | AV134: 0 | AW134: 0 | AX134: 0 | AY134: 0 | AZ134: 0 | BA134: 0 | BB134: 0 | BC134: 0 | BD134: 0 | BE134: 0 | BF134: 20 | BH134: 132 | BI134: 0 | BJ134: 0 | BK134: 0 | BL134: 3.571907451 | BM134: 1.111813213e-219 | BN134: 0 | BO134: 0 | BP134: 0 | BQ134: 0 | BR134: 0 | BS134: 0 | BT134: 0 | BU134: 25.57190745 | BW134: 132 | BX134: 0 | BY134: 0 | BZ134: 0 | CA134: 0 | CB134: 0 | CC134: 0 | CD134: 0 | CE134: 0 | CF134: 0 | CG134: 0 | CH134: 0 | CI134: 0 | CJ134: 19 | CL134: 132 | CM134: 0 | CN134: 0 | CO134: 0 | CP134: 0 | CQ134: 0 | CR134: 0 | CS134: 0 | CT134: 0 | CU134: 0 | CV134: 0 | CW134: 0 | CX134: 0 | CY134: -1 | DA134: 132 | DB134: 0 | DC134: 0 | DD134: 0 | DE134: 0 | DF134: 0 | DG134: 0 | DH134: 0 | DI134: 0 | DJ134: 0 | DK134: 0 | DL134: 0 | DM134: 0 | DN134: -1
AG135: 11 | AH135: =IF($B14>0,10^($E14-$F14*AH$124),"") ->  | AS135: 1.995 | AT135: 0 | AU135: 0 | AV135: 0 | AW135: 0 | AX135: 0 | AY135: 0 | AZ135: 0 | BA135: 0 | BB135: 0 | BC135: 0 | BD135: 0 | BE135: 0 | BF135: 20 | BH135: 133 | BI135: 0 | BJ135: 0 | BK135: 0 | BL135: 1.434828188 | BM135: 2.1072198e-216 | BN135: 0 | BO135: 0 | BP135: 0 | BQ135: 0 | BR135: 0 | BS135: 0 | BT135: 0 | BU135: 23.43482819 | BW135: 133 | BX135: 0 | BY135: 0 | BZ135: 0 | CA135: 0 | CB135: 0 | CC135: 0 | CD135: 0 | CE135: 0 | CF135: 0 | CG135: 0 | CH135: 0 | CI135: 0 | CJ135: 19 | CL135: 133 | CM135: 0 | CN135: 0 | CO135: 0 | CP135: 0 | CQ135: 0 | CR135: 0 | CS135: 0 | CT135: 0 | CU135: 0 | CV135: 0 | CW135: 0 | CX135: 0 | CY135: -1 | DA135: 133 | DB135: 0 | DC135: 0 | DD135: 0 | DE135: 0 | DF135: 0 | DG135: 0 | DH135: 0 | DI135: 0 | DJ135: 0 | DK135: 0 | DL135: 0 | DM135: 0 | DN135: -1
AS136: 2.01 | AT136: 0 | AU136: 0 | AV136: 0 | AW136: 0 | AX136: 0 | AY136: 0 | AZ136: 0 | BA136: 0 | BB136: 0 | BC136: 0 | BD136: 0 | BE136: 0 | BF136: 20 | BH136: 134 | BI136: 0 | BJ136: 0 | BK136: 0 | BL136: 0.452748177 | BM136: 3.773639282e-213 | BN136: 0 | BO136: 0 | BP136: 0 | BQ136: 0 | BR136: 0 | BS136: 0 | BT136: 0 | BU136: 22.45274818 | BW136: 134 | BX136: 0 | BY136: 0 | BZ136: 0 | CA136: 0 | CB136: 0 | CC136: 0 | CD136: 0 | CE136: 0 | CF136: 0 | CG136: 0 | CH136: 0 | CI136: 0 | CJ136: 19 | CL136: 134 | CM136: 0 | CN136: 0 | CO136: 0 | CP136: 0 | CQ136: 0 | CR136: 0 | CS136: 0 | CT136: 0 | CU136: 0 | CV136: 0 | CW136: 0 | CX136: 0 | CY136: -1 | DA136: 134 | DB136: 0 | DC136: 0 | DD136: 0 | DE136: 0 | DF136: 0 | DG136: 0 | DH136: 0 | DI136: 0 | DJ136: 0 | DK136: 0 | DL136: 0 | DM136: 0 | DN136: -1
AS137: 2.025 | AT137: 0 | AU137: 0 | AV137: 0 | AW137: 0 | AX137: 0 | AY137: 0 | AZ137: 0 | BA137: 0 | BB137: 0 | BC137: 0 | BD137: 0 | BE137: 0 | BF137: 20 | BH137: 135 | BI137: 0 | BJ137: 0 | BK137: 0 | BL137: 0.1122200941 | BM137: 6.385331774e-210 | BN137: 0 | BO137: 0 | BP137: 0 | BQ137: 0 | BR137: 0 | BS137: 0 | BT137: 0 | BU137: 22.11222009 | BW137: 135 | BX137: 0 | BY137: 0 | BZ137: 0 | CA137: 0 | CB137: 0 | CC137: 0 | CD137: 0 | CE137: 0 | CF137: 0 | CG137: 0 | CH137: 0 | CI137: 0 | CJ137: 19 | CL137: 135 | CM137: 0 | CN137: 0 | CO137: 0 | CP137: 0 | CQ137: 0 | CR137: 0 | CS137: 0 | CT137: 0 | CU137: 0 | CV137: 0 | CW137: 0 | CX137: 0 | CY137: -1 | DA137: 135 | DB137: 0 | DC137: 0 | DD137: 0 | DE137: 0 | DF137: 0 | DG137: 0 | DH137: 0 | DI137: 0 | DJ137: 0 | DK137: 0 | DL137: 0 | DM137: 0 | DN137: -1
AS138: 2.04 | AT138: 0 | AU138: 0 | AV138: 0 | AW138: 0 | AX138: 0 | AY138: 0 | AZ138: 0 | BA138: 0 | BB138: 0 | BC138: 0 | BD138: 0 | BE138: 0 | BF138: 20 | BH138: 136 | BI138: 0 | BJ138: 0 | BK138: 0 | BL138: 0.02184950761 | BM138: 1.020890327e-206 | BN138: 0 | BO138: 0 | BP138: 0 | BQ138: 0 | BR138: 0 | BS138: 0 | BT138: 0 | BU138: 22.02184951 | BW138: 136 | BX138: 0 | BY138: 0 | BZ138: 0 | CA138: 0 | CB138: 0 | CC138: 0 | CD138: 0 | CE138: 0 | CF138: 0 | CG138: 0 | CH138: 0 | CI138: 0 | CJ138: 19 | CL138: 136 | CM138: 0 | CN138: 0 | CO138: 0 | CP138: 0 | CQ138: 0 | CR138: 0 | CS138: 0 | CT138: 0 | CU138: 0 | CV138: 0 | CW138: 0 | CX138: 0 | CY138: -1 | DA138: 136 | DB138: 0 | DC138: 0 | DD138: 0 | DE138: 0 | DF138: 0 | DG138: 0 | DH138: 0 | DI138: 0 | DJ138: 0 | DK138: 0 | DL138: 0 | DM138: 0 | DN138: -1
AS139: 2.055 | AT139: 0 | AU139: 0 | AV139: 0 | AW139: 0 | AX139: 0 | AY139: 0 | AZ139: 0 | BA139: 0 | BB139: 0 | BC139: 0 | BD139: 0 | BE139: 0 | BF139: 20 | BH139: 137 | BI139: 0 | BJ139: 0 | BK139: 0 | BL139: 0.003341717925 | BM139: 1.542223258e-203 | BN139: 0 | BO139: 0 | BP139: 0 | BQ139: 0 | BR139: 0 | BS139: 0 | BT139: 0 | BU139: 22.00334172 | BW139: 137 | BX139: 0 | BY139: 0 | BZ139: 0 | CA139: 0 | CB139: 0 | CC139: 0 | CD139: 0 | CE139: 0 | CF139: 0 | CG139: 0 | CH139: 0 | CI139: 0 | CJ139: 19 | CL139: 137 | CM139: 0 | CN139: 0 | CO139: 0 | CP139: 0 | CQ139: 0 | CR139: 0 | CS139: 0 | CT139: 0 | CU139: 0 | CV139: 0 | CW139: 0 | CX139: 0 | CY139: -1 | DA139: 137 | DB139: 0 | DC139: 0 | DD139: 0 | DE139: 0 | DF139: 0 | DG139: 0 | DH139: 0 | DI139: 0 | DJ139: 0 | DK139: 0 | DL139: 0 | DM139: 0 | DN139: -1
AS140: 2.07 | AT140: 0 | AU140: 0 | AV140: 0 | AW140: 0 | AX140: 0 | AY140: 0 | AZ140: 0 | BA140: 0 | BB140: 0 | BC140: 0 | BD140: 0 | BE140: 0 | BF140: 20 | BH140: =BH139+$B$44 -> 137.015 | BI140: 0 | BJ140: 0 | BK140: 0 | BL140: 0.000401471786 | BM140: 2.20134416e-200 | BN140: 0 | BO140: 0 | BP140: 0 | BQ140: 0 | BR140: 0 | BS140: 0 | BT140: 0 | BU140: 22.00040147 | BW140: =BW139+$B$44 -> 137.015 | BX140: 0 | BY140: 0 | BZ140: 0 | CA140: 0 | CB140: 0 | CC140: 0 | CD140: 0 | CE140: 0 | CF140: 0 | CG140: 0 | CH140: 0 | CI140: 0 | CJ140: 19 | CL140: =CL139+$B$44 -> 137.015 | CM140: 0 | CN140: 0 | CO140: 0 | CP140: 0 | CQ140: 0 | CR140: 0 | CS140: 0 | CT140: 0 | CU140: 0 | CV140: 0 | CW140: 0 | CX140: 0 | CY140: -1 | DA140: =DA139+$B$44 -> 137.015 | DB140: 0 | DC140: 0 | DD140: 0 | DE140: 0 | DF140: 0 | DG140: 0 | DH140: 0 | DI140: 0 | DJ140: 0 | DK140: 0 | DL140: 0 | DM140: 0 | DN140: -1
AS141: 2.085 | AT141: 0 | AU141: 0 | AV141: 0 | AW141: 0 | AX141: 0 | AY141: 0 | AZ141: 0 | BA141: 0 | BB141: 0 | BC141: 0 | BD141: 0 | BE141: 0 | BF141: 20 | BH141: 137.03 | BI141: 0 | BJ141: 0 | BK141: 0 | BL141: 3.788762477e-05 | BM141: 2.968938359e-197 | BN141: 0 | BO141: 0 | BP141: 0 | BQ141: 0 | BR141: 0 | BS141: 0 | BT141: 0 | BU141: 22.00003789 | BW141: 137.03 | BX141: 0 | BY141: 0 | BZ141: 0 | CA141: 0 | CB141: 0 | CC141: 0 | CD141: 0 | CE141: 0 | CF141: 0 | CG141: 0 | CH141: 0 | CI141: 0 | CJ141: 19 | CL141: 137.03 | CM141: 0 | CN141: 0 | CO141: 0 | CP141: 0 | CQ141: 0 | CR141: 0 | CS141: 0 | CT141: 0 | CU141: 0 | CV141: 0 | CW141: 0 | CX141: 0 | CY141: -1 | DA141: 137.03 | DB141: 0 | DC141: 0 | DD141: 0 | DE141: 0 | DF141: 0 | DG141: 0 | DH141: 0 | DI141: 0 | DJ141: 0 | DK141: 0 | DL141: 0 | DM141: 0 | DN141: -1
AS142: 2.1 | AT142: 0 | AU142: 0 | AV142: 0 | AW142: 0 | AX142: 0 | AY142: 0 | AZ142: 0 | BA142: 0 | BB142: 0 | BC142: 0 | BD142: 0 | BE142: 0 | BF142: 20 | BH142: 137.045 | BI142: 0 | BJ142: 0 | BK142: 0 | BL142: 2.808644918e-06 | BM142: 3.783440897e-194 | BN142: 0 | BO142: 0 | BP142: 0 | BQ142: 0 | BR142: 0 | BS142: 0 | BT142: 0 | BU142: 22.00000281 | BW142: 137.045 | BX142: 0 | BY142: 0 | BZ142: 0 | CA142: 0 | CB142: 0 | CC142: 0 | CD142: 0 | CE142: 0 | CF142: 0 | CG142: 0 | CH142: 0 | CI142: 0 | CJ142: 19 | CL142: 137.045 | CM142: 0 | CN142: 0 | CO142: 0 | CP142: 0 | CQ142: 0 | CR142: 0 | CS142: 0 | CT142: 0 | CU142: 0 | CV142: 0 | CW142: 0 | CX142: 0 | CY142: -1 | DA142: 137.045 | DB142: 0 | DC142: 0 | DD142: 0 | DE142: 0 | DF142: 0 | DG142: 0 | DH142: 0 | DI142: 0 | DJ142: 0 | DK142: 0 | DL142: 0 | DM142: 0 | DN142: -1
AS143: 2.115 | AT143: 0 | AU143: 0 | AV143: 0 | AW143: 0 | AX143: 0 | AY143: 0 | AZ143: 0 | BA143: 0 | BB143: 0 | BC143: 0 | BD143: 0 | BE143: 0 | BF143: 20 | BH143: 137.06 | BI143: 0 | BJ143: 0 | BK143: 0 | BL143: 1.635510748e-07 | BM143: 4.555596652e-191 | BN143: 0 | BO143: 0 | BP143: 0 | BQ143: 0 | BR143: 0 | BS143: 0 | BT143: 0 | BU143: 22.00000016 | BW143: 137.06 | BX143: 0 | BY143: 0 | BZ143: 0 | CA143: 0 | CB143: 0 | CC143: 0 | CD143: 0 | CE143: 0 | CF143: 0 | CG143: 0 | CH143: 0 | CI143: 0 | CJ143: 19 | CL143: 137.06 | CM143: 0 | CN143: 0 | CO143: 0 | CP143: 0 | CQ143: 0 | CR143: 0 | CS143: 0 | CT143: 0 | CU143: 0 | CV143: 0 | CW143: 0 | CX143: 0 | CY143: -1 | DA143: 137.06 | DB143: 0 | DC143: 0 | DD143: 0 | DE143: 0 | DF143: 0 | DG143: 0 | DH143: 0 | DI143: 0 | DJ143: 0 | DK143: 0 | DL143: 0 | DM143: 0 | DN143: -1
AS144: 2.13 | AT144: 0 | AU144: 0 | AV144: 0 | AW144: 0 | AX144: 0 | AY144: 0 | AZ144: 0 | BA144: 0 | BB144: 0 | BC144: 0 | BD144: 0 | BE144: 0 | BF144: 20 | BH144: 137.075 | BI144: 0 | BJ144: 0 | BK144: 0 | BL144: 7.48112783e-09 | BM144: 5.182939198e-188 | BN144: 0 | BO144: 0 | BP144: 0 | BQ144: 0 | BR144: 0 | BS144: 0 | BT144: 0 | BU144: 22.00000001 | BW144: 137.075 | BX144: 0 | BY144: 0 | BZ144: 0 | CA144: 0 | CB144: 0 | CC144: 0 | CD144: 0 | CE144: 0 | CF144: 0 | CG144: 0 | CH144: 0 | CI144: 0 | CJ144: 19 | CL144: 137.075 | CM144: 0 | CN144: 0 | CO144: 0 | CP144: 0 | CQ144: 0 | CR144: 0 | CS144: 0 | CT144: 0 | CU144: 0 | CV144: 0 | CW144: 0 | CX144: 0 | CY144: -1 | DA144: 137.075 | DB144: 0 | DC144: 0 | DD144: 0 | DE144: 0 | DF144: 0 | DG144: 0 | DH144: 0 | DI144: 0 | DJ144: 0 | DK144: 0 | DL144: 0 | DM144: 0 | DN144: -1
AS145: 2.145 | AT145: 0 | AU145: 0 | AV145: 0 | AW145: 0 | AX145: 0 | AY145: 0 | AZ145: 0 | BA145: 0 | BB145: 0 | BC145: 0 | BD145: 0 | BE145: 0 | BF145: 20 | BH145: 137.09 | BI145: 0 | BJ145: 0 | BK145: 0 | BL145: 2.688053181e-10 | BM145: 5.5715945e-185 | BN145: 0 | BO145: 0 | BP145: 0 | BQ145: 0 | BR145: 0 | BS145: 0 | BT145: 0 | BU145: 22 | BW145: 137.09 | BX145: 0 | BY145: 0 | BZ145: 0 | CA145: 0 | CB145: 0 | CC145: 0 | CD145: 0 | CE145: 0 | CF145: 0 | CG145: 0 | CH145: 0 | CI145: 0 | CJ145: 19 | CL145: 137.09 | CM145: 0 | CN145: 0 | CO145: 0 | CP145: 0 | CQ145: 0 | CR145: 0 | CS145: 0 | CT145: 0 | CU145: 0 | CV145: 0 | CW145: 0 | CX145: 0 | CY145: -1 | DA145: 137.09 | DB145: 0 | DC145: 0 | DD145: 0 | DE145: 0 | DF145: 0 | DG145: 0 | DH145: 0 | DI145: 0 | DJ145: 0 | DK145: 0 | DL145: 0 | DM145: 0 | DN145: -1
AS146: 2.16 | AT146: 0 | AU146: 0 | AV146: 0 | AW146: 0 | AX146: 0 | AY146: 0 | AZ146: 0 | BA146: 0 | BB146: 0 | BC146: 0 | BD146: 0 | BE146: 0 | BF146: 20 | BH146: 137.105 | BI146: 0 | BJ146: 0 | BK146: 0 | BL146: 7.586924208e-12 | BM146: 5.659204995e-182 | BN146: 0 | BO146: 0 | BP146: 0 | BQ146: 0 | BR146: 0 | BS146: 0 | BT146: 0 | BU146: 22 | BW146: 137.105 | BX146: 0 | BY146: 0 | BZ146: 0 | CA146: 0 | CB146: 0 | CC146: 0 | CD146: 0 | CE146: 0 | CF146: 0 | CG146: 0 | CH146: 0 | CI146: 0 | CJ146: 19 | CL146: 137.105 | CM146: 0 | CN146: 0 | CO146: 0 | CP146: 0 | CQ146: 0 | CR146: 0 | CS146: 0 | CT146: 0 | CU146: 0 | CV146: 0 | CW146: 0 | CX146: 0 | CY146: -1 | DA146: 137.105 | DB146: 0 | DC146: 0 | DD146: 0 | DE146: 0 | DF146: 0 | DG146: 0 | DH146: 0 | DI146: 0 | DJ146: 0 | DK146: 0 | DL146: 0 | DM146: 0 | DN146: -1
AS147: 2.175 | AT147: 0 | AU147: 0 | AV147: 0 | AW147: 0 | AX147: 0 | AY147: 0 | AZ147: 0 | BA147: 0 | BB147: 0 | BC147: 0 | BD147: 0 | BE147: 0 | BF147: 20 | BH147: 137.12 | BI147: 0 | BJ147: 0 | BK147: 0 | BL147: 1.682095862e-13 | BM147: 5.431301208e-179 | BN147: 0 | BO147: 0 | BP147: 0 | BQ147: 0 | BR147: 0 | BS147: 0 | BT147: 0 | BU147: 22 | BW147: 137.12 | BX147: 0 | BY147: 0 | BZ147: 0 | CA147: 0 | CB147: 0 | CC147: 0 | CD147: 0 | CE147: 0 | CF147: 0 | CG147: 0 | CH147: 0 | CI147: 0 | CJ147: 19 | CL147: 137.12 | CM147: 0 | CN147: 0 | CO147: 0 | CP147: 0 | CQ147: 0 | CR147: 0 | CS147: 0 | CT147: 0 | CU147: 0 | CV147: 0 | CW147: 0 | CX147: 0 | CY147: -1 | DA147: 137.12 | DB147: 0 | DC147: 0 | DD147: 0 | DE147: 0 | DF147: 0 | DG147: 0 | DH147: 0 | DI147: 0 | DJ147: 0 | DK147: 0 | DL147: 0 | DM147: 0 | DN147: -1
AS148: 2.19 | AT148: 0 | AU148: 0 | AV148: 0 | AW148: 0 | AX148: 0 | AY148: 0 | AZ148: 0 | BA148: 0 | BB148: 0 | BC148: 0 | BD148: 0 | BE148: 0 | BF148: 20 | BH148: 137.135 | BI148: 0 | BJ148: 0 | BK148: 0 | BL148: 2.92949558e-15 | BM148: 4.925211549e-176 | BN148: 0 | BO148: 0 | BP148: 0 | BQ148: 0 | BR148: 0 | BS148: 0 | BT148: 0 | BU148: 22 | BW148: 137.135 | BX148: 0 | BY148: 0 | BZ148: 0 | CA148: 0 | CB148: 0 | CC148: 0 | CD148: 0 | CE148: 0 | CF148: 0 | CG148: 0 | CH148: 0 | CI148: 0 | CJ148: 19 | CL148: 137.135 | CM148: 0 | CN148: 0 | CO148: 0 | CP148: 0 | CQ148: 0 | CR148: 0 | CS148: 0 | CT148: 0 | CU148: 0 | CV148: 0 | CW148: 0 | CX148: 0 | CY148: -1 | DA148: 137.135 | DB148: 0 | DC148: 0 | DD148: 0 | DE148: 0 | DF148: 0 | DG148: 0 | DH148: 0 | DI148: 0 | DJ148: 0 | DK148: 0 | DL148: 0 | DM148: 0 | DN148: -1
AS149: 2.205 | AT149: 0 | AU149: 0 | AV149: 0 | AW149: 0 | AX149: 0 | AY149: 0 | AZ149: 0 | BA149: 0 | BB149: 0 | BC149: 0 | BD149: 0 | BE149: 0 | BF149: 20 | BH149: 137.15 | BI149: 0 | BJ149: 0 | BK149: 0 | BL149: 4.007670978e-17 | BM149: 4.220058076e-173 | BN149: 0 | BO149: 0 | BP149: 0 | BQ149: 0 | BR149: 0 | BS149: 0 | BT149: 0 | BU149: 22 | BW149: 137.15 | BX149: 0 | BY149: 0 | BZ149: 0 | CA149: 0 | CB149: 0 | CC149: 0 | CD149: 0 | CE149: 0 | CF149: 0 | CG149: 0 | CH149: 0 | CI149: 0 | CJ149: 19 | CL149: 137.15 | CM149: 0 | CN149: 0 | CO149: 1.37407039e-301 | CP149: 0 | CQ149: 0 | CR149: 0 | CS149: 0 | CT149: 0 | CU149: 0 | CV149: 0 | CW149: 0 | CX149: 0 | CY149: -1 | DA149: 137.15 | DB149: 0 | DC149: 0 | DD149: 1.37407039e-301 | DE149: 0 | DF149: 0 | DG149: 0 | DH149: 0 | DI149: 0 | DJ149: 0 | DK149: 0 | DL149: 0 | DM149: 0 | DN149: -1
AS150: 2.22 | AT150: 0 | AU150: 0 | AV150: 0 | AW150: 0 | AX150: 0 | AY150: 0 | AZ150: 0 | BA150: 0 | BB150: 0 | BC150: 0 | BD150: 0 | BE150: 0 | BF150: 20 | BH150: 137.165 | BI150: 0 | BJ150: 0 | BK150: 0 | BL150: 4.306737283e-19 | BM150: 3.416524223e-170 | BN150: 0 | BO150: 0 | BP150: 0 | BQ150: 0 | BR150: 0 | BS150: 0 | BT150: 0 | BU150: 22 | BW150: 137.165 | BX150: 0 | BY150: 0 | BZ150: 0 | CA150: 0 | CB150: 0 | CC150: 0 | CD150: 0 | CE150: 0 | CF150: 0 | CG150: 0 | CH150: 0 | CI150: 0 | CJ150: 19 | CL150: 137.165 | CM150: 0 | CN150: 0 | CO150: 1.941186641e-293 | CP150: 0 | CQ150: 0 | CR150: 0 | CS150: 0 | CT150: 0 | CU150: 0 | CV150: 0 | CW150: 0 | CX150: 0 | CY150: -1 | DA150: 137.165 | DB150: 0 | DC150: 0 | DD150: 1.941186641e-293 | DE150: 0 | DF150: 0 | DG150: 0 | DH150: 0 | DI150: 0 | DJ150: 0 | DK150: 0 | DL150: 0 | DM150: 0 | DN150: -1
AS151: 2.235 | AT151: 0 | AU151: 0 | AV151: 0 | AW151: 0 | AX151: 0 | AY151: 0 | AZ151: 0 | BA151: 0 | BB151: 0 | BC151: 0 | BD151: 0 | BE151: 0 | BF151: 20 | BH151: 137.18 | BI151: 0 | BJ151: 0 | BK151: 0 | BL151: 3.635480406e-21 | BM151: 2.613503696e-167 | BN151: 0 | BO151: 0 | BP151: 0 | BQ151: 0 | BR151: 0 | BS151: 0 | BT151: 0 | BU151: 22 | BW151: 137.18 | BX151: 0 | BY151: 0 | BZ151: 0 | CA151: 0 | CB151: 0 | CC151: 0 | CD151: 0 | CE151: 0 | CF151: 0 | CG151: 0 | CH151: 0 | CI151: 0 | CJ151: 19 | CL151: 137.18 | CM151: 0 | CN151: 0 | CO151: 2.121487179e-285 | CP151: 0 | CQ151: 0 | CR151: 0 | CS151: 0 | CT151: 0 | CU151: 0 | CV151: 0 | CW151: 0 | CX151: 0 | CY151: -1 | DA151: 137.18 | DB151: 0 | DC151: 0 | DD151: 2.121487179e-285 | DE151: 0 | DF151: 0 | DG151: 0 | DH151: 0 | DI151: 0 | DJ151: 0 | DK151: 0 | DL151: 0 | DM151: 0 | DN151: -1
AS152: 2.25 | AT152: 0 | AU152: 0 | AV152: 0 | AW152: 0 | AX152: 0 | AY152: 0 | AZ152: 0 | BA152: 0 | BB152: 0 | BC152: 0 | BD152: 0 | BE152: 0 | BF152: 20 | BH152: 137.195 | BI152: 0 | BJ152: 0 | BK152: 0 | BL152: 2.410639921e-23 | BM152: 1.889010061e-164 | BN152: 0 | BO152: 0 | BP152: 0 | BQ152: 0 | BR152: 0 | BS152: 0 | BT152: 0 | BU152: 22 | BW152: 137.195 | BX152: 0 | BY152: 0 | BZ152: 0 | CA152: 0 | CB152: 0 | CC152: 0 | CD152: 0 | CE152: 0 | CF152: 0 | CG152: 0 | CH152: 0 | CI152: 0 | CJ152: 19 | CL152: 137.195 | CM152: 0 | CN152: 0 | CO152: 1.79361131e-277 | CP152: 0 | CQ152: 0 | CR152: 0 | CS152: 0 | CT152: 0 | CU152: 0 | CV152: 0 | CW152: 0 | CX152: 0 | CY152: -1 | DA152: 137.195 | DB152: 0 | DC152: 0 | DD152: 1.79361131e-277 | DE152: 0 | DF152: 0 | DG152: 0 | DH152: 0 | DI152: 0 | DJ152: 0 | DK152: 0 | DL152: 0 | DM152: 0 | DN152: -1
AS153: 2.265 | AT153: 0 | AU153: 0 | AV153: 0 | AW153: 0 | AX153: 0 | AY153: 0 | AZ153: 0 | BA153: 0 | BB153: 0 | BC153: 0 | BD153: 0 | BE153: 0 | BF153: 20 | BH153: 137.21 | BI153: 0 | BJ153: 0 | BK153: 0 | BL153: 1.255625099e-25 | BM153: 1.290083917e-161 | BN153: 0 | BO153: 0 | BP153: 0 | BQ153: 0 | BR153: 0 | BS153: 0 | BT153: 0 | BU153: 22 | BW153: 137.21 | BX153: 0 | BY153: 0 | BZ153: 0 | CA153: 0 | CB153: 0 | CC153: 0 | CD153: 0 | CE153: 0 | CF153: 0 | CG153: 0 | CH153: 0 | CI153: 0 | CJ153: 19 | CL153: 137.21 | CM153: 0 | CN153: 0 | CO153: 1.173089265e-269 | CP153: 0 | CQ153: 0 | CR153: 0 | CS153: 0 | CT153: 0 | CU153: 0 | CV153: 0 | CW153: 0 | CX153: 0 | CY153: -1 | DA153: 137.21 | DB153: 0 | DC153: 0 | DD153: 1.173089265e-269 | DE153: 0 | DF153: 0 | DG153: 0 | DH153: 0 | DI153: 0 | DJ153: 0 | DK153: 0 | DL153: 0 | DM153: 0 | DN153: -1
AS154: 2.28 | AT154: 0 | AU154: 0 | AV154: 0 | AW154: 0 | AX154: 0 | AY154: 0 | AZ154: 0 | BA154: 0 | BB154: 0 | BC154: 0 | BD154: 0 | BE154: 0 | BF154: 20 | BH154: 137.225 | BI154: 0 | BJ154: 0 | BK154: 0 | BL154: 5.137416074e-28 | BM154: 8.324807299e-159 | BN154: 0 | BO154: 0 | BP154: 0 | BQ154: 0 | BR154: 0 | BS154: 0 | BT154: 0 | BU154: 22 | BW154: 137.225 | BX154: 0 | BY154: 0 | BZ154: 0 | CA154: 0 | CB154: 0 | CC154: 0 | CD154: 0 | CE154: 0 | CF154: 0 | CG154: 0 | CH154: 0 | CI154: 0 | CJ154: 19 | CL154: 137.225 | CM154: 0 | CN154: 0 | CO154: 5.935380865e-262 | CP154: 0 | CQ154: 0 | CR154: 0 | CS154: 0 | CT154: 0 | CU154: 0 | CV154: 0 | CW154: 0 | CX154: 0 | CY154: -1 | DA154: 137.225 | DB154: 0 | DC154: 0 | DD154: 5.935380865e-262 | DE154: 0 | DF154: 0 | DG154: 0 | DH154: 0 | DI154: 0 | DJ154: 0 | DK154: 0 | DL154: 0 | DM154: 0 | DN154: -1
AS155: 2.295 | AT155: 0 | AU155: 0 | AV155: 0 | AW155: 0 | AX155: 0 | AY155: 0 | AZ155: 0 | BA155: 0 | BB155: 0 | BC155: 0 | BD155: 0 | BE155: 0 | BF155: 20 | BH155: 137.24 | BI155: 0 | BJ155: 0 | BK155: 0 | BL155: 1.65115027e-30 | BM155: 5.075781932e-156 | BN155: 0 | BO155: 0 | BP155: 0 | BQ155: 0 | BR155: 0 | BS155: 0 | BT155: 0 | BU155: 22 | BW155: 137.24 | BX155: 0 | BY155: 0 | BZ155: 0 | CA155: 0 | CB155: 0 | CC155: 0 | CD155: 0 | CE155: 0 | CF155: 0 | CG155: 0 | CH155: 0 | CI155: 0 | CJ155: 19 | CL155: 137.24 | CM155: 0 | CN155: 0 | CO155: 2.323169667e-254 | CP155: 0 | CQ155: 0 | CR155: 0 | CS155: 0 | CT155: 0 | CU155: 0 | CV155: 0 | CW155: 0 | CX155: 0 | CY155: -1 | DA155: 137.24 | DB155: 0 | DC155: 0 | DD155: 2.323169667e-254 | DE155: 0 | DF155: 0 | DG155: 0 | DH155: 0 | DI155: 0 | DJ155: 0 | DK155: 0 | DL155: 0 | DM155: 0 | DN155: -1
AS156: 2.31 | AT156: 0 | AU156: 0 | AV156: 0 | AW156: 0 | AX156: 0 | AY156: 0 | AZ156: 0 | BA156: 0 | BB156: 0 | BC156: 0 | BD156: 0 | BE156: 0 | BF156: 20 | BH156: 137.255 | BI156: 0 | BJ156: 0 | BK156: 0 | BL156: 4.168555303e-33 | BM156: 2.924181057e-153 | BN156: 0 | BO156: 0 | BP156: 0 | BQ156: 0 | BR156: 0 | BS156: 0 | BT156: 0 | BU156: 22 | BW156: 137.255 | BX156: 0 | BY156: 0 | BZ156: 0 | CA156: 0 | CB156: 0 | CC156: 0 | CD156: 0 | CE156: 0 | CF156: 0 | CG156: 0 | CH156: 0 | CI156: 0 | CJ156: 19 | CL156: 137.255 | CM156: 0 | CN156: 0 | CO156: 7.034416348e-247 | CP156: 0 | CQ156: 0 | CR156: 0 | CS156: 0 | CT156: 0 | CU156: 0 | CV156: 0 | CW156: 0 | CX156: 0 | CY156: -1 | DA156: 137.255 | DB156: 0 | DC156: 0 | DD156: 7.034416348e-247 | DE156: 0 | DF156: 0 | DG156: 0 | DH156: 0 | DI156: 0 | DJ156: 0 | DK156: 0 | DL156: 0 | DM156: 0 | DN156: -1
AS157: 2.325 | AT157: 0 | AU157: 0 | AV157: 0 | AW157: 0 | AX157: 0 | AY157: 0 | AZ157: 0 | BA157: 0 | BB157: 0 | BC157: 0 | BD157: 0 | BE157: 0 | BF157: 20 | BH157: 137.27 | BI157: 0 | BJ157: 0 | BK157: 0 | BL157: 8.26688018e-36 | BM157: 1.591761885e-150 | BN157: 0 | BO157: 0 | BP157: 0 | BQ157: 0 | BR157: 0 | BS157: 0 | BT157: 0 | BU157: 22 | BW157: 137.27 | BX157: 0 | BY157: 0 | BZ157: 0 | CA157: 0 | CB157: 0 | CC157: 0 | CD157: 0 | CE157: 0 | CF157: 0 | CG157: 0 | CH157: 0 | CI157: 0 | CJ157: 19 | CL157: 137.27 | CM157: 0 | CN157: 0 | CO157: 1.647745048e-239 | CP157: 0 | CQ157: 0 | CR157: 0 | CS157: 0 | CT157: 0 | CU157: 0 | CV157: 0 | CW157: 0 | CX157: 0 | CY157: -1 | DA157: 137.27 | DB157: 0 | DC157: 0 | DD157: 1.647745048e-239 | DE157: 0 | DF157: 0 | DG157: 0 | DH157: 0 | DI157: 0 | DJ157: 0 | DK157: 0 | DL157: 0 | DM157: 0 | DN157: -1
AS158: 2.34 | AT158: 0 | AU158: 0 | AV158: 0 | AW158: 0 | AX158: 0 | AY158: 0 | AZ158: 0 | BA158: 0 | BB158: 0 | BC158: 0 | BD158: 0 | BE158: 0 | BF158: 20 | BH158: 137.285 | BI158: 0 | BJ158: 0 | BK158: 0 | BL158: 1.287818995e-38 | BM158: 8.186994171e-148 | BN158: 0 | BO158: 0 | BP158: 0 | BQ158: 0 | BR158: 0 | BS158: 0 | BT158: 0 | BU158: 22 | BW158: 137.285 | BX158: 0 | BY158: 0 | BZ158: 0 | CA158: 0 | CB158: 0 | CC158: 0 | CD158: 0 | CE158: 0 | CF158: 0 | CG158: 0 | CH158: 0 | CI158: 0 | CJ158: 19 | CL158: 137.285 | CM158: 0 | CN158: 0 | CO158: 2.985841606e-232 | CP158: 0 | CQ158: 0 | CR158: 0 | CS158: 0 | CT158: 0 | CU158: 0 | CV158: 0 | CW158: 0 | CX158: 0 | CY158: -1 | DA158: 137.285 | DB158: 0 | DC158: 0 | DD158: 2.985841606e-232 | DE158: 0 | DF158: 0 | DG158: 0 | DH158: 0 | DI158: 0 | DJ158: 0 | DK158: 0 | DL158: 0 | DM158: 0 | DN158: -1
AS159: 2.355 | AT159: 0 | AU159: 0 | AV159: 3.192877466e-300 | AW159: 0 | AX159: 0 | AY159: 0 | AZ159: 0 | BA159: 0 | BB159: 0 | BC159: 0 | BD159: 0 | BE159: 0 | BF159: 20 | BH159: 137.3 | BI159: 0 | BJ159: 0 | BK159: 0 | BL159: 1.575887162e-41 | BM159: 3.978720201e-145 | BN159: 0 | BO159: 0 | BP159: 0 | BQ159: 0 | BR159: 0 | BS159: 0 | BT159: 0 | BU159: 22 | BW159: 137.3 | BX159: 0 | BY159: 0 | BZ159: 0 | CA159: 0 | CB159: 0 | CC159: 0 | CD159: 0 | CE159: 0 | CF159: 0 | CG159: 0 | CH159: 0 | CI159: 0 | CJ159: 19 | CL159: 137.3 | CM159: 0 | CN159: 0 | CO159: 4.185605764e-225 | CP159: 0 | CQ159: 0 | CR159: 0 | CS159: 0 | CT159: 0 | CU159: 0 | CV159: 0 | CW159: 0 | CX159: 0 | CY159: -1 | DA159: 137.3 | DB159: 0 | DC159: 0 | DD159: 4.185605764e-225 | DE159: 0 | DF159: 0 | DG159: 0 | DH159: 0 | DI159: 0 | DJ159: 0 | DK159: 0 | DL159: 0 | DM159: 0 | DN159: -1
AS160: 2.37 | AT160: 0 | AU160: 0 | AV160: 6.909289933e-291 | AW160: 0 | AX160: 0 | AY160: 0 | AZ160: 0 | BA160: 0 | BB160: 0 | BC160: 0 | BD160: 0 | BE160: 0 | BF160: 20 | BH160: 137.315 | BI160: 0 | BJ160: 0 | BK160: 0 | BL160: 1.514790304e-44 | BM160: 1.826984465e-142 | BN160: 0 | BO160: 0 | BP160: 0 | BQ160: 0 | BR160: 0 | BS160: 0 | BT160: 0 | BU160: 22 | BW160: 137.315 | BX160: 0 | BY160: 0 | BZ160: 0 | CA160: 0 | CB160: 0 | CC160: 0 | CD160: 0 | CE160: 0 | CF160: 0 | CG160: 0 | CH160: 0 | CI160: 0 | CJ160: 19 | CL160: 137.315 | CM160: 0 | CN160: 0 | CO160: 4.539047003e-218 | CP160: 0 | CQ160: 0 | CR160: 0 | CS160: 0 | CT160: 0 | CU160: 0 | CV160: 0 | CW160: 0 | CX160: 0 | CY160: -1 | DA160: 137.315 | DB160: 0 | DC160: 0 | DD160: 4.539047003e-218 | DE160: 0 | DF160: 0 | DG160: 0 | DH160: 0 | DI160: 0 | DJ160: 0 | DK160: 0 | DL160: 0 | DM160: 0 | DN160: -1
AS161: 2.385 | AT161: 0 | AU161: 0 | AV161: 1.065311952e-281 | AW161: 0 | AX161: 0 | AY161: 0 | AZ161: 0 | BA161: 0 | BB161: 0 | BC161: 0 | BD161: 0 | BE161: 0 | BF161: 20 | BH161: 137.33 | BI161: 0 | BJ161: 0 | BK161: 0 | BL161: 1.143765582e-47 | BM161: 7.926817295e-140 | BN161: 0 | BO161: 0 | BP161: 0 | BQ161: 0 | BR161: 0 | BS161: 0 | BT161: 0 | BU161: 22 | BW161: 137.33 | BX161: 0 | BY161: 0 | BZ161: 0 | CA161: 0 | CB161: 0 | CC161: 0 | CD161: 0 | CE161: 0 | CF161: 0 | CG161: 0 | CH161: 0 | CI161: 0 | CJ161: 19 | CL161: 137.33 | CM161: 0 | CN161: 0 | CO161: 3.807902714e-211 | CP161: 0 | CQ161: 0 | CR161: 0 | CS161: 0 | CT161: 0 | CU161: 0 | CV161: 0 | CW161: 0 | CX161: 0 | CY161: -1 | DA161: 137.33 | DB161: 0 | DC161: 0 | DD161: 3.807902714e-211 | DE161: 0 | DF161: 0 | DG161: 0 | DH161: 0 | DI161: 0 | DJ161: 0 | DK161: 0 | DL161: 0 | DM161: 0 | DN161: -1
AS162: 2.4 | AT162: 0 | AU162: 0 | AV162: 1.170340944e-272 | AW162: 0 | AX162: 0 | AY162: 0 | AZ162: 0 | BA162: 0 | BB162: 0 | BC162: 0 | BD162: 0 | BE162: 0 | BF162: 20 | BH162: 137.345 | BI162: 0 | BJ162: 0 | BK162: 0 | BL162: 6.783887518e-51 | BM162: 3.249640957e-137 | BN162: 0 | BO162: 0 | BP162: 0 | BQ162: 0 | BR162: 0 | BS162: 0 | BT162: 0 | BU162: 22 | BW162: 137.345 | BX162: 0 | BY162: 0 | BZ162: 0 | CA162: 0 | CB162: 0 | CC162: 0 | CD162: 0 | CE162: 0 | CF162: 0 | CG162: 0 | CH162: 0 | CI162: 0 | CJ162: 19 | CL162: 137.345 | CM162: 0 | CN162: 0 | CO162: 2.471279197e-204 | CP162: 0 | CQ162: 0 | CR162: 0 | CS162: 0 | CT162: 0 | CU162: 0 | CV162: 0 | CW162: 0 | CX162: 0 | CY162: -1 | DA162: 137.345 | DB162: 0 | DC162: 0 | DD162: 2.471279197e-204 | DE162: 0 | DF162: 0 | DG162: 0 | DH162: 0 | DI162: 0 | DJ162: 0 | DK162: 0 | DL162: 0 | DM162: 0 | DN162: -1
AS163: 2.415 | AT163: 0 | AU163: 0 | AV163: 9.160943718e-264 | AW163: 0 | AX163: 0 | AY163: 0 | AZ163: 0 | BA163: 0 | BB163: 0 | BC163: 0 | BD163: 0 | BE163: 0 | BF163: 20 | BH163: 137.36 | BI163: 0 | BJ163: 0 | BK163: 0 | BL163: 3.160656949e-54 | BM163: 1.258764392e-134 | BN163: 0 | BO163: 0 | BP163: 0 | BQ163: 0 | BR163: 0 | BS163: 0 | BT163: 0 | BU163: 22 | BW163: 137.36 | BX163: 0 | BY163: 0 | BZ163: 0 | CA163: 0 | CB163: 0 | CC163: 0 | CD163: 0 | CE163: 0 | CF163: 0 | CG163: 0 | CH163: 0 | CI163: 0 | CJ163: 19 | CL163: 137.36 | CM163: 0 | CN163: 0 | CO163: 1.240716583e-197 | CP163: 0 | CQ163: 0 | CR163: 0 | CS163: 0 | CT163: 0 | CU163: 0 | CV163: 0 | CW163: 0 | CX163: 0 | CY163: -1 | DA163: 137.36 | DB163: 0 | DC163: 0 | DD163: 1.240716583e-197 | DE163: 0 | DF163: 0 | DG163: 0 | DH163: 0 | DI163: 0 | DJ163: 0 | DK163: 0 | DL163: 0 | DM163: 0 | DN163: -1
AS164: 2.43 | AT164: 0 | AU164: 0 | AV164: 5.109286405e-255 | AW164: 0 | AX164: 0 | AY164: 0 | AZ164: 0 | BA164: 0 | BB164: 0 | BC164: 0 | BD164: 0 | BE164: 0 | BF164: 20 | BH164: 137.375 | BI164: 0 | BJ164: 0 | BK164: 0 | BL164: 1.156733176e-57 | BM164: 4.607083213e-132 | BN164: 0 | BO164: 0 | BP164: 0 | BQ164: 0 | BR164: 0 | BS164: 0 | BT164: 0 | BU164: 22 | BW164: 137.375 | BX164: 0 | BY164: 0 | BZ164: 0 | CA164: 0 | CB164: 0 | CC164: 0 | CD164: 0 | CE164: 0 | CF164: 0 | CG164: 0 | CH164: 0 | CI164: 0 | CJ164: 19 | CL164: 137.375 | CM164: 0 | CN164: 0 | CO164: 4.818791831e-191 | CP164: 0 | CQ164: 0 | CR164: 0 | CS164: 0 | CT164: 0 | CU164: 0 | CV164: 0 | CW164: 0 | CX164: 0 | CY164: -1 | DA164: 137.375 | DB164: 0 | DC164: 0 | DD164: 4.818791831e-191 | DE164: 0 | DF164: 0 | DG164: 0 | DH164: 0 | DI164: 0 | DJ164: 0 | DK164: 0 | DL164: 0 | DM164: 0 | DN164: -1
AS165: 2.445 | AT165: 0 | AU165: 0 | AV165: 2.030357425e-246 | AW165: 0 | AX165: 0 | AY165: 0 | AZ165: 0 | BA165: 0 | BB165: 0 | BC165: 0 | BD165: 0 | BE165: 0 | BF165: 20 | BH165: 137.39 | BI165: 0 | BJ165: 0 | BK165: 0 | BL165: 3.325417133e-61 | BM165: 1.593236333e-129 | BN165: 0 | BO165: 0 | BP165: 0 | BQ165: 0 | BR165: 0 | BS165: 0 | BT165: 0 | BU165: 22 | BW165: 137.39 | BX165: 0 | BY165: 0 | BZ165: 0 | CA165: 0 | CB165: 0 | CC165: 0 | CD165: 0 | CE165: 0 | CF165: 0 | CG165: 0 | CH165: 0 | CI165: 0 | CJ165: 19 | CL165: 137.39 | CM165: 0 | CN165: 0 | CO165: 1.447833258e-184 | CP165: 0 | CQ165: 0 | CR165: 0 | CS165: 0 | CT165: 0 | CU165: 0 | CV165: 0 | CW165: 0 | CX165: 0 | CY165: -1 | DA165: 137.39 | DB165: 0 | DC165: 0 | DD165: 1.447833258e-184 | DE165: 0 | DF165: 0 | DG165: 0 | DH165: 0 | DI165: 0 | DJ165: 0 | DK165: 0 | DL165: 0 | DM165: 0 | DN165: -1
AS166: 2.46 | AT166: 0 | AU166: 0 | AV166: 5.748796891e-238 | AW166: 0 | AX166: 0 | AY166: 0 | AZ166: 0 | BA166: 0 | BB166: 0 | BC166: 0 | BD166: 0 | BE166: 0 | BF166: 20 | BH166: 137.405 | BI166: 0 | BJ166: 0 | BK166: 0 | BL166: 7.509589131e-65 | BM166: 5.206032621e-127 | BN166: 0 | BO166: 0 | BP166: 0 | BQ166: 0 | BR166: 0 | BS166: 0 | BT166: 0 | BU166: 22 | BW166: 137.405 | BX166: 0 | BY166: 0 | BZ166: 0 | CA166: 0 | CB166: 0 | CC166: 0 | CD166: 0 | CE166: 0 | CF166: 0 | CG166: 0 | CH166: 0 | CI166: 0 | CJ166: 19 | CL166: 137.405 | CM166: 0 | CN166: 0 | CO166: 3.36522213e-178 | CP166: 0 | CQ166: 0 | CR166: 0 | CS166: 0 | CT166: 0 | CU166: 0 | CV166: 0 | CW166: 0 | CX166: 0 | CY166: -1 | DA166: 137.405 | DB166: 0 | DC166: 0 | DD166: 3.36522213e-178 | DE166: 0 | DF166: 0 | DG166: 0 | DH166: 0 | DI166: 0 | DJ166: 0 | DK166: 0 | DL166: 0 | DM166: 0 | DN166: -1
AS167: 2.475 | AT167: 0 | AU167: 0 | AV167: 1.159774749e-229 | AW167: 0 | AX167: 0 | AY167: 0 | AZ167: 0 | BA167: 0 | BB167: 0 | BC167: 0 | BD167: 0 | BE167: 0 | BF167: 20 | BH167: 137.42 | BI167: 0 | BJ167: 0 | BK167: 0 | BL167: 1.332119944e-68 | BM167: 1.607333906e-124 | BN167: 0 | BO167: 0 | BP167: 0 | BQ167: 0 | BR167: 0 | BS167: 0 | BT167: 0 | BU167: 22 | BW167: 137.42 | BX167: 0 | BY167: 0 | BZ167: 0 | CA167: 0 | CB167: 0 | CC167: 0 | CD167: 0 | CE167: 0 | CF167: 0 | CG167: 0 | CH167: 0 | CI167: 0 | CJ167: 19 | CL167: 137.42 | CM167: 0 | CN167: 0 | CO167: 6.050952289e-172 | CP167: 0 | CQ167: 0 | CR167: 0 | CS167: 0 | CT167: 0 | CU167: 0 | CV167: 0 | CW167: 0 | CX167: 0 | CY167: -1 | DA167: 137.42 | DB167: 0 | DC167: 0 | DD167: 6.050952289e-172 | DE167: 0 | DF167: 0 | DG167: 0 | DH167: 0 | DI167: 0 | DJ167: 0 | DK167: 0 | DL167: 0 | DM167: 0 | DN167: -1
AS168: 2.49 | AT168: 0 | AU168: 0 | AV168: 1.667103448e-221 | AW168: 0 | AX168: 0 | AY168: 0 | AZ168: 0 | BA168: 0 | BB168: 0 | BC168: 0 | BD168: 0 | BE168: 0 | BF168: 20 | BH168: 137.435 | BI168: 0 | BJ168: 0 | BK168: 0 | BL168: 1.85621207e-72 | BM168: 4.688974438e-122 | BN168: 0 | BO168: 0 | BP168: 0 | BQ168: 0 | BR168: 0 | BS168: 0 | BT168: 0 | BU168: 22 | BW168: 137.435 | BX168: 0 | BY168: 0 | BZ168: 0 | CA168: 0 | CB168: 0 | CC168: 0 | CD168: 0 | CE168: 0 | CF168: 0 | CG168: 0 | CH168: 0 | CI168: 0 | CJ168: 19 | CL168: 137.435 | CM168: 0 | CN168: 0 | CO168: 8.416829421e-166 | CP168: 0 | CQ168: 0 | CR168: 0 | CS168: 0 | CT168: 0 | CU168: 0 | CV168: 0 | CW168: 0 | CX168: 0 | CY168: -1 | DA168: 137.435 | DB168: 0 | DC168: 0 | DD168: 8.416829421e-166 | DE168: 0 | DF168: 0 | DG168: 0 | DH168: 0 | DI168: 0 | DJ168: 0 | DK168: 0 | DL168: 0 | DM168: 0 | DN168: -1
AS169: 2.505 | AT169: 0 | AU169: 0 | AV169: 1.707432986e-213 | AW169: 0 | AX169: 0 | AY169: 0 | AZ169: 0 | BA169: 0 | BB169: 0 | BC169: 0 | BD169: 0 | BE169: 0 | BF169: 20 | BH169: 137.45 | BI169: 0 | BJ169: 0 | BK169: 0 | BL169: 2.03174389e-76 | BM169: 1.292475032e-119 | BN169: 0 | BO169: 0 | BP169: 0 | BQ169: 0 | BR169: 0 | BS169: 0 | BT169: 0 | BU169: 22 | BW169: 137.45 | BX169: 0 | BY169: 0 | BZ169: 0 | CA169: 0 | CB169: 0 | CC169: 0 | CD169: 0 | CE169: 0 | CF169: 0 | CG169: 0 | CH169: 0 | CI169: 0 | CJ169: 19 | CL169: 137.45 | CM169: 0 | CN169: 0 | CO169: 9.057078406e-160 | CP169: 0 | CQ169: 0 | CR169: 0 | CS169: 0 | CT169: 0 | CU169: 0 | CV169: 0 | CW169: 0 | CX169: 0 | CY169: -1 | DA169: 137.45 | DB169: 0 | DC169: 0 | DD169: 9.057078406e-160 | DE169: 0 | DF169: 0 | DG169: 0 | DH169: 0 | DI169: 0 | DJ169: 0 | DK169: 0 | DL169: 0 | DM169: 0 | DN169: -1
AS170: 2.52 | AT170: 0 | AU170: 0 | AV170: 1.245997015e-205 | AW170: 0 | AX170: 0 | AY170: 0 | AZ170: 0 | BA170: 0 | BB170: 0 | BC170: 0 | BD170: 0 | BE170: 0 | BF170: 20 | BH170: 137.465 | BI170: 0 | BJ170: 0 | BK170: 0 | BL170: 1.746897567e-80 | BM170: 3.36619288e-117 | BN170: 0 | BO170: 0 | BP170: 0 | BQ170: 0 | BR170: 0 | BS170: 0 | BT170: 0 | BU170: 22 | BW170: 137.465 | BX170: 0 | BY170: 0 | BZ170: 0 | CA170: 0 | CB170: 0 | CC170: 0 | CD170: 0 | CE170: 0 | CF170: 0 | CG170: 0 | CH170: 0 | CI170: 0 | CJ170: 19 | CL170: 137.465 | CM170: 0 | CN170: 0 | CO170: 7.539499797e-154 | CP170: 0 | CQ170: 0 | CR170: 0 | CS170: 0 | CT170: 0 | CU170: 0 | CV170: 0 | CW170: 0 | CX170: 0 | CY170: -1 | DA170: 137.465 | DB170: 0 | DC170: 0 | DD170: 7.539499797e-154 | DE170: 0 | DF170: 0 | DG170: 0 | DH170: 0 | DI170: 0 | DJ170: 0 | DK170: 0 | DL170: 0 | DM170: 0 | DN170: -1
AS171: 2.535 | AT171: 0 | AU171: 0 | AV171: 6.478620688e-198 | AW171: 0 | AX171: 0 | AY171: 0 | AZ171: 0 | BA171: 0 | BB171: 0 | BC171: 0 | BD171: 0 | BE171: 0 | BF171: 20 | BH171: 137.48 | BI171: 0 | BJ171: 0 | BK171: 0 | BL171: 1.179839755e-84 | BM171: 8.283776441e-115 | BN171: 0 | BO171: 0 | BP171: 0 | BQ171: 0 | BR171: 0 | BS171: 0 | BT171: 0 | BU171: 22 | BW171: 137.48 | BX171: 0 | BY171: 0 | BZ171: 0 | CA171: 0 | CB171: 0 | CC171: 0 | CD171: 0 | CE171: 0 | CF171: 0 | CG171: 0 | CH171: 0 | CI171: 0 | CJ171: 19 | CL171: 137.48 | CM171: 0 | CN171: 0 | CO171: 4.855251655e-148 | CP171: 0 | CQ171: 0 | CR171: 0 | CS171: 0 | CT171: 0 | CU171: 0 | CV171: 0 | CW171: 0 | CX171: 0 | CY171: -1 | DA171: 137.48 | DB171: 0 | DC171: 0 | DD171: 4.855251655e-148 | DE171: 0 | DF171: 0 | DG171: 0 | DH171: 0 | DI171: 0 | DJ171: 0 | DK171: 0 | DL171: 0 | DM171: 0 | DN171: -1
AS172: 2.55 | AT172: 0 | AU172: 0 | AV172: 2.400160709e-190 | AW172: 0 | AX172: 0 | AY172: 0 | AZ172: 0 | BA172: 0 | BB172: 0 | BC172: 0 | BD172: 0 | BE172: 0 | BF172: 20 | BH172: 137.495 | BI172: 0 | BJ172: 0 | BK172: 0 | BL172: 6.259443434e-89 | BM172: 1.926150779e-112 | BN172: 0 | BO172: 0 | BP172: 0 | BQ172: 0 | BR172: 0 | BS172: 0 | BT172: 0 | BU172: 22 | BW172: 137.495 | BX172: 0 | BY172: 0 | BZ172: 0 | CA172: 0 | CB172: 0 | CC172: 0 | CD172: 0 | CE172: 0 | CF172: 0 | CG172: 0 | CH172: 0 | CI172: 0 | CJ172: 19 | CL172: 137.495 | CM172: 0 | CN172: 0 | CO172: 2.418776613e-142 | CP172: 0 | CQ172: 0 | CR172: 0 | CS172: 0 | CT172: 0 | CU172: 0 | CV172: 0 | CW172: 0 | CX172: 0 | CY172: -1 | DA172: 137.495 | DB172: 0 | DC172: 0 | DD172: 2.418776613e-142 | DE172: 0 | DF172: 0 | DG172: 0 | DH172: 0 | DI172: 0 | DJ172: 0 | DK172: 0 | DL172: 0 | DM172: 0 | DN172: -1
AS173: 2.565 | AT173: 0 | AU173: 0 | AV173: 6.335637305e-183 | AW173: 0 | AX173: 0 | AY173: 0 | AZ173: 0 | BA173: 0 | BB173: 0 | BC173: 0 | BD173: 0 | BE173: 0 | BF173: 20 | BH173: 137.51 | BI173: 0 | BJ173: 0 | BK173: 0 | BL173: 2.60858817e-93 | BM173: 4.231796053e-110 | BN173: 0 | BO173: 0 | BP173: 0 | BQ173: 0 | BR173: 0 | BS173: 0 | BT173: 0 | BU173: 22 | BW173: 137.51 | BX173: 0 | BY173: 0 | BZ173: 0 | CA173: 0 | CB173: 0 | CC173: 0 | CD173: 0 | CE173: 0 | CF173: 0 | CG173: 0 | CH173: 0 | CI173: 0 | CJ173: 19 | CL173: 137.51 | CM173: 0 | CN173: 0 | CO173: 9.321688394e-137 | CP173: 0 | CQ173: 0 | CR173: 0 | CS173: 0 | CT173: 0 | CU173: 0 | CV173: 0 | CW173: 0 | CX173: 0 | CY173: -1 | DA173: 137.51 | DB173: 0 | DC173: 0 | DD173: 9.321688394e-137 | DE173: 0 | DF173: 0 | DG173: 0 | DH173: 0 | DI173: 0 | DJ173: 0 | DK173: 0 | DL173: 0 | DM173: 0 | DN173: -1
AS174: 2.58 | AT174: 0 | AU174: 0 | AV174: 1.191605529e-175 | AW174: 0 | AX174: 0 | AY174: 0 | AZ174: 0 | BA174: 0 | BB174: 0 | BC174: 0 | BD174: 0 | BE174: 0 | BF174: 20 | BH174: 137.525 | BI174: 0 | BJ174: 0 | BK174: 0 | BL174: 8.539499741e-98 | BM174: 8.784796707e-108 | BN174: 0 | BO174: 0 | BP174: 0 | BQ174: 0 | BR174: 0 | BS174: 0 | BT174: 0 | BU174: 22 | BW174: 137.525 | BX174: 0 | BY174: 0 | BZ174: 0 | CA174: 0 | CB174: 0 | CC174: 0 | CD174: 0 | CE174: 0 | CF174: 0 | CG174: 0 | CH174: 0 | CI174: 0 | CJ174: 19 | CL174: 137.525 | CM174: 0 | CN174: 0 | CO174: 2.779125802e-131 | CP174: 0 | CQ174: 0 | CR174: 0 | CS174: 0 | CT174: 0 | CU174: 0 | CV174: 0 | CW174: 0 | CX174: 0 | CY174: -1 | DA174: 137.525 | DB174: 0 | DC174: 0 | DD174: 2.779125802e-131 | DE174: 0 | DF174: 0 | DG174: 0 | DH174: 0 | DI174: 0 | DJ174: 0 | DK174: 0 | DL174: 0 | DM174: 0 | DN174: -1
AS175: 2.595 | AT175: 0 | AU175: 0 | AV175: 1.596860318e-168 | AW175: 0 | AX175: 0 | AY175: 0 | AZ175: 0 | BA175: 0 | BB175: 0 | BC175: 0 | BD175: 0 | BE175: 0 | BF175: 20 | BH175: 137.54 | BI175: 0 | BJ175: 0 | BK175: 0 | BL175: 2.195919659e-102 | BM175: 1.723103007e-105 | BN175: 0 | BO175: 0 | BP175: 0 | BQ175: 0 | BR175: 0 | BS175: 0 | BT175: 0 | BU175: 22 | BW175: 137.54 | BX175: 0 | BY175: 0 | BZ175: 0 | CA175: 0 | CB175: 0 | CC175: 0 | CD175: 0 | CE175: 0 | CF175: 0 | CG175: 0 | CH175: 0 | CI175: 0 | CJ175: 19 | CL175: 137.54 | CM175: 0 | CN175: 0 | CO175: 6.409684252e-126 | CP175: 0 | CQ175: 0 | CR175: 0 | CS175: 0 | CT175: 0 | CU175: 0 | CV175: 0 | CW175: 0 | CX175: 0 | CY175: -1 | DA175: 137.54 | DB175: 0 | DC175: 0 | DD175: 6.409684252e-126 | DE175: 0 | DF175: 0 | DG175: 0 | DH175: 0 | DI175: 0 | DJ175: 0 | DK175: 0 | DL175: 0 | DM175: 0 | DN175: -1
AS176: 2.61 | AT176: 0 | AU176: 0 | AV176: 1.524732175e-161 | AW176: 0 | AX176: 0 | AY176: 0 | AZ176: 0 | BA176: 0 | BB176: 0 | BC176: 0 | BD176: 0 | BE176: 0 | BF176: 20 | BH176: 137.555 | BI176: 0 | BJ176: 0 | BK176: 0 | BL176: 4.435653078e-107 | BM176: 3.193473397e-103 | BN176: 0 | BO176: 0 | BP176: 0 | BQ176: 0 | BR176: 0 | BS176: 0 | BT176: 0 | BU176: 22 | BW176: 137.555 | BX176: 0 | BY176: 0 | BZ176: 2.481841473e-307 | CA176: 0 | CB176: 0 | CC176: 0 | CD176: 0 | CE176: 0 | CF176: 0 | CG176: 0 | CH176: 0 | CI176: 0 | CJ176: 19 | CL176: 137.555 | CM176: 0 | CN176: 0 | CO176: 1.143615073e-120 | CP176: 0 | CQ176: 0 | CR176: 0 | CS176: 0 | CT176: 0 | CU176: 0 | CV176: 0 | CW176: 0 | CX176: 0 | CY176: -1 | DA176: 137.555 | DB176: 0 | DC176: 0 | DD176: 1.143615073e-120 | DE176: 0 | DF176: 0 | DG176: 0 | DH176: 0 | DI176: 0 | DJ176: 0 | DK176: 0 | DL176: 0 | DM176: 0 | DN176: -1
AS177: 2.625 | AT177: 0 | AU177: 0 | AV177: 1.037319204e-154 | AW177: 0 | AX177: 0 | AY177: 0 | AZ177: 0 | BA177: 0 | BB177: 0 | BC177: 0 | BD177: 0 | BE177: 0 | BF177: 20 | BH177: 137.57 | BI177: 0 | BJ177: 0 | BK177: 0 | BL177: 7.038106018e-112 | BM177: 5.592267059e-101 | BN177: 0 | BO177: 0 | BP177: 0 | BQ177: 0 | BR177: 0 | BS177: 0 | BT177: 0 | BU177: 22 | BW177: 137.57 | BX177: 0 | BY177: 0 | BZ177: 6.92798255e-298 | CA177: 0 | CB177: 0 | CC177: 0 | CD177: 0 | CE177: 0 | CF177: 0 | CG177: 0 | CH177: 0 | CI177: 0 | CJ177: 19 | CL177: 137.57 | CM177: 0 | CN177: 0 | CO177: 1.578475734e-115 | CP177: 0 | CQ177: 0 | CR177: 0 | CS177: 0 | CT177: 0 | CU177: 0 | CV177: 0 | CW177: 0 | CX177: 0 | CY177: -1 | DA177: 137.57 | DB177: 0 | DC177: 0 | DD177: 1.578475734e-115 | DE177: 0 | DF177: 0 | DG177: 0 | DH177: 0 | DI177: 0 | DJ177: 0 | DK177: 0 | DL177: 0 | DM177: 0 | DN177: -1
AS178: 2.64 | AT178: 0 | AU178: 0 | AV178: 5.028326712e-148 | AW178: 0 | AX178: 0 | AY178: 0 | AZ178: 0 | BA178: 0 | BB178: 0 | BC178: 0 | BD178: 0 | BE178: 0 | BF178: 20 | BH178: 137.585 | BI178: 0 | BJ178: 0 | BK178: 0 | BL178: 8.772252931e-117 | BM178: 9.253052818e-99 | BN178: 0 | BO178: 0 | BP178: 0 | BQ178: 0 | BR178: 0 | BS178: 0 | BT178: 0 | BU178: 22 | BW178: 137.585 | BX178: 0 | BY178: 0 | BZ178: 1.377944576e-288 | CA178: 0 | CB178: 0 | CC178: 0 | CD178: 0 | CE178: 0 | CF178: 0 | CG178: 0 | CH178: 0 | CI178: 0 | CJ178: 19 | CL178: 137.585 | CM178: 0 | CN178: 0 | CO178: 1.685430131e-110 | CP178: 0 | CQ178: 0 | CR178: 0 | CS178: 0 | CT178: 0 | CU178: 0 | CV178: 0 | CW178: 0 | CX178: 0 | CY178: -1 | DA178: 137.585 | DB178: 0 | DC178: 0 | DD178: 1.685430131e-110 | DE178: 0 | DF178: 0 | DG178: 0 | DH178: 0 | DI178: 0 | DJ178: 0 | DK178: 0 | DL178: 0 | DM178: 0 | DN178: -1
AS179: 2.655 | AT179: 0 | AU179: 0 | AV179: 1.73670788e-141 | AW179: 0 | AX179: 0 | AY179: 0 | AZ179: 0 | BA179: 0 | BB179: 0 | BC179: 0 | BD179: 0 | BE179: 0 | BF179: 20 | BH179: 137.6 | BI179: 0 | BJ179: 0 | BK179: 0 | BL179: 8.588624069e-122 | BM179: 1.44662084e-96 | BN179: 0 | BO179: 0 | BP179: 0 | BQ179: 0 | BR179: 0 | BS179: 0 | BT179: 0 | BU179: 22 | BW179: 137.6 | BX179: 0 | BY179: 0 | BZ179: 1.952760273e-279 | CA179: 0 | CB179: 0 | CC179: 0 | CD179: 0 | CE179: 0 | CF179: 0 | CG179: 0 | CH179: 0 | CI179: 0 | CJ179: 19 | CL179: 137.6 | CM179: 0 | CN179: 0 | CO179: 1.392189655e-105 | CP179: 0 | CQ179: 0 | CR179: 0 | CS179: 0 | CT179: 0 | CU179: 0 | CV179: 0 | CW179: 0 | CX179: 0 | CY179: -1 | DA179: 137.6 | DB179: 0 | DC179: 0 | DD179: 1.392189655e-105 | DE179: 0 | DF179: 0 | DG179: 0 | DH179: 0 | DI179: 0 | DJ179: 0 | DK179: 0 | DL179: 0 | DM179: 0 | DN179: -1
AS180: 2.67 | AT180: 0 | AU180: 0 | AV180: 4.273879553e-135 | AW180: 0 | AX180: 0 | AY180: 0 | AZ180: 0 | BA180: 0 | BB180: 0 | BC180: 0 | BD180: 0 | BE180: 0 | BF180: 20 | BH180: 137.615 | BI180: 0 | BJ180: 0 | BK180: 0 | BL180: 6.605309171e-127 | BM180: 2.136962649e-94 | BN180: 0 | BO180: 0 | BP180: 0 | BQ180: 0 | BR180: 0 | BS180: 0 | BT180: 0 | BU180: 22 | BW180: 137.615 | BX180: 0 | BY180: 0 | BZ180: 1.97177942e-270 | CA180: 0 | CB180: 0 | CC180: 0 | CD180: 0 | CE180: 0 | CF180: 0 | CG180: 0 | CH180: 0 | CI180: 0 | CJ180: 19 | CL180: 137.615 | CM180: 0 | CN180: 0 | CO180: 8.896124569e-101 | CP180: 0 | CQ180: 0 | CR180: 0 | CS180: 0 | CT180: 0 | CU180: 0 | CV180: 0 | CW180: 0 | CX180: 0 | CY180: -1 | DA180: 137.615 | DB180: 0 | DC180: 0 | DD180: 8.896124569e-101 | DE180: 0 | DF180: 0 | DG180: 0 | DH180: 0 | DI180: 0 | DJ180: 0 | DK180: 0 | DL180: 0 | DM180: 0 | DN180: -1
AS181: 2.685 | AT181: 0 | AU181: 0 | AV181: 7.493936338e-129 | AW181: 0 | AX181: 0 | AY181: 0 | AZ181: 0 | BA181: 0 | BB181: 0 | BC181: 0 | BD181: 0 | BE181: 0 | BF181: 20 | BH181: 137.63 | BI181: 0 | BJ181: 0 | BK181: 0 | BL181: 3.990431081e-132 | BM181: 2.982714486e-92 | BN181: 0 | BO181: 0 | BP181: 0 | BQ181: 0 | BR181: 0 | BS181: 0 | BT181: 0 | BU181: 22 | BW181: 137.63 | BX181: 0 | BY181: 0 | BZ181: 1.418599965e-261 | CA181: 0 | CB181: 0 | CC181: 0 | CD181: 0 | CE181: 0 | CF181: 0 | CG181: 0 | CH181: 0 | CI181: 0 | CJ181: 19 | CL181: 137.63 | CM181: 0 | CN181: 0 | CO181: 4.397624196e-96 | CP181: 0 | CQ181: 0 | CR181: 0 | CS181: 0 | CT181: 0 | CU181: 0 | CV181: 0 | CW181: 0 | CX181: 0 | CY181: -1 | DA181: 137.63 | DB181: 0 | DC181: 0 | DD181: 4.397624196e-96 | DE181: 0 | DF181: 0 | DG181: 0 | DH181: 0 | DI181: 0 | DJ181: 0 | DK181: 0 | DL181: 0 | DM181: 0 | DN181: -1
AS182: 2.7 | AT182: 0 | AU182: 0 | AV182: 9.362459176e-123 | AW182: 0 | AX182: 0 | AY182: 0 | AZ182: 0 | BA182: 0 | BB182: 0 | BC182: 0 | BD182: 0 | BE182: 0 | BF182: 20 | BH182: 137.645 | BI182: 0 | BJ182: 0 | BK182: 0 | BL182: 1.893666894e-137 | BM182: 3.933679507e-90 | BN182: 0 | BO182: 0 | BP182: 0 | BQ182: 0 | BR182: 0 | BS182: 0 | BT182: 0 | BU182: 22 | BW182: 137.645 | BX182: 0 | BY182: 0 | BZ182: 7.271998441e-253 | CA182: 0 | CB182: 0 | CC182: 0 | CD182: 0 | CE182: 0 | CF182: 0 | CG182: 0 | CH182: 0 | CI182: 0 | CJ182: 19 | CL182: 137.645 | CM182: 0 | CN182: 0 | CO182: 1.681706396e-91 | CP182: 0 | CQ182: 0 | CR182: 0 | CS182: 0 | CT182: 0 | CU182: 0 | CV182: 0 | CW182: 0 | CX182: 0 | CY182: -1 | DA182: 137.645 | DB182: 0 | DC182: 0 | DD182: 1.681706396e-91 | DE182: 0 | DF182: 0 | DG182: 0 | DH182: 0 | DI182: 0 | DJ182: 0 | DK182: 0 | DL182: 0 | DM182: 0 | DN182: -1
AS183: 2.715 | AT183: 0 | AU183: 0 | AV183: 8.334164946e-117 | AW183: 0 | AX183: 0 | AY183: 0 | AZ183: 0 | BA183: 0 | BB183: 0 | BC183: 0 | BD183: 0 | BE183: 0 | BF183: 20 | BH183: 137.66 | BI183: 0 | BJ183: 0 | BK183: 0 | BL183: 7.059020882e-143 | BM183: 4.901836272e-88 | BN183: 0 | BO183: 0 | BP183: 0 | BQ183: 0 | BR183: 0 | BS183: 0 | BT183: 0 | BU183: 22 | BW183: 137.66 | BX183: 0 | BY183: 0 | BZ183: 2.656071894e-244 | CA183: 0 | CB183: 0 | CC183: 0 | CD183: 0 | CE183: 0 | CF183: 0 | CG183: 0 | CH183: 0 | CI183: 0 | CJ183: 19 | CL183: 137.66 | CM183: 0 | CN183: 0 | CO183: 4.975045343e-87 | CP183: 0 | CQ183: 0 | CR183: 0 | CS183: 0 | CT183: 0 | CU183: 0 | CV183: 0 | CW183: 0 | CX183: 0 | CY183: -1 | DA183: 137.66 | DB183: 0 | DC183: 0 | DD183: 4.975045343e-87 | DE183: 0 | DF183: 0 | DG183: 0 | DH183: 0 | DI183: 0 | DJ183: 0 | DK183: 0 | DL183: 0 | DM183: 0 | DN183: -1
AS184: 2.73 | AT184: 0 | AU184: 0 | AV184: 5.285991532e-111 | AW184: 0 | AX184: 0 | AY184: 0 | AZ184: 0 | BA184: 0 | BB184: 0 | BC184: 0 | BD184: 0 | BE184: 0 | BF184: 20 | BH184: 137.675 | BI184: 0 | BJ184: 0 | BK184: 0 | BL184: 2.067009414e-148 | BM184: 5.771532784e-86 | BN184: 0 | BO184: 0 | BP184: 0 | BQ184: 0 | BR184: 0 | BS184: 0 | BT184: 0 | BU184: 22 | BW184: 137.675 | BX184: 0 | BY184: 0 | BZ184: 6.912228595e-236 | CA184: 0 | CB184: 0 | CC184: 0 | CD184: 0 | CE184: 0 | CF184: 0 | CG184: 0 | CH184: 0 | CI184: 0 | CJ184: 19 | CL184: 137.675 | CM184: 0 | CN184: 0 | CO184: 1.138567323e-82 | CP184: 0 | CQ184: 0 | CR184: 0 | CS184: 0 | CT184: 0 | CU184: 0 | CV184: 0 | CW184: 0 | CX184: 0 | CY184: -1 | DA184: 137.675 | DB184: 0 | DC184: 0 | DD184: 1.138567323e-82 | DE184: 0 | DF184: 0 | DG184: 0 | DH184: 0 | DI184: 0 | DJ184: 0 | DK184: 0 | DL184: 0 | DM184: 0 | DN184: -1
AS185: 2.745 | AT185: 0 | AU185: 0 | AV185: 2.388817937e-105 | AW185: 0 | AX185: 0 | AY185: 0 | AZ185: 0 | BA185: 0 | BB185: 0 | BC185: 0 | BD185: 0 | BE185: 0 | BF185: 20 | BH185: 137.69 | BI185: 0 | BJ185: 0 | BK185: 0 | BL185: 4.754420067e-154 | BM185: 6.42090243e-84 | BN185: 0 | BO185: 0 | BP185: 0 | BQ185: 0 | BR185: 0 | BS185: 0 | BT185: 0 | BU185: 22 | BW185: 137.69 | BX185: 0 | BY185: 0 | BZ185: 1.281706466e-227 | CA185: 0 | CB185: 0 | CC185: 0 | CD185: 0 | CE185: 0 | CF185: 0 | CG185: 0 | CH185: 0 | CI185: 0 | CJ185: 19 | CL185: 137.69 | CM185: 0 | CN185: 0 | CO185: 2.015743146e-78 | CP185: 0 | CQ185: 0 | CR185: 0 | CS185: 0 | CT185: 0 | CU185: 0 | CV185: 0 | CW185: 0 | CX185: 0 | CY185: -1 | DA185: 137.69 | DB185: 0 | DC185: 0 | DD185: 2.015743146e-78 | DE185: 0 | DF185: 0 | DG185: 0 | DH185: 0 | DI185: 0 | DJ185: 0 | DK185: 0 | DL185: 0 | DM185: 0 | DN185: -1
AS186: 2.76 | AT186: 0 | AU186: 0 | AV186: 7.691868604e-100 | AW186: 0 | AX186: 0 | AY186: 0 | AZ186: 0 | BA186: 0 | BB186: 0 | BC186: 0 | BD186: 0 | BE186: 0 | BF186: 20 | BH186: 137.705 | BI186: 0 | BJ186: 0 | BK186: 0 | BL186: 8.590328144e-160 | BM186: 6.749529692e-82 | BN186: 0 | BO186: 0 | BP186: 0 | BQ186: 0 | BR186: 0 | BS186: 0 | BT186: 0 | BU186: 22 | BW186: 137.705 | BX186: 0 | BY186: 0 | BZ186: 1.693367714e-219 | CA186: 0 | CB186: 0 | CC186: 0 | CD186: 0 | CE186: 0 | CF186: 0 | CG186: 0 | CH186: 0 | CI186: 0 | CJ186: 19 | CL186: 137.705 | CM186: 0 | CN186: 0 | CO186: 2.760746137e-74 | CP186: 0 | CQ186: 0 | CR186: 0 | CS186: 0 | CT186: 0 | CU186: 0 | CV186: 0 | CW186: 0 | CX186: 0 | CY186: -1 | DA186: 137.705 | DB186: 0 | DC186: 0 | DD186: 2.760746137e-74 | DE186: 0 | DF186: 0 | DG186: 0 | DH186: 0 | DI186: 0 | DJ186: 0 | DK186: 0 | DL186: 0 | DM186: 0 | DN186: -1
AS187: 2.775 | AT187: 0 | AU187: 0 | AV187: 1.7647081e-94 | AW187: 0 | AX187: 0 | AY187: 0 | AZ187: 0 | BA187: 0 | BB187: 0 | BC187: 0 | BD187: 0 | BE187: 0 | BF187: 20 | BH187: 137.72 | BI187: 0 | BJ187: 0 | BK187: 0 | BL187: 1.219211542e-165 | BM187: 6.703837703e-80 | BN187: 0 | BO187: 0 | BP187: 0 | BQ187: 0 | BR187: 0 | BS187: 0 | BT187: 0 | BU187: 22 | BW187: 137.72 | BX187: 0 | BY187: 0 | BZ187: 1.594065608e-211 | CA187: 0 | CB187: 0 | CC187: 0 | CD187: 0 | CE187: 0 | CF187: 0 | CG187: 0 | CH187: 0 | CI187: 0 | CJ187: 19 | CL187: 137.72 | CM187: 0 | CN187: 0 | CO187: 2.925045049e-70 | CP187: 0 | CQ187: 0 | CR187: 0 | CS187: 0 | CT187: 0 | CU187: 0 | CV187: 0 | CW187: 0 | CX187: 0 | CY187: -1 | DA187: 137.72 | DB187: 0 | DC187: 0 | DD187: 2.925045049e-70 | DE187: 0 | DF187: 0 | DG187: 0 | DH187: 0 | DI187: 0 | DJ187: 0 | DK187: 0 | DL187: 0 | DM187: 0 | DN187: -1
AS188: 2.79 | AT188: 0 | AU188: 0 | AV188: 2.884736292e-89 | AW188: 0 | AX188: 0 | AY188: 0 | AZ188: 0 | BA188: 0 | BB188: 0 | BC188: 0 | BD188: 0 | BE188: 0 | BF188: 20 | BH188: 137.735 | BI188: 0 | BJ188: 0 | BK188: 0 | BL188: 1.359269227e-171 | BM188: 6.291381329e-78 | BN188: 0 | BO188: 0 | BP188: 0 | BQ188: 0 | BR188: 0 | BS188: 0 | BT188: 0 | BU188: 22 | BW188: 137.735 | BX188: 0 | BY188: 0 | BZ188: 1.069186153e-203 | CA188: 0 | CB188: 0 | CC188: 0 | CD188: 0 | CE188: 0 | CF188: 0 | CG188: 0 | CH188: 0 | CI188: 0 | CJ188: 19 | CL188: 137.735 | CM188: 0 | CN188: 0 | CO188: 2.397471481e-66 | CP188: 0 | CQ188: 0 | CR188: 0 | CS188: 0 | CT188: 0 | CU188: 0 | CV188: 0 | CW188: 0 | CX188: 0 | CY188: -1 | DA188: 137.735 | DB188: 0 | DC188: 0 | DD188: 2.397471481e-66 | DE188: 0 | DF188: 0 | DG188: 0 | DH188: 0 | DI188: 0 | DJ188: 0 | DK188: 0 | DL188: 0 | DM188: 0 | DN188: -1
AS189: 2.805 | AT189: 0 | AU189: 0 | AV189: 3.359940404e-84 | AW189: 0 | AX189: 0 | AY189: 0 | AZ189: 0 | BA189: 0 | BB189: 0 | BC189: 0 | BD189: 0 | BE189: 0 | BF189: 20 | BH189: 137.75 | BI189: 0 | BJ189: 0 | BK189: 0 | BL189: 1.190389293e-177 | BM189: 5.578803497e-76 | BN189: 0 | BO189: 0 | BP189: 0 | BQ189: 0 | BR189: 0 | BS189: 0 | BT189: 0 | BU189: 22 | BW189: 137.75 | BX189: 0 | BY189: 0 | BZ189: 5.109667925e-196 | CA189: 0 | CB189: 0 | CC189: 0 | CD189: 0 | CE189: 0 | CF189: 0 | CG189: 0 | CH189: 0 | CI189: 0 | CJ189: 19 | CL189: 137.75 | CM189: 0 | CN189: 0 | CO189: 1.520159455e-62 | CP189: 0 | CQ189: 0 | CR189: 0 | CS189: 0 | CT189: 0 | CU189: 0 | CV189: 0 | CW189: 0 | CX189: 0 | CY189: -1 | DA189: 137.75 | DB189: 0 | DC189: 0 | DD189: 1.520159455e-62 | DE189: 0 | DF189: 0 | DG189: 0 | DH189: 0 | DI189: 0 | DJ189: 0 | DK189: 0 | DL189: 0 | DM189: 0 | DN189: -1
AS190: 2.82 | AT190: 0 | AU190: 0 | AV190: 2.78836259e-79 | AW190: 0 | AX190: 0 | AY190: 0 | AZ190: 0 | BA190: 0 | BB190: 0 | BC190: 0 | BD190: 0 | BE190: 0 | BF190: 20 | BH190: 137.765 | BI190: 0 | BJ190: 0 | BK190: 0 | BL190: 8.188976919e-184 | BM190: 4.674214709e-74 | BN190: 0 | BO190: 0 | BP190: 0 | BQ190: 0 | BR190: 0 | BS190: 0 | BT190: 0 | BU190: 22 | BW190: 137.765 | BX190: 0 | BY190: 0 | BZ190: 1.739899823e-188 | CA190: 0 | CB190: 0 | CC190: 0 | CD190: 0 | CE190: 0 | CF190: 0 | CG190: 0 | CH190: 0 | CI190: 0 | CJ190: 19 | CL190: 137.765 | CM190: 0 | CN190: 0 | CO190: 7.456579371e-59 | CP190: 0 | CQ190: 0 | CR190: 0 | CS190: 0 | CT190: 0 | CU190: 0 | CV190: 0 | CW190: 0 | CX190: 0 | CY190: -1 | DA190: 137.765 | DB190: 0 | DC190: 0 | DD190: 7.456579371e-59 | DE190: 0 | DF190: 0 | DG190: 0 | DH190: 0 | DI190: 0 | DJ190: 0 | DK190: 0 | DL190: 0 | DM190: 0 | DN190: -1
AS191: 2.835 | AT191: 0 | AU191: 0 | AV191: 1.648766434e-74 | AW191: 0 | AX191: 0 | AY191: 0 | AZ191: 0 | BA191: 0 | BB191: 0 | BC191: 0 | BD191: 0 | BE191: 0 | BF191: 20 | BH191: 137.78 | BI191: 0 | BJ191: 0 | BK191: 0 | BL191: 4.425143819e-190 | BM191: 3.700400994e-72 | BN191: 0 | BO191: 0 | BP191: 0 | BQ191: 0 | BR191: 0 | BS191: 0 | BT191: 0 | BU191: 22 | BW191: 137.78 | BX191: 0 | BY191: 0 | BZ191: 4.221317601e-181 | CA191: 0 | CB191: 0 | CC191: 0 | CD191: 0 | CE191: 0 | CF191: 0 | CG191: 0 | CH191: 0 | CI191: 0 | CJ191: 19 | CL191: 137.78 | CM191: 0 | CN191: 0 | CO191: 2.829469063e-55 | CP191: 0 | CQ191: 0 | CR191: 0 | CS191: 0 | CT191: 0 | CU191: 0 | CV191: 0 | CW191: 0 | CX191: 0 | CY191: -1 | DA191: 137.78 | DB191: 0 | DC191: 0 | DD191: 2.829469063e-55 | DE191: 0 | DF191: 0 | DG191: 0 | DH191: 0 | DI191: 0 | DJ191: 0 | DK191: 0 | DL191: 0 | DM191: 0 | DN191: -1
AS192: 2.85 | AT192: 0 | AU192: 0 | AV192: 6.94642329e-70 | AW192: 0 | AX192: 0 | AY192: 0 | AZ192: 0 | BA192: 0 | BB192: 0 | BC192: 0 | BD192: 0 | BE192: 0 | BF192: 20 | BH192: 137.795 | BI192: 0 | BJ192: 0 | BK192: 0 | BL192: 1.878374746e-196 | BM192: 2.767970505e-70 | BN192: 0 | BO192: 0 | BP192: 0 | BQ192: 0 | BR192: 0 | BS192: 0 | BT192: 0 | BU192: 22 | BW192: 137.795 | BX192: 0 | BY192: 0 | BZ192: 7.297330733e-174 | CA192: 0 | CB192: 0 | CC192: 0 | CD192: 0 | CE192: 0 | CF192: 0 | CG192: 0 | CH192: 0 | CI192: 0 | CJ192: 19 | CL192: 137.795 | CM192: 0 | CN192: 0 | CO192: 8.305868655e-52 | CP192: 0 | CQ192: 0 | CR192: 0 | CS192: 0 | CT192: 0 | CU192: 0 | CV192: 0 | CW192: 0 | CX192: 0 | CY192: -1 | DA192: 137.795 | DB192: 0 | DC192: 0 | DD192: 8.305868655e-52 | DE192: 0 | DF192: 0 | DG192: 0 | DH192: 0 | DI192: 0 | DJ192: 0 | DK192: 0 | DL192: 0 | DM192: 0 | DN192: -1
AS193: 2.865 | AT193: 0 | AU193: 0 | AV193: 2.085237699e-65 | AW193: 0 | AX193: 0 | AY193: 0 | AZ193: 0 | BA193: 0 | BB193: 0 | BC193: 0 | BD193: 0 | BE193: 0 | BF193: 20 | BH193: 137.81 | BI193: 0 | BJ193: 0 | BK193: 0 | BL193: 6.263169995e-203 | BM193: 1.956350497e-68 | BN193: 0 | BO193: 0 | BP193: 0 | BQ193: 0 | BR193: 0 | BS193: 0 | BT193: 0 | BU193: 22 | BW193: 137.81 | BX193: 0 | BY193: 0 | BZ193: 8.988190083e-167 | CA193: 0 | CB193: 0 | CC193: 0 | CD193: 0 | CE193: 0 | CF193: 0 | CG193: 0 | CH193: 0 | CI193: 0 | CJ193: 19 | CL193: 137.81 | CM193: 0 | CN193: 0 | CO193: 1.886166266e-48 | CP193: 0 | CQ193: 0 | CR193: 0 | CS193: 0 | CT193: 0 | CU193: 0 | CV193: 0 | CW193: 0 | CX193: 0 | CY193: -1 | DA193: 137.81 | DB193: 0 | DC193: 0 | DD193: 1.886166266e-48 | DE193: 0 | DF193: 0 | DG193: 0 | DH193: 0 | DI193: 0 | DJ193: 0 | DK193: 0 | DL193: 0 | DM193: 0 | DN193: -1
AS194: 2.88 | AT194: =$B$42*NORMDIST($AS194,$B$39,$B$43*$B$39,FALSE) -> 0 | AU194: =B$4*IF(B$4>0,NORMDIST($AS194,P$17,Q$17/4,FALSE),0) -> 0 | AV194: =B$5*IF(B$5>0,NORMDIST($AS194,P$18,Q$18/4,FALSE),0) -> 4.460074453e-61 | AW194: =B$6*IF(B$6>0,NORMDIST($AS194,P$19,Q$19/4,FALSE),0) -> 0 | AX194: =B$7*IF(B$7>0,NORMDIST($AS194,P$20,Q$20/4,FALSE),0) -> 0 | AY194: =B$8*IF(B$8>0,NORMDIST($AS194,P$21,Q$21/4,FALSE),0) -> 0 | AZ194: =B$9*IF(B$9>0,NORMDIST($AS194,P$22,$Q$22/4,FALSE),0) -> 0 | BA194: =$B$10*IF($B$10>0,NORMDIST($AS194,P$23,$Q$23/4,FALSE),0) -> 0 | BB194: =$B$11*IF($B$11>0,NORMDIST($AS194,P$24,$Q$24/4,FALSE),0) -> 0 | BC194: =$B$12*IF($B$12>0,NORMDIST($AS194,$P$25,$Q$25/4,FALSE),0) -> 0 | BD194: =$B$13*IF($B$13>0,NORMDIST($AS194,$P$26,$Q$26/4,FALSE),0) -> 0 | BE194: =$B$14*IF($B$14>0,NORMDIST($AS194,$P$27,$Q$27/4,FALSE),0) -> 0 | BF194: =IF($M$39<>0,SUM(AT194:BE194)*$M$39+$L$39,-1) -> 20 | BH194: 137.825 | BI194: =$B$42*NORMDIST($AS194,$B$39,$B$43*$B$39,FALSE) -> 0 | BJ194: =IF(B$4>0,B$4*NORMDIST($AS194,P$31,Q$31/4,FALSE),0) -> 0 | BK194: =IF(B$5>0,B$5*NORMDIST($AS194,P$32,Q$32/4,FALSE),0) -> 0 | BL194: =IF(B$6>0,B$6*NORMDIST($AS194,P$33,Q$33/4,FALSE),0) -> 1.640451013e-209 | BM194: =IF(B$7>0,B$7*NORMDIST($AS194,P$34,Q$34/4,FALSE),0) -> 1.306484946e-66 | BN194: =IF(B$8>0,B$8*NORMDIST($AS194,P$35,Q$35/4,FALSE),0) -> 0 | BO194: =IF(B$9>0,B$9*NORMDIST($AS194,P$36,Q$36/4,FALSE),0) -> 0 | BP194: =IF($B$10>0,$B$10*NORMDIST($AS194,$P$37,$Q$37/4,FALSE),0) -> 0 | BQ194: =IF($B$11>0,$B$11*NORMDIST($AS194,$P$38,$Q$38/4,FALSE),0) -> 0 | BR194: =IF($B$12>0,$B$12*NORMDIST($AS194,$P$39,$Q$39/4,FALSE),0) -> 0 | BS194: =IF($B$13>0,$B$13*NORMDIST($AS194,$P$40,$Q$40/4,FALSE),0) -> 0 | BT194: =IF($B$14>0,$B$14*NORMDIST($AS194,$P$41,$Q$41/4,FALSE),0) -> 0 | BU194: =IF($M$41<>0,SUM(BI194:BT194)*$M$41+$L$41,-1) -> 22 | BW194: 137.825 | BX194: =$B$42*NORMDIST($AS194,$B$39,$B$43*$B$39,FALSE) -> 0 | BY194: =IF(B$4>0,B$4*NORMDIST($AS194,X$17,Y$17/4,FALSE),0) -> 0 | BZ194: =IF(B$5>0,B$5*NORMDIST($AS194,X$18,Y$18/4,FALSE),0) -> 7.888105012e-160 | CA194: =IF(B$6>0,B$6*NORMDIST($AS194,X$19,Y$19/4,FALSE),0) -> 0 | CB194: =IF(B$7>0,B$7*NORMDIST($AS194,X$20,Y$20/4,FALSE),0) -> 0 | CC194: =IF(B$8>0,B$8*NORMDIST($AS194,X$21,Y$21/4,FALSE),0) -> 0 | CD194: =IF(B$9>0,B$9*NORMDIST($AS194,X$22,Y$22/4,FALSE),0) -> 0 | CE194: =IF($B$10>0,$B$10*NORMDIST($AS194,$X$23,$Y$23/4,FALSE),0) -> 0 | CF194: =IF($B$11>0,$B$11*NORMDIST($AS194,$X$24,$Y$24/4,FALSE),0) -> 0 | CG194: =IF($B$12>0,$B$12*NORMDIST($AS194,$X$25,$Y$25/4,FALSE),0) -> 0 | CH194: =IF($B$13>0,$B$13*NORMDIST($AS194,$X$26,$Y$26/4,FALSE),0) -> 0 | CI194: =IF($B$14>0,$B$14*NORMDIST($AS194,$X$27,$Y$27/4,FALSE),0) -> 0 | CJ194: =IF($M$43<>0,SUM(BX194:CI194)*$M$43+$L$43,-1) -> 19 | CL194: 137.825 | CM194: =$B$42*NORMDIST($AS194,$B$39,$B$43*$B$39,FALSE) -> 0 | CN194: =IF($T$17>0,$B$4*NORMDIST($AS194,$T$17,$U$17/4,FALSE),0) -> 0 | CO194: =IF($T$18>0,$B$5*NORMDIST($AS194,$T$18,$U$18/4,FALSE),0) -> 3.313520729e-45 | CP194: =IF($T$19>0,$B$6*NORMDIST($AS194,$T$19,$U$19/4,FALSE),0) -> 0 | CQ194: =IF($T$20>0,$B$7*NORMDIST($AS194,$T$20,$U$20/4,FALSE),0) -> 0 | CR194: =IF($T$21>0,$B$8*NORMDIST($AS194,$T$21,$U$21/4,FALSE),0) -> 0 | CS194: =IF($T$22>0,$B$9*NORMDIST($AS194,$T$22,$U$22/4,FALSE),0) -> 0 | CT194: =IF($T$23>0,$B$10*NORMDIST($AS194,$T$23,$U$23/4,FALSE),0) -> 0 | CU194: =IF($T$24>0,$B$11*NORMDIST($AS194,$T$24,$U$24/4,FALSE),0) -> 0 | CV194: =IF($T$25>0,$B$12*NORMDIST($AS194,$T$25,$U$25/4,FALSE),0) -> 0 | CW194: =IF($T$26>0,$B$13*NORMDIST($AS194,$T$26,$U$26/4,FALSE),0) -> 0 | CX194: =IF($T$27>0,$B$14*NORMDIST($AS194,$T$27,$U$27/4,FALSE),0) -> 0 | CY194: =IF($M$40<>0,SUM(CM194:CX194)*$M$40+$L$40,-1) -> -1 | DA194: 137.825 | DB194: =$B$42*NORMDIST($AS194,$B$39,$B$43*$B$39,FALSE) -> 0 | DC194: =IF($T$31>0,$B$4*NORMDIST($AS194,$T$31,$U$31/4,FALSE),0) -> 0 | DD194: =IF($T$32>0,$B$5*NORMDIST($AS194,$T$32,$U$32/4,FALSE),0) -> 3.313520729e-45 | DE194: =IF($T$33>0,$B$6*NORMDIST($AS194,$T$33,$U$33/4,FALSE),0) -> 0 | DF194: =IF($T$34>0,$B$7*NORMDIST($AS194,$T$34,$U$34/4,FALSE),0) -> 0 | DG194: =IF($T$35>0,$B$8*NORMDIST($AS194,$T$35,$U$35/4,FALSE),0) -> 0 | DH194: =IF($T$36>0,$B$9*NORMDIST($AS194,$T$36,$U$36/4,FALSE),0) -> 0 | DI194: =IF($T$37>0,$B$10*NORMDIST($AS194,$T$37,$U$37/4,FALSE),0) -> 0 | DJ194: =IF($T$38>0,$B$11*NORMDIST($AS194,$T$38,$U$38/4,FALSE),0) -> 0 | DK194: =IF($T$39>0,$B$12*NORMDIST($AS194,$T$39,$U$39/4,FALSE),0) -> 0 | DL194: =IF($T$40>0,$B$13*NORMDIST($AS194,$T$40,$U$40/4,FALSE),0) -> 0 | DM194: =IF($T$41>0,$B$14*NORMDIST($AS194,$T$41,$U$41/4,FALSE),0) -> 0 | DN194: =IF($M$42<>0,SUM(DB194:DM194)*$M$42+$L$42,-1) -> -1
AS195: =AS194+$B$44 -> 2.895 | AT195: 0 | AU195: 0 | AV195: 6.797056284e-57 | AW195: 0 | AX195: 0 | AY195: 0 | AZ195: 0 | BA195: 0 | BB195: 0 | BC195: 0 | BD195: 0 | BE195: 0 | BF195: 20 | BH195: 137.84 | BI195: 0 | BJ195: 0 | BK195: 0 | BL195: 3.375121725e-216 | BM195: 8.243937544e-65 | BN195: 0 | BO195: 0 | BP195: 0 | BQ195: 0 | BR195: 0 | BS195: 0 | BT195: 0 | BU195: 22 | BW195: 137.84 | BX195: 0 | BY195: 0 | BZ195: 4.932480032e-153 | CA195: 0 | CB195: 0 | CC195: 0 | CD195: 0 | CE195: 0 | CF195: 0 | CG195: 0 | CH195: 0 | CI195: 0 | CJ195: 19 | CL195: 137.84 | CM195: 0 | CN195: 0 | CO195: 4.503127206e-42 | CP195: 0 | CQ195: 0 | CR195: 0 | CS195: 0 | CT195: 0 | CU195: 0 | CV195: 0 | CW195: 0 | CX195: 0 | CY195: -1 | DA195: 137.84 | DB195: 0 | DC195: 0 | DD195: 4.503127206e-42 | DE195: 0 | DF195: 0 | DG195: 0 | DH195: 0 | DI195: 0 | DJ195: 0 | DK195: 0 | DL195: 0 | DM195: 0 | DN195: -1
AS196: 2.91 | AT196: 0 | AU196: 0 | AV196: 7.38060292e-53 | AW196: 0 | AX196: 0 | AY196: 0 | AZ196: 0 | BA196: 0 | BB196: 0 | BC196: 0 | BD196: 0 | BE196: 0 | BF196: 20 | BH196: 137.855 | BI196: 0 | BJ196: 0 | BK196: 0 | BL196: 5.45472327e-223 | BM196: 4.915158347e-63 | BN196: 0 | BO196: 0 | BP196: 0 | BQ196: 0 | BR196: 0 | BS196: 0 | BT196: 0 | BU196: 22 | BW196: 137.855 | BX196: 0 | BY196: 0 | BZ196: 2.197607886e-146 | CA196: 0 | CB196: 0 | CC196: 0 | CD196: 0 | CE196: 0 | CF196: 0 | CG196: 0 | CH196: 0 | CI196: 0 | CJ196: 19 | CL196: 137.855 | CM196: 0 | CN196: 0 | CO196: 4.734275677e-39 | CP196: 0 | CQ196: 0 | CR196: 0 | CS196: 0 | CT196: 0 | CU196: 0 | CV196: 0 | CW196: 0 | CX196: 0 | CY196: -1 | DA196: 137.855 | DB196: 0 | DC196: 0 | DD196: 4.734275677e-39 | DE196: 0 | DF196: 0 | DG196: 0 | DH196: 0 | DI196: 0 | DJ196: 0 | DK196: 0 | DL196: 0 | DM196: 0 | DN196: -1
AS197: 2.925 | AT197: 0 | AU197: 0 | AV197: 5.710248813e-49 | AW197: 0 | AX197: 0 | AY197: 0 | AZ197: 0 | BA197: 0 | BB197: 0 | BC197: 0 | BD197: 0 | BE197: 0 | BF197: 20 | BH197: 137.87 | BI197: 0 | BJ197: 0 | BK197: 0 | BL197: 6.924893728e-230 | BM197: 2.768935711e-61 | BN197: 0 | BO197: 0 | BP197: 0 | BQ197: 0 | BR197: 0 | BS197: 0 | BT197: 0 | BU197: 22 | BW197: 137.87 | BX197: 0 | BY197: 0 | BZ197: 6.97633442e-140 | CA197: 0 | CB197: 0 | CC197: 0 | CD197: 0 | CE197: 0 | CF197: 0 | CG197: 0 | CH197: 0 | CI197: 0 | CJ197: 19 | CL197: 137.87 | CM197: 0 | CN197: 0 | CO197: 3.850416202e-36 | CP197: 0 | CQ197: 0 | CR197: 0 | CS197: 0 | CT197: 0 | CU197: 0 | CV197: 0 | CW197: 0 | CX197: 0 | CY197: -1 | DA197: 137.87 | DB197: 0 | DC197: 0 | DD197: 3.850416202e-36 | DE197: 0 | DF197: 0 | DG197: 0 | DH197: 0 | DI197: 0 | DJ197: 0 | DK197: 0 | DL197: 0 | DM197: 0 | DN197: -1
AS198: 2.94 | AT198: 0 | AU198: 0 | AV198: 3.147823988e-45 | AW198: 0 | AX198: 0 | AY198: 0 | AZ198: 0 | BA198: 0 | BB198: 0 | BC198: 0 | BD198: 0 | BE198: 0 | BF198: 20 | BH198: 137.885 | BI198: 0 | BJ198: 0 | BK198: 0 | BL198: 6.905746165e-237 | BM198: 1.473875396e-59 | BN198: 0 | BO198: 0 | BP198: 0 | BQ198: 0 | BR198: 0 | BS198: 0 | BT198: 0 | BU198: 22 | BW198: 137.885 | BX198: 0 | BY198: 0 | BZ198: 1.577962194e-133 | CA198: 0 | CB198: 0 | CC198: 0 | CD198: 0 | CE198: 0 | CF198: 0 | CG198: 0 | CH198: 0 | CI198: 0 | CJ198: 19 | CL198: 137.885 | CM198: 0 | CN198: 0 | CO198: 2.422571555e-33 | CP198: 0 | CQ198: 0 | CR198: 0 | CS198: 0 | CT198: 0 | CU198: 0 | CV198: 0 | CW198: 0 | CX198: 0 | CY198: -1 | DA198: 137.885 | DB198: 0 | DC198: 0 | DD198: 2.422571555e-33 | DE198: 0 | DF198: 0 | DG198: 0 | DH198: 0 | DI198: 0 | DJ198: 0 | DK198: 0 | DL198: 0 | DM198: 0 | DN198: -1
AS199: 2.955 | AT199: 0 | AU199: 0 | AV199: 1.236397351e-41 | AW199: 0 | AX199: 0 | AY199: 0 | AZ199: 0 | BA199: 0 | BB199: 0 | BC199: 0 | BD199: 0 | BE199: 0 | BF199: 20 | BH199: 137.9 | BI199: 0 | BJ199: 0 | BK199: 0 | BL199: 5.40960079e-244 | BM199: 7.412781578e-58 | BN199: 0 | BO199: 0 | BP199: 0 | BQ199: 0 | BR199: 0 | BS199: 0 | BT199: 0 | BU199: 22 | BW199: 137.9 | BX199: 0 | BY199: 0 | BZ199: 2.543068824e-127 | CA199: 0 | CB199: 0 | CC199: 0 | CD199: 0 | CE199: 0 | CF199: 0 | CG199: 0 | CH199: 0 | CI199: 0 | CJ199: 19 | CL199: 137.9 | CM199: 0 | CN199: 0 | CO199: 1.17912638e-30 | CP199: 0 | CQ199: 0 | CR199: 0 | CS199: 0 | CT199: 0 | CU199: 0 | CV199: 0 | CW199: 0 | CX199: 0 | CY199: -1 | DA199: 137.9 | DB199: 0 | DC199: 0 | DD199: 1.17912638e-30 | DE199: 0 | DF199: 0 | DG199: 0 | DH199: 0 | DI199: 0 | DJ199: 0 | DK199: 0 | DL199: 0 | DM199: 0 | DN199: -1
AS200: 2.97 | AT200: 0 | AU200: 0 | AV200: 3.460173757e-38 | AW200: 0 | AX200: 0 | AY200: 0 | AZ200: 0 | BA200: 0 | BB200: 0 | BC200: 0 | BD200: 0 | BE200: 0 | BF200: 20 | BH200: 137.915 | BI200: 0 | BJ200: 0 | BK200: 0 | BL200: 3.328717434e-251 | BM200: 3.522687968e-56 | BN200: 0 | BO200: 0 | BP200: 0 | BQ200: 0 | BR200: 0 | BS200: 0 | BT200: 0 | BU200: 22 | BW200: 137.915 | BX200: 0 | BY200: 0 | BZ200: 2.920194983e-121 | CA200: 0 | CB200: 0 | CC200: 0 | CD200: 0 | CE200: 0 | CF200: 0 | CG200: 0 | CH200: 0 | CI200: 0 | CJ200: 19 | CL200: 137.915 | CM200: 0 | CN200: 0 | CO200: 4.439753951e-28 | CP200: 0 | CQ200: 0 | CR200: 0 | CS200: 0 | CT200: 0 | CU200: 0 | CV200: 0 | CW200: 0 | CX200: 0 | CY200: -1 | DA200: 137.915 | DB200: 0 | DC200: 0 | DD200: 4.439753951e-28 | DE200: 0 | DF200: 0 | DG200: 0 | DH200: 0 | DI200: 0 | DJ200: 0 | DK200: 0 | DL200: 0 | DM200: 0 | DN200: -1
... 362 more rows

Sheet Models
A1: If you have data for log(k) as function of the eluent strength phi, a model for a 1st, 2nd and 3rd order polynomial model can be generated here | Y1: Input to the Excel Linear model: Copy-Paste the values from the tables here to the table on top of the sheet Chromatograms | AP1: Input to example for polynomial models | AU1: Copy-Paste cells in white
A2: 1) Enter name, log(k) vs phi in the table A8:V18. | Z2: Regular samples | AC2: Irregular samples | AF2: Simple example | AH2: Example of results from the isocratic Lab Exercise
A3: 2) Update the polynomial models by clicking the button below the table | Z3: logkw | AA3: S | AC3: logkw | AD3: S | AF3: logkw | AG3: S | AH3: Name | AJ3: logkw | AK3: S | AL3: tR(ref) | AR3: Phi | AS3: 0.9 | AT3: 0.8 | AU3: 0.75 | AV3: 0.7 | AW3: 0.65 | AX3: 0.6 | AY3: 0.55 | AZ3: 0.5 | BA3: 0.45 | BB3: 0.4 | BC3: 0.35 | BD3: 0.3 | BE3: 0.25 | BF3: 0.2 | BG3: 0.15 | BH3: 0.1 | BI3: 0.05
A4: 3) Look at the polynomial fit below and choose the order of the polynomial to use in the sheet Chromatograms | Z4: 2.267 | AA4: 3.41 | AC4: 1.58 | AD4: 5.46 | AF4: 2 | AG4: 4 | AH4: n-Butylbenzoic acid | AJ4: 2.32 | AK4: 3.661 | AL4: 7.866 | AP4: tR(obs) | AQ4: Names | AS4: -1.041392685 | AT4: -0.9164539485 | AU4: -0.7403626895 | AV4: -0.7403626895 | AW4: -0.6154239529 | AX4: -0.5185139399 | AY4: -0.4045705876 | AZ4: -0.3143939572 | BA4: -0.2174839442 | BB4: -0.1205739312 | BC4: -0.01336396156 | BD4: 0.07058107429 | BE4: 0.1927969526 | BF4: 0.3448089202 | BG4: 0.468521083 | BH4: 0.6298890852 | BI4: 0.7983546365
Z5: 2.453 | AA5: 3.65 | AC5: 1.47 | AD5: 3.34 | AF5: 2.301 | AG5: 4 | AH5: Acetophenone | AJ5: 1.155 | AK5: 2.172 | AL5: 2.237 | AP5: 1.48 | AQ5: aniline | AZ5: -0.1567861039 | BA5: -0.01336396156 | BB5: 0.08354605145 | BC5: 0.2296740871 | BD5: 0.3770061018 | BE5: 0.5791107933 | BF5: 0.821930175 | BG5: 1.085521424
A6: Analyte | C6: Log(k) vs Phi | Z6: 2.603 | AA6: 3.746 | AC6: 1.23 | AD6: 2.5 | AF6: 2.602 | AG6: 4 | AH6: Amitriptyline | AJ6: 1.797 | AK6: 3.769 | AL6: 4.503 | AP6: 3.58 | AQ6: quinoline | AS6: -0.7403626895 | AT6: -0.5185139399 | AU6: -0.3723859042 | AV6: -0.2632414348 | AW6: -0.1567861039 | AX6: -0.02715224604 | AY6: 0.09426991684 | AZ6: 0.2373609158 | BA6: 0.389971079 | BB6: 0.5496719219 | BC6: 0.7269987279 | BD6: 0.9062716458 | BE6: 1.119799097
A7: names | B7: Phi | C7: 0.9 | D7: 0.8 | E7: 0.75 | F7: 0.7 | G7: 0.65 | H7: 0.6 | I7: 0.55 | J7: 0.5 | K7: 0.45 | L7: 0.4 | M7: 0.35 | N7: 0.3 | O7: 0.25 | P7: 0.2 | Q7: 0.15 | R7: 0.1 | S7: 0.05 | Z7: 2.816 | AA7: 3.891 | AC7: 1.9 | AD7: 4.46 | AF7: 2.845 | AG7: 4 | AH7: Anisole | AJ7: 1.535 | AK7: 2.494 | AL7: 3.616 | AP7: 5.44 | AQ7: tolunitrile | AS7: -0.6734158999 | AT7: -0.4045705876 | AU7: -0.2632414348 | AV7: -0.1205739312 | AW7: 0.02555410447 | AX7: 0.1627272975 | AY7: 0.3203351509 | AZ7: 0.4985193994 | BA7: 0.6936736645 | BB7: 0.914455351 | BC7: 1.167227799
A8: aniline | C8: -1.041392685 | D8: -0.9164539485 | E8: -0.7403626895 | F8: -0.7403626895 | G8: -0.6154239529 | H8: -0.5185139399 | I8: -0.4045705876 | J8: -0.3143939572 | K8: -0.2174839442 | L8: -0.1205739312 | M8: -0.01336396156 | N8: 0.07058107429 | O8: 0.1927969526 | P8: 0.3448089202 | Q8: 0.468521083 | R8: 0.6298890852 | S8: 0.7983546365 | Z8: 3.211 | AA8: 4.222 | AC8: 2.12 | AD8: 4.55 | AH8: Benzonitrile | AJ8: 1.252 | AK8: 2.276 | AL8: 2.414 | AP8: 7.68 | AQ8: benzoindole | AS8: -0.3424226808 | AT8: -0.05611594198 | AU8: 0.09426991684 | AV8: 0.2373609158 | AW8: 0.389971079 | AX8: 0.5459440493 | AY8: 0.7245241088 | AZ8: 0.9239658292 | BA8: 1.150802941
A9: quinoline | J9: -0.1567861039 | K9: -0.01336396156 | L9: 0.08354605145 | M9: 0.2296740871 | N9: 0.3770061018 | O9: 0.5791107933 | P9: 0.821930175 | Q9: 1.085521424 | Z9: 3.602 | AA9: 4.636 | AC9: 2.12 | AD9: 4.55 | AH9: Ethylbenzene | AJ9: 2.276 | AK9: 3.214 | AL9: 8.302 | AP9: 9.63 | AQ9: 1,4-dimethylindole | AS9: 0.04968778419 | AT9: 0.3139949728 | AU9: 0.4499690087 | AV9: 0.5783960731 | AW9: 0.7220353084 | AX9: 0.8741830134 | AY9: 1.046152124 | AZ9: 1.240397953
A10: tolunitrile | C10: -0.7403626895 | D10: -0.5185139399 | E10: -0.3723859042 | F10: -0.2632414348 | G10: -0.1567861039 | H10: -0.02715224604 | I10: 0.09426991684 | J10: 0.2373609158 | K10: 0.389971079 | L10: 0.5496719219 | M10: 0.7269987279 | N10: 0.9062716458 | O10: 1.119799097 | Z10: 3.92 | AA10: 4.882 | AC10: 2.17 | AD10: 4.61 | AH10: NN-Diethylacetamide | AJ10: 0.36 | AK10: 1.658 | AL10: 0.761 | AP10: 10.97 | AQ10: benz[c]acridine | AS10: 0.2808266096 | AT10: 0.5749077453 | AU10: 0.7269987279 | AV10: 0.8670923337 | AW10: 1.024311487 | AX10: 1.191603425
A11: benzoindole | C11: -0.6734158999 | D11: -0.4045705876 | E11: -0.2632414348 | F11: -0.1205739312 | G11: 0.02555410447 | H11: 0.1627272975 | I11: 0.3203351509 | J11: 0.4985193994 | K11: 0.6936736645 | L11: 0.914455351 | M11: 1.167227799 | Z11: 4.731 | AA11: 5.546 | AC11: 2.22 | AD11: 4.29 | AH11: trans-Chalcone | AJ11: 2.812 | AK11: 4.132 | AL11: 10.376 | AP11: 12.66 | AQ11: 7,9-dimethylbenz[c]acridine
A12: 1,4-dimethylindole | C12: -0.3424226808 | D12: -0.05611594198 | E12: 0.09426991684 | F12: 0.2373609158 | G12: 0.389971079 | H12: 0.5459440493 | I12: 0.7245241088 | J12: 0.9239658292 | K12: 1.150802941 | Z12: 5.178 | AA12: 5.914 | AC12: 1.95 | AD12: 2.9
A13: benz[c]acridine | C13: 0.04968778419 | D13: 0.3139949728 | E13: 0.4499690087 | F13: 0.5783960731 | G13: 0.7220353084 | H13: 0.8741830134 | I13: 1.046152124 | J13: 1.240397953 | AC13: 2.52 | AD13: 3.8
A14: 7,9-dimethylbenz[c]acridine | C14: 0.2808266096 | D14: 0.5749077453 | E14: 0.7269987279 | F14: 0.8670923337 | G14: 1.024311487 | H14: 1.191603425 | AC14: 2.81 | AD14: 4.02
AP16: Run conditions and Program for these data
AP18: tM, min | AQ18: 0.233 | AR18: Program | AS18: Green
AP19: N | AQ19: 4000 | AR19: Name | AS19: Gradient
AP20: tmax, min | AQ20: 15 | AR20: f start | AS20: 0.05
AP21: tM intensity | AQ21: 0.1 | AR21: f end | AS21: 0.95
AR22: tD | AS22: 0.54 | AT22: 0.44 for perfect fit
A23: Linear | AR23: tG, min | AS23: 18
D24: Linear
A25: No | B25: Analyte name | D25: logkw | E25: S1
A26: 1 | B26: =IF(A8<>"",A8,"") -> aniline | D26: =IF(B79<>"",AB98,"") -> 0.7758845072 | E26: =IF(B79<>"",-AA98,"") -> 2.120517034 | S26: =D24 -> Linear
A27: 2 | B27: =IF(A9<>"",A9,"") -> quinoline | D27: 1.498368184 | E27: =IF(B80<>"",-AA99,"") -> 3.453964195 | S27: k vs phi | AF27: Transposed input for Linest-function | AK27: Log(kw) vs f
A28: 3 | B28: tolunitrile | D28: 1.705001309 | E28: =IF(B81<>"",-AA100,"") -> 2.80821056 | S28: f | T28: 0 | U28: 0.1 | V28: 0.2 | W28: 0.3 | X28: 0.4 | Y28: 0.5 | Z28: 0.6 | AA28: 0.7 | AB28: 0.8 | AC28: 0.9 | AF28: names | AG28: aniline | AH28: quinoline | AI28: tolunitrile | AJ28: benzoindole | AK28: 1,4-dimethylindole | AL28: benz[c]acridine | AM28: 7,9-dimethylbenz[c]acridine
A29: 4 | B29: benzoindole | D29: 2.187714207 | E29: =IF(B82<>"",-AA101,"") -> 3.269799302 | S29: 1 | T29: =IF($B26<>"",$D26-$E26*T$52,-2) -> 0.7758845072 | U29: =IF($B26<>"",$D26-$E26*U$52,-2) -> 0.5638328039 | V29: 0.3517811005 | W29: 0.1397293972 | X29: -0.0723223062 | Y29: -0.2843740095 | Z29: -0.4964257129 | AA29: -0.7084774163 | AB29: -0.9205291196 | AC29: -1.132580823 | AF29: Phi
A30: 5 | B30: 1,4-dimethylindole | D30: 2.545339893 | E30: =IF(B83<>"",-AA102,"") -> 3.260976071 | S30: 2 | T30: =IF($B27<>"",$D27-$E27*T$52,-2) -> 1.498368184 | U30: 1.152971765 | V30: 0.8075753453 | W30: 0.4621789258 | X30: 0.1167825063 | Y30: -0.2286139132 | Z30: -0.5740103327 | AA30: -0.9194067522 | AB30: -1.264803172 | AC30: -1.610199591 | AF30: 0.9 | AG30: -1.041392685 | AI30: -0.7403626895 | AJ30: -0.6734158999 | AK30: -0.3424226808 | AL30: 0.04968778419 | AM30: 0.2808266096
A31: 6 | B31: benz[c]acridine | D31: 2.657872039 | E31: =IF(B84<>"",-AA103,"") -> 2.933607354 | S31: 3 | T31: =IF($B28<>"",$D28-$E28*T$52,-2) -> 1.705001309 | U31: 1.424180253 | V31: 1.143359197 | W31: 0.8625381412 | X31: 0.5817170851 | Y31: 0.3008960291 | Z31: 0.02007497305 | AA31: -0.260746083 | AB31: -0.541567139 | AC31: -0.8223881951 | AF31: 0.8 | AG31: -0.9164539485 | AI31: -0.5185139399 | AJ31: -0.4045705876 | AK31: -0.05611594198 | AL31: 0.3139949728 | AM31: 0.5749077453
A32: 7 | B32: 7,9-dimethylbenz[c]acridine | D32: 2.988869306 | E32: =IF(B85<>"",-AA104,"") -> 3.015335343 | S32: 4 | T32: =IF($B29<>"",$D29-$E29*T$52,-2) -> 2.187714207 | U32: 1.860734276 | V32: 1.533754346 | W32: 1.206774416 | X32: 0.8797944857 | Y32: 0.5528145555 | Z32: 0.2258346253 | AA32: -0.1011453049 | AB32: -0.4281252351 | AC32: -0.7551051654 | AF32: 0.75 | AG32: -0.7403626895 | AI32: -0.3723859042 | AJ32: -0.2632414348 | AK32: 0.09426991684 | AL32: 0.4499690087 | AM32: 0.7269987279
A33: 8 | E33: =IF(B86<>"",-AA105,"") ->  | S33: 5 | T33: =IF($B30<>"",$D30-$E30*T$52,-2) -> 2.545339893 | U33: 2.219242286 | V33: 1.893144679 | W33: 1.567047072 | X33: 1.240949464 | Y33: 0.9148518573 | Z33: 0.5887542503 | AA33: 0.2626566432 | AB33: -0.06344096392 | AC33: -0.389538571 | AF33: 0.7 | AG33: -0.7403626895 | AI33: -0.2632414348 | AJ33: -0.1205739312 | AK33: 0.2373609158 | AL33: 0.5783960731 | AM33: 0.8670923337
A34: 9 | E34: =IF(B87<>"",-AA106,"") ->  | S34: 6 | T34: =IF($B31<>"",$D31-$E31*T$52,-2) -> 2.657872039 | U34: 2.364511304 | V34: 2.071150569 | W34: 1.777789833 | X34: 1.484429098 | Y34: 1.191068363 | Z34: 0.8977076272 | AA34: 0.6043468918 | AB34: 0.3109861564 | AC34: 0.01762542107 | AF34: 0.65 | AG34: -0.6154239529 | AI34: -0.1567861039 | AJ34: 0.02555410447 | AK34: 0.389971079 | AL34: 0.7220353084 | AM34: 1.024311487
A35: 10 | E35: =IF(B88<>"",-AA107,"") ->  | S35: 7 | T35: =IF($B32<>"",$D32-$E32*T$52,-2) -> 2.988869306 | U35: 2.687335772 | V35: 2.385802238 | W35: 2.084268703 | X35: 1.782735169 | Y35: 1.481201635 | Z35: 1.179668101 | AA35: 0.8781345662 | AB35: 0.576601032 | AC35: 0.2750674977 | AF35: 0.6 | AG35: -0.5185139399 | AI35: -0.02715224604 | AJ35: 0.1627272975 | AK35: 0.5459440493 | AL35: 0.8741830134 | AM35: 1.191603425
A36: 11 | E36: =IF(B89<>"",-AA108,"") ->  | S36: 8 | T36: =IF($B33<>"",$D33-$E33*T$52,-2) -> -2 | U36: -2 | V36: -2 | W36: -2 | X36: -2 | Y36: -2 | Z36: -2 | AA36: -2 | AB36: -2 | AC36: -2 | AF36: 0.55 | AG36: -0.4045705876 | AI36: 0.09426991684 | AJ36: 0.3203351509 | AK36: 0.7245241088 | AL36: 1.046152124
S37: 9 | T37: =IF($B34<>"",$D34-$E34*T$52,-2) -> -2 | U37: -2 | V37: -2 | W37: -2 | X37: -2 | Y37: -2 | Z37: -2 | AA37: -2 | AB37: -2 | AC37: -2 | AF37: 0.5 | AG37: -0.3143939572 | AH37: -0.1567861039 | AI37: 0.2373609158 | AJ37: 0.4985193994 | AK37: 0.9239658292 | AL37: 1.240397953
S38: 10 | T38: =IF($B35<>"",$D35-$E35*T$52,-2) -> -2 | U38: -2 | V38: -2 | W38: -2 | X38: -2 | Y38: -2 | Z38: -2 | AA38: -2 | AB38: -2 | AC38: -2 | AF38: 0.45 | AG38: -0.2174839442 | AH38: -0.01336396156 | AI38: 0.389971079 | AJ38: 0.6936736645 | AK38: 1.150802941
S39: 11 | T39: =IF($B36<>"",$D36-$E36*T$52,-2) -> -2 | U39: -2 | V39: -2 | W39: -2 | X39: -2 | Y39: -2 | Z39: -2 | AA39: -2 | AB39: -2 | AC39: -2 | AF39: 0.4 | AG39: -0.1205739312 | AH39: 0.08354605145 | AI39: 0.5496719219 | AJ39: 0.914455351
T40: No value is substituted with -2.00 | AF40: 0.35 | AG40: -0.01336396156 | AH40: 0.2296740871 | AI40: 0.7269987279 | AJ40: 1.167227799
AF41: 0.3 | AG41: 0.07058107429 | AH41: 0.3770061018 | AI41: 0.9062716458
AF42: 0.25 | AG42: 0.1927969526 | AH42: 0.5791107933 | AI42: 1.119799097
AF43: 0.2 | AG43: 0.3448089202 | AH43: 0.821930175
AF44: 0.15 | AG44: 0.468521083 | AH44: 1.085521424
AF45: 0.1 | AG45: 0.6298890852
AF46: 0.05 | AG46: 0.7983546365
A49: Nonlinear
D50: Polynomium of degree 2 | S50: =D50 -> Polynomium of degree 2
A51: No | B51: Analyte name | D51: Logkw | E51: S1 | F51: S2 | S51: Log(k) vs phi
A52: 1 | B52: =IF(A8<>"",A8,"") -> aniline | D52: =IF(B79<>"",$Z98,"") -> 0.8982423865 | E52: =IF(B79<>"",-Y98,"") -> 2.871927539 | F52: =IF(B79<>"",-X98,"") -> -0.814456472 | S52: f | T52: 0 | U52: 0.1 | V52: 0.2 | W52: 0.3 | X52: 0.4 | Y52: 0.5 | Z52: 0.6 | AA52: 0.7 | AB52: 0.8 | AC52: 0.9
A53: 2 | B53: =IF(A9<>"",A9,"") -> quinoline | D53: 2.002348262 | E53: 6.995445824 | F53: -5.448433276 | S53: 1 | T53: =IF(B26<>"",$D52-$E52*T$52-$F52*T$52^2,-2) -> 0.8982423865 | U53: =IF(B26<>"",$D52-$E52*U$52-$F52*U$52^2,-2) -> 0.6191941973 | V53: =IF(B26<>"",$D52-$E52*V$52-$F52*V$52^2,-2) -> 0.3564351375 | W53: =IF($B26<>"",$D52-$E52*W$52-$F52*W$52^2,-2) -> 0.1099652071 | X53: =IF($B26<>"",$D52-$E52*X$52-$F52*X$52^2,-2) -> -0.1202155938 | Y53: -0.3341072652 | Z53: -0.5317098072 | AA53: -0.7130232198 | AB53: -0.878047503 | AC53: -1.026782657
A54: 3 | B54: tolunitrile | D54: 2.112241466 | E54: 4.444539874 | F54: -1.449709279 | S54: 2 | T54: =IF(B27<>"",$D53-$E53*T$52-$F53*T$52^2,-2) -> 2.002348262 | U54: =IF(B27<>"",$D53-$E53*U$52-$F53*U$52^2,-2) -> 1.357288013 | V54: =IF(B27<>"",$D53-$E53*V$52-$F53*V$52^2,-2) -> 0.8211964285 | W54: =IF($B27<>"",$D53-$E53*W$52-$F53*W$52^2,-2) -> 0.3940735098 | X54: =IF($B27<>"",$D53-$E53*X$52-$F53*X$52^2,-2) -> 0.07591925673 | Y54: =IF($B27<>"",$D53-$E53*Y$52-$F53*Y$52^2,-2) -> -0.1332663309 | Z54: =IF($B27<>"",$D53-$E53*Z$52-$F53*Z$52^2,-2) -> -0.2334832529 | AA54: =IF($B27<>"",$D53-$E53*AA$52-$F53*AA$52^2,-2) -> -0.2247315094 | AB54: =IF($B27<>"",$D53-$E53*AB$52-$F53*AB$52^2,-2) -> -0.1070111004 | AC54: =IF($B27<>"",$D53-$E53*AC$52-$F53*AC$52^2,-2) -> 0.1196779741
A55: 4 | B55: benzoindole | D55: 2.910120113 | E55: 5.796852438 | F55: -2.049378458 | S55: 3 | T55: 2.112241466 | U55: 1.682284571 | V55: 1.281321862 | W55: 0.9093533386 | X55: 0.5663790008 | Y55: 0.2523988485 | Z55: -0.03258711817 | AA55: -0.2885788993 | AB55: -0.5155764948 | AC55: -0.7135799047
A56: 5 | B56: 1,4-dimethylindole | D56: 3.321592066 | E56: 5.68493884 | F56: -1.810670984 | S56: 4 | T56: 2.910120113 | U56: 2.350928654 | V56: 1.832724764 | W56: 1.355508443 | X56: 0.919279691 | Y56: 0.5240385084 | Z56: 0.1697848949 | AA56: -0.1434811494 | AB56: -0.4157596245 | AC56: -0.6470505305
A57: 6 | B57: benz[c]acridine | D57: 3.405814563 | E57: 5.155177229 | F57: -1.595834693 | S57: 5 | T57: 3.321592066 | U57: 2.771204892 | V57: 2.257031138 | W57: 1.779070803 | X57: 1.337323888 | Y57: 0.9317903924 | Z57: 0.5624703166 | AA57: 0.2293636606 | AB57: -0.06752957582 | AC57: -0.3282093925
A58: 7 | B58: 7,9-dimethylbenz[c]acridine | D58: 3.326039075 | E58: 3.930728381 | F58: -0.6102620252 | S58: 6 | T58: 3.405814563 | U58: 2.906255187 | V58: 2.438612505 | W58: 2.002886516 | X58: 1.599077222 | Y58: 1.227184621 | Z58: 0.8872087147 | AA58: 0.5791495019 | AB58: 0.303006983 | AC58: 0.0587811579
A59: 8 | S59: 7 | T59: 3.326039075 | U59: 2.939068857 | V59: 2.56430388 | W59: 2.201744143 | X59: 1.851389647 | Y59: 1.513240391 | Z59: 1.187296376 | AA59: 0.873557601 | AB59: 0.5720240668 | AC59: 0.282695773
A60: 9 | S60: 8 | T60: -2 | U60: -2 | V60: -2 | W60: -2 | X60: -2 | Y60: -2 | Z60: -2 | AA60: -2 | AB60: -2 | AC60: -2
A61: 10 | S61: 9 | T61: -2 | U61: -2 | V61: -2 | W61: -2 | X61: -2 | Y61: -2 | Z61: -2 | AA61: -2 | AB61: -2 | AC61: -2
A62: 11 | S62: 10 | T62: -2 | U62: -2 | V62: -2 | W62: -2 | X62: -2 | Y62: -2 | Z62: -2 | AA62: -2 | AB62: -2 | AC62: -2
S63: 11 | T63: -2 | U63: -2 | V63: -2 | W63: -2 | X63: -2 | Y63: -2 | Z63: -2 | AA63: -2 | AB63: -2 | AC63: -2
T64: No value is substituted with -2.00
A76: Nonlinear
D77: Polyniomial of degree 3 | S77: =D77 -> Polyniomial of degree 3
A78: No | B78: Analyte name | D78: Logkw | E78: S1 | F78: S2 | G78: S3 | S78: Log(k) vs phi
A79: 1 | B79: =IF(A8<>"",A8,"") -> aniline | D79: =IF(B79<>"",$W98,"") -> 0.9556368363 | E79: =IF(B79<>"",-V98,"") -> 3.514579532 | F79: =IF(B79<>"",-U98,"") -> -2.470641367 | G79: =IF(B79<>"",-T98,"") -> 1.171629918 | S79: f | T79: 0 | U79: 0.1 | V79: 0.2 | W79: 0.3 | X79: 0.4 | Y79: 0.5 | Z79: 0.6 | AA79: 0.7 | AB79: 0.8 | AC79: 0.9
A80: 2 | B80: =IF(A9<>"",A9,"") -> quinoline | D80: 2.332078516 | E80: 10.60787518 | F80: -17.43862432 | G80: 12.29763184 | S80: 1 | T80: =IF($B26<>"",$D79-$E79*T$52-$F79*T$52^2-$G79*T$52^3,-2) -> 0.9556368363 | U80: =IF($B26<>"",$D79-$E79*U$52-$F79*U$52^2-$G79*U$52^3,-2) -> 0.6277136669 | V80: 0.3421735453 | W80: 0.0919866921 | X80: -0.1298766723 | Y80: -0.3304463274 | Z80: -0.5167520527 | AA80: -0.6958236277 | AB80: -0.8746908319 | AC80: -1.060383445
A81: 3 | B81: tolunitrile | D81: 2.494890811 | E81: 6.816935765 | F81: -5.905446889 | G81: 2.586302418 | S81: 2 | T81: =IF($B27<>"",$D80-$E80*T$52-$F80*T$52^2-$G80*T$52^3,-2) -> 2.332078516 | U81: 1.43337961 | V81: 0.8096673986 | W81: 0.3871560919 | X81: 0.09205989852 | Y81: -0.1494069726 | Z81: -0.4110303126 | AA81: -0.7665959125 | AB81: -1.289889563 | AC81: -2.054697056
A82: 4 | B82: benzoindole | D82: 3.995444139 | E82: 11.55052194 | F82: -11.68569021 | G82: 5.134046013 | S82: 3 | T82: =IF($B28<>"",$D81-$E81*T$52-$F81*T$52^2-$G81*T$52^3,-2) -> 2.494890811 | U82: 1.869665401 | V82: 1.347031114 | W82: 0.9114701359 | X82: 0.5474646522 | Y82: 0.2394968482 | Z82: -0.0279510906 | AA82: -0.2703969786 | AB82: -0.5033586304 | AC82: -0.7423538605
A83: 5 | B83: 1,4-dimethylindole | D83: 5.049668903 | E83: 13.80633993 | F83: -14.15676089 | G83: 6.083580534 | S83: 4 | T83: =IF($B29<>"",$D82-$E82*T$52-$F82*T$52^2-$G82*T$52^3,-2) -> 3.995444139 | U83: 2.952114801 | V83: 2.111694991 | W83: 1.443380433 | X83: 0.9163668514 | Y83: 0.4998499693 | Z83: 0.163025511 | AA83: -0.1249107995 | AB83: -0.3947632384 | AC83: -0.6773360817
A84: 6 | B84: benz[c]acridine | D84: 5.404185411 | E84: 14.08057069 | F84: -14.5922611 | G84: 6.175800107 | S84: 5 | T84: =IF($B30<>"",$D83-$E83*T$52-$F83*T$52^2-$G83*T$52^3,-2) -> 5.049668903 | U84: 3.804518939 | V84: 2.806002709 | W84: 2.017618731 | X84: 1.402865522 | Y84: 0.9252415968 | Z84: 0.5482454739 | AA84: 0.2353756695 | AB84: -0.04986929939 | AC84: -0.3439909161
A85: 7 | B85: 7,9-dimethylbenz[c]acridine | D85: 5.703545204 | E85: 13.65881121 | F85: -13.72874351 | G85: 5.830436217 | S85: 6 | T85: =IF($B31<>"",$D84-$E84*T$52-$F84*T$52^2-$G84*T$52^3,-2) -> 5.404185411 | U85: 4.135875152 | V85: 3.122355315 | W85: 2.326571098 | X85: 1.711467702 | Y85: 1.239990325 | Z85: 0.875084166 | AA85: 0.5796944254 | AB85: 0.3167663023 | AC85: 0.04924499597
A86: 8 | S86: 7 | T86: =IF($B32<>"",$D85-$E85*T$52-$F85*T$52^2-$G85*T$52^3,-2) -> 5.703545204 | U86: 4.469121082 | V86: 3.474289213 | W86: 2.684066979 | X86: 2.063471764 | Y86: 1.57752095 | Z86: 1.19123192 | AA86: 0.8696220566 | AB86: 0.5777087421 | AC86: 0.2805093594
A87: 9 | S87: 8 | T87: =IF($B33<>"",$D86-$E86*T$52-$F86*T$52^2-$G86*T$52^3,-2) -> -2 | U87: -2 | V87: -2 | W87: -2 | X87: -2 | Y87: -2 | Z87: -2 | AA87: -2 | AB87: -2 | AC87: -2
A88: 10 | S88: 9 | T88: =IF($B34<>"",$D87-$E87*T$52-$F87*T$52^2-$G87*T$52^3,-2) -> -2 | U88: -2 | V88: -2 | W88: -2 | X88: -2 | Y88: -2 | Z88: -2 | AA88: -2 | AB88: -2 | AC88: -2
A89: 11 | S89: 10 | T89: =IF($B35<>"",$D88-$E88*T$52-$F88*T$52^2-$G88*T$52^3,-2) -> -2 | U89: -2 | V89: -2 | W89: -2 | X89: -2 | Y89: -2 | Z89: -2 | AA89: -2 | AB89: -2 | AC89: -2
S90: 11 | T90: =IF($B36<>"",$D89-$E89*T$52-$F89*T$52^2-$G89*T$52^3,-2) -> -2 | U90: -2 | V90: -2 | W90: -2 | X90: -2 | Y90: -2 | Z90: -2 | AA90: -2 | AB90: -2 | AC90: -2
T91: No value is substituted with -2.00
T96: 3rd | X96: 2nd | AA96: 1st
T97: x3 | U97: x2 | V97: x | W97: c | X97: x2 | Y97: x | Z97: c | AA97: x | AB97: c
S98: =A8 -> aniline | T98: =LINEST(ISNUMBER($AF$30:$AF$49)*AG30:AG49,IF($AF$30:$AF$49<>0,ISNUMBER(AG30:AG49)*$AF$30:$AF$49^{0,1,2,3},0),0) -> -1.171629918 | U98: 2.470641367 | V98: -3.514579532 | W98: 0.9556368363 | X98: =LINEST(ISNUMBER($AF$30:$AF$49)*AG30:AG49,IF($AF$30:$AF$49<>0,ISNUMBER(AG30:AG49)*$AF$30:$AF$49^{0,1,2},0),0) -> 0.814456472 | Y98: -2.871927539 | Z98: 0.8982423865 | AA98: =LINEST(ISNUMBER($AF$30:$AF$49)*AG30:AG49,IF($AF$30:$AF$49<>0,ISNUMBER(AG30:AG49)*$AF$30:$AF$49^{0,1},0),0) -> -2.120517034 | AB98: 0.7758845072
S99: =A9 -> quinoline | T99: =LINEST(ISNUMBER($AF$30:$AF$49)*AH30:AH49,IF($AF$30:$AF$49<>0,ISNUMBER(AH30:AH49)*$AF$30:$AF$49^{0,1,2,3},0),0) -> -12.29763184 | U99: 17.43862432 | V99: -10.60787518 | W99: 2.332078516 | X99: =LINEST(ISNUMBER($AF$30:$AF$49)*AH30:AH49,IF($AF$30:$AF$49<>0,ISNUMBER(AH30:AH49)*$AF$30:$AF$49^{0,1,2},0),0) -> 5.448433276 | Y99: -6.995445824 | Z99: 2.002348262 | AA99: =LINEST(ISNUMBER($AF$30:$AF$49)*AH30:AH49,IF($AF$30:$AF$49<>0,ISNUMBER(AH30:AH49)*$AF$30:$AF$49^{0,1},0),0) -> -3.453964195 | AB99: 1.498368184
S100: tolunitrile | T100: =LINEST(ISNUMBER($AF$30:$AF$49)*AI30:AI49,IF($AF$30:$AF$49<>0,ISNUMBER(AI30:AI49)*$AF$30:$AF$49^{0,1,2,3},0),0) -> -2.586302418 | U100: 5.905446889 | V100: -6.816935765 | W100: 2.494890811 | X100: =LINEST(ISNUMBER($AF$30:$AF$49)*AI30:AI49,IF($AF$30:$AF$49<>0,ISNUMBER(AI30:AI49)*$AF$30:$AF$49^{0,1,2},0),0) -> 1.449709279 | Y100: -4.444539874 | Z100: 2.112241466 | AA100: =LINEST(ISNUMBER($AF$30:$AF$49)*AI30:AI49,IF($AF$30:$AF$49<>0,ISNUMBER(AI30:AI49)*$AF$30:$AF$49^{0,1},0),0) -> -2.80821056 | AB100: 1.705001309
S101: benzoindole | T101: =LINEST(ISNUMBER($AF$30:$AF$49)*AJ30:AJ49,IF($AF$30:$AF$49<>0,ISNUMBER(AJ30:AJ49)*$AF$30:$AF$49^{0,1,2,3},0),0) -> -5.134046013 | U101: 11.68569021 | V101: -11.55052194 | W101: 3.995444139 | X101: =LINEST(ISNUMBER($AF$30:$AF$49)*AJ30:AJ49,IF($AF$30:$AF$49<>0,ISNUMBER(AJ30:AJ49)*$AF$30:$AF$49^{0,1,2},0),0) -> 2.049378458 | Y101: -5.796852438 | Z101: 2.910120113 | AA101: =LINEST(ISNUMBER($AF$30:$AF$49)*AJ30:AJ49,IF($AF$30:$AF$49<>0,ISNUMBER(AJ30:AJ49)*$AF$30:$AF$49^{0,1},0),0) -> -3.269799302 | AB101: 2.187714207
S102: 1,4-dimethylindole | T102: =LINEST(ISNUMBER($AF$30:$AF$49)*AK30:AK49,IF($AF$30:$AF$49<>0,ISNUMBER(AK30:AK49)*$AF$30:$AF$49^{0,1,2,3},0),0) -> -6.083580534 | U102: 14.15676089 | V102: -13.80633993 | W102: 5.049668903 | X102: =LINEST(ISNUMBER($AF$30:$AF$49)*AK30:AK49,IF($AF$30:$AF$49<>0,ISNUMBER(AK30:AK49)*$AF$30:$AF$49^{0,1,2},0),0) -> 1.810670984 | Y102: -5.68493884 | Z102: 3.321592066 | AA102: =LINEST(ISNUMBER($AF$30:$AF$49)*AK30:AK49,IF($AF$30:$AF$49<>0,ISNUMBER(AK30:AK49)*$AF$30:$AF$49^{0,1},0),0) -> -3.260976071 | AB102: 2.545339893
S103: benz[c]acridine | T103: =LINEST(ISNUMBER($AF$30:$AF$49)*AL30:AL49,IF($AF$30:$AF$49<>0,ISNUMBER(AL30:AL49)*$AF$30:$AF$49^{0,1,2,3},0),0) -> -6.175800107 | U103: 14.5922611 | V103: -14.08057069 | W103: 5.404185411 | X103: =LINEST(ISNUMBER($AF$30:$AF$49)*AL30:AL49,IF($AF$30:$AF$49<>0,ISNUMBER(AL30:AL49)*$AF$30:$AF$49^{0,1,2},0),0) -> 1.595834693 | Y103: -5.155177229 | Z103: 3.405814563 | AA103: =LINEST(ISNUMBER($AF$30:$AF$49)*AL30:AL49,IF($AF$30:$AF$49<>0,ISNUMBER(AL30:AL49)*$AF$30:$AF$49^{0,1},0),0) -> -2.933607354 | AB103: 2.657872039
S104: 7,9-dimethylbenz[c]acridine | T104: =LINEST(ISNUMBER($AF$30:$AF$49)*AM30:AM49,IF($AF$30:$AF$49<>0,ISNUMBER(AM30:AM49)*$AF$30:$AF$49^{0,1,2,3},0),0) -> -5.830436217 | U104: 13.72874351 | V104: -13.65881121 | W104: 5.703545204 | X104: =LINEST(ISNUMBER($AF$30:$AF$49)*AM30:AM49,IF($AF$30:$AF$49<>0,ISNUMBER(AM30:AM49)*$AF$30:$AF$49^{0,1,2},0),0) -> 0.6102620252 | Y104: -3.930728381 | Z104: 3.326039075 | AA104: =LINEST(ISNUMBER($AF$30:$AF$49)*AM30:AM49,IF($AF$30:$AF$49<>0,ISNUMBER(AM30:AM49)*$AF$30:$AF$49^{0,1},0),0) -> -3.015335343 | AB104: 2.988869306
T105: =LINEST(ISNUMBER($AF$30:$AF$49)*AN30:AN49,IF($AF$30:$AF$49<>0,ISNUMBER(AN30:AN49)*$AF$30:$AF$49^{0,1,2,3},0),0) -> 0 | U105: 0 | V105: 0 | W105: 0 | X105: =LINEST(ISNUMBER($AF$30:$AF$49)*AN30:AN49,IF($AF$30:$AF$49<>0,ISNUMBER(AN30:AN49)*$AF$30:$AF$49^{0,1,2},0),0) -> 0 | Y105: 0 | Z105: 0 | AA105: =LINEST(ISNUMBER($AF$30:$AF$49)*AN30:AN49,IF($AF$30:$AF$49<>0,ISNUMBER(AN30:AN49)*$AF$30:$AF$49^{0,1},0),0) -> 0 | AB105: 0
T106: =LINEST(ISNUMBER($AF$30:$AF$49)*AO30:AO49,IF($AF$30:$AF$49<>0,ISNUMBER(AO30:AO49)*$AF$30:$AF$49^{0,1,2,3},0),0) -> 0 | U106: 0 | V106: 0 | W106: 0 | X106: =LINEST(ISNUMBER($AF$30:$AF$49)*AO30:AO49,IF($AF$30:$AF$49<>0,ISNUMBER(AO30:AO49)*$AF$30:$AF$49^{0,1,2},0),0) -> 0 | Y106: 0 | Z106: 0 | AA106: =LINEST(ISNUMBER($AF$30:$AF$49)*AO30:AO49,IF($AF$30:$AF$49<>0,ISNUMBER(AO30:AO49)*$AF$30:$AF$49^{0,1},0),0) -> 0 | AB106: 0
T107: =LINEST(ISNUMBER($AF$30:$AF$49)*AP30:AP49,IF($AF$30:$AF$49<>0,ISNUMBER(AP30:AP49)*$AF$30:$AF$49^{0,1,2,3},0),0) -> 0 | U107: 0 | V107: 0 | W107: 0 | X107: =LINEST(ISNUMBER($AF$30:$AF$49)*AP30:AP49,IF($AF$30:$AF$49<>0,ISNUMBER(AP30:AP49)*$AF$30:$AF$49^{0,1,2},0),0) -> 0 | Y107: 0 | Z107: 0 | AA107: =LINEST(ISNUMBER($AF$30:$AF$49)*AP30:AP49,IF($AF$30:$AF$49<>0,ISNUMBER(AP30:AP49)*$AF$30:$AF$49^{0,1},0),0) -> 0 | AB107: 0
T108: =LINEST(ISNUMBER($AF$30:$AF$49)*AQ30:AQ49,IF($AF$30:$AF$49<>0,ISNUMBER(AQ30:AQ49)*$AF$30:$AF$49^{0,1,2,3},0),0) -> 0 | U108: 0 | V108: 0 | W108: 0 | X108: =LINEST(ISNUMBER($AF$30:$AF$49)*AQ30:AQ49,IF($AF$30:$AF$49<>0,ISNUMBER(AQ30:AQ49)*$AF$30:$AF$49^{0,1,2},0),0) -> 0 | Y108: 0 | Z108: 0 | AA108: =LINEST(ISNUMBER($AF$30:$AF$49)*AQ30:AQ49,IF($AF$30:$AF$49<>0,ISNUMBER(AQ30:AQ49)*$AF$30:$AF$49^{0,1},0),0) -> 0 | AB108: 0

Sheet Fortran input
A1: N | B1: tM | C1: tD | D1: tmax | E1: Time | F1: Phi | G1: kW | H1: S1 | I1: S2 | J1: S3 | L1: N | M1: tM | N1: tD | O1: tmax | P1: Time | Q1: Phi | R1: kW | S1: S1 | T1: S2 | U1: S3
A2: 500 | B2: =Chromatograms!B39 -> 0.233 | C2: =Chromatograms!H39 -> 0.54 | D2: =Chromatograms!B41 -> 15 | E2: 0 | F2: =Chromatograms!F39 -> 0.05 | G2: =IF(Chromatograms!E4<>"",Chromatograms!E4,"") -> 0.7758845072 | H2: =IF(Chromatograms!F4<>"",Chromatograms!F4,"") -> 2.120517034 | L2: 500 | M2: =Chromatograms!B39 -> 0.233 | N2: =Chromatograms!H41 -> 0.54 | O2: =Chromatograms!B41 -> 15 | P2: 0 | Q2: =Chromatograms!F41 -> 0.3 | R2: =IF(Chromatograms!E4<>"",Chromatograms!E4,"") -> 0.7758845072 | S2: =IF(Chromatograms!F4<>"",Chromatograms!F4,"") -> 2.120517034
A3: =Chromatograms!B40 -> 4000 | E3: =Chromatograms!I39 -> 18 | F3: =Chromatograms!G39 -> 0.95 | G3: =IF(Chromatograms!E5<>"",Chromatograms!E5,"") -> 1.498368184 | H3: =IF(Chromatograms!F5<>"",Chromatograms!F5,"") -> 3.453964195 | L3: =Chromatograms!B40 -> 4000 | P3: =Chromatograms!I41 -> 18 | Q3: =Chromatograms!G41 -> 0.3 | R3: =IF(Chromatograms!E5<>"",Chromatograms!E5,"") -> 1.498368184 | S3: =IF(Chromatograms!F5<>"",Chromatograms!F5,"") -> 3.453964195
A4: =IF(A2>1000,"N too high. Fortran will use N=1000","") ->  | G4: =IF(Chromatograms!E6<>"",Chromatograms!E6,"") -> 1.705001309 | H4: =IF(Chromatograms!F6<>"",Chromatograms!F6,"") -> 2.80821056 | L4: =IF(L2>1000,"N too high. Fortran will use N=1000","") ->  | R4: =IF(Chromatograms!E6<>"",Chromatograms!E6,"") -> 1.705001309 | S4: =IF(Chromatograms!F6<>"",Chromatograms!F6,"") -> 2.80821056
A5: Most cells are proteted. | G5: =IF(Chromatograms!E7<>"",Chromatograms!E7,"") -> 2.187714207 | H5: =IF(Chromatograms!F7<>"",Chromatograms!F7,"") -> 3.269799302 | R5: =IF(Chromatograms!E7<>"",Chromatograms!E7,"") -> 2.187714207 | S5: =IF(Chromatograms!F7<>"",Chromatograms!F7,"") -> 3.269799302
A6: To unprotect go to Review and click Unprotect sheet | G6: =IF(Chromatograms!E8<>"",Chromatograms!E8,"") -> 2.545339893 | H6: =IF(Chromatograms!F8<>"",Chromatograms!F8,"") -> 3.260976071 | R6: =IF(Chromatograms!E8<>"",Chromatograms!E8,"") -> 2.545339893 | S6: =IF(Chromatograms!F8<>"",Chromatograms!F8,"") -> 3.260976071
A7: You may increse N from 200 to improve accuracy | G7: =IF(Chromatograms!E9<>"",Chromatograms!E9,"") -> 2.657872039 | H7: =IF(Chromatograms!F9<>"",Chromatograms!F9,"") -> 2.933607354 | R7: =IF(Chromatograms!E9<>"",Chromatograms!E9,"") -> 2.657872039 | S7: =IF(Chromatograms!F9<>"",Chromatograms!F9,"") -> 2.933607354
G8: =IF(Chromatograms!E10<>"",Chromatograms!E10,"") -> 2.988869306 | H8: =IF(Chromatograms!F10<>"",Chromatograms!F10,"") -> 3.015335343 | R8: =IF(Chromatograms!E10<>"",Chromatograms!E10,"") -> 2.988869306 | S8: =IF(Chromatograms!F10<>"",Chromatograms!F10,"") -> 3.015335343
A9: For update Macro | G9: =IF(Chromatograms!E11<>"",Chromatograms!E11,"") ->  | H9: =IF(Chromatograms!F11<>"",Chromatograms!F11,"") ->  | L9: For update Macro | R9: =IF(Chromatograms!E11<>"",Chromatograms!E11,"") ->  | S9: =IF(Chromatograms!F11<>"",Chromatograms!F11,"") -> 
B10: New | C10: Old | D10: Key | G10: =IF(Chromatograms!E12<>"",Chromatograms!E12,"") ->  | H10: =IF(Chromatograms!F12<>"",Chromatograms!F12,"") ->  | M10: Old | O10: Key | R10: =IF(Chromatograms!E12<>"",Chromatograms!E12,"") ->  | S10: =IF(Chromatograms!F12<>"",Chromatograms!F12,"") -> 
A11: sum(linear) | B11: =SUM(Chromatograms!E4:F14) -> 35.2214593 | C11: 35.2214593 | D11: =IF(B11<>C11,1,0) -> 0 | G11: =IF(Chromatograms!E13<>"",Chromatograms!E13,"") ->  | H11: =IF(Chromatograms!F13<>"",Chromatograms!F13,"") ->  | L11: sum(linear) | M11: =SUM(Chromatograms!E4:F14) -> 35.2214593 | N11: 35.2214593 | O11: =IF(M11<>N11,1,0) -> 0 | R11: =IF(Chromatograms!E13<>"",Chromatograms!E13,"") ->  | S11: =IF(Chromatograms!F13<>"",Chromatograms!F13,"") -> 
A12: sum(poly) | B12: =SUM(Models!D79:G89) -> 59.27234282 | C12: 59.27234282 | D12: =IF(B12<>C12,1,0) -> 0 | G12: =IF(Chromatograms!E14<>"",Chromatograms!E14,"") ->  | H12: =IF(Chromatograms!F14<>"",Chromatograms!F14,"") ->  | L12: sum(poly) | M12: =SUM(Models!D79:G899) -> 59.27234282 | N12: 59.27234282 | O12: =IF(M12<>N12,1,0) -> 0 | R12: =IF(Chromatograms!E14<>"",Chromatograms!E14,"") ->  | S12: =IF(Chromatograms!F14<>"",Chromatograms!F14,"") -> 
A13: Degree | B13: =Chromatograms!K40 -> 1 | C13: 1 | D13: 0 | L13: Degree | M13: =Chromatograms!K42 -> 1 | N13: 1 | O13: 0
A14: tM | B14: =Chromatograms!B39 -> 0.233 | C14: 0.233 | D14: 0 | G14: =IF(Models!D52<>"",Models!D52,"") -> 0.8982423865 | H14: =IF(Models!E52<>"",Models!E52,"") -> 2.871927539 | I14: =IF(Models!F52<>"",Models!F52,"") -> -0.814456472 | L14: tM | M14: =Chromatograms!B39 -> 0.233 | N14: 0.233 | O14: 0 | R14: =IF(Models!D52<>"",Models!D52,"") -> 0.8982423865 | S14: =IF(Models!E52<>"",Models!E52,"") -> 2.871927539 | T14: =IF(Models!F52<>"",Models!F52,"") -> -0.814456472
A15: N(fortran) | B15: =A2 -> 500 | C15: 500 | D15: 0 | G15: =IF(Models!D53<>"",Models!D53,"") -> 2.002348262 | H15: =IF(Models!E53<>"",Models!E53,"") -> 6.995445824 | I15: =IF(Models!F53<>"",Models!F53,"") -> -5.448433276 | L15: N(fortran) | M15: =L2 -> 500 | N15: 500 | O15: 0 | R15: =IF(Models!D53<>"",Models!D53,"") -> 2.002348262 | S15: =IF(Models!E53<>"",Models!E53,"") -> 6.995445824 | T15: =IF(Models!F53<>"",Models!F53,"") -> -5.448433276
A16: N | B16: =Chromatograms!B40 -> 4000 | C16: 4000 | D16: =IF(B16<>C16,1,0) -> 0 | G16: =IF(Models!D54<>"",Models!D54,"") -> 2.112241466 | H16: =IF(Models!E54<>"",Models!E54,"") -> 4.444539874 | I16: =IF(Models!F54<>"",Models!F54,"") -> -1.449709279 | L16: N | M16: =Chromatograms!B40 -> 4000 | N16: 4000 | O16: =IF(M16<>N16,1,0) -> 0 | R16: =IF(Models!D54<>"",Models!D54,"") -> 2.112241466 | S16: =IF(Models!E54<>"",Models!E54,"") -> 4.444539874 | T16: =IF(Models!F54<>"",Models!F54,"") -> -1.449709279
A17: tmax | B17: =Chromatograms!B41 -> 15 | C17: 15 | D17: 0 | G17: =IF(Models!D55<>"",Models!D55,"") -> 2.910120113 | H17: =IF(Models!E55<>"",Models!E55,"") -> 5.796852438 | I17: =IF(Models!F55<>"",Models!F55,"") -> -2.049378458 | L17: tmax | M17: =Chromatograms!B41 -> 15 | N17: 15 | O17: 0 | R17: =IF(Models!D55<>"",Models!D55,"") -> 2.910120113 | S17: =IF(Models!E55<>"",Models!E55,"") -> 5.796852438 | T17: =IF(Models!F55<>"",Models!F55,"") -> -2.049378458
A18: f start | B18: =Chromatograms!F39 -> 0.05 | C18: 0.05 | D18: 0 | G18: =IF(Models!D56<>"",Models!D56,"") -> 3.321592066 | H18: =IF(Models!E56<>"",Models!E56,"") -> 5.68493884 | I18: =IF(Models!F56<>"",Models!F56,"") -> -1.810670984 | L18: f start | M18: =Chromatograms!F41 -> 0.3 | N18: 0.05 | O18: 1 | R18: =IF(Models!D56<>"",Models!D56,"") -> 3.321592066 | S18: =IF(Models!E56<>"",Models!E56,"") -> 5.68493884 | T18: =IF(Models!F56<>"",Models!F56,"") -> -1.810670984
A19: f end | B19: =Chromatograms!G39 -> 0.95 | C19: 0.95 | D19: 0 | G19: =IF(Models!D57<>"",Models!D57,"") -> 3.405814563 | H19: =IF(Models!E57<>"",Models!E57,"") -> 5.155177229 | I19: =IF(Models!F57<>"",Models!F57,"") -> -1.595834693 | L19: f end | M19: =Chromatograms!G41 -> 0.3 | N19: 0.95 | O19: 1 | R19: =IF(Models!D57<>"",Models!D57,"") -> 3.405814563 | S19: =IF(Models!E57<>"",Models!E57,"") -> 5.155177229 | T19: =IF(Models!F57<>"",Models!F57,"") -> -1.595834693
A20: tD | B20: =Chromatograms!H39 -> 0.54 | C20: 0.54 | D20: 0 | G20: =IF(Models!D58<>"",Models!D58,"") -> 3.326039075 | H20: =IF(Models!E58<>"",Models!E58,"") -> 3.930728381 | I20: =IF(Models!F58<>"",Models!F58,"") -> -0.6102620252 | L20: tD | M20: =Chromatograms!H41 -> 0.54 | N20: 0.54 | O20: 0 | R20: =IF(Models!D58<>"",Models!D58,"") -> 3.326039075 | S20: =IF(Models!E58<>"",Models!E58,"") -> 3.930728381 | T20: =IF(Models!F58<>"",Models!F58,"") -> -0.6102620252
A21: tG | B21: =Chromatograms!I39 -> 18 | C21: 18 | D21: 0 | G21: =IF(Models!D59<>"",Models!D59,"") ->  | H21: =IF(Models!E59<>"",Models!E59,"") ->  | I21: =IF(Models!F59<>"",Models!F59,"") ->  | L21: tG | M21: =Chromatograms!I41 -> 18 | N21: 18 | O21: 0 | R21: =IF(Models!D59<>"",Models!D59,"") ->  | S21: =IF(Models!E59<>"",Models!E59,"") ->  | T21: =IF(Models!F59<>"",Models!F59,"") -> 
C22: SUM: | D22: =SUM(D11:D21) -> 0 | G22: =IF(Models!D60<>"",Models!D60,"") ->  | H22: =IF(Models!E60<>"",Models!E60,"") ->  | I22: =IF(Models!F60<>"",Models!F60,"") ->  | N22: SUM: | O22: =SUM(O11:O21) -> 2 | R22: =IF(Models!D60<>"",Models!D60,"") ->  | S22: =IF(Models!E60<>"",Models!E60,"") ->  | T22: =IF(Models!F60<>"",Models!F60,"") -> 
G23: =IF(Models!D61<>"",Models!D61,"") ->  | H23: =IF(Models!E61<>"",Models!E61,"") ->  | I23: =IF(Models!F61<>"",Models!F61,"") ->  | R23: =IF(Models!D61<>"",Models!D61,"") ->  | S23: =IF(Models!E61<>"",Models!E61,"") ->  | T23: =IF(Models!F61<>"",Models!F61,"") -> 
G24: =IF(Models!D62<>"",Models!D62,"") ->  | H24: =IF(Models!E62<>"",Models!E62,"") ->  | I24: =IF(Models!F62<>"",Models!F62,"") ->  | R24: =IF(Models!D62<>"",Models!D62,"") ->  | S24: =IF(Models!E62<>"",Models!E62,"") ->  | T24: =IF(Models!F62<>"",Models!F62,"") -> 
A25: =IF(A23>1000,"N too high. Fortran will use N=1000","") -> 
G26: =IF(Models!D79<>"",Models!D79,"") -> 0.9556368363 | H26: =IF(Models!E79<>"",Models!E79,"") -> 3.514579532 | I26: =IF(Models!F79<>"",Models!F79,"") -> -2.470641367 | J26: =IF(Models!G79<>"",Models!G79,"") -> 1.171629918 | R26: =IF(Models!D79<>"",Models!D79,"") -> 0.9556368363 | S26: =IF(Models!E79<>"",Models!E79,"") -> 3.514579532 | T26: =IF(Models!F79<>"",Models!F79,"") -> -2.470641367 | U26: =IF(Models!G79<>"",Models!G79,"") -> 1.171629918
G27: =IF(Models!D80<>"",Models!D80,"") -> 2.332078516 | H27: =IF(Models!E80<>"",Models!E80,"") -> 10.60787518 | I27: =IF(Models!F80<>"",Models!F80,"") -> -17.43862432 | J27: =IF(Models!G80<>"",Models!G80,"") -> 12.29763184 | R27: =IF(Models!D80<>"",Models!D80,"") -> 2.332078516 | S27: =IF(Models!E80<>"",Models!E80,"") -> 10.60787518 | T27: =IF(Models!F80<>"",Models!F80,"") -> -17.43862432 | U27: =IF(Models!G80<>"",Models!G80,"") -> 12.29763184
G28: =IF(Models!D81<>"",Models!D81,"") -> 2.494890811 | H28: =IF(Models!E81<>"",Models!E81,"") -> 6.816935765 | I28: =IF(Models!F81<>"",Models!F81,"") -> -5.905446889 | J28: =IF(Models!G81<>"",Models!G81,"") -> 2.586302418 | R28: =IF(Models!D81<>"",Models!D81,"") -> 2.494890811 | S28: =IF(Models!E81<>"",Models!E81,"") -> 6.816935765 | T28: =IF(Models!F81<>"",Models!F81,"") -> -5.905446889 | U28: =IF(Models!G81<>"",Models!G81,"") -> 2.586302418
G29: =IF(Models!D82<>"",Models!D82,"") -> 3.995444139 | H29: =IF(Models!E82<>"",Models!E82,"") -> 11.55052194 | I29: =IF(Models!F82<>"",Models!F82,"") -> -11.68569021 | J29: =IF(Models!G82<>"",Models!G82,"") -> 5.134046013 | R29: =IF(Models!D82<>"",Models!D82,"") -> 3.995444139 | S29: =IF(Models!E82<>"",Models!E82,"") -> 11.55052194 | T29: =IF(Models!F82<>"",Models!F82,"") -> -11.68569021 | U29: =IF(Models!G82<>"",Models!G82,"") -> 5.134046013
G30: =IF(Models!D83<>"",Models!D83,"") -> 5.049668903 | H30: =IF(Models!E83<>"",Models!E83,"") -> 13.80633993 | I30: =IF(Models!F83<>"",Models!F83,"") -> -14.15676089 | J30: =IF(Models!G83<>"",Models!G83,"") -> 6.083580534 | R30: =IF(Models!D83<>"",Models!D83,"") -> 5.049668903 | S30: =IF(Models!E83<>"",Models!E83,"") -> 13.80633993 | T30: =IF(Models!F83<>"",Models!F83,"") -> -14.15676089 | U30: =IF(Models!G83<>"",Models!G83,"") -> 6.083580534
G31: =IF(Models!D84<>"",Models!D84,"") -> 5.404185411 | H31: =IF(Models!E84<>"",Models!E84,"") -> 14.08057069 | I31: =IF(Models!F84<>"",Models!F84,"") -> -14.5922611 | J31: =IF(Models!G84<>"",Models!G84,"") -> 6.175800107 | R31: =IF(Models!D84<>"",Models!D84,"") -> 5.404185411 | S31: =IF(Models!E84<>"",Models!E84,"") -> 14.08057069 | T31: =IF(Models!F84<>"",Models!F84,"") -> -14.5922611 | U31: =IF(Models!G84<>"",Models!G84,"") -> 6.175800107
G32: =IF(Models!D85<>"",Models!D85,"") -> 5.703545204 | H32: =IF(Models!E85<>"",Models!E85,"") -> 13.65881121 | I32: =IF(Models!F85<>"",Models!F85,"") -> -13.72874351 | J32: =IF(Models!G85<>"",Models!G85,"") -> 5.830436217 | R32: =IF(Models!D85<>"",Models!D85,"") -> 5.703545204 | S32: =IF(Models!E85<>"",Models!E85,"") -> 13.65881121 | T32: =IF(Models!F85<>"",Models!F85,"") -> -13.72874351 | U32: =IF(Models!G85<>"",Models!G85,"") -> 5.830436217
G33: =IF(Models!D86<>"",Models!D86,"") ->  | H33: =IF(Models!E86<>"",Models!E86,"") ->  | I33: =IF(Models!F86<>"",Models!F86,"") ->  | J33: =IF(Models!G86<>"",Models!G86,"") ->  | R33: =IF(Models!D86<>"",Models!D86,"") ->  | S33: =IF(Models!E86<>"",Models!E86,"") ->  | T33: =IF(Models!F86<>"",Models!F86,"") ->  | U33: =IF(Models!G86<>"",Models!G86,"") -> 
G34: =IF(Models!D87<>"",Models!D87,"") ->  | H34: =IF(Models!E87<>"",Models!E87,"") ->  | I34: =IF(Models!F87<>"",Models!F87,"") ->  | J34: =IF(Models!G87<>"",Models!G87,"") ->  | R34: =IF(Models!D87<>"",Models!D87,"") ->  | S34: =IF(Models!E87<>"",Models!E87,"") ->  | T34: =IF(Models!F87<>"",Models!F87,"") ->  | U34: =IF(Models!G87<>"",Models!G87,"") -> 
G35: =IF(Models!D88<>"",Models!D88,"") ->  | H35: =IF(Models!E88<>"",Models!E88,"") ->  | I35: =IF(Models!F88<>"",Models!F88,"") ->  | J35: =IF(Models!G88<>"",Models!G88,"") ->  | R35: =IF(Models!D88<>"",Models!D88,"") ->  | S35: =IF(Models!E88<>"",Models!E88,"") ->  | T35: =IF(Models!F88<>"",Models!F88,"") ->  | U35: =IF(Models!G88<>"",Models!G88,"") -> 
G36: =IF(Models!D89<>"",Models!D89,"") ->  | H36: =IF(Models!E89<>"",Models!E89,"") ->  | I36: =IF(Models!F89<>"",Models!F89,"") ->  | J36: =IF(Models!G89<>"",Models!G89,"") ->  | R36: =IF(Models!D89<>"",Models!D89,"") ->  | S36: =IF(Models!E89<>"",Models!E89,"") ->  | T36: =IF(Models!F89<>"",Models!F89,"") ->  | U36: =IF(Models!G89<>"",Models!G89,"") -> 
O95: 18.54214
O96: 18.54214
O97: 18.54214
O98: 18.54214
O99: 18.54214
O100: 18.54214
O101: 18.54214
O102: 18.54214
O103: 18.54214
O104: 18.54214
O105: 18.54214
O106: 18.54214
O107: 18.54214
O108: 18.54214
O109: 18.54214
O110: 18.54214
O111: 18.54214
O112: 18.54214
O113: 18.54214
O114: 18.54214
O115: 18.54214
O116: 18.54214
O117: 18.54214
O118: 18.54214
O119: 18.54214
O120: 18.54214
O121: 18.54214
O122: 18.54214
O123: 18.54214
O124: 18.54214
O125: 18.54214
O126: 18.54214
O127: 18.54214
O128: 18.54214
O129: 18.54214
O130: 18.54214
O131: 18.54214
O132: 18.54214
O133: 18.54214
O134: 18.54214
O135: 18.54214
O136: 18.54214
O137: 18.54214
O138: 18.54214
O139: 18.54214
O140: 18.54214
O141: 18.54214
O142: 18.54214
O143: 18.54214
O144: 18.54214
O145: 18.54214
O146: 18.54214
O147: 18.54214
O148: 18.54214
O149: 18.54214
O150: 18.54214
O151: 18.54214
O152: 18.54214
O153: 18.54214
O154: 18.54214
O155: 18.54214
O156: 18.54214
O157: 18.54214
O158: 18.54214
O159: 18.54214
O160: 18.54214
O161: 18.54214
O162: 18.54214
O163: 18.54214
O164: 18.54214
O165: 18.54214
O166: 18.54214
O167: 18.54214
O168: 18.54214
O169: 18.54214
O170: 18.54214
O171: 18.54214
O172: 18.54214
O173: 18.54214
O174: 18.54214
O175: 18.54214
O176: 18.54214
O177: 18.54214
O178: 18.54214
O179: 18.54214
O180: 18.54214
O181: 18.54214
O182: 18.54214
O183: 18.54214
O184: 18.54214
O185: 18.54214
O186: 18.54214
O187: 18.54214
O188: 18.54214
O189: 18.54214
O190: 18.54214
O191: 18.54214
O192: 18.54214
O193: 18.54214
O194: 18.54214
O195: 18.54214
O196: 18.54214
O197: 18.54214
O198: 18.54214
O199: 18.54214
O200: 18.54214
O201: 18.54214
O202: 18.54214
O203: 18.54214
O204: 18.54214
O205: 18.54214
O206: 18.54214
O207: 18.54214
O208: 18.54214
O209: 18.54214
O210: 18.54214
O211: 18.54214
O212: 18.54214
O213: 18.54214
O214: 18.54214
O215: 18.54214
O216: 18.54214
O217: 18.54214
O218: 18.54214
O219: 18.54214
O220: 18.54214
O221: 18.54214
O222: 18.54214
O223: 18.54214
O224: 18.54214
O225: 18.54214
O226: 18.54214
O227: 18.54214
O228: 18.54214
O229: 18.54214
O230: 18.54214
O231: 18.54214
O232: 18.54214
O233: 18.54214
O234: 18.54214
O235: 18.54214
O236: 18.54214
O237: 18.54214
O238: 18.54214
O239: 18.54214
O240: 18.54214
O241: 18.54214
O242: 18.54214
O243: 18.54214
O244: 18.54214
O245: 18.54214
O246: 18.54214
O247: 18.54214
O248: 18.54214
O249: 18.54214
O250: 18.54214
O251: 18.54214
O252: 18.54214
O253: 18.54214
O254: 18.54214
O255: 18.54214
O256: 18.54214
O257: 18.54214
O258: 18.54214
... 4242 more rows

Sheet Simulation PowerPoints
